Workbook

Sheet Start
F1: Eaten: | G1: =Visualisering!X17 ->  | P1: Excel Formula Chess Engine v0.1 - Peter Larsen 2015
G2: =Visualisering!X20 -> 
G3: 0 | H3: 1 | I3: 2 | J3: 3 | K3: 4 | L3: 5 | M3: 6 | N3: 7
G4: A | H4: B | I4: C | J4: D | K4: E | L4: F | M4: G | N4: H | P4: History | R4: Next Move
E5: 0 | F5: 8 | G5: =OFFSET(Visualisering!$F$35,$E5,G$3) -> ♜ | H5: =OFFSET(Visualisering!$F$35,$E5,H$3) -> ♞ | I5: =OFFSET(Visualisering!$F$35,$E5,I$3) -> ♝ | J5: =OFFSET(Visualisering!$F$35,$E5,J$3) -> ♛ | K5: =OFFSET(Visualisering!$F$35,$E5,K$3) -> ♚ | L5: =OFFSET(Visualisering!$F$35,$E5,L$3) -> ♝ | M5: =OFFSET(Visualisering!$F$35,$E5,M$3) -> ♞ | N5: =OFFSET(Visualisering!$F$35,$E5,N$3) -> ♜ | O5: 8
E6: -1 | F6: 7 | G6: =OFFSET(Visualisering!$F$35,$E6,G$3) -> ♟ | H6: =OFFSET(Visualisering!$F$35,$E6,H$3) -> ♟ | I6: =OFFSET(Visualisering!$F$35,$E6,I$3) -> ♟ | J6: =OFFSET(Visualisering!$F$35,$E6,J$3) -> ♟ | K6: =OFFSET(Visualisering!$F$35,$E6,K$3) -> ♟ | L6: =OFFSET(Visualisering!$F$35,$E6,L$3) -> ♟ | M6: =OFFSET(Visualisering!$F$35,$E6,M$3) -> ♟ | N6: =OFFSET(Visualisering!$F$35,$E6,N$3) -> ♟ | O6: 7
C7: Move | D7: Next | E7: -2 | F7: 6 | G7: =OFFSET(Visualisering!$F$35,$E7,G$3) ->  | H7: =OFFSET(Visualisering!$F$35,$E7,H$3) ->  | I7: =OFFSET(Visualisering!$F$35,$E7,I$3) ->  | J7: =OFFSET(Visualisering!$F$35,$E7,J$3) ->  | K7: =OFFSET(Visualisering!$F$35,$E7,K$3) ->  | L7: =OFFSET(Visualisering!$F$35,$E7,L$3) ->  | M7: =OFFSET(Visualisering!$F$35,$E7,M$3) ->  | N7: =OFFSET(Visualisering!$F$35,$E7,N$3) ->  | O7: 6
C8: 100 | D8: =IF(ISODD(aDragNr),"Black","White") -> White | E8: -3 | F8: 5 | G8: =OFFSET(Visualisering!$F$35,$E8,G$3) ->  | H8: =OFFSET(Visualisering!$F$35,$E8,H$3) ->  | I8: =OFFSET(Visualisering!$F$35,$E8,I$3) ->  | J8: =OFFSET(Visualisering!$F$35,$E8,J$3) ->  | K8: =OFFSET(Visualisering!$F$35,$E8,K$3) ->  | L8: =OFFSET(Visualisering!$F$35,$E8,L$3) ->  | M8: =OFFSET(Visualisering!$F$35,$E8,M$3) ->  | N8: =OFFSET(Visualisering!$F$35,$E8,N$3) ->  | O8: 5 | R8: Instruction - How to play
E9: -4 | F9: 4 | G9: =OFFSET(Visualisering!$F$35,$E9,G$3) ->  | H9: =OFFSET(Visualisering!$F$35,$E9,H$3) ->  | I9: =OFFSET(Visualisering!$F$35,$E9,I$3) ->  | J9: =OFFSET(Visualisering!$F$35,$E9,J$3) ->  | K9: =OFFSET(Visualisering!$F$35,$E9,K$3) ->  | L9: =OFFSET(Visualisering!$F$35,$E9,L$3) ->  | M9: =OFFSET(Visualisering!$F$35,$E9,M$3) ->  | N9: =OFFSET(Visualisering!$F$35,$E9,N$3) ->  | O9: 4 | R9: 1. Enter your move in "History"-box, example: D2D4
E10: -5 | F10: 3 | G10: =OFFSET(Visualisering!$F$35,$E10,G$3) ->  | H10: =OFFSET(Visualisering!$F$35,$E10,H$3) ->  | I10: =OFFSET(Visualisering!$F$35,$E10,I$3) ->  | J10: =OFFSET(Visualisering!$F$35,$E10,J$3) ->  | K10: =OFFSET(Visualisering!$F$35,$E10,K$3) ->  | L10: =OFFSET(Visualisering!$F$35,$E10,L$3) ->  | M10: =OFFSET(Visualisering!$F$35,$E10,M$3) ->  | N10: =OFFSET(Visualisering!$F$35,$E10,N$3) ->  | O10: 3 | R10: 2. Hit "Move!"-button to let chess engine make move
E11: -6 | F11: 2 | G11: =OFFSET(Visualisering!$F$35,$E11,G$3) -> ♙ | H11: =OFFSET(Visualisering!$F$35,$E11,H$3) -> ♙ | I11: =OFFSET(Visualisering!$F$35,$E11,I$3) -> ♙ | J11: =OFFSET(Visualisering!$F$35,$E11,J$3) -> ♙ | K11: =OFFSET(Visualisering!$F$35,$E11,K$3) -> ♙ | L11: =OFFSET(Visualisering!$F$35,$E11,L$3) -> ♙ | M11: =OFFSET(Visualisering!$F$35,$E11,M$3) -> ♙ | N11: =OFFSET(Visualisering!$F$35,$E11,N$3) -> ♙ | O11: 2 | R11: 3. Wait a minute!
E12: -7 | F12: 1 | G12: =OFFSET(Visualisering!$F$35,$E12,G$3) -> ♖ | H12: =OFFSET(Visualisering!$F$35,$E12,H$3) -> ♘ | I12: =OFFSET(Visualisering!$F$35,$E12,I$3) -> ♗ | J12: =OFFSET(Visualisering!$F$35,$E12,J$3) -> ♕ | K12: =OFFSET(Visualisering!$F$35,$E12,K$3) -> ♔ | L12: =OFFSET(Visualisering!$F$35,$E12,L$3) -> ♗ | M12: =OFFSET(Visualisering!$F$35,$E12,M$3) -> ♘ | N12: =OFFSET(Visualisering!$F$35,$E12,N$3) -> ♖ | O12: 1 | R12: 4. Repeat from (1.) , add your next move after current moves
G13: A | H13: B | I13: C | J13: D | K13: E | L13: F | M13: G | N13: H
P14: Take Notes:
G15: White | N15: Black | P15: Example run: d2d4 e7e6 d1d2 d8f6 g1f3 f8d6 d2c3 b8c6 e2e4 c6d4 c3d4 f6d4 f3d4 f7f6 e1e2 e6e5 d4f5 e8f8 f2f4 g8h6 f5d6 c7d6 f4e5 g7g5 e5e6 d7e6 c1g5 f6g5 b1c3 f8f7 e4e5 h6f5 e2d2 c8d7 c3e4 f7g7 c2c4 h7h5 e4g5 g7g6 h2h4 d6e5 h1h3 d7c6 f1d3 a8d8 d2e1 d8d3 h3d3
F16: Points | G16: =Logik!B3 -> 23900 | N16: =Logik!C3 -> 23900
F17: PosPoints | G17: =Logik!B4 -> 92 | N17: =Logik!C4 -> 92
F18: Attack | G18: =Stat!H37 -> 0 | N18: =Stat!H38 -> 0
F19: Defence | G19: =Stat!G37 -> 215.8 | N19: =Stat!G38 -> 215.8
F20: AttackKing | G20: =Stat!I37 -> 444.5815296 | N20: =Stat!I38 -> 444.5815296
F21: Possibilities | G21: =Drag!E19*10 -> 200 | N21: =Drag!H19*10 -> 200
F22: Check | G22: =200*schackSvart -> 0 | N22: =200*schackVit -> 0
F23: Avg. | G23: =Stat!J37 -> 240 | N23: =Stat!J38 -> 240
F24: Avg. | G24: =Stat!K37 -> 256 | N24: =Stat!K38 -> 256
F25: IsChecked | G25: =-10000*schackVit -> 0 | N25: =-10000*schackSvart -> 0
F26: PossibleMoves | G26: =Stat!M37/50 -> 56 | N26: =Stat!M38/50 -> 56
F28: Sum | G28: =ROUND(SUM(G16:G26),0) -> 25404 | N28: =ROUND(SUM(N16:N26),0) -> 25404
F30: PossibleMoves | G30: =IF(ISODD(dragnr),"",Drag!E19) -> 20 | N30: =IF(ISODD(dragnr),Drag!H19,"") ->  | P30: Todo: (not working/implemented yet!)
P31: En passant Castling Promotion Stalemate-detection Check mate detection 3-times repeat rule 50-moves without moving any pawn - detection

Sheet Blad1 (hidden)

Sheet Drag (hidden)
A1: Positioner | D1: Möjliga drag | J1: Schack | M1: AllaDrag | N1: Vit | O1: =F3&F4&F5&F6&F7&F8&F9&F10&F12&F11&F13&F14&F15&F16&F17&F18 -> A3C3F3H3B3B4A3A4C3C4D3D4E3E4F3F4G3G4H3H4
A2: Vit | B2: Svart | D2: Vit | G2: Svart | J2: Vit | K2: Svart | N2: Svart | O2: =I3&I4&I5&I6&I7&I8&I9&I10&I11&I12&I13&I14&I15&I16&I17&I18 -> A6A5B6B5C6C5D6D5E6E5F6F5G6G5H6H5A6C6F6H6
A3: =OFFSET(Logik!$D$1,0,C3) -> A1 | B3: =OFFSET(Logik!$D$1,0,C3+16) -> A7 | C3: 1 | D3: A1 | E3: =P_A1!E14 -> 0 | F3: =P_A1!E13 ->  | G3: A7 | H3: =P_A7!E14 -> 2 | I3: =P_A7!E13 -> A6A5 | J3: =IFERROR(FIND($A$7,I3),"") ->  | K3: =IFERROR(FIND($B$15,F3),"") ->  | N3: =IF(I3<>"",COUNTIF($F$3:$F$18,"*"&RIGHT(I3,2)&"*"),"") -> 0 | O3: =OFFSET(Logik!$D$3,0,C3) -> 500 | P3: =$O3-P$19 -> 400 | Q3: =$O3-Q$19 -> 400 | R3: 400 | S3: 400 | T3: 400 | U3: 400 | V3: 400 | W3: 400 | X3: 0 | Y3: 200 | Z3: 200 | AA3: -400 | AB3: -19500 | AC3: 200 | AD3: 200 | AE3: 0
A4: =OFFSET(Logik!$D$1,0,C4) -> B1 | B4: =OFFSET(Logik!$D$1,0,C4+16) -> B7 | C4: 2 | D4: B1 | E4: =P_B1!E14 -> 2 | F4: =P_B1!E13 -> A3C3 | G4: B7 | H4: =P_B7!E14 -> 2 | I4: =P_B7!E13 -> B6B5 | J4: =IFERROR(FIND($A$7,I4),"") ->  | K4: =IFERROR(FIND($B$15,F4),"") ->  | N4: =IF(I4<>"",COUNTIF($F$3:$F$18,"*"&I4&"*"),"") -> 0 | O4: =OFFSET(Logik!$D$3,0,C4) -> 300 | P4: =$O4-P$19 -> 200 | Q4: 200 | R4: 200 | S4: 200 | T4: 200 | U4: 200 | V4: 200 | W4: 200 | X4: -200 | Y4: 0 | Z4: 0 | AA4: -600 | AB4: -19700 | AC4: 0 | AD4: 0 | AE4: -200
A5: =OFFSET(Logik!$D$1,0,C5) -> C1 | B5: =OFFSET(Logik!$D$1,0,C5+16) -> C7 | C5: 3 | D5: C1 | E5: =P_C1!E27 -> 0 | F5: =P_C1!E26 ->  | G5: C7 | H5: =P_C7!E14 -> 2 | I5: =P_C7!E13 -> C6C5 | N5: 0 | O5: =OFFSET(Logik!$D$3,0,C5) -> 300 | P5: 200 | Q5: 200 | R5: 200 | S5: 200 | T5: 200 | U5: 200 | V5: 200 | W5: 200 | X5: -200 | Y5: 0 | Z5: 0 | AA5: -600 | AB5: -19700 | AC5: 0 | AD5: 0 | AE5: -200
A6: =OFFSET(Logik!$D$1,0,C6) -> D1 | B6: =OFFSET(Logik!$D$1,0,C6+16) -> D7 | C6: 4 | D6: D1 | E6: =P_D1!E27 -> 0 | F6: =P_D1!E26 ->  | G6: D7 | H6: =P_D7!E14 -> 2 | I6: =P_D7!E13 -> D6D5 | N6: 0 | O6: =OFFSET(Logik!$D$3,0,C6) -> 900 | P6: 800 | Q6: 800 | R6: 800 | S6: 800 | T6: 800 | U6: 800 | V6: 800 | W6: 800 | X6: 400 | Y6: 600 | Z6: 600 | AA6: 0 | AB6: -19100 | AC6: 600 | AD6: 600 | AE6: 400
A7: =OFFSET(Logik!$D$1,0,C7) -> E1 | B7: =OFFSET(Logik!$D$1,0,C7+16) -> E7 | C7: 5 | D7: E1 | E7: =P_E1!E27 -> 0 | F7: =P_E1!E26 ->  | G7: E7 | H7: =P_E7!E14 -> 2 | I7: =P_E7!E13 -> E6E5 | N7: 0 | O7: =OFFSET(Logik!$D$3,0,C7) -> 20000 | P7: 19900 | Q7: 19900 | R7: 19900 | S7: 19900 | T7: 19900 | U7: 19900 | V7: 19900 | W7: 19900 | X7: 19500 | Y7: 19700 | Z7: 19700 | AA7: 19100 | AB7: 0 | AC7: 19700 | AD7: 19700 | AE7: 19500
A8: =OFFSET(Logik!$D$1,0,C8) -> F1 | B8: =OFFSET(Logik!$D$1,0,C8+16) -> F7 | C8: 6 | D8: F1 | E8: =P_F1!E27 -> 0 | F8: =P_F1!E26 ->  | G8: F7 | H8: =P_F7!E14 -> 2 | I8: =P_F7!E13 -> F6F5 | N8: 0 | O8: =OFFSET(Logik!$D$3,0,C8) -> 300 | P8: 200 | Q8: 200 | R8: 200 | S8: 200 | T8: 200 | U8: 200 | V8: 200 | W8: 200 | X8: -200 | Y8: 0 | Z8: 0 | AA8: -600 | AB8: -19700 | AC8: 0 | AD8: 0 | AE8: -200
A9: =OFFSET(Logik!$D$1,0,C9) -> G1 | B9: =OFFSET(Logik!$D$1,0,C9+16) -> G7 | C9: 7 | D9: G1 | E9: =P_G1!E14 -> 2 | F9: =P_G1!E13 -> F3H3 | G9: G7 | H9: =P_G7!E14 -> 2 | I9: =P_G7!E13 -> G6G5 | N9: 0 | O9: =OFFSET(Logik!$D$3,0,C9) -> 300 | P9: 200 | Q9: 200 | R9: 200 | S9: 200 | T9: 200 | U9: 200 | V9: 200 | W9: 200 | X9: -200 | Y9: 0 | Z9: 0 | AA9: -600 | AB9: -19700 | AC9: 0 | AD9: 0 | AE9: -200
A10: =OFFSET(Logik!$D$1,0,C10) -> H1 | B10: =OFFSET(Logik!$D$1,0,C10+16) -> H7 | C10: 8 | D10: H1 | E10: =P_H1!E14 -> 0 | F10: =P_H1!E13 ->  | G10: H7 | H10: =P_H7!E14 -> 2 | I10: =P_H7!E13 -> H6H5 | N10: 0 | O10: =OFFSET(Logik!$D$3,0,C10) -> 500 | P10: 400 | Q10: 400 | R10: 400 | S10: 400 | T10: 400 | U10: 400 | V10: 400 | W10: 400 | X10: 0 | Y10: 200 | Z10: 200 | AA10: -400 | AB10: -19500 | AC10: 200 | AD10: 200 | AE10: 0
A11: =OFFSET(Logik!$D$1,0,C11) -> A2 | B11: =OFFSET(Logik!$D$1,0,C11+16) -> A8 | C11: 9 | D11: A2 | E11: =P_A2!E14 -> 2 | F11: =P_A2!E13 -> A3A4 | G11: A8 | H11: =P_A8!E14 -> 0 | I11: =P_A8!E13 ->  | O11: =OFFSET(Logik!$D$3,0,C11) -> 100 | P11: 0 | Q11: 0 | R11: 0 | S11: 0 | T11: 0 | U11: 0 | V11: 0 | W11: 0 | X11: -400 | Y11: -200 | Z11: -200 | AA11: -800 | AB11: -19900 | AC11: -200 | AD11: -200 | AE11: -400
A12: =OFFSET(Logik!$D$1,0,C12) -> B2 | B12: =OFFSET(Logik!$D$1,0,C12+16) -> B8 | C12: 10 | D12: B2 | E12: =P_B2!E14 -> 2 | F12: =P_B2!E13 -> B3B4 | G12: B8 | H12: =P_B8!E14 -> 2 | I12: =P_B8!E13 -> A6C6 | N12: 0 | O12: =OFFSET(Logik!$D$3,0,C12) -> 100 | P12: 0 | Q12: 0 | R12: 0 | S12: 0 | T12: 0 | U12: 0 | V12: 0 | W12: 0 | X12: -400 | Y12: -200 | Z12: -200 | AA12: -800 | AB12: -19900 | AC12: -200 | AD12: -200 | AE12: -400
A13: =OFFSET(Logik!$D$1,0,C13) -> C2 | B13: =OFFSET(Logik!$D$1,0,C13+16) -> C8 | C13: 11 | D13: C2 | E13: =P_C2!E14 -> 2 | F13: =P_C2!E13 -> C3C4 | G13: C8 | H13: =P_C8!E27 -> 0 | I13: =P_C8!E26 ->  | O13: =OFFSET(Logik!$D$3,0,C13) -> 100 | P13: 0 | Q13: 0 | R13: 0 | S13: 0 | T13: 0 | U13: 0 | V13: 0 | W13: 0 | X13: -400 | Y13: -200 | Z13: -200 | AA13: -800 | AB13: -19900 | AC13: -200 | AD13: -200 | AE13: -400
A14: =OFFSET(Logik!$D$1,0,C14) -> D2 | B14: =OFFSET(Logik!$D$1,0,C14+16) -> D8 | C14: 12 | D14: D2 | E14: =P_D2!E14 -> 2 | F14: =P_D2!E13 -> D3D4 | G14: D8 | H14: =P_D8!E27 -> 0 | I14: =P_D8!E26 ->  | O14: =OFFSET(Logik!$D$3,0,C14) -> 100 | P14: 0 | Q14: 0 | R14: 0 | S14: 0 | T14: 0 | U14: 0 | V14: 0 | W14: 0 | X14: -400 | Y14: -200 | Z14: -200 | AA14: -800 | AB14: -19900 | AC14: -200 | AD14: -200 | AE14: -400
A15: =OFFSET(Logik!$D$1,0,C15) -> E2 | B15: =OFFSET(Logik!$D$1,0,C15+16) -> E8 | C15: 13 | D15: E2 | E15: =P_E2!E14 -> 2 | F15: =P_E2!E13 -> E3E4 | G15: E8 | H15: =P_E8!E27 -> 0 | I15: =P_E8!E26 ->  | O15: =OFFSET(Logik!$D$3,0,C15) -> 100 | P15: 0 | Q15: 0 | R15: 0 | S15: 0 | T15: 0 | U15: 0 | V15: 0 | W15: 0 | X15: -400 | Y15: -200 | Z15: -200 | AA15: -800 | AB15: -19900 | AC15: -200 | AD15: -200 | AE15: -400
A16: =OFFSET(Logik!$D$1,0,C16) -> F2 | B16: =OFFSET(Logik!$D$1,0,C16+16) -> F8 | C16: 14 | D16: F2 | E16: =P_F2!E14 -> 2 | F16: =P_F2!E13 -> F3F4 | G16: F8 | H16: =P_F8!E27 -> 0 | I16: =P_F8!E26 ->  | O16: =OFFSET(Logik!$D$3,0,C16) -> 100 | P16: 0 | Q16: 0 | R16: 0 | S16: 0 | T16: 0 | U16: 0 | V16: 0 | W16: 0 | X16: -400 | Y16: -200 | Z16: -200 | AA16: -800 | AB16: -19900 | AC16: -200 | AD16: -200 | AE16: -400
A17: =OFFSET(Logik!$D$1,0,C17) -> G2 | B17: =OFFSET(Logik!$D$1,0,C17+16) -> G8 | C17: 15 | D17: G2 | E17: =P_G2!E14 -> 2 | F17: =P_G2!E13 -> G3G4 | G17: G8 | H17: =P_G8!E14 -> 2 | I17: =P_G8!E13 -> F6H6 | N17: 0 | O17: =OFFSET(Logik!$D$3,0,C17) -> 100 | P17: 0 | Q17: 0 | R17: 0 | S17: 0 | T17: 0 | U17: 0 | V17: 0 | W17: 0 | X17: -400 | Y17: -200 | Z17: -200 | AA17: -800 | AB17: -19900 | AC17: -200 | AD17: -200 | AE17: -400
A18: =OFFSET(Logik!$D$1,0,C18) -> H2 | B18: =OFFSET(Logik!$D$1,0,C18+16) -> H8 | C18: 16 | D18: H2 | E18: =P_H2!E14 -> 2 | F18: =P_H2!E13 -> H3H4 | G18: H8 | H18: =P_H8!E14 -> 0 | I18: =P_H8!E13 ->  | O18: =OFFSET(Logik!$D$3,0,C18) -> 100 | P18: 0 | Q18: 0 | R18: 0 | S18: 0 | T18: 0 | U18: 0 | V18: 0 | W18: 0 | X18: -400 | Y18: -200 | Z18: -200 | AA18: -800 | AB18: -19900 | AC18: -200 | AD18: -200 | AE18: -400
D19: Summa: | E19: =SUM(E3:E18) -> 20 | G19: Summa: | H19: =SUM(H3:H18) -> 20 | J19: =16-COUNTIF(J3:J18,"") -> 0 | K19: =16-COUNTIF(K3:K18,"") -> 0 | P19: =OFFSET(Logik!$D$3,0,$C3+16) -> 100 | Q19: =OFFSET(Logik!$D$3,0,$C4+16) -> 100 | R19: =OFFSET(Logik!$D$3,0,$C5+16) -> 100 | S19: =OFFSET(Logik!$D$3,0,$C6+16) -> 100 | T19: =OFFSET(Logik!$D$3,0,$C7+16) -> 100 | U19: =OFFSET(Logik!$D$3,0,$C8+16) -> 100 | V19: =OFFSET(Logik!$D$3,0,$C9+16) -> 100 | W19: =OFFSET(Logik!$D$3,0,$C10+16) -> 100 | X19: =OFFSET(Logik!$D$3,0,$C11+16) -> 500 | Y19: =OFFSET(Logik!$D$3,0,$C12+16) -> 300 | Z19: =OFFSET(Logik!$D$3,0,$C13+16) -> 300 | AA19: =OFFSET(Logik!$D$3,0,$C14+16) -> 900 | AB19: =OFFSET(Logik!$D$3,0,$C15+16) -> 20000 | AC19: =OFFSET(Logik!$D$3,0,$C16+16) -> 300 | AD19: =OFFSET(Logik!$D$3,0,$C17+16) -> 300 | AE19: =OFFSET(Logik!$D$3,0,$C18+16) -> 500
I20: 1 | J20: 3 | K20: 5 | L20: 7 | M20: 9 | N20: 11 | O20: 13 | P20: 15 | Q20: 17 | R20: 19 | S20: 21 | T20: 23 | U20: 25 | V20: 27 | W20: 29 | X20: 31 | Y20: 33 | Z20: 35 | AA20: 37 | AB20: 39 | AC20: 41 | AD20: 43 | AE20: 45 | AF20: 47 | AG20: 49 | AH20: 51 | AI20: 53 | AJ20: 55
G21: Total | I21: =IF(MID(LOWER($I3),I$20,2) <> LOWER($A$7),IF(I$20<LEN($I3),LOWER($B3)&MID(LOWER($I3),I$20,2),""),"") -> a7a6 | J21: =IF(MID(LOWER($I3),J$20,2) <> LOWER($A$7),IF(J$20<LEN($I3),LOWER($B3)&MID(LOWER($I3),J$20,2),""),"") -> a7a5 | AK21: =I21 -> a7a6 | AL21: =AK21&J21 -> a7a6a7a5 | AM21: =AL21&K21 -> a7a6a7a5 | AN21: a7a6a7a5 | AO21: a7a6a7a5 | AP21: a7a6a7a5 | AQ21: a7a6a7a5 | AR21: a7a6a7a5 | AS21: =AR21&Q21 -> a7a6a7a5 | AT21: =AS21&R21 -> a7a6a7a5 | AU21: =AT21&S21 -> a7a6a7a5 | AV21: =AU21&T21 -> a7a6a7a5 | AW21: =AV21&U21 -> a7a6a7a5 | AX21: =AW21&V21 -> a7a6a7a5 | AY21: =AX21&W21 -> a7a6a7a5 | AZ21: a7a6a7a5 | BA21: =AZ21&Y21 -> a7a6a7a5 | BB21: =BA21&Z21 -> a7a6a7a5 | BC21: =BB21&AA21 -> a7a6a7a5 | BD21: =BC21&AB21 -> a7a6a7a5 | BE21: =BD21&AC21 -> a7a6a7a5 | BF21: =BE21&AD21 -> a7a6a7a5 | BG21: a7a6a7a5 | BH21: =BG21&AF21 -> a7a6a7a5 | BI21: =BH21&AG21 -> a7a6a7a5 | BJ21: =BI21&AH21 -> a7a6a7a5 | BK21: =BJ21&AI21 -> a7a6a7a5 | BL21: =BK21&AJ21 -> a7a6a7a5
G22: Svart | I22: =IF(MID(LOWER($I4),I$20,2) <> LOWER($A$7),IF(I$20<LEN($I4),LOWER($B4)&MID(LOWER($I4),I$20,2),""),"") -> b7b6 | J22: b7b5 | AK22: =I22 -> b7b6 | AL22: =AK22&J22 -> b7b6b7b5 | AM22: b7b6b7b5 | AN22: b7b6b7b5 | AO22: b7b6b7b5 | AP22: b7b6b7b5 | AQ22: b7b6b7b5 | AR22: b7b6b7b5 | AS22: b7b6b7b5 | AT22: b7b6b7b5 | AU22: b7b6b7b5 | AV22: b7b6b7b5 | AW22: b7b6b7b5 | AX22: b7b6b7b5 | AY22: b7b6b7b5 | AZ22: b7b6b7b5 | BA22: b7b6b7b5 | BB22: b7b6b7b5 | BC22: b7b6b7b5 | BD22: b7b6b7b5 | BE22: b7b6b7b5 | BF22: b7b6b7b5 | BG22: b7b6b7b5 | BH22: b7b6b7b5 | BI22: b7b6b7b5 | BJ22: b7b6b7b5 | BK22: b7b6b7b5 | BL22: b7b6b7b5
I23: c7c6 | J23: c7c5 | AK23: c7c6 | AL23: c7c6c7c5 | AM23: c7c6c7c5 | AN23: c7c6c7c5 | AO23: c7c6c7c5 | AP23: c7c6c7c5 | AQ23: c7c6c7c5 | AR23: c7c6c7c5 | AS23: c7c6c7c5 | AT23: c7c6c7c5 | AU23: c7c6c7c5 | AV23: c7c6c7c5 | AW23: c7c6c7c5 | AX23: c7c6c7c5 | AY23: c7c6c7c5 | AZ23: c7c6c7c5 | BA23: c7c6c7c5 | BB23: c7c6c7c5 | BC23: c7c6c7c5 | BD23: c7c6c7c5 | BE23: c7c6c7c5 | BF23: c7c6c7c5 | BG23: c7c6c7c5 | BH23: c7c6c7c5 | BI23: c7c6c7c5 | BJ23: c7c6c7c5 | BK23: c7c6c7c5 | BL23: c7c6c7c5
I24: d7d6 | J24: d7d5 | AK24: d7d6 | AL24: d7d6d7d5 | AM24: d7d6d7d5 | AN24: d7d6d7d5 | AO24: d7d6d7d5 | AP24: d7d6d7d5 | AQ24: d7d6d7d5 | AR24: d7d6d7d5 | AS24: d7d6d7d5 | AT24: d7d6d7d5 | AU24: d7d6d7d5 | AV24: d7d6d7d5 | AW24: d7d6d7d5 | AX24: d7d6d7d5 | AY24: d7d6d7d5 | AZ24: d7d6d7d5 | BA24: d7d6d7d5 | BB24: d7d6d7d5 | BC24: d7d6d7d5 | BD24: d7d6d7d5 | BE24: d7d6d7d5 | BF24: d7d6d7d5 | BG24: d7d6d7d5 | BH24: d7d6d7d5 | BI24: d7d6d7d5 | BJ24: d7d6d7d5 | BK24: d7d6d7d5 | BL24: d7d6d7d5
I25: e7e6 | J25: e7e5 | AK25: e7e6 | AL25: e7e6e7e5 | AM25: e7e6e7e5 | AN25: e7e6e7e5 | AO25: e7e6e7e5 | AP25: e7e6e7e5 | AQ25: e7e6e7e5 | AR25: e7e6e7e5 | AS25: e7e6e7e5 | AT25: e7e6e7e5 | AU25: e7e6e7e5 | AV25: e7e6e7e5 | AW25: e7e6e7e5 | AX25: e7e6e7e5 | AY25: e7e6e7e5 | AZ25: e7e6e7e5 | BA25: e7e6e7e5 | BB25: e7e6e7e5 | BC25: e7e6e7e5 | BD25: e7e6e7e5 | BE25: e7e6e7e5 | BF25: e7e6e7e5 | BG25: e7e6e7e5 | BH25: e7e6e7e5 | BI25: e7e6e7e5 | BJ25: e7e6e7e5 | BK25: e7e6e7e5 | BL25: e7e6e7e5
I26: f7f6 | J26: f7f5 | AK26: f7f6 | AL26: f7f6f7f5 | AM26: f7f6f7f5 | AN26: f7f6f7f5 | AO26: f7f6f7f5 | AP26: f7f6f7f5 | AQ26: f7f6f7f5 | AR26: f7f6f7f5 | AS26: f7f6f7f5 | AT26: f7f6f7f5 | AU26: f7f6f7f5 | AV26: f7f6f7f5 | AW26: f7f6f7f5 | AX26: f7f6f7f5 | AY26: f7f6f7f5 | AZ26: f7f6f7f5 | BA26: f7f6f7f5 | BB26: f7f6f7f5 | BC26: f7f6f7f5 | BD26: f7f6f7f5 | BE26: f7f6f7f5 | BF26: f7f6f7f5 | BG26: f7f6f7f5 | BH26: f7f6f7f5 | BI26: f7f6f7f5 | BJ26: f7f6f7f5 | BK26: f7f6f7f5 | BL26: f7f6f7f5
I27: g7g6 | J27: g7g5 | AK27: g7g6 | AL27: g7g6g7g5 | AM27: g7g6g7g5 | AN27: g7g6g7g5 | AO27: g7g6g7g5 | AP27: g7g6g7g5 | AQ27: g7g6g7g5 | AR27: g7g6g7g5 | AS27: g7g6g7g5 | AT27: g7g6g7g5 | AU27: g7g6g7g5 | AV27: g7g6g7g5 | AW27: g7g6g7g5 | AX27: g7g6g7g5 | AY27: g7g6g7g5 | AZ27: g7g6g7g5 | BA27: g7g6g7g5 | BB27: g7g6g7g5 | BC27: g7g6g7g5 | BD27: g7g6g7g5 | BE27: g7g6g7g5 | BF27: g7g6g7g5 | BG27: g7g6g7g5 | BH27: g7g6g7g5 | BI27: g7g6g7g5 | BJ27: g7g6g7g5 | BK27: g7g6g7g5 | BL27: g7g6g7g5
I28: h7h6 | J28: h7h5 | AK28: h7h6 | AL28: h7h6h7h5 | AM28: h7h6h7h5 | AN28: h7h6h7h5 | AO28: h7h6h7h5 | AP28: h7h6h7h5 | AQ28: h7h6h7h5 | AR28: h7h6h7h5 | AS28: h7h6h7h5 | AT28: h7h6h7h5 | AU28: h7h6h7h5 | AV28: h7h6h7h5 | AW28: h7h6h7h5 | AX28: h7h6h7h5 | AY28: h7h6h7h5 | AZ28: h7h6h7h5 | BA28: h7h6h7h5 | BB28: h7h6h7h5 | BC28: h7h6h7h5 | BD28: h7h6h7h5 | BE28: h7h6h7h5 | BF28: h7h6h7h5 | BG28: h7h6h7h5 | BH28: h7h6h7h5 | BI28: h7h6h7h5 | BJ28: h7h6h7h5 | BK28: h7h6h7h5 | BL28: h7h6h7h5
I30: b8a6 | J30: b8c6 | AK30: b8a6 | AL30: b8a6b8c6 | AM30: b8a6b8c6 | AN30: b8a6b8c6 | AO30: b8a6b8c6 | AP30: b8a6b8c6 | AQ30: b8a6b8c6 | AR30: b8a6b8c6 | AS30: b8a6b8c6 | AT30: b8a6b8c6 | AU30: b8a6b8c6 | AV30: b8a6b8c6 | AW30: b8a6b8c6 | AX30: b8a6b8c6 | AY30: b8a6b8c6 | AZ30: b8a6b8c6 | BA30: b8a6b8c6 | BB30: b8a6b8c6 | BC30: b8a6b8c6 | BD30: b8a6b8c6 | BE30: b8a6b8c6 | BF30: b8a6b8c6 | BG30: b8a6b8c6 | BH30: b8a6b8c6 | BI30: b8a6b8c6 | BJ30: b8a6b8c6 | BK30: b8a6b8c6 | BL30: b8a6b8c6
J31: =IF(MID(LOWER($I13),J$20,2) <> LOWER($A$7),IF(J$20<LEN($I13),LOWER($B13)&MID(LOWER($I13),J$20,2),""),"") -> 
I35: g8f6 | J35: g8h6 | AK35: g8f6 | AL35: g8f6g8h6 | AM35: g8f6g8h6 | AN35: g8f6g8h6 | AO35: g8f6g8h6 | AP35: g8f6g8h6 | AQ35: g8f6g8h6 | AR35: g8f6g8h6 | AS35: g8f6g8h6 | AT35: g8f6g8h6 | AU35: g8f6g8h6 | AV35: g8f6g8h6 | AW35: g8f6g8h6 | AX35: g8f6g8h6 | AY35: g8f6g8h6 | AZ35: g8f6g8h6 | BA35: g8f6g8h6 | BB35: g8f6g8h6 | BC35: g8f6g8h6 | BD35: g8f6g8h6 | BE35: g8f6g8h6 | BF35: g8f6g8h6 | BG35: g8f6g8h6 | BH35: g8f6g8h6 | BI35: g8f6g8h6 | BJ35: g8f6g8h6 | BK35: g8f6g8h6 | BL35: g8f6g8h6
BL37: =BL21&BL22&BL23&BL24&BL25&BL26&BL27&BL28&BL29&BL30&BL31&BL32&BL33&BL34&BL35&BL36 -> a7a6a7a5b7b6b7b5c7c6c7c5d7d6d7d5e7e6e7e5f7f6f7f5g7g6g7g5h7h6h7h5b8a6b8c6g8f6g8h6
G38: Total | I38: =IF(MID(LOWER($F3),I$20,2) <> LOWER($B$15),IF(I$20<LEN($F3),LOWER($A3)&MID(LOWER($F3),I$20,2),""),"") ->  | J38: =IF(MID(LOWER($F3),J$20,2) <> LOWER($B$15),IF(J$20<LEN($F3),LOWER($A3)&MID(LOWER($F3),J$20,2),""),"") -> 
G39: Vit | I39: =IF(MID(LOWER($F4),I$20,2) <> LOWER($B$15),IF(I$20<LEN($F4),LOWER($A4)&MID(LOWER($F4),I$20,2),""),"") -> b1a3 | J39: b1c3
I44: g1f3 | J44: g1h3
I46: a2a3 | J46: a2a4
I47: b2b3 | J47: b2b4
I48: c2c3 | J48: =IF(MID(LOWER($F13),J$20,2) <> LOWER($B$15),IF(J$20<LEN($F13),LOWER($A13)&MID(LOWER($F13),J$20,2),""),"") -> c2c4
I49: d2d3 | J49: d2d4
I50: e2e3 | J50: e2e4
I51: f2f3 | J51: f2f4
I52: g2g3 | J52: g2g4
I53: h2h3 | J53: h2h4
I54: =IF(I$20<LEN($F19),$D19&MID($F19,I$20,2),"") -> 
I55: =IF(I$20<LEN($F20),$D20&MID($F20,I$20,2),"") -> 

Sheet Logik (hidden)
B1: =SUM(IF(E1:T1<>"",1,0)) -> 16 | C1: =SUM(IF(U1:AJ1<>"",1,0)) -> 16 | D1: Pos: | E1: =E18 -> A1 | F1: =I18 -> B1 | G1: =M18 -> C1 | H1: =Q18 -> D1 | I1: =U18 -> E1 | J1: =Y18 -> F1 | K1: =AC18 -> G1 | L1: =AG18 -> H1 | M1: =AK18 -> A2 | N1: =AO18 -> B2 | O1: =AS18 -> C2 | P1: =AW18 -> D2 | Q1: =BA18 -> E2 | R1: =BE18 -> F2 | S1: =BI18 -> G2 | T1: =BM18 -> H2 | U1: =BQ18 -> A7 | V1: =BU18 -> B7 | W1: =BY18 -> C7 | X1: =CC18 -> D7 | Y1: =CG18 -> E7 | Z1: =CK18 -> F7 | AA1: =CO18 -> G7 | AB1: =CS18 -> H7 | AC1: =CW18 -> A8 | AD1: =DA18 -> B8 | AE1: =DE18 -> C8 | AF1: =DI18 -> D8 | AG1: =DM18 -> E8 | AH1: =DQ18 -> F8 | AI1: =DU18 -> G8 | AJ1: =DY18 -> H8
D2: Pjas: | E2: A1 | F2: B1 | G2: C1 | H2: D1 | I2: E1 | J2: F1 | K2: G1 | L2: H1 | M2: A2 | N2: B2 | O2: C2 | P2: D2 | Q2: E2 | R2: F2 | S2: G2 | T2: H2 | U2: A7 | V2: B7 | W2: C7 | X2: D7 | Y2: E7 | Z2: F7 | AA2: G7 | AB2: H7 | AC2: A8 | AD2: B8 | AE2: C8 | AF2: D8 | AG2: E8 | AH2: F8 | AI2: G8 | AJ2: H8
B3: =SUM(E3:T3) -> 23900 | C3: =SUM(U3:AJ3) -> 23900 | D3: Poäng: | E3: =IF(E1<>"",HLOOKUP(HLOOKUP(E2,PjasStart,2,FALSE),Pjaser,3,FALSE),0) -> 500 | F3: 300 | G3: 300 | H3: 900 | I3: 20000 | J3: 300 | K3: 300 | L3: 500 | M3: 100 | N3: 100 | O3: 100 | P3: 100 | Q3: 100 | R3: 100 | S3: 100 | T3: 100 | U3: 100 | V3: 100 | W3: 100 | X3: 100 | Y3: 100 | Z3: 100 | AA3: 100 | AB3: 100 | AC3: 500 | AD3: 300 | AE3: 300 | AF3: 900 | AG3: 20000 | AH3: 300 | AI3: 300 | AJ3: 500 | CA3: Test på "en passant" på rad 9
B4: =SUM(E4:T4) -> 92 | C4: =SUM(U4:AJ4) -> 92 | D4: PosPoäng: | E4: =IF(E1<>"",20-2*(ABS(ROW(INDIRECT(E1))-4.5)+ABS(COLUMN(INDIRECT(E1))-4.5)),0) -> 6 | F4: =IF(F1<>"",20-2*(ABS(ROW(INDIRECT(F1))-4.5)+ABS(COLUMN(INDIRECT(F1))-4.5)),0) -> 8 | G4: =IF(G1<>"",20-2*(ABS(ROW(INDIRECT(G1))-4.5)+ABS(COLUMN(INDIRECT(G1))-4.5)),0) -> 10 | H4: =IF(H1<>"",20-2*(ABS(ROW(INDIRECT(H1))-4.5)+ABS(COLUMN(INDIRECT(H1))-4.5)),0) -> 12 | I4: =IF(I1<>"",8*(ABS(ROW(INDIRECT(I1))-4.5)+ABS(COLUMN(INDIRECT(I1))-4.5)),0) -> 32 | J4: =IF(J1<>"",20-2*(ABS(ROW(INDIRECT(J1))-4.5)+ABS(COLUMN(INDIRECT(J1))-4.5)),0) -> 10 | K4: 8 | L4: 6 | M4: =IF(M1<>"",(_xlfn.NUMBERVALUE(RIGHT(M1,1))-2)*2,0) -> 0 | N4: =IF(N1<>"",(_xlfn.NUMBERVALUE(RIGHT(N1,1))-2)*2,0) -> 0 | O4: 0 | P4: 0 | Q4: 0 | R4: 0 | S4: 0 | T4: 0 | U4: =IF(U1<>"",(7-_xlfn.NUMBERVALUE(RIGHT(U1,1)))*2,0) -> 0 | V4: =IF(V1<>"",(7-_xlfn.NUMBERVALUE(RIGHT(V1,1)))*2,0) -> 0 | W4: 0 | X4: 0 | Y4: 0 | Z4: 0 | AA4: 0 | AB4: 0 | AC4: =IF(AC1<>"",20-2*(ABS(ROW(INDIRECT(AC1))-4.5)+ABS(COLUMN(INDIRECT(AC1))-4.5)),0) -> 6 | AD4: =IF(AD1<>"",20-2*(ABS(ROW(INDIRECT(AD1))-4.5)+ABS(COLUMN(INDIRECT(AD1))-4.5)),0) -> 8 | AE4: 10 | AF4: 12 | AG4: =IF(AG1<>"",8*(ABS(ROW(INDIRECT(AG1))-4.5)+ABS(COLUMN(INDIRECT(AG1))-4.5)),0) -> 32 | AH4: 10 | AI4: 8 | AJ4: 6
D5: AttackKungP | E5: =IF(E1<>"",E3/(ABS(ROW(INDIRECT(E1))-ROW(INDIRECT($AG$1)))+ABS(COLUMN(INDIRECT(E1))-COLUMN(INDIRECT($AG$1)))),0) -> 45.45454545 | F5: =IF(F1<>"",F3/(ABS(ROW(INDIRECT(F1))-ROW(INDIRECT($AG$1)))+ABS(COLUMN(INDIRECT(F1))-COLUMN(INDIRECT($AG$1)))),0) -> 30 | G5: 33.33333333 | H5: 112.5 | J5: 37.5 | K5: 33.33333333 | L5: 50 | M5: 10 | N5: 11.11111111 | O5: 12.5 | P5: 14.28571429 | Q5: 16.66666667 | R5: 14.28571429 | S5: 12.5 | T5: 11.11111111 | U5: =IF(U1<>"",U3/(ABS(ROW(INDIRECT(U1))-ROW(INDIRECT($I$1)))+ABS(COLUMN(INDIRECT(U1))-COLUMN(INDIRECT($I$1)))),0) -> 10 | V5: =IF(V1<>"",V3/(ABS(ROW(INDIRECT(V1))-ROW(INDIRECT($I$1)))+ABS(COLUMN(INDIRECT(V1))-COLUMN(INDIRECT($I$1)))),0) -> 11.11111111 | W5: 12.5 | X5: 14.28571429 | Y5: 16.66666667 | Z5: 14.28571429 | AA5: 12.5 | AB5: 11.11111111 | AC5: 45.45454545 | AD5: 30 | AE5: 33.33333333 | AF5: 112.5 | AH5: 37.5 | AI5: 33.33333333 | AJ5: 50
D6: PosFrånMedel | E6: =IF(E1<>"",20-2*(ABS(ROW(INDIRECT(E1))-medelRadVit)+ABS(COLUMN(INDIRECT(E1))-medelKolVit)),0) -> 12 | F6: 14 | G6: 16 | H6: 18 | I6: 18 | J6: 16 | K6: 14 | L6: 12 | M6: 12 | N6: 14 | O6: 16 | P6: 18 | Q6: 18 | R6: 16 | S6: 14 | T6: 12 | U6: =IF(U1<>"",20-2*(ABS(ROW(INDIRECT(U1))-medelRadSvart)+ABS(COLUMN(INDIRECT(U1))-medelKolSvart)),0) -> 12 | V6: 14 | W6: 16 | X6: 18 | Y6: 18 | Z6: 16 | AA6: 14 | AB6: 12 | AC6: 12 | AD6: 14 | AE6: 16 | AF6: 18 | AG6: 18 | AH6: 16 | AI6: 14 | AJ6: 12
D7: PosFrånMotståndaresMedel | E7: =IF(E1<>"",2*(ABS(ROW(INDIRECT(E1))-medelRadSvart)+ABS(COLUMN(INDIRECT(E1))-medelKolSvart)),0) -> 20 | F7: 18 | G7: 16 | H7: 14 | I7: 14 | J7: 16 | K7: 18 | L7: 20 | M7: 18 | N7: 16 | O7: 14 | P7: 12 | Q7: 12 | R7: 14 | S7: 16 | T7: 18 | U7: =IF(U1<>"",2*(ABS(ROW(INDIRECT(U1))-medelRadVit)+ABS(COLUMN(INDIRECT(U1))-medelKolVit)),0) -> 18 | V7: 16 | W7: 14 | X7: 12 | Y7: 12 | Z7: 14 | AA7: 16 | AB7: 18 | AC7: 20 | AD7: 18 | AE7: 16 | AF7: 14 | AG7: 14 | AH7: 16 | AI7: 18 | AJ7: 20
B18: sp | C18: A1 | E18: =VLOOKUP(FALSE,B19:E59,4,FALSE) -> A1 | F18: sp | G18: B1 | I18: =VLOOKUP(FALSE,F19:I59,4,FALSE) -> B1 | J18: sp | K18: C1 | M18: =VLOOKUP(FALSE,J19:M59,4,FALSE) -> C1 | N18: sp | O18: D1 | Q18: =VLOOKUP(FALSE,N19:Q59,4,FALSE) -> D1 | R18: sp | S18: E1 | U18: =VLOOKUP(FALSE,R19:U59,4,FALSE) -> E1 | V18: sp | W18: F1 | Y18: =VLOOKUP(FALSE,V19:Y59,4,FALSE) -> F1 | Z18: sp | AA18: G1 | AC18: =VLOOKUP(FALSE,Z19:AC59,4,FALSE) -> G1 | AD18: sp | AE18: H1 | AG18: =VLOOKUP(FALSE,AD19:AG59,4,FALSE) -> H1 | AH18: sp | AI18: A2 | AK18: =VLOOKUP(FALSE,AH19:AK59,4,FALSE) -> A2 | AL18: sp | AM18: B2 | AO18: =VLOOKUP(FALSE,AL19:AO59,4,FALSE) -> B2 | AP18: sp | AQ18: C2 | AS18: =VLOOKUP(FALSE,AP19:AS59,4,FALSE) -> C2 | AT18: sp | AU18: D2 | AW18: =VLOOKUP(FALSE,AT19:AW59,4,FALSE) -> D2 | AX18: sp | AY18: E2 | BA18: =VLOOKUP(FALSE,AX19:BA59,4,FALSE) -> E2 | BB18: sp | BC18: F2 | BE18: =VLOOKUP(FALSE,BB19:BE59,4,FALSE) -> F2 | BF18: sp | BG18: G2 | BI18: =VLOOKUP(FALSE,BF19:BI59,4,FALSE) -> G2 | BJ18: sp | BK18: H2 | BM18: =VLOOKUP(FALSE,BJ19:BM59,4,FALSE) -> H2 | BN18: sp | BO18: A7 | BQ18: =VLOOKUP(FALSE,BN19:BQ59,4,FALSE) -> A7 | BR18: sp | BS18: B7 | BU18: =VLOOKUP(FALSE,BR19:BU59,4,FALSE) -> B7 | BV18: sp | BW18: C7 | BY18: =VLOOKUP(FALSE,BV19:BY59,4,FALSE) -> C7 | BZ18: sp | CA18: D7 | CC18: =VLOOKUP(FALSE,BZ19:CC59,4,FALSE) -> D7 | CD18: sp | CE18: E7 | CG18: =VLOOKUP(FALSE,CD19:CG59,4,FALSE) -> E7 | CH18: sp | CI18: F7 | CK18: =VLOOKUP(FALSE,CH19:CK59,4,FALSE) -> F7 | CL18: sp | CM18: G7 | CO18: =VLOOKUP(FALSE,CL19:CO59,4,FALSE) -> G7 | CP18: sp | CQ18: H7 | CS18: =VLOOKUP(FALSE,CP19:CS59,4,FALSE) -> H7 | CT18: sp | CU18: A8 | CW18: =VLOOKUP(FALSE,CT19:CW59,4,FALSE) -> A8 | CX18: sp | CY18: B8 | DA18: =VLOOKUP(FALSE,CX19:DA59,4,FALSE) -> B8 | DB18: sp | DC18: C8 | DE18: =VLOOKUP(FALSE,DB19:DE59,4,FALSE) -> C8 | DF18: sp | DG18: D8 | DI18: =VLOOKUP(FALSE,DF19:DI59,4,FALSE) -> D8 | DJ18: sp | DK18: E8 | DM18: =VLOOKUP(FALSE,DJ19:DM59,4,FALSE) -> E8 | DN18: sp | DO18: F8 | DQ18: =VLOOKUP(FALSE,DN19:DQ59,4,FALSE) -> F8 | DR18: sp | DS18: G8 | DU18: =VLOOKUP(FALSE,DR19:DU59,4,FALSE) -> G8 | DV18: sp | DW18: H8 | DY18: =VLOOKUP(FALSE,DV19:DY59,4,FALSE) -> H8
B19: =IFERROR(IF(dragnr*4<=C20,FALSE,TRUE),FALSE) -> FALSE | C19: Pos | D19: Från/till | E19: =C18 -> A1 | F19: =IFERROR(IF(dragnr*4<=G20,FALSE,TRUE),FALSE) -> FALSE | G19: Pos | H19: Från/till | I19: =G18 -> B1 | J19: =IFERROR(IF(dragnr*4<=K20,FALSE,TRUE),FALSE) -> FALSE | K19: Pos | L19: Från/till | M19: =K18 -> C1 | N19: =IFERROR(IF(dragnr*4<=O20,FALSE,TRUE),FALSE) -> FALSE | O19: Pos | P19: Från/till | Q19: =O18 -> D1 | R19: =IFERROR(IF(dragnr*4<=S20,FALSE,TRUE),FALSE) -> FALSE | S19: Pos | T19: Från/till | U19: =S18 -> E1 | V19: =IFERROR(IF(dragnr*4<=W20,FALSE,TRUE),FALSE) -> FALSE | W19: Pos | X19: Från/till | Y19: =W18 -> F1 | Z19: =IFERROR(IF(dragnr*4<=AA20,FALSE,TRUE),FALSE) -> FALSE | AA19: Pos | AB19: Från/till | AC19: =AA18 -> G1 | AD19: =IFERROR(IF(dragnr*4<=AE20,FALSE,TRUE),FALSE) -> FALSE | AE19: Pos | AF19: Från/till | AG19: =AE18 -> H1 | AH19: =IFERROR(IF(dragnr*4<=AI20,FALSE,TRUE),FALSE) -> FALSE | AI19: Pos | AJ19: Från/till | AK19: =AI18 -> A2 | AL19: =IFERROR(IF(dragnr*4<=AM20,FALSE,TRUE),FALSE) -> FALSE | AM19: Pos | AN19: Från/till | AO19: =AM18 -> B2 | AP19: =IFERROR(IF(dragnr*4<=AQ20,FALSE,TRUE),FALSE) -> FALSE | AQ19: Pos | AR19: Från/till | AS19: =AQ18 -> C2 | AT19: =IFERROR(IF(dragnr*4<=AU20,FALSE,TRUE),FALSE) -> FALSE | AU19: Pos | AV19: Från/till | AW19: =AU18 -> D2 | AX19: =IFERROR(IF(dragnr*4<=AY20,FALSE,TRUE),FALSE) -> FALSE | AY19: Pos | AZ19: Från/till | BA19: =AY18 -> E2 | BB19: =IFERROR(IF(dragnr*4<=BC20,FALSE,TRUE),FALSE) -> FALSE | BC19: Pos | BD19: Från/till | BE19: =BC18 -> F2 | BF19: =IFERROR(IF(dragnr*4<=BG20,FALSE,TRUE),FALSE) -> FALSE | BG19: Pos | BH19: Från/till | BI19: =BG18 -> G2 | BJ19: =IFERROR(IF(dragnr*4<=BK20,FALSE,TRUE),FALSE) -> FALSE | BK19: Pos | BL19: Från/till | BM19: =BK18 -> H2 | BN19: =IFERROR(IF(dragnr*4<=BO20,FALSE,TRUE),FALSE) -> FALSE | BO19: Pos | BP19: Från/till | BQ19: =BO18 -> A7 | BR19: =IFERROR(IF(dragnr*4<=BS20,FALSE,TRUE),FALSE) -> FALSE | BS19: Pos | BT19: Från/till | BU19: =BS18 -> B7 | BV19: =IFERROR(IF(dragnr*4<=BW20,FALSE,TRUE),FALSE) -> FALSE | BW19: Pos | BX19: Från/till | BY19: =BW18 -> C7 | BZ19: =IFERROR(IF(dragnr*4<=CA20,FALSE,TRUE),FALSE) -> FALSE | CA19: Pos | CB19: Från/till | CC19: =CA18 -> D7 | CD19: =IFERROR(IF(dragnr*4<=CE20,FALSE,TRUE),FALSE) -> FALSE | CE19: Pos | CF19: Från/till | CG19: =CE18 -> E7 | CH19: =IFERROR(IF(dragnr*4<=CI20,FALSE,TRUE),FALSE) -> FALSE | CI19: Pos | CJ19: Från/till | CK19: =CI18 -> F7 | CL19: =IFERROR(IF(dragnr*4<=CM20,FALSE,TRUE),FALSE) -> FALSE | CM19: Pos | CN19: Från/till | CO19: =CM18 -> G7 | CP19: =IFERROR(IF(dragnr*4<=CQ20,FALSE,TRUE),FALSE) -> FALSE | CQ19: Pos | CR19: Från/till | CS19: =CQ18 -> H7 | CT19: =IFERROR(IF(dragnr*4<=CU20,FALSE,TRUE),FALSE) -> FALSE | CU19: Pos | CV19: Från/till | CW19: =CU18 -> A8 | CX19: =IFERROR(IF(dragnr*4<=CY20,FALSE,TRUE),FALSE) -> FALSE | CY19: Pos | CZ19: Från/till | DA19: =CY18 -> B8 | DB19: =IFERROR(IF(dragnr*4<=DC20,FALSE,TRUE),FALSE) -> FALSE | DC19: Pos | DD19: Från/till | DE19: =DC18 -> C8 | DF19: =IFERROR(IF(dragnr*4<=DG20,FALSE,TRUE),FALSE) -> FALSE | DG19: Pos | DH19: Från/till | DI19: =DG18 -> D8 | DJ19: =IFERROR(IF(dragnr*4<=DK20,FALSE,TRUE),FALSE) -> FALSE | DK19: Pos | DL19: Från/till | DM19: =DK18 -> E8 | DN19: =IFERROR(IF(dragnr*4<=DO20,FALSE,TRUE),FALSE) -> FALSE | DO19: Pos | DP19: Från/till | DQ19: =DO18 -> F8 | DR19: =IFERROR(IF(dragnr*4<=DS20,FALSE,TRUE),FALSE) -> FALSE | DS19: Pos | DT19: Från/till | DU19: =DS18 -> G8 | DV19: =IFERROR(IF(dragnr*4<=DW20,FALSE,TRUE),FALSE) -> FALSE | DW19: Pos | DX19: Från/till | DY19: =DW18 -> H8
B20: FALSE | C20: =IF(vRockad1>0,vRockad1,IFERROR(SEARCH(E19,UPPER(RenHistorik),1),"")) ->  | D20: =IFERROR(ISEVEN(C20/2),"") ->  | E20: =IF(vRockad1>0,"d1",IFERROR(IF(D20,MID(RenHistorik,C20+2,2),""),E19)) -> A1 | F20: FALSE | G20: =SEARCH(G18,UPPER(RenHistorik),1) ->  | H20: =IFERROR(ISEVEN(G20/2),"") ->  | I20: =IFERROR(IF(H20,MID(RenHistorik,G20+2,2),""),I19) -> B1 | J20: FALSE | K20: =SEARCH(K18,UPPER(RenHistorik),1) ->  | L20: =IFERROR(ISEVEN(K20/2),"") ->  | M20: =IFERROR(IF(L20,MID(RenHistorik,K20+2,2),""),M19) -> C1 | N20: FALSE | O20: =SEARCH(O18,UPPER(RenHistorik),1) ->  | P20: =IFERROR(ISEVEN(O20/2),"") ->  | Q20: =IFERROR(IF(P20,MID(RenHistorik,O20+2,2),""),Q19) -> D1 | R20: FALSE | S20: =IF(vRockad1>0,vRockad1,IF(vRockad2>0,vRockad2,IFERROR(SEARCH(S18,UPPER(RenHistorik),1),""))) ->  | T20: =IFERROR(ISEVEN(S20/2),"") ->  | U20: =IF(vRockad1>0,"c1",IF(vRockad2>0,"g1",IFERROR(IF(T20,MID(RenHistorik,S20+2,2),""),U19))) -> E1 | V20: FALSE | W20: =SEARCH(W18,UPPER(RenHistorik),1) ->  | X20: =IFERROR(ISEVEN(W20/2),"") ->  | Y20: =IFERROR(IF(X20,MID(RenHistorik,W20+2,2),""),Y19) -> F1 | Z20: FALSE | AA20: =SEARCH(AA18,UPPER(RenHistorik),1) ->  | AB20: =IFERROR(ISEVEN(AA20/2),"") ->  | AC20: =IFERROR(IF(AB20,MID(RenHistorik,AA20+2,2),""),AC19) -> G1 | AD20: FALSE | AE20: =IF(vRockad2>0,vRockad2,IFERROR(SEARCH(AE18,UPPER(RenHistorik),1),"")) ->  | AF20: =IFERROR(ISEVEN(AE20/2),"") ->  | AG20: =IF(vRockad2>0,"f1",IFERROR(IF(AF20,MID(RenHistorik,AE20+2,2),""),AG19)) -> H1 | AH20: FALSE | AI20: =IFERROR(SEARCH(AI18,UPPER(RenHistorik),1),"") ->  | AJ20: =IFERROR(ISEVEN(AI20/2),"") ->  | AK20: =IFERROR(IF(AJ20,MID(RenHistorik,AI20+2,2),""),AK19) -> A2 | AL20: FALSE | AM20: =SEARCH(AM18,UPPER(RenHistorik),1) ->  | AN20: =IFERROR(ISEVEN(AM20/2),"") ->  | AO20: =IFERROR(IF(AN20,MID(RenHistorik,AM20+2,2),""),AO19) -> B2 | AP20: FALSE | AQ20: =SEARCH(AQ18,UPPER(RenHistorik),1) ->  | AR20: =IFERROR(ISEVEN(AQ20/2),"") ->  | AS20: =IFERROR(IF(AR20,MID(RenHistorik,AQ20+2,2),""),AS19) -> C2 | AT20: FALSE | AU20: =SEARCH(AU18,UPPER(RenHistorik),1) ->  | AV20: =IFERROR(ISEVEN(AU20/2),"") ->  | AW20: =IFERROR(IF(AV20,MID(RenHistorik,AU20+2,2),""),AW19) -> D2 | AX20: FALSE | AY20: =SEARCH(AY18,UPPER(RenHistorik),1) ->  | AZ20: =IFERROR(ISEVEN(AY20/2),"") ->  | BA20: =IFERROR(IF(AZ20,MID(RenHistorik,AY20+2,2),""),BA19) -> E2 | BB20: FALSE | BC20: =SEARCH(BC18,UPPER(RenHistorik),1) ->  | BD20: =IFERROR(ISEVEN(BC20/2),"") ->  | BE20: =IFERROR(IF(BD20,MID(RenHistorik,BC20+2,2),""),BE19) -> F2 | BF20: FALSE | BG20: =SEARCH(BG18,UPPER(RenHistorik),1) ->  | BH20: =IFERROR(ISEVEN(BG20/2),"") ->  | BI20: =IFERROR(IF(BH20,MID(RenHistorik,BG20+2,2),""),BI19) -> G2 | BJ20: FALSE | BK20: =SEARCH(BK18,UPPER(RenHistorik),1) ->  | BL20: =IFERROR(ISEVEN(BK20/2),"") ->  | BM20: =IFERROR(IF(BL20,MID(RenHistorik,BK20+2,2),""),BM19) -> H2 | BN20: FALSE | BO20: =IFERROR(SEARCH(BO18,UPPER(RenHistorik),1),"") ->  | BP20: =IFERROR(ISEVEN(BO20/2),"") ->  | BQ20: =IFERROR(IF(BP20,MID(RenHistorik,BO20+2,2),""),BQ19) -> A7 | BR20: FALSE | BS20: =SEARCH(BS18,UPPER(RenHistorik),1) ->  | BT20: =IFERROR(ISEVEN(BS20/2),"") ->  | BU20: =IFERROR(IF(BT20,MID(RenHistorik,BS20+2,2),""),BU19) -> B7 | BV20: FALSE | BW20: =SEARCH(BW18,UPPER(RenHistorik),1) ->  | BX20: =IFERROR(ISEVEN(BW20/2),"") ->  | BY20: =IFERROR(IF(BX20,MID(RenHistorik,BW20+2,2),""),BY19) -> C7 | BZ20: FALSE | CA20: =SEARCH(CA18,UPPER(RenHistorik),1) ->  | CB20: =IFERROR(ISEVEN(CA20/2),"") ->  | CC20: =IFERROR(IF(CB20,MID(RenHistorik,CA20+2,2),""),CC19) -> D7 | CD20: FALSE | CE20: =SEARCH(CE18,UPPER(RenHistorik),1) ->  | CF20: =IFERROR(ISEVEN(CE20/2),"") ->  | CG20: =IFERROR(IF(CF20,MID(RenHistorik,CE20+2,2),""),CG19) -> E7 | CH20: FALSE | CI20: =SEARCH(CI18,UPPER(RenHistorik),1) ->  | CJ20: =IFERROR(ISEVEN(CI20/2),"") ->  | CK20: =IFERROR(IF(CJ20,MID(RenHistorik,CI20+2,2),""),CK19) -> F7 | CL20: FALSE | CM20: =SEARCH(CM18,UPPER(RenHistorik),1) ->  | CN20: =IFERROR(ISEVEN(CM20/2),"") ->  | CO20: =IFERROR(IF(CN20,MID(RenHistorik,CM20+2,2),""),CO19) -> G7 | CP20: FALSE | CQ20: =IFERROR(SEARCH(CQ18,UPPER(RenHistorik),1),"") ->  | CR20: =IFERROR(ISEVEN(CQ20/2),"") ->  | CS20: =IFERROR(IF(CR20,MID(RenHistorik,CQ20+2,2),""),CS19) -> H7 | CT20: FALSE | CU20: =IF(sRockad1>0,sRockad1,SEARCH(CU18,UPPER(RenHistorik),1)) ->  | CV20: =IFERROR(ISEVEN(CU20/2),"") ->  | CW20: =IF(sRockad1>0,"d8",IFERROR(IF(CV20,MID(RenHistorik,CU20+2,2),""),CW19)) -> A8 | CX20: FALSE | CY20: =SEARCH(CY18,UPPER(RenHistorik),1) ->  | CZ20: =IFERROR(ISEVEN(CY20/2),"") ->  | DA20: =IFERROR(IF(CZ20,MID(RenHistorik,CY20+2,2),""),DA19) -> B8 | DB20: FALSE | DC20: =SEARCH(DC18,UPPER(RenHistorik),1) ->  | DD20: =IFERROR(ISEVEN(DC20/2),"") ->  | DE20: =IFERROR(IF(DD20,MID(RenHistorik,DC20+2,2),""),DE19) -> C8 | DF20: FALSE | DG20: =SEARCH(DG18,UPPER(RenHistorik),1) ->  | DH20: =IFERROR(ISEVEN(DG20/2),"") ->  | DI20: =IFERROR(IF(DH20,MID(RenHistorik,DG20+2,2),""),DI19) -> D8 | DJ20: FALSE | DK20: =IF(sRockad1>0,sRockad1,IF(sRockad2>0,sRockad2,SEARCH(DK18,UPPER(RenHistorik),1))) ->  | DL20: =IFERROR(ISEVEN(DK20/2),"") ->  | DM20: =IF(sRockad1>0,"c8",IF(sRockad2>0,"g8",IFERROR(IF(DL20,MID(RenHistorik,DK20+2,2),""),DM19))) -> E8 | DN20: FALSE | DO20: =SEARCH(DO18,UPPER(RenHistorik),1) ->  | DP20: =IFERROR(ISEVEN(DO20/2),"") ->  | DQ20: =IFERROR(IF(DP20,MID(RenHistorik,DO20+2,2),""),DQ19) -> F8 | DR20: FALSE | DS20: =IFERROR(SEARCH(DS18,UPPER(RenHistorik),1),"") ->  | DT20: =IFERROR(ISEVEN(DS20/2),"") ->  | DU20: =IFERROR(IF(DT20,MID(RenHistorik,DS20+2,2),""),DU19) -> G8 | DV20: FALSE | DW20: =IF(sRockad2>0,sRockad2,SEARCH(DW18,UPPER(RenHistorik),1)) ->  | DX20: =IFERROR(ISEVEN(DW20/2),"") ->  | DY20: =IF(sRockad2>0,"f8",IFERROR(IF(DX20,MID(RenHistorik,DW20+2,2),""),DY19)) -> H8
B21: FALSE | C21: =IFERROR(IF(D20,SEARCH(E20,UPPER(RenHistorik),C20+3),""),"") ->  | E21: =IFERROR(IF(D21,MID(RenHistorik,C21+2,2),""),E20) -> A1 | F21: FALSE | G21: =IFERROR(IF(H20,SEARCH(I20,UPPER(RenHistorik),G20+3),""),"") ->  | I21: B1 | J21: FALSE | K21: =IFERROR(IF(L20,SEARCH(M20,UPPER(RenHistorik),K20+3),""),"") ->  | M21: C1 | N21: FALSE | O21: =IFERROR(IF(P20,SEARCH(Q20,UPPER(RenHistorik),O20+3),""),"") ->  | Q21: D1 | R21: FALSE | S21: =IFERROR(IF(T20,SEARCH(U20,UPPER(RenHistorik),S20+3),""),"") ->  | U21: =IFERROR(IF(T21,MID(RenHistorik,S21+2,2),""),U20) -> E1 | V21: FALSE | W21: =IFERROR(IF(X20,SEARCH(Y20,UPPER(RenHistorik),W20+3),""),"") ->  | Y21: F1 | Z21: FALSE | AA21: =IFERROR(IF(AB20,SEARCH(AC20,UPPER(RenHistorik),AA20+3),""),"") ->  | AC21: G1 | AD21: FALSE | AE21: =IFERROR(IF(AF20,SEARCH(AG20,UPPER(RenHistorik),AE20+3),""),"") ->  | AG21: =IFERROR(IF(AF21,MID(RenHistorik,AE21+2,2),""),AG20) -> H1 | AH21: FALSE | AI21: =IFERROR(IF(AJ20,SEARCH(AK20,UPPER(RenHistorik),AI20+3),""),"") ->  | AJ21: =IFERROR(ISEVEN(AI21/2),"") ->  | AK21: A2 | AL21: FALSE | AM21: =IFERROR(IF(AN20,SEARCH(AO20,UPPER(RenHistorik),AM20+3),""),"") ->  | AN21: =IFERROR(ISEVEN(AM21/2),"") ->  | AO21: B2 | AP21: FALSE | AQ21: =IFERROR(IF(AR20,SEARCH(AS20,UPPER(RenHistorik),AQ20+3),""),"") ->  | AR21: =IFERROR(ISEVEN(AQ21/2),"") ->  | AS21: C2 | AT21: FALSE | AU21: =IFERROR(IF(AV20,SEARCH(AW20,UPPER(RenHistorik),AU20+3),""),"") ->  | AV21: =IFERROR(ISEVEN(AU21/2),"") ->  | AW21: D2 | AX21: FALSE | AY21: =IFERROR(IF(AZ20,SEARCH(BA20,UPPER(RenHistorik),AY20+3),""),"") ->  | AZ21: =IFERROR(ISEVEN(AY21/2),"") ->  | BA21: E2 | BB21: FALSE | BC21: =IFERROR(IF(BD20,SEARCH(BE20,UPPER(RenHistorik),BC20+3),""),"") ->  | BD21: =IFERROR(ISEVEN(BC21/2),"") ->  | BE21: F2 | BF21: FALSE | BG21: =IFERROR(IF(BH20,SEARCH(BI20,UPPER(RenHistorik),BG20+3),""),"") ->  | BH21: =IFERROR(ISEVEN(BG21/2),"") ->  | BI21: G2 | BJ21: FALSE | BK21: =IFERROR(IF(BL20,SEARCH(BM20,UPPER(RenHistorik),BK20+3),""),"") ->  | BM21: H2 | BN21: FALSE | BO21: =IFERROR(IF(BP20,SEARCH(BQ20,UPPER(RenHistorik),BO20+3),""),"") ->  | BP21: =IFERROR(ISEVEN(BO21/2),"") ->  | BQ21: A7 | BR21: FALSE | BS21: =IFERROR(IF(BT20,SEARCH(BU20,UPPER(RenHistorik),BS20+3),""),"") ->  | BT21: =IFERROR(ISEVEN(BS21/2),"") ->  | BU21: B7 | BV21: FALSE | BW21: =IFERROR(IF(BX20,SEARCH(BY20,UPPER(RenHistorik),BW20+3),""),"") ->  | BX21: =IFERROR(ISEVEN(BW21/2),"") ->  | BY21: C7 | BZ21: FALSE | CA21: =IFERROR(IF(CB20,SEARCH(CC20,UPPER(RenHistorik),CA20+3),""),"") ->  | CB21: =IFERROR(ISEVEN(CA21/2),"") ->  | CC21: D7 | CD21: FALSE | CE21: =IFERROR(IF(CF20,SEARCH(CG20,UPPER(RenHistorik),CE20+3),""),"") ->  | CF21: =IFERROR(ISEVEN(CE21/2),"") ->  | CG21: E7 | CH21: FALSE | CI21: =IFERROR(IF(CJ20,SEARCH(CK20,UPPER(RenHistorik),CI20+3),""),"") ->  | CJ21: =IFERROR(ISEVEN(CI21/2),"") ->  | CK21: F7 | CL21: FALSE | CM21: =IFERROR(IF(CN20,SEARCH(CO20,UPPER(RenHistorik),CM20+3),""),"") ->  | CN21: =IFERROR(ISEVEN(CM21/2),"") ->  | CO21: G7 | CP21: FALSE | CQ21: =IFERROR(IF(CR20,SEARCH(CS20,UPPER(RenHistorik),CQ20+3),""),"") ->  | CR21: =IFERROR(ISEVEN(CQ21/2),"") ->  | CS21: H7 | CT21: FALSE | CU21: =IFERROR(IF(CV20,SEARCH(CW20,UPPER(RenHistorik),CU20+3),""),"") ->  | CV21: =IFERROR(ISEVEN(CU21/2),"") ->  | CW21: =IFERROR(IF(CV21,MID(RenHistorik,CU21+2,2),""),CW20) -> A8 | CX21: FALSE | CY21: =IFERROR(IF(CZ20,SEARCH(DA20,UPPER(RenHistorik),CY20+3),""),"") ->  | CZ21: =IFERROR(ISEVEN(CY21/2),"") ->  | DA21: B8 | DB21: FALSE | DC21: =IFERROR(IF(DD20,SEARCH(DE20,UPPER(RenHistorik),DC20+3),""),"") ->  | DD21: =IFERROR(ISEVEN(DC21/2),"") ->  | DE21: C8 | DF21: FALSE | DG21: =IFERROR(IF(DH20,SEARCH(DI20,UPPER(RenHistorik),DG20+3),""),"") ->  | DH21: =IFERROR(ISEVEN(DG21/2),"") ->  | DI21: D8 | DJ21: FALSE | DK21: =IFERROR(IF(DL20,SEARCH(DM20,UPPER(RenHistorik),DK20+3),""),"") ->  | DL21: =IFERROR(ISEVEN(DK21/2),"") ->  | DM21: =IFERROR(IF(DL21,MID(RenHistorik,DK21+2,2),""),DM20) -> E8 | DN21: FALSE | DO21: =IFERROR(IF(DP20,SEARCH(DQ20,UPPER(RenHistorik),DO20+3),""),"") ->  | DP21: =IFERROR(ISEVEN(DO21/2),"") ->  | DQ21: F8 | DR21: FALSE | DS21: =IFERROR(IF(DT20,SEARCH(DU20,UPPER(RenHistorik),DS20+3),""),"") ->  | DT21: =IFERROR(ISEVEN(DS21/2),"") ->  | DU21: G8 | DV21: FALSE | DW21: =IFERROR(IF(DX20,SEARCH(DY20,UPPER(RenHistorik),DW20+3),""),"") ->  | DX21: =IFERROR(ISEVEN(DW21/2),"") ->  | DY21: =IFERROR(IF(DX21,MID(RenHistorik,DW21+2,2),""),DY20) -> H8
B22: FALSE | E22: A1 | F22: FALSE | G22: =IFERROR(IF(H21,SEARCH(I21,UPPER(RenHistorik),G21+3),""),"") ->  | I22: B1 | J22: FALSE | M22: C1 | N22: FALSE | Q22: D1 | R22: FALSE | U22: E1 | V22: FALSE | Y22: F1 | Z22: FALSE | AC22: G1 | AD22: FALSE | AG22: H1 | AH22: FALSE | AJ22: =IFERROR(ISEVEN(AI22/2),"") ->  | AK22: A2 | AL22: FALSE | AN22: =IFERROR(ISEVEN(AM22/2),"") ->  | AO22: B2 | AP22: FALSE | AR22: =IFERROR(ISEVEN(AQ22/2),"") ->  | AS22: C2 | AT22: FALSE | AV22: =IFERROR(ISEVEN(AU22/2),"") ->  | AW22: D2 | AX22: FALSE | AZ22: =IFERROR(ISEVEN(AY22/2),"") ->  | BA22: E2 | BB22: FALSE | BD22: =IFERROR(ISEVEN(BC22/2),"") ->  | BE22: F2 | BF22: FALSE | BH22: =IFERROR(ISEVEN(BG22/2),"") ->  | BI22: G2 | BJ22: FALSE | BM22: H2 | BN22: FALSE | BP22: =IFERROR(ISEVEN(BO22/2),"") ->  | BQ22: A7 | BR22: FALSE | BT22: =IFERROR(ISEVEN(BS22/2),"") ->  | BU22: B7 | BV22: FALSE | BX22: =IFERROR(ISEVEN(BW22/2),"") ->  | BY22: C7 | BZ22: FALSE | CA22: =IFERROR(IF(CB21,SEARCH(CC21,UPPER(RenHistorik),CA21+3),""),"") ->  | CB22: =IFERROR(ISEVEN(CA22/2),"") ->  | CC22: D7 | CD22: FALSE | CF22: =IFERROR(ISEVEN(CE22/2),"") ->  | CG22: E7 | CH22: FALSE | CJ22: =IFERROR(ISEVEN(CI22/2),"") ->  | CK22: F7 | CL22: FALSE | CN22: =IFERROR(ISEVEN(CM22/2),"") ->  | CO22: G7 | CP22: FALSE | CR22: =IFERROR(ISEVEN(CQ22/2),"") ->  | CS22: H7 | CT22: FALSE | CV22: =IFERROR(ISEVEN(CU22/2),"") ->  | CW22: A8 | CX22: FALSE | CZ22: =IFERROR(ISEVEN(CY22/2),"") ->  | DA22: B8 | DB22: FALSE | DD22: =IFERROR(ISEVEN(DC22/2),"") ->  | DE22: C8 | DF22: FALSE | DH22: =IFERROR(ISEVEN(DG22/2),"") ->  | DI22: D8 | DJ22: FALSE | DL22: =IFERROR(ISEVEN(DK22/2),"") ->  | DM22: E8 | DN22: FALSE | DP22: =IFERROR(ISEVEN(DO22/2),"") ->  | DQ22: F8 | DR22: FALSE | DT22: =IFERROR(ISEVEN(DS22/2),"") ->  | DU22: G8 | DV22: FALSE | DX22: =IFERROR(ISEVEN(DW22/2),"") ->  | DY22: H8
B23: FALSE | E23: A1 | F23: FALSE | I23: B1 | J23: FALSE | M23: C1 | N23: FALSE | Q23: D1 | R23: FALSE | U23: E1 | V23: FALSE | Y23: F1 | Z23: FALSE | AC23: G1 | AD23: FALSE | AG23: H1 | AH23: FALSE | AJ23: =IFERROR(ISEVEN(AI23/2),"") ->  | AK23: A2 | AL23: FALSE | AN23: =IFERROR(ISEVEN(AM23/2),"") ->  | AO23: B2 | AP23: FALSE | AR23: =IFERROR(ISEVEN(AQ23/2),"") ->  | AS23: C2 | AT23: FALSE | AV23: =IFERROR(ISEVEN(AU23/2),"") ->  | AW23: D2 | AX23: FALSE | AZ23: =IFERROR(ISEVEN(AY23/2),"") ->  | BA23: E2 | BB23: FALSE | BD23: =IFERROR(ISEVEN(BC23/2),"") ->  | BE23: F2 | BF23: FALSE | BH23: =IFERROR(ISEVEN(BG23/2),"") ->  | BI23: G2 | BJ23: FALSE | BM23: H2 | BN23: FALSE | BP23: =IFERROR(ISEVEN(BO23/2),"") ->  | BQ23: A7 | BR23: FALSE | BT23: =IFERROR(ISEVEN(BS23/2),"") ->  | BU23: B7 | BV23: FALSE | BX23: =IFERROR(ISEVEN(BW23/2),"") ->  | BY23: C7 | BZ23: FALSE | CB23: =IFERROR(ISEVEN(CA23/2),"") ->  | CC23: D7 | CD23: FALSE | CF23: =IFERROR(ISEVEN(CE23/2),"") ->  | CG23: E7 | CH23: FALSE | CJ23: =IFERROR(ISEVEN(CI23/2),"") ->  | CK23: F7 | CL23: FALSE | CN23: =IFERROR(ISEVEN(CM23/2),"") ->  | CO23: G7 | CP23: FALSE | CR23: =IFERROR(ISEVEN(CQ23/2),"") ->  | CS23: H7 | CT23: FALSE | CV23: =IFERROR(ISEVEN(CU23/2),"") ->  | CW23: A8 | CX23: FALSE | CZ23: =IFERROR(ISEVEN(CY23/2),"") ->  | DA23: B8 | DB23: FALSE | DD23: =IFERROR(ISEVEN(DC23/2),"") ->  | DE23: C8 | DF23: FALSE | DH23: =IFERROR(ISEVEN(DG23/2),"") ->  | DI23: D8 | DJ23: FALSE | DL23: =IFERROR(ISEVEN(DK23/2),"") ->  | DM23: E8 | DN23: FALSE | DP23: =IFERROR(ISEVEN(DO23/2),"") ->  | DQ23: F8 | DR23: FALSE | DT23: =IFERROR(ISEVEN(DS23/2),"") ->  | DU23: G8 | DV23: FALSE | DX23: =IFERROR(ISEVEN(DW23/2),"") ->  | DY23: H8
B24: FALSE | E24: A1 | F24: FALSE | I24: B1 | J24: FALSE | M24: C1 | N24: FALSE | Q24: D1 | R24: FALSE | U24: E1 | V24: FALSE | Y24: F1 | Z24: FALSE | AC24: G1 | AD24: FALSE | AG24: H1 | AH24: FALSE | AJ24: =IFERROR(ISEVEN(AI24/2),"") ->  | AK24: A2 | AL24: FALSE | AN24: =IFERROR(ISEVEN(AM24/2),"") ->  | AO24: B2 | AP24: FALSE | AR24: =IFERROR(ISEVEN(AQ24/2),"") ->  | AS24: C2 | AT24: FALSE | AV24: =IFERROR(ISEVEN(AU24/2),"") ->  | AW24: D2 | AX24: FALSE | AZ24: =IFERROR(ISEVEN(AY24/2),"") ->  | BA24: E2 | BB24: FALSE | BD24: =IFERROR(ISEVEN(BC24/2),"") ->  | BE24: F2 | BF24: FALSE | BH24: =IFERROR(ISEVEN(BG24/2),"") ->  | BI24: G2 | BJ24: FALSE | BM24: H2 | BN24: FALSE | BP24: =IFERROR(ISEVEN(BO24/2),"") ->  | BQ24: A7 | BR24: FALSE | BT24: =IFERROR(ISEVEN(BS24/2),"") ->  | BU24: B7 | BV24: FALSE | BX24: =IFERROR(ISEVEN(BW24/2),"") ->  | BY24: C7 | BZ24: FALSE | CB24: =IFERROR(ISEVEN(CA24/2),"") ->  | CC24: D7 | CD24: FALSE | CF24: =IFERROR(ISEVEN(CE24/2),"") ->  | CG24: E7 | CH24: FALSE | CJ24: =IFERROR(ISEVEN(CI24/2),"") ->  | CK24: F7 | CL24: FALSE | CN24: =IFERROR(ISEVEN(CM24/2),"") ->  | CO24: G7 | CP24: FALSE | CR24: =IFERROR(ISEVEN(CQ24/2),"") ->  | CS24: H7 | CT24: FALSE | CV24: =IFERROR(ISEVEN(CU24/2),"") ->  | CW24: A8 | CX24: FALSE | CZ24: =IFERROR(ISEVEN(CY24/2),"") ->  | DA24: B8 | DB24: FALSE | DD24: =IFERROR(ISEVEN(DC24/2),"") ->  | DE24: C8 | DF24: FALSE | DH24: =IFERROR(ISEVEN(DG24/2),"") ->  | DI24: D8 | DJ24: FALSE | DL24: =IFERROR(ISEVEN(DK24/2),"") ->  | DM24: E8 | DN24: FALSE | DP24: =IFERROR(ISEVEN(DO24/2),"") ->  | DQ24: F8 | DR24: FALSE | DT24: =IFERROR(ISEVEN(DS24/2),"") ->  | DU24: G8 | DV24: FALSE | DX24: =IFERROR(ISEVEN(DW24/2),"") ->  | DY24: H8
B25: FALSE | E25: A1 | F25: FALSE | I25: B1 | J25: FALSE | M25: C1 | N25: FALSE | Q25: D1 | R25: FALSE | U25: E1 | V25: FALSE | Y25: F1 | Z25: FALSE | AC25: G1 | AD25: FALSE | AG25: H1 | AH25: FALSE | AJ25: =IFERROR(ISEVEN(AI25/2),"") ->  | AK25: A2 | AL25: FALSE | AN25: =IFERROR(ISEVEN(AM25/2),"") ->  | AO25: B2 | AP25: FALSE | AR25: =IFERROR(ISEVEN(AQ25/2),"") ->  | AS25: C2 | AT25: FALSE | AV25: =IFERROR(ISEVEN(AU25/2),"") ->  | AW25: D2 | AX25: FALSE | AZ25: =IFERROR(ISEVEN(AY25/2),"") ->  | BA25: E2 | BB25: FALSE | BD25: =IFERROR(ISEVEN(BC25/2),"") ->  | BE25: F2 | BF25: FALSE | BH25: =IFERROR(ISEVEN(BG25/2),"") ->  | BI25: G2 | BJ25: FALSE | BM25: H2 | BN25: FALSE | BP25: =IFERROR(ISEVEN(BO25/2),"") ->  | BQ25: A7 | BR25: FALSE | BT25: =IFERROR(ISEVEN(BS25/2),"") ->  | BU25: B7 | BV25: FALSE | BX25: =IFERROR(ISEVEN(BW25/2),"") ->  | BY25: C7 | BZ25: FALSE | CB25: =IFERROR(ISEVEN(CA25/2),"") ->  | CC25: D7 | CD25: FALSE | CF25: =IFERROR(ISEVEN(CE25/2),"") ->  | CG25: E7 | CH25: FALSE | CJ25: =IFERROR(ISEVEN(CI25/2),"") ->  | CK25: F7 | CL25: FALSE | CN25: =IFERROR(ISEVEN(CM25/2),"") ->  | CO25: G7 | CP25: FALSE | CR25: =IFERROR(ISEVEN(CQ25/2),"") ->  | CS25: H7 | CT25: FALSE | CV25: =IFERROR(ISEVEN(CU25/2),"") ->  | CW25: A8 | CX25: FALSE | CZ25: =IFERROR(ISEVEN(CY25/2),"") ->  | DA25: B8 | DB25: FALSE | DD25: =IFERROR(ISEVEN(DC25/2),"") ->  | DE25: C8 | DF25: FALSE | DH25: =IFERROR(ISEVEN(DG25/2),"") ->  | DI25: D8 | DJ25: FALSE | DL25: =IFERROR(ISEVEN(DK25/2),"") ->  | DM25: E8 | DN25: FALSE | DP25: =IFERROR(ISEVEN(DO25/2),"") ->  | DQ25: F8 | DR25: FALSE | DT25: =IFERROR(ISEVEN(DS25/2),"") ->  | DU25: G8 | DV25: FALSE | DX25: =IFERROR(ISEVEN(DW25/2),"") ->  | DY25: H8
B26: FALSE | E26: A1 | F26: FALSE | I26: B1 | J26: FALSE | M26: C1 | N26: FALSE | Q26: D1 | R26: FALSE | U26: E1 | V26: FALSE | Y26: F1 | Z26: FALSE | AC26: G1 | AD26: FALSE | AG26: H1 | AH26: FALSE | AJ26: =IFERROR(ISEVEN(AI26/2),"") ->  | AK26: A2 | AL26: FALSE | AN26: =IFERROR(ISEVEN(AM26/2),"") ->  | AO26: B2 | AP26: FALSE | AR26: =IFERROR(ISEVEN(AQ26/2),"") ->  | AS26: C2 | AT26: FALSE | AV26: =IFERROR(ISEVEN(AU26/2),"") ->  | AW26: D2 | AX26: FALSE | AZ26: =IFERROR(ISEVEN(AY26/2),"") ->  | BA26: E2 | BB26: FALSE | BD26: =IFERROR(ISEVEN(BC26/2),"") ->  | BE26: F2 | BF26: FALSE | BH26: =IFERROR(ISEVEN(BG26/2),"") ->  | BI26: G2 | BJ26: FALSE | BM26: H2 | BN26: FALSE | BP26: =IFERROR(ISEVEN(BO26/2),"") ->  | BQ26: A7 | BR26: FALSE | BT26: =IFERROR(ISEVEN(BS26/2),"") ->  | BU26: B7 | BV26: FALSE | BX26: =IFERROR(ISEVEN(BW26/2),"") ->  | BY26: C7 | BZ26: FALSE | CB26: =IFERROR(ISEVEN(CA26/2),"") ->  | CC26: D7 | CD26: FALSE | CF26: =IFERROR(ISEVEN(CE26/2),"") ->  | CG26: E7 | CH26: FALSE | CJ26: =IFERROR(ISEVEN(CI26/2),"") ->  | CK26: F7 | CL26: FALSE | CN26: =IFERROR(ISEVEN(CM26/2),"") ->  | CO26: G7 | CP26: FALSE | CR26: =IFERROR(ISEVEN(CQ26/2),"") ->  | CS26: H7 | CT26: FALSE | CV26: =IFERROR(ISEVEN(CU26/2),"") ->  | CW26: A8 | CX26: FALSE | CZ26: =IFERROR(ISEVEN(CY26/2),"") ->  | DA26: B8 | DB26: FALSE | DD26: =IFERROR(ISEVEN(DC26/2),"") ->  | DE26: C8 | DF26: FALSE | DH26: =IFERROR(ISEVEN(DG26/2),"") ->  | DI26: D8 | DJ26: FALSE | DL26: =IFERROR(ISEVEN(DK26/2),"") ->  | DM26: E8 | DN26: FALSE | DP26: =IFERROR(ISEVEN(DO26/2),"") ->  | DQ26: F8 | DR26: FALSE | DT26: =IFERROR(ISEVEN(DS26/2),"") ->  | DU26: G8 | DV26: FALSE | DX26: =IFERROR(ISEVEN(DW26/2),"") ->  | DY26: H8
B27: FALSE | E27: A1 | F27: FALSE | I27: B1 | J27: FALSE | M27: C1 | N27: FALSE | Q27: D1 | R27: FALSE | U27: E1 | V27: FALSE | Y27: F1 | Z27: FALSE | AC27: G1 | AD27: FALSE | AG27: H1 | AH27: FALSE | AJ27: =IFERROR(ISEVEN(AI27/2),"") ->  | AK27: A2 | AL27: FALSE | AN27: =IFERROR(ISEVEN(AM27/2),"") ->  | AO27: B2 | AP27: FALSE | AR27: =IFERROR(ISEVEN(AQ27/2),"") ->  | AS27: C2 | AT27: FALSE | AV27: =IFERROR(ISEVEN(AU27/2),"") ->  | AW27: D2 | AX27: FALSE | AZ27: =IFERROR(ISEVEN(AY27/2),"") ->  | BA27: E2 | BB27: FALSE | BD27: =IFERROR(ISEVEN(BC27/2),"") ->  | BE27: F2 | BF27: FALSE | BH27: =IFERROR(ISEVEN(BG27/2),"") ->  | BI27: G2 | BJ27: FALSE | BM27: H2 | BN27: FALSE | BP27: =IFERROR(ISEVEN(BO27/2),"") ->  | BQ27: A7 | BR27: FALSE | BT27: =IFERROR(ISEVEN(BS27/2),"") ->  | BU27: B7 | BV27: FALSE | BX27: =IFERROR(ISEVEN(BW27/2),"") ->  | BY27: C7 | BZ27: FALSE | CB27: =IFERROR(ISEVEN(CA27/2),"") ->  | CC27: D7 | CD27: FALSE | CF27: =IFERROR(ISEVEN(CE27/2),"") ->  | CG27: E7 | CH27: FALSE | CJ27: =IFERROR(ISEVEN(CI27/2),"") ->  | CK27: F7 | CL27: FALSE | CN27: =IFERROR(ISEVEN(CM27/2),"") ->  | CO27: G7 | CP27: FALSE | CR27: =IFERROR(ISEVEN(CQ27/2),"") ->  | CS27: H7 | CT27: FALSE | CV27: =IFERROR(ISEVEN(CU27/2),"") ->  | CW27: A8 | CX27: FALSE | CZ27: =IFERROR(ISEVEN(CY27/2),"") ->  | DA27: B8 | DB27: FALSE | DD27: =IFERROR(ISEVEN(DC27/2),"") ->  | DE27: C8 | DF27: FALSE | DH27: =IFERROR(ISEVEN(DG27/2),"") ->  | DI27: D8 | DJ27: FALSE | DL27: =IFERROR(ISEVEN(DK27/2),"") ->  | DM27: E8 | DN27: FALSE | DP27: =IFERROR(ISEVEN(DO27/2),"") ->  | DQ27: F8 | DR27: FALSE | DT27: =IFERROR(ISEVEN(DS27/2),"") ->  | DU27: G8 | DV27: FALSE | DX27: =IFERROR(ISEVEN(DW27/2),"") ->  | DY27: H8
B28: FALSE | E28: A1 | F28: FALSE | I28: B1 | J28: FALSE | M28: C1 | N28: FALSE | Q28: D1 | R28: FALSE | U28: E1 | V28: FALSE | Y28: F1 | Z28: FALSE | AC28: G1 | AD28: FALSE | AG28: H1 | AH28: FALSE | AJ28: =IFERROR(ISEVEN(AI28/2),"") ->  | AK28: A2 | AL28: FALSE | AN28: =IFERROR(ISEVEN(AM28/2),"") ->  | AO28: B2 | AP28: FALSE | AR28: =IFERROR(ISEVEN(AQ28/2),"") ->  | AS28: C2 | AT28: FALSE | AV28: =IFERROR(ISEVEN(AU28/2),"") ->  | AW28: D2 | AX28: FALSE | AZ28: =IFERROR(ISEVEN(AY28/2),"") ->  | BA28: E2 | BB28: FALSE | BD28: =IFERROR(ISEVEN(BC28/2),"") ->  | BE28: F2 | BF28: FALSE | BH28: =IFERROR(ISEVEN(BG28/2),"") ->  | BI28: G2 | BJ28: FALSE | BM28: H2 | BN28: FALSE | BP28: =IFERROR(ISEVEN(BO28/2),"") ->  | BQ28: A7 | BR28: FALSE | BT28: =IFERROR(ISEVEN(BS28/2),"") ->  | BU28: B7 | BV28: FALSE | BX28: =IFERROR(ISEVEN(BW28/2),"") ->  | BY28: C7 | BZ28: FALSE | CB28: =IFERROR(ISEVEN(CA28/2),"") ->  | CC28: D7 | CD28: FALSE | CF28: =IFERROR(ISEVEN(CE28/2),"") ->  | CG28: E7 | CH28: FALSE | CJ28: =IFERROR(ISEVEN(CI28/2),"") ->  | CK28: F7 | CL28: FALSE | CN28: =IFERROR(ISEVEN(CM28/2),"") ->  | CO28: G7 | CP28: FALSE | CR28: =IFERROR(ISEVEN(CQ28/2),"") ->  | CS28: H7 | CT28: FALSE | CV28: =IFERROR(ISEVEN(CU28/2),"") ->  | CW28: A8 | CX28: FALSE | CZ28: =IFERROR(ISEVEN(CY28/2),"") ->  | DA28: B8 | DB28: FALSE | DD28: =IFERROR(ISEVEN(DC28/2),"") ->  | DE28: C8 | DF28: FALSE | DH28: =IFERROR(ISEVEN(DG28/2),"") ->  | DI28: D8 | DJ28: FALSE | DL28: =IFERROR(ISEVEN(DK28/2),"") ->  | DM28: E8 | DN28: FALSE | DP28: =IFERROR(ISEVEN(DO28/2),"") ->  | DQ28: F8 | DR28: FALSE | DT28: =IFERROR(ISEVEN(DS28/2),"") ->  | DU28: G8 | DV28: FALSE | DX28: =IFERROR(ISEVEN(DW28/2),"") ->  | DY28: H8
B29: FALSE | E29: A1 | F29: FALSE | I29: B1 | J29: FALSE | M29: C1 | N29: FALSE | Q29: D1 | R29: FALSE | U29: E1 | V29: FALSE | Y29: F1 | Z29: FALSE | AC29: G1 | AD29: FALSE | AG29: H1 | AH29: FALSE | AJ29: =IFERROR(ISEVEN(AI29/2),"") ->  | AK29: A2 | AL29: FALSE | AN29: =IFERROR(ISEVEN(AM29/2),"") ->  | AO29: B2 | AP29: FALSE | AR29: =IFERROR(ISEVEN(AQ29/2),"") ->  | AS29: C2 | AT29: FALSE | AV29: =IFERROR(ISEVEN(AU29/2),"") ->  | AW29: D2 | AX29: FALSE | AZ29: =IFERROR(ISEVEN(AY29/2),"") ->  | BA29: E2 | BB29: FALSE | BD29: =IFERROR(ISEVEN(BC29/2),"") ->  | BE29: F2 | BF29: FALSE | BH29: =IFERROR(ISEVEN(BG29/2),"") ->  | BI29: G2 | BJ29: FALSE | BM29: H2 | BN29: FALSE | BP29: =IFERROR(ISEVEN(BO29/2),"") ->  | BQ29: A7 | BR29: FALSE | BT29: =IFERROR(ISEVEN(BS29/2),"") ->  | BU29: B7 | BV29: FALSE | BX29: =IFERROR(ISEVEN(BW29/2),"") ->  | BY29: C7 | BZ29: FALSE | CB29: =IFERROR(ISEVEN(CA29/2),"") ->  | CC29: D7 | CD29: FALSE | CF29: =IFERROR(ISEVEN(CE29/2),"") ->  | CG29: E7 | CH29: FALSE | CJ29: =IFERROR(ISEVEN(CI29/2),"") ->  | CK29: F7 | CL29: FALSE | CN29: =IFERROR(ISEVEN(CM29/2),"") ->  | CO29: G7 | CP29: FALSE | CR29: =IFERROR(ISEVEN(CQ29/2),"") ->  | CS29: H7 | CT29: FALSE | CV29: =IFERROR(ISEVEN(CU29/2),"") ->  | CW29: A8 | CX29: FALSE | CZ29: =IFERROR(ISEVEN(CY29/2),"") ->  | DA29: B8 | DB29: FALSE | DD29: =IFERROR(ISEVEN(DC29/2),"") ->  | DE29: C8 | DF29: FALSE | DH29: =IFERROR(ISEVEN(DG29/2),"") ->  | DI29: D8 | DJ29: FALSE | DL29: =IFERROR(ISEVEN(DK29/2),"") ->  | DM29: E8 | DN29: FALSE | DP29: =IFERROR(ISEVEN(DO29/2),"") ->  | DQ29: F8 | DR29: FALSE | DT29: =IFERROR(ISEVEN(DS29/2),"") ->  | DU29: G8 | DV29: FALSE | DX29: =IFERROR(ISEVEN(DW29/2),"") ->  | DY29: H8
B30: FALSE | E30: A1 | F30: FALSE | I30: B1 | J30: FALSE | M30: C1 | N30: FALSE | Q30: D1 | R30: FALSE | U30: E1 | V30: FALSE | Y30: F1 | Z30: FALSE | AC30: G1 | AD30: FALSE | AG30: H1 | AH30: FALSE | AJ30: =IFERROR(ISEVEN(AI30/2),"") ->  | AK30: A2 | AL30: FALSE | AN30: =IFERROR(ISEVEN(AM30/2),"") ->  | AO30: B2 | AP30: FALSE | AR30: =IFERROR(ISEVEN(AQ30/2),"") ->  | AS30: C2 | AT30: FALSE | AV30: =IFERROR(ISEVEN(AU30/2),"") ->  | AW30: D2 | AX30: FALSE | AZ30: =IFERROR(ISEVEN(AY30/2),"") ->  | BA30: E2 | BB30: FALSE | BD30: =IFERROR(ISEVEN(BC30/2),"") ->  | BE30: F2 | BF30: FALSE | BH30: =IFERROR(ISEVEN(BG30/2),"") ->  | BI30: G2 | BJ30: FALSE | BM30: H2 | BN30: FALSE | BP30: =IFERROR(ISEVEN(BO30/2),"") ->  | BQ30: A7 | BR30: FALSE | BT30: =IFERROR(ISEVEN(BS30/2),"") ->  | BU30: B7 | BV30: FALSE | BX30: =IFERROR(ISEVEN(BW30/2),"") ->  | BY30: C7 | BZ30: FALSE | CB30: =IFERROR(ISEVEN(CA30/2),"") ->  | CC30: D7 | CD30: FALSE | CF30: =IFERROR(ISEVEN(CE30/2),"") ->  | CG30: E7 | CH30: FALSE | CJ30: =IFERROR(ISEVEN(CI30/2),"") ->  | CK30: F7 | CL30: FALSE | CN30: =IFERROR(ISEVEN(CM30/2),"") ->  | CO30: G7 | CP30: FALSE | CR30: =IFERROR(ISEVEN(CQ30/2),"") ->  | CS30: H7 | CT30: FALSE | CV30: =IFERROR(ISEVEN(CU30/2),"") ->  | CW30: A8 | CX30: FALSE | CZ30: =IFERROR(ISEVEN(CY30/2),"") ->  | DA30: B8 | DB30: FALSE | DD30: =IFERROR(ISEVEN(DC30/2),"") ->  | DE30: C8 | DF30: FALSE | DH30: =IFERROR(ISEVEN(DG30/2),"") ->  | DI30: D8 | DJ30: FALSE | DL30: =IFERROR(ISEVEN(DK30/2),"") ->  | DM30: E8 | DN30: FALSE | DP30: =IFERROR(ISEVEN(DO30/2),"") ->  | DQ30: F8 | DR30: FALSE | DT30: =IFERROR(ISEVEN(DS30/2),"") ->  | DU30: G8 | DV30: FALSE | DX30: =IFERROR(ISEVEN(DW30/2),"") ->  | DY30: H8
B31: FALSE | E31: A1 | F31: FALSE | I31: B1 | J31: FALSE | M31: C1 | N31: FALSE | Q31: D1 | R31: FALSE | U31: E1 | V31: FALSE | Y31: F1 | Z31: FALSE | AC31: G1 | AD31: FALSE | AG31: H1 | AH31: FALSE | AJ31: =IFERROR(ISEVEN(AI31/2),"") ->  | AK31: A2 | AL31: FALSE | AN31: =IFERROR(ISEVEN(AM31/2),"") ->  | AO31: B2 | AP31: FALSE | AR31: =IFERROR(ISEVEN(AQ31/2),"") ->  | AS31: C2 | AT31: FALSE | AV31: =IFERROR(ISEVEN(AU31/2),"") ->  | AW31: D2 | AX31: FALSE | AZ31: =IFERROR(ISEVEN(AY31/2),"") ->  | BA31: E2 | BB31: FALSE | BD31: =IFERROR(ISEVEN(BC31/2),"") ->  | BE31: F2 | BF31: FALSE | BH31: =IFERROR(ISEVEN(BG31/2),"") ->  | BI31: G2 | BJ31: FALSE | BM31: H2 | BN31: FALSE | BP31: =IFERROR(ISEVEN(BO31/2),"") ->  | BQ31: A7 | BR31: FALSE | BT31: =IFERROR(ISEVEN(BS31/2),"") ->  | BU31: B7 | BV31: FALSE | BX31: =IFERROR(ISEVEN(BW31/2),"") ->  | BY31: C7 | BZ31: FALSE | CB31: =IFERROR(ISEVEN(CA31/2),"") ->  | CC31: D7 | CD31: FALSE | CF31: =IFERROR(ISEVEN(CE31/2),"") ->  | CG31: E7 | CH31: FALSE | CJ31: =IFERROR(ISEVEN(CI31/2),"") ->  | CK31: F7 | CL31: FALSE | CN31: =IFERROR(ISEVEN(CM31/2),"") ->  | CO31: G7 | CP31: FALSE | CR31: =IFERROR(ISEVEN(CQ31/2),"") ->  | CS31: H7 | CT31: FALSE | CV31: =IFERROR(ISEVEN(CU31/2),"") ->  | CW31: A8 | CX31: FALSE | CZ31: =IFERROR(ISEVEN(CY31/2),"") ->  | DA31: B8 | DB31: FALSE | DD31: =IFERROR(ISEVEN(DC31/2),"") ->  | DE31: C8 | DF31: FALSE | DH31: =IFERROR(ISEVEN(DG31/2),"") ->  | DI31: D8 | DJ31: FALSE | DL31: =IFERROR(ISEVEN(DK31/2),"") ->  | DM31: E8 | DN31: FALSE | DP31: =IFERROR(ISEVEN(DO31/2),"") ->  | DQ31: F8 | DR31: FALSE | DT31: =IFERROR(ISEVEN(DS31/2),"") ->  | DU31: G8 | DV31: FALSE | DX31: =IFERROR(ISEVEN(DW31/2),"") ->  | DY31: H8
B32: FALSE | D32: =IFERROR(ISEVEN(C32/2),"") ->  | E32: A1 | F32: FALSE | H32: =IFERROR(ISEVEN(G32/2),"") ->  | I32: B1 | J32: FALSE | L32: =IFERROR(ISEVEN(K32/2),"") ->  | M32: C1 | N32: FALSE | P32: =IFERROR(ISEVEN(O32/2),"") ->  | Q32: D1 | R32: FALSE | T32: =IFERROR(ISEVEN(S32/2),"") ->  | U32: E1 | V32: FALSE | X32: =IFERROR(ISEVEN(W32/2),"") ->  | Y32: F1 | Z32: FALSE | AB32: =IFERROR(ISEVEN(AA32/2),"") ->  | AC32: G1 | AD32: FALSE | AE32: =IFERROR(IF(AF31,SEARCH(AG31,UPPER(RenHistorik),AE31+3),""),"") ->  | AF32: =IFERROR(ISEVEN(AE32/2),"") ->  | AG32: =IFERROR(IF(AF32,MID(RenHistorik,AE32+2,2),""),AG31) -> H1 | AH32: FALSE | AJ32: =IFERROR(ISEVEN(AI32/2),"") ->  | AK32: A2 | AL32: FALSE | AN32: =IFERROR(ISEVEN(AM32/2),"") ->  | AO32: B2 | AP32: FALSE | AR32: =IFERROR(ISEVEN(AQ32/2),"") ->  | AS32: C2 | AT32: FALSE | AV32: =IFERROR(ISEVEN(AU32/2),"") ->  | AW32: D2 | AX32: FALSE | AZ32: =IFERROR(ISEVEN(AY32/2),"") ->  | BA32: E2 | BB32: FALSE | BD32: =IFERROR(ISEVEN(BC32/2),"") ->  | BE32: F2 | BF32: FALSE | BH32: =IFERROR(ISEVEN(BG32/2),"") ->  | BI32: G2 | BJ32: FALSE | BK32: =IFERROR(IF(BL31,SEARCH(BM31,UPPER(RenHistorik),BK31+3),""),"") ->  | BL32: =IFERROR(ISEVEN(BK32/2),"") ->  | BM32: =IFERROR(IF(BL32,MID(RenHistorik,BK32+2,2),""),BM31) -> H2 | BN32: FALSE | BP32: =IFERROR(ISEVEN(BO32/2),"") ->  | BQ32: A7 | BR32: FALSE | BT32: =IFERROR(ISEVEN(BS32/2),"") ->  | BU32: B7 | BV32: FALSE | BX32: =IFERROR(ISEVEN(BW32/2),"") ->  | BY32: C7 | BZ32: FALSE | CB32: =IFERROR(ISEVEN(CA32/2),"") ->  | CC32: D7 | CD32: FALSE | CF32: =IFERROR(ISEVEN(CE32/2),"") ->  | CG32: E7 | CH32: FALSE | CJ32: =IFERROR(ISEVEN(CI32/2),"") ->  | CK32: F7 | CL32: FALSE | CN32: =IFERROR(ISEVEN(CM32/2),"") ->  | CO32: G7 | CP32: FALSE | CR32: =IFERROR(ISEVEN(CQ32/2),"") ->  | CS32: H7 | CT32: FALSE | CV32: =IFERROR(ISEVEN(CU32/2),"") ->  | CW32: A8 | CX32: FALSE | CZ32: =IFERROR(ISEVEN(CY32/2),"") ->  | DA32: B8 | DB32: FALSE | DD32: =IFERROR(ISEVEN(DC32/2),"") ->  | DE32: C8 | DF32: FALSE | DH32: =IFERROR(ISEVEN(DG32/2),"") ->  | DI32: D8 | DJ32: FALSE | DL32: =IFERROR(ISEVEN(DK32/2),"") ->  | DM32: E8 | DN32: FALSE | DP32: =IFERROR(ISEVEN(DO32/2),"") ->  | DQ32: F8 | DR32: FALSE | DT32: =IFERROR(ISEVEN(DS32/2),"") ->  | DU32: G8 | DV32: FALSE | DX32: =IFERROR(ISEVEN(DW32/2),"") ->  | DY32: H8
B33: FALSE | E33: A1 | F33: FALSE | I33: B1 | J33: FALSE | M33: C1 | N33: FALSE | Q33: D1 | R33: FALSE | U33: E1 | V33: FALSE | Y33: F1 | Z33: FALSE | AC33: G1 | AD33: FALSE | AG33: H1 | AH33: FALSE | AJ33: =IFERROR(ISEVEN(AI33/2),"") ->  | AK33: A2 | AL33: FALSE | AN33: =IFERROR(ISEVEN(AM33/2),"") ->  | AO33: B2 | AP33: FALSE | AR33: =IFERROR(ISEVEN(AQ33/2),"") ->  | AS33: C2 | AT33: FALSE | AV33: =IFERROR(ISEVEN(AU33/2),"") ->  | AW33: D2 | AX33: FALSE | AZ33: =IFERROR(ISEVEN(AY33/2),"") ->  | BA33: E2 | BB33: FALSE | BD33: =IFERROR(ISEVEN(BC33/2),"") ->  | BE33: F2 | BF33: FALSE | BH33: =IFERROR(ISEVEN(BG33/2),"") ->  | BI33: G2 | BJ33: FALSE | BM33: H2 | BN33: FALSE | BP33: =IFERROR(ISEVEN(BO33/2),"") ->  | BQ33: A7 | BR33: FALSE | BT33: =IFERROR(ISEVEN(BS33/2),"") ->  | BU33: B7 | BV33: FALSE | BX33: =IFERROR(ISEVEN(BW33/2),"") ->  | BY33: C7 | BZ33: FALSE | CB33: =IFERROR(ISEVEN(CA33/2),"") ->  | CC33: D7 | CD33: FALSE | CF33: =IFERROR(ISEVEN(CE33/2),"") ->  | CG33: E7 | CH33: FALSE | CJ33: =IFERROR(ISEVEN(CI33/2),"") ->  | CK33: F7 | CL33: FALSE | CN33: =IFERROR(ISEVEN(CM33/2),"") ->  | CO33: G7 | CP33: FALSE | CR33: =IFERROR(ISEVEN(CQ33/2),"") ->  | CS33: H7 | CT33: FALSE | CV33: =IFERROR(ISEVEN(CU33/2),"") ->  | CW33: A8 | CX33: FALSE | CZ33: =IFERROR(ISEVEN(CY33/2),"") ->  | DA33: B8 | DB33: FALSE | DD33: =IFERROR(ISEVEN(DC33/2),"") ->  | DE33: C8 | DF33: FALSE | DH33: =IFERROR(ISEVEN(DG33/2),"") ->  | DI33: D8 | DJ33: FALSE | DL33: =IFERROR(ISEVEN(DK33/2),"") ->  | DM33: E8 | DN33: FALSE | DP33: =IFERROR(ISEVEN(DO33/2),"") ->  | DQ33: F8 | DR33: FALSE | DT33: =IFERROR(ISEVEN(DS33/2),"") ->  | DU33: G8 | DV33: FALSE | DX33: =IFERROR(ISEVEN(DW33/2),"") ->  | DY33: H8
B34: FALSE | E34: A1 | F34: FALSE | I34: B1 | J34: FALSE | M34: C1 | N34: FALSE | Q34: D1 | R34: FALSE | U34: E1 | V34: FALSE | Y34: F1 | Z34: FALSE | AC34: G1 | AD34: FALSE | AG34: H1 | AH34: FALSE | AJ34: =IFERROR(ISEVEN(AI34/2),"") ->  | AK34: A2 | AL34: FALSE | AN34: =IFERROR(ISEVEN(AM34/2),"") ->  | AO34: B2 | AP34: FALSE | AR34: =IFERROR(ISEVEN(AQ34/2),"") ->  | AS34: C2 | AT34: FALSE | AV34: =IFERROR(ISEVEN(AU34/2),"") ->  | AW34: D2 | AX34: FALSE | AZ34: =IFERROR(ISEVEN(AY34/2),"") ->  | BA34: E2 | BB34: FALSE | BD34: =IFERROR(ISEVEN(BC34/2),"") ->  | BE34: F2 | BF34: FALSE | BH34: =IFERROR(ISEVEN(BG34/2),"") ->  | BI34: G2 | BJ34: FALSE | BM34: H2 | BN34: FALSE | BP34: =IFERROR(ISEVEN(BO34/2),"") ->  | BQ34: A7 | BR34: FALSE | BT34: =IFERROR(ISEVEN(BS34/2),"") ->  | BU34: B7 | BV34: FALSE | BX34: =IFERROR(ISEVEN(BW34/2),"") ->  | BY34: C7 | BZ34: FALSE | CB34: =IFERROR(ISEVEN(CA34/2),"") ->  | CC34: D7 | CD34: FALSE | CF34: =IFERROR(ISEVEN(CE34/2),"") ->  | CG34: E7 | CH34: FALSE | CJ34: =IFERROR(ISEVEN(CI34/2),"") ->  | CK34: F7 | CL34: FALSE | CN34: =IFERROR(ISEVEN(CM34/2),"") ->  | CO34: G7 | CP34: FALSE | CR34: =IFERROR(ISEVEN(CQ34/2),"") ->  | CS34: H7 | CT34: FALSE | CV34: =IFERROR(ISEVEN(CU34/2),"") ->  | CW34: A8 | CX34: FALSE | CZ34: =IFERROR(ISEVEN(CY34/2),"") ->  | DA34: B8 | DB34: FALSE | DD34: =IFERROR(ISEVEN(DC34/2),"") ->  | DE34: C8 | DF34: FALSE | DH34: =IFERROR(ISEVEN(DG34/2),"") ->  | DI34: D8 | DJ34: FALSE | DL34: =IFERROR(ISEVEN(DK34/2),"") ->  | DM34: E8 | DN34: FALSE | DP34: =IFERROR(ISEVEN(DO34/2),"") ->  | DQ34: F8 | DR34: FALSE | DT34: =IFERROR(ISEVEN(DS34/2),"") ->  | DU34: G8 | DV34: FALSE | DX34: =IFERROR(ISEVEN(DW34/2),"") ->  | DY34: H8
B35: FALSE | E35: A1 | F35: FALSE | I35: B1 | J35: FALSE | M35: C1 | N35: FALSE | Q35: D1 | R35: FALSE | U35: E1 | V35: FALSE | Y35: F1 | Z35: FALSE | AC35: G1 | AD35: FALSE | AG35: H1 | AH35: FALSE | AJ35: =IFERROR(ISEVEN(AI35/2),"") ->  | AK35: A2 | AL35: FALSE | AN35: =IFERROR(ISEVEN(AM35/2),"") ->  | AO35: B2 | AP35: FALSE | AR35: =IFERROR(ISEVEN(AQ35/2),"") ->  | AS35: C2 | AT35: FALSE | AV35: =IFERROR(ISEVEN(AU35/2),"") ->  | AW35: D2 | AX35: FALSE | AZ35: =IFERROR(ISEVEN(AY35/2),"") ->  | BA35: E2 | BB35: FALSE | BD35: =IFERROR(ISEVEN(BC35/2),"") ->  | BE35: F2 | BF35: FALSE | BH35: =IFERROR(ISEVEN(BG35/2),"") ->  | BI35: G2 | BJ35: FALSE | BM35: H2 | BN35: FALSE | BP35: =IFERROR(ISEVEN(BO35/2),"") ->  | BQ35: A7 | BR35: FALSE | BT35: =IFERROR(ISEVEN(BS35/2),"") ->  | BU35: B7 | BV35: FALSE | BX35: =IFERROR(ISEVEN(BW35/2),"") ->  | BY35: C7 | BZ35: FALSE | CB35: =IFERROR(ISEVEN(CA35/2),"") ->  | CC35: D7 | CD35: FALSE | CF35: =IFERROR(ISEVEN(CE35/2),"") ->  | CG35: E7 | CH35: FALSE | CJ35: =IFERROR(ISEVEN(CI35/2),"") ->  | CK35: F7 | CL35: FALSE | CN35: =IFERROR(ISEVEN(CM35/2),"") ->  | CO35: G7 | CP35: FALSE | CR35: =IFERROR(ISEVEN(CQ35/2),"") ->  | CS35: H7 | CT35: FALSE | CV35: =IFERROR(ISEVEN(CU35/2),"") ->  | CW35: A8 | CX35: FALSE | CZ35: =IFERROR(ISEVEN(CY35/2),"") ->  | DA35: B8 | DB35: FALSE | DD35: =IFERROR(ISEVEN(DC35/2),"") ->  | DE35: C8 | DF35: FALSE | DH35: =IFERROR(ISEVEN(DG35/2),"") ->  | DI35: D8 | DJ35: FALSE | DL35: =IFERROR(ISEVEN(DK35/2),"") ->  | DM35: E8 | DN35: FALSE | DP35: =IFERROR(ISEVEN(DO35/2),"") ->  | DQ35: F8 | DR35: FALSE | DT35: =IFERROR(ISEVEN(DS35/2),"") ->  | DU35: G8 | DV35: FALSE | DX35: =IFERROR(ISEVEN(DW35/2),"") ->  | DY35: H8
B36: FALSE | E36: A1 | F36: FALSE | I36: B1 | J36: FALSE | M36: C1 | N36: FALSE | Q36: D1 | R36: FALSE | U36: E1 | V36: FALSE | Y36: F1 | Z36: FALSE | AC36: G1 | AD36: FALSE | AG36: H1 | AH36: FALSE | AJ36: =IFERROR(ISEVEN(AI36/2),"") ->  | AK36: A2 | AL36: FALSE | AN36: =IFERROR(ISEVEN(AM36/2),"") ->  | AO36: B2 | AP36: FALSE | AR36: =IFERROR(ISEVEN(AQ36/2),"") ->  | AS36: C2 | AT36: FALSE | AV36: =IFERROR(ISEVEN(AU36/2),"") ->  | AW36: D2 | AX36: FALSE | AZ36: =IFERROR(ISEVEN(AY36/2),"") ->  | BA36: E2 | BB36: FALSE | BD36: =IFERROR(ISEVEN(BC36/2),"") ->  | BE36: F2 | BF36: FALSE | BH36: =IFERROR(ISEVEN(BG36/2),"") ->  | BI36: G2 | BJ36: FALSE | BM36: H2 | BN36: FALSE | BP36: =IFERROR(ISEVEN(BO36/2),"") ->  | BQ36: A7 | BR36: FALSE | BT36: =IFERROR(ISEVEN(BS36/2),"") ->  | BU36: B7 | BV36: FALSE | BX36: =IFERROR(ISEVEN(BW36/2),"") ->  | BY36: C7 | BZ36: FALSE | CB36: =IFERROR(ISEVEN(CA36/2),"") ->  | CC36: D7 | CD36: FALSE | CF36: =IFERROR(ISEVEN(CE36/2),"") ->  | CG36: E7 | CH36: FALSE | CJ36: =IFERROR(ISEVEN(CI36/2),"") ->  | CK36: F7 | CL36: FALSE | CN36: =IFERROR(ISEVEN(CM36/2),"") ->  | CO36: G7 | CP36: FALSE | CR36: =IFERROR(ISEVEN(CQ36/2),"") ->  | CS36: H7 | CT36: FALSE | CV36: =IFERROR(ISEVEN(CU36/2),"") ->  | CW36: A8 | CX36: FALSE | CZ36: =IFERROR(ISEVEN(CY36/2),"") ->  | DA36: B8 | DB36: FALSE | DD36: =IFERROR(ISEVEN(DC36/2),"") ->  | DE36: C8 | DF36: FALSE | DH36: =IFERROR(ISEVEN(DG36/2),"") ->  | DI36: D8 | DJ36: FALSE | DL36: =IFERROR(ISEVEN(DK36/2),"") ->  | DM36: E8 | DN36: FALSE | DP36: =IFERROR(ISEVEN(DO36/2),"") ->  | DQ36: F8 | DR36: FALSE | DT36: =IFERROR(ISEVEN(DS36/2),"") ->  | DU36: G8 | DV36: FALSE | DX36: =IFERROR(ISEVEN(DW36/2),"") ->  | DY36: H8
B37: FALSE | E37: A1 | F37: FALSE | I37: B1 | J37: FALSE | M37: C1 | N37: FALSE | Q37: D1 | R37: FALSE | U37: E1 | V37: FALSE | Y37: F1 | Z37: FALSE | AC37: G1 | AD37: FALSE | AG37: H1 | AH37: FALSE | AJ37: =IFERROR(ISEVEN(AI37/2),"") ->  | AK37: A2 | AL37: FALSE | AN37: =IFERROR(ISEVEN(AM37/2),"") ->  | AO37: B2 | AP37: FALSE | AR37: =IFERROR(ISEVEN(AQ37/2),"") ->  | AS37: C2 | AT37: FALSE | AV37: =IFERROR(ISEVEN(AU37/2),"") ->  | AW37: D2 | AX37: FALSE | AZ37: =IFERROR(ISEVEN(AY37/2),"") ->  | BA37: E2 | BB37: FALSE | BD37: =IFERROR(ISEVEN(BC37/2),"") ->  | BE37: F2 | BF37: FALSE | BH37: =IFERROR(ISEVEN(BG37/2),"") ->  | BI37: G2 | BJ37: FALSE | BM37: H2 | BN37: FALSE | BP37: =IFERROR(ISEVEN(BO37/2),"") ->  | BQ37: A7 | BR37: FALSE | BT37: =IFERROR(ISEVEN(BS37/2),"") ->  | BU37: B7 | BV37: FALSE | BX37: =IFERROR(ISEVEN(BW37/2),"") ->  | BY37: C7 | BZ37: FALSE | CB37: =IFERROR(ISEVEN(CA37/2),"") ->  | CC37: D7 | CD37: FALSE | CF37: =IFERROR(ISEVEN(CE37/2),"") ->  | CG37: E7 | CH37: FALSE | CJ37: =IFERROR(ISEVEN(CI37/2),"") ->  | CK37: F7 | CL37: FALSE | CN37: =IFERROR(ISEVEN(CM37/2),"") ->  | CO37: G7 | CP37: FALSE | CR37: =IFERROR(ISEVEN(CQ37/2),"") ->  | CS37: H7 | CT37: FALSE | CV37: =IFERROR(ISEVEN(CU37/2),"") ->  | CW37: A8 | CX37: FALSE | CZ37: =IFERROR(ISEVEN(CY37/2),"") ->  | DA37: B8 | DB37: FALSE | DD37: =IFERROR(ISEVEN(DC37/2),"") ->  | DE37: C8 | DF37: FALSE | DH37: =IFERROR(ISEVEN(DG37/2),"") ->  | DI37: D8 | DJ37: FALSE | DL37: =IFERROR(ISEVEN(DK37/2),"") ->  | DM37: E8 | DN37: FALSE | DP37: =IFERROR(ISEVEN(DO37/2),"") ->  | DQ37: F8 | DR37: FALSE | DT37: =IFERROR(ISEVEN(DS37/2),"") ->  | DU37: G8 | DV37: FALSE | DX37: =IFERROR(ISEVEN(DW37/2),"") ->  | DY37: H8
B38: FALSE | E38: A1 | F38: FALSE | I38: B1 | J38: FALSE | M38: C1 | N38: FALSE | Q38: D1 | R38: FALSE | U38: E1 | V38: FALSE | Y38: F1 | Z38: FALSE | AC38: G1 | AD38: FALSE | AG38: H1 | AH38: FALSE | AJ38: =IFERROR(ISEVEN(AI38/2),"") ->  | AK38: A2 | AL38: FALSE | AN38: =IFERROR(ISEVEN(AM38/2),"") ->  | AO38: B2 | AP38: FALSE | AR38: =IFERROR(ISEVEN(AQ38/2),"") ->  | AS38: C2 | AT38: FALSE | AV38: =IFERROR(ISEVEN(AU38/2),"") ->  | AW38: D2 | AX38: FALSE | AZ38: =IFERROR(ISEVEN(AY38/2),"") ->  | BA38: E2 | BB38: FALSE | BD38: =IFERROR(ISEVEN(BC38/2),"") ->  | BE38: F2 | BF38: FALSE | BH38: =IFERROR(ISEVEN(BG38/2),"") ->  | BI38: G2 | BJ38: FALSE | BM38: H2 | BN38: FALSE | BP38: =IFERROR(ISEVEN(BO38/2),"") ->  | BQ38: A7 | BR38: FALSE | BT38: =IFERROR(ISEVEN(BS38/2),"") ->  | BU38: B7 | BV38: FALSE | BX38: =IFERROR(ISEVEN(BW38/2),"") ->  | BY38: C7 | BZ38: FALSE | CB38: =IFERROR(ISEVEN(CA38/2),"") ->  | CC38: D7 | CD38: FALSE | CF38: =IFERROR(ISEVEN(CE38/2),"") ->  | CG38: E7 | CH38: FALSE | CJ38: =IFERROR(ISEVEN(CI38/2),"") ->  | CK38: F7 | CL38: FALSE | CN38: =IFERROR(ISEVEN(CM38/2),"") ->  | CO38: G7 | CP38: FALSE | CR38: =IFERROR(ISEVEN(CQ38/2),"") ->  | CS38: H7 | CT38: FALSE | CV38: =IFERROR(ISEVEN(CU38/2),"") ->  | CW38: A8 | CX38: FALSE | CZ38: =IFERROR(ISEVEN(CY38/2),"") ->  | DA38: B8 | DB38: FALSE | DD38: =IFERROR(ISEVEN(DC38/2),"") ->  | DE38: C8 | DF38: FALSE | DH38: =IFERROR(ISEVEN(DG38/2),"") ->  | DI38: D8 | DJ38: FALSE | DL38: =IFERROR(ISEVEN(DK38/2),"") ->  | DM38: E8 | DN38: FALSE | DP38: =IFERROR(ISEVEN(DO38/2),"") ->  | DQ38: F8 | DR38: FALSE | DT38: =IFERROR(ISEVEN(DS38/2),"") ->  | DU38: G8 | DV38: FALSE | DX38: =IFERROR(ISEVEN(DW38/2),"") ->  | DY38: H8
B39: FALSE | E39: A1 | F39: FALSE | I39: B1 | J39: FALSE | M39: C1 | N39: FALSE | Q39: D1 | R39: FALSE | U39: E1 | V39: FALSE | Y39: F1 | Z39: FALSE | AC39: G1 | AD39: FALSE | AG39: H1 | AH39: FALSE | AJ39: =IFERROR(ISEVEN(AI39/2),"") ->  | AK39: A2 | AL39: FALSE | AN39: =IFERROR(ISEVEN(AM39/2),"") ->  | AO39: B2 | AP39: FALSE | AR39: =IFERROR(ISEVEN(AQ39/2),"") ->  | AS39: C2 | AT39: FALSE | AV39: =IFERROR(ISEVEN(AU39/2),"") ->  | AW39: D2 | AX39: FALSE | AZ39: =IFERROR(ISEVEN(AY39/2),"") ->  | BA39: E2 | BB39: FALSE | BD39: =IFERROR(ISEVEN(BC39/2),"") ->  | BE39: F2 | BF39: FALSE | BH39: =IFERROR(ISEVEN(BG39/2),"") ->  | BI39: G2 | BJ39: FALSE | BM39: H2 | BN39: FALSE | BP39: =IFERROR(ISEVEN(BO39/2),"") ->  | BQ39: A7 | BR39: FALSE | BT39: =IFERROR(ISEVEN(BS39/2),"") ->  | BU39: B7 | BV39: FALSE | BX39: =IFERROR(ISEVEN(BW39/2),"") ->  | BY39: C7 | BZ39: FALSE | CB39: =IFERROR(ISEVEN(CA39/2),"") ->  | CC39: D7 | CD39: FALSE | CF39: =IFERROR(ISEVEN(CE39/2),"") ->  | CG39: E7 | CH39: FALSE | CJ39: =IFERROR(ISEVEN(CI39/2),"") ->  | CK39: F7 | CL39: FALSE | CN39: =IFERROR(ISEVEN(CM39/2),"") ->  | CO39: G7 | CP39: FALSE | CR39: =IFERROR(ISEVEN(CQ39/2),"") ->  | CS39: H7 | CT39: FALSE | CV39: =IFERROR(ISEVEN(CU39/2),"") ->  | CW39: A8 | CX39: FALSE | CZ39: =IFERROR(ISEVEN(CY39/2),"") ->  | DA39: B8 | DB39: FALSE | DD39: =IFERROR(ISEVEN(DC39/2),"") ->  | DE39: C8 | DF39: FALSE | DH39: =IFERROR(ISEVEN(DG39/2),"") ->  | DI39: D8 | DJ39: FALSE | DL39: =IFERROR(ISEVEN(DK39/2),"") ->  | DM39: E8 | DN39: FALSE | DP39: =IFERROR(ISEVEN(DO39/2),"") ->  | DQ39: F8 | DR39: FALSE | DT39: =IFERROR(ISEVEN(DS39/2),"") ->  | DU39: G8 | DV39: FALSE | DX39: =IFERROR(ISEVEN(DW39/2),"") ->  | DY39: H8
B40: FALSE | E40: A1 | F40: FALSE | I40: B1 | J40: FALSE | M40: C1 | N40: FALSE | Q40: D1 | R40: FALSE | U40: E1 | V40: FALSE | Y40: F1 | Z40: FALSE | AC40: G1 | AD40: FALSE | AG40: H1 | AH40: FALSE | AJ40: =IFERROR(ISEVEN(AI40/2),"") ->  | AK40: A2 | AL40: FALSE | AN40: =IFERROR(ISEVEN(AM40/2),"") ->  | AO40: B2 | AP40: FALSE | AR40: =IFERROR(ISEVEN(AQ40/2),"") ->  | AS40: C2 | AT40: FALSE | AV40: =IFERROR(ISEVEN(AU40/2),"") ->  | AW40: D2 | AX40: FALSE | AZ40: =IFERROR(ISEVEN(AY40/2),"") ->  | BA40: E2 | BB40: FALSE | BD40: =IFERROR(ISEVEN(BC40/2),"") ->  | BE40: F2 | BF40: FALSE | BH40: =IFERROR(ISEVEN(BG40/2),"") ->  | BI40: G2 | BJ40: FALSE | BM40: H2 | BN40: FALSE | BP40: =IFERROR(ISEVEN(BO40/2),"") ->  | BQ40: A7 | BR40: FALSE | BT40: =IFERROR(ISEVEN(BS40/2),"") ->  | BU40: B7 | BV40: FALSE | BX40: =IFERROR(ISEVEN(BW40/2),"") ->  | BY40: C7 | BZ40: FALSE | CB40: =IFERROR(ISEVEN(CA40/2),"") ->  | CC40: D7 | CD40: FALSE | CF40: =IFERROR(ISEVEN(CE40/2),"") ->  | CG40: E7 | CH40: FALSE | CJ40: =IFERROR(ISEVEN(CI40/2),"") ->  | CK40: F7 | CL40: FALSE | CN40: =IFERROR(ISEVEN(CM40/2),"") ->  | CO40: G7 | CP40: FALSE | CR40: =IFERROR(ISEVEN(CQ40/2),"") ->  | CS40: H7 | CT40: FALSE | CV40: =IFERROR(ISEVEN(CU40/2),"") ->  | CW40: A8 | CX40: FALSE | CZ40: =IFERROR(ISEVEN(CY40/2),"") ->  | DA40: B8 | DB40: FALSE | DD40: =IFERROR(ISEVEN(DC40/2),"") ->  | DE40: C8 | DF40: FALSE | DH40: =IFERROR(ISEVEN(DG40/2),"") ->  | DI40: D8 | DJ40: FALSE | DL40: =IFERROR(ISEVEN(DK40/2),"") ->  | DM40: E8 | DN40: FALSE | DP40: =IFERROR(ISEVEN(DO40/2),"") ->  | DQ40: F8 | DR40: FALSE | DT40: =IFERROR(ISEVEN(DS40/2),"") ->  | DU40: G8 | DV40: FALSE | DX40: =IFERROR(ISEVEN(DW40/2),"") ->  | DY40: H8
B41: FALSE | E41: A1 | F41: FALSE | I41: B1 | J41: FALSE | M41: C1 | N41: FALSE | Q41: D1 | R41: FALSE | U41: E1 | V41: FALSE | Y41: F1 | Z41: FALSE | AC41: G1 | AD41: FALSE | AG41: H1 | AH41: FALSE | AJ41: =IFERROR(ISEVEN(AI41/2),"") ->  | AK41: A2 | AL41: FALSE | AN41: =IFERROR(ISEVEN(AM41/2),"") ->  | AO41: B2 | AP41: FALSE | AR41: =IFERROR(ISEVEN(AQ41/2),"") ->  | AS41: C2 | AT41: FALSE | AV41: =IFERROR(ISEVEN(AU41/2),"") ->  | AW41: D2 | AX41: FALSE | AZ41: =IFERROR(ISEVEN(AY41/2),"") ->  | BA41: E2 | BB41: FALSE | BD41: =IFERROR(ISEVEN(BC41/2),"") ->  | BE41: F2 | BF41: FALSE | BH41: =IFERROR(ISEVEN(BG41/2),"") ->  | BI41: G2 | BJ41: FALSE | BM41: H2 | BN41: FALSE | BP41: =IFERROR(ISEVEN(BO41/2),"") ->  | BQ41: A7 | BR41: FALSE | BT41: =IFERROR(ISEVEN(BS41/2),"") ->  | BU41: B7 | BV41: FALSE | BX41: =IFERROR(ISEVEN(BW41/2),"") ->  | BY41: C7 | BZ41: FALSE | CB41: =IFERROR(ISEVEN(CA41/2),"") ->  | CC41: D7 | CD41: FALSE | CF41: =IFERROR(ISEVEN(CE41/2),"") ->  | CG41: E7 | CH41: FALSE | CJ41: =IFERROR(ISEVEN(CI41/2),"") ->  | CK41: F7 | CL41: FALSE | CN41: =IFERROR(ISEVEN(CM41/2),"") ->  | CO41: G7 | CP41: FALSE | CR41: =IFERROR(ISEVEN(CQ41/2),"") ->  | CS41: H7 | CT41: FALSE | CV41: =IFERROR(ISEVEN(CU41/2),"") ->  | CW41: A8 | CX41: FALSE | CZ41: =IFERROR(ISEVEN(CY41/2),"") ->  | DA41: B8 | DB41: FALSE | DD41: =IFERROR(ISEVEN(DC41/2),"") ->  | DE41: C8 | DF41: FALSE | DH41: =IFERROR(ISEVEN(DG41/2),"") ->  | DI41: D8 | DJ41: FALSE | DL41: =IFERROR(ISEVEN(DK41/2),"") ->  | DM41: E8 | DN41: FALSE | DP41: =IFERROR(ISEVEN(DO41/2),"") ->  | DQ41: F8 | DR41: FALSE | DT41: =IFERROR(ISEVEN(DS41/2),"") ->  | DU41: G8 | DV41: FALSE | DX41: =IFERROR(ISEVEN(DW41/2),"") ->  | DY41: H8
B42: FALSE | E42: A1 | F42: FALSE | I42: B1 | J42: FALSE | M42: C1 | N42: FALSE | Q42: D1 | R42: FALSE | U42: E1 | V42: FALSE | Y42: F1 | Z42: FALSE | AC42: G1 | AD42: FALSE | AG42: H1 | AH42: FALSE | AJ42: =IFERROR(ISEVEN(AI42/2),"") ->  | AK42: A2 | AL42: FALSE | AN42: =IFERROR(ISEVEN(AM42/2),"") ->  | AO42: B2 | AP42: FALSE | AR42: =IFERROR(ISEVEN(AQ42/2),"") ->  | AS42: C2 | AT42: FALSE | AV42: =IFERROR(ISEVEN(AU42/2),"") ->  | AW42: D2 | AX42: FALSE | AZ42: =IFERROR(ISEVEN(AY42/2),"") ->  | BA42: E2 | BB42: FALSE | BD42: =IFERROR(ISEVEN(BC42/2),"") ->  | BE42: F2 | BF42: FALSE | BH42: =IFERROR(ISEVEN(BG42/2),"") ->  | BI42: G2 | BJ42: FALSE | BM42: H2 | BN42: FALSE | BP42: =IFERROR(ISEVEN(BO42/2),"") ->  | BQ42: A7 | BR42: FALSE | BT42: =IFERROR(ISEVEN(BS42/2),"") ->  | BU42: B7 | BV42: FALSE | BX42: =IFERROR(ISEVEN(BW42/2),"") ->  | BY42: C7 | BZ42: FALSE | CB42: =IFERROR(ISEVEN(CA42/2),"") ->  | CC42: D7 | CD42: FALSE | CF42: =IFERROR(ISEVEN(CE42/2),"") ->  | CG42: E7 | CH42: FALSE | CJ42: =IFERROR(ISEVEN(CI42/2),"") ->  | CK42: F7 | CL42: FALSE | CN42: =IFERROR(ISEVEN(CM42/2),"") ->  | CO42: G7 | CP42: FALSE | CR42: =IFERROR(ISEVEN(CQ42/2),"") ->  | CS42: H7 | CT42: FALSE | CV42: =IFERROR(ISEVEN(CU42/2),"") ->  | CW42: A8 | CX42: FALSE | CZ42: =IFERROR(ISEVEN(CY42/2),"") ->  | DA42: B8 | DB42: FALSE | DD42: =IFERROR(ISEVEN(DC42/2),"") ->  | DE42: C8 | DF42: FALSE | DH42: =IFERROR(ISEVEN(DG42/2),"") ->  | DI42: D8 | DJ42: FALSE | DL42: =IFERROR(ISEVEN(DK42/2),"") ->  | DM42: E8 | DN42: FALSE | DP42: =IFERROR(ISEVEN(DO42/2),"") ->  | DQ42: F8 | DR42: FALSE | DT42: =IFERROR(ISEVEN(DS42/2),"") ->  | DU42: G8 | DV42: FALSE | DX42: =IFERROR(ISEVEN(DW42/2),"") ->  | DY42: H8
B43: FALSE | E43: A1 | F43: FALSE | I43: B1 | J43: FALSE | M43: C1 | N43: FALSE | Q43: D1 | R43: FALSE | U43: E1 | V43: FALSE | Y43: F1 | Z43: FALSE | AC43: G1 | AD43: FALSE | AG43: H1 | AH43: FALSE | AJ43: =IFERROR(ISEVEN(AI43/2),"") ->  | AK43: A2 | AL43: FALSE | AN43: =IFERROR(ISEVEN(AM43/2),"") ->  | AO43: B2 | AP43: FALSE | AR43: =IFERROR(ISEVEN(AQ43/2),"") ->  | AS43: C2 | AT43: FALSE | AV43: =IFERROR(ISEVEN(AU43/2),"") ->  | AW43: D2 | AX43: FALSE | AZ43: =IFERROR(ISEVEN(AY43/2),"") ->  | BA43: E2 | BB43: FALSE | BD43: =IFERROR(ISEVEN(BC43/2),"") ->  | BE43: F2 | BF43: FALSE | BH43: =IFERROR(ISEVEN(BG43/2),"") ->  | BI43: G2 | BJ43: FALSE | BM43: H2 | BN43: FALSE | BP43: =IFERROR(ISEVEN(BO43/2),"") ->  | BQ43: A7 | BR43: FALSE | BT43: =IFERROR(ISEVEN(BS43/2),"") ->  | BU43: B7 | BV43: FALSE | BX43: =IFERROR(ISEVEN(BW43/2),"") ->  | BY43: C7 | BZ43: FALSE | CB43: =IFERROR(ISEVEN(CA43/2),"") ->  | CC43: D7 | CD43: FALSE | CF43: =IFERROR(ISEVEN(CE43/2),"") ->  | CG43: E7 | CH43: FALSE | CJ43: =IFERROR(ISEVEN(CI43/2),"") ->  | CK43: F7 | CL43: FALSE | CN43: =IFERROR(ISEVEN(CM43/2),"") ->  | CO43: G7 | CP43: FALSE | CR43: =IFERROR(ISEVEN(CQ43/2),"") ->  | CS43: H7 | CT43: FALSE | CV43: =IFERROR(ISEVEN(CU43/2),"") ->  | CW43: A8 | CX43: FALSE | CZ43: =IFERROR(ISEVEN(CY43/2),"") ->  | DA43: B8 | DB43: FALSE | DD43: =IFERROR(ISEVEN(DC43/2),"") ->  | DE43: C8 | DF43: FALSE | DH43: =IFERROR(ISEVEN(DG43/2),"") ->  | DI43: D8 | DJ43: FALSE | DL43: =IFERROR(ISEVEN(DK43/2),"") ->  | DM43: E8 | DN43: FALSE | DP43: =IFERROR(ISEVEN(DO43/2),"") ->  | DQ43: F8 | DR43: FALSE | DT43: =IFERROR(ISEVEN(DS43/2),"") ->  | DU43: G8 | DV43: FALSE | DX43: =IFERROR(ISEVEN(DW43/2),"") ->  | DY43: H8
B44: FALSE | E44: A1 | F44: FALSE | I44: B1 | J44: FALSE | M44: C1 | N44: FALSE | Q44: D1 | R44: FALSE | U44: E1 | V44: FALSE | Y44: F1 | Z44: FALSE | AC44: G1 | AD44: FALSE | AG44: H1 | AH44: FALSE | AJ44: =IFERROR(ISEVEN(AI44/2),"") ->  | AK44: A2 | AL44: FALSE | AN44: =IFERROR(ISEVEN(AM44/2),"") ->  | AO44: B2 | AP44: FALSE | AR44: =IFERROR(ISEVEN(AQ44/2),"") ->  | AS44: C2 | AT44: FALSE | AV44: =IFERROR(ISEVEN(AU44/2),"") ->  | AW44: D2 | AX44: FALSE | AZ44: =IFERROR(ISEVEN(AY44/2),"") ->  | BA44: E2 | BB44: FALSE | BD44: =IFERROR(ISEVEN(BC44/2),"") ->  | BE44: F2 | BF44: FALSE | BH44: =IFERROR(ISEVEN(BG44/2),"") ->  | BI44: G2 | BJ44: FALSE | BM44: H2 | BN44: FALSE | BP44: =IFERROR(ISEVEN(BO44/2),"") ->  | BQ44: A7 | BR44: FALSE | BT44: =IFERROR(ISEVEN(BS44/2),"") ->  | BU44: B7 | BV44: FALSE | BX44: =IFERROR(ISEVEN(BW44/2),"") ->  | BY44: C7 | BZ44: FALSE | CB44: =IFERROR(ISEVEN(CA44/2),"") ->  | CC44: D7 | CD44: FALSE | CF44: =IFERROR(ISEVEN(CE44/2),"") ->  | CG44: E7 | CH44: FALSE | CJ44: =IFERROR(ISEVEN(CI44/2),"") ->  | CK44: F7 | CL44: FALSE | CN44: =IFERROR(ISEVEN(CM44/2),"") ->  | CO44: G7 | CP44: FALSE | CR44: =IFERROR(ISEVEN(CQ44/2),"") ->  | CS44: H7 | CT44: FALSE | CV44: =IFERROR(ISEVEN(CU44/2),"") ->  | CW44: A8 | CX44: FALSE | CZ44: =IFERROR(ISEVEN(CY44/2),"") ->  | DA44: B8 | DB44: FALSE | DD44: =IFERROR(ISEVEN(DC44/2),"") ->  | DE44: C8 | DF44: FALSE | DH44: =IFERROR(ISEVEN(DG44/2),"") ->  | DI44: D8 | DJ44: FALSE | DL44: =IFERROR(ISEVEN(DK44/2),"") ->  | DM44: E8 | DN44: FALSE | DP44: =IFERROR(ISEVEN(DO44/2),"") ->  | DQ44: F8 | DR44: FALSE | DT44: =IFERROR(ISEVEN(DS44/2),"") ->  | DU44: G8 | DV44: FALSE | DX44: =IFERROR(ISEVEN(DW44/2),"") ->  | DY44: H8
B45: FALSE | E45: A1 | F45: FALSE | I45: B1 | J45: FALSE | M45: C1 | N45: FALSE | Q45: D1 | R45: FALSE | U45: E1 | V45: FALSE | Y45: F1 | Z45: FALSE | AC45: G1 | AD45: FALSE | AG45: H1 | AH45: FALSE | AJ45: =IFERROR(ISEVEN(AI45/2),"") ->  | AK45: A2 | AL45: FALSE | AN45: =IFERROR(ISEVEN(AM45/2),"") ->  | AO45: B2 | AP45: FALSE | AR45: =IFERROR(ISEVEN(AQ45/2),"") ->  | AS45: C2 | AT45: FALSE | AV45: =IFERROR(ISEVEN(AU45/2),"") ->  | AW45: D2 | AX45: FALSE | AZ45: =IFERROR(ISEVEN(AY45/2),"") ->  | BA45: E2 | BB45: FALSE | BD45: =IFERROR(ISEVEN(BC45/2),"") ->  | BE45: F2 | BF45: FALSE | BH45: =IFERROR(ISEVEN(BG45/2),"") ->  | BI45: G2 | BJ45: FALSE | BM45: H2 | BN45: FALSE | BP45: =IFERROR(ISEVEN(BO45/2),"") ->  | BQ45: A7 | BR45: FALSE | BT45: =IFERROR(ISEVEN(BS45/2),"") ->  | BU45: B7 | BV45: FALSE | BX45: =IFERROR(ISEVEN(BW45/2),"") ->  | BY45: C7 | BZ45: FALSE | CB45: =IFERROR(ISEVEN(CA45/2),"") ->  | CC45: D7 | CD45: FALSE | CF45: =IFERROR(ISEVEN(CE45/2),"") ->  | CG45: E7 | CH45: FALSE | CJ45: =IFERROR(ISEVEN(CI45/2),"") ->  | CK45: F7 | CL45: FALSE | CN45: =IFERROR(ISEVEN(CM45/2),"") ->  | CO45: G7 | CP45: FALSE | CR45: =IFERROR(ISEVEN(CQ45/2),"") ->  | CS45: H7 | CT45: FALSE | CV45: =IFERROR(ISEVEN(CU45/2),"") ->  | CW45: A8 | CX45: FALSE | CZ45: =IFERROR(ISEVEN(CY45/2),"") ->  | DA45: B8 | DB45: FALSE | DD45: =IFERROR(ISEVEN(DC45/2),"") ->  | DE45: C8 | DF45: FALSE | DH45: =IFERROR(ISEVEN(DG45/2),"") ->  | DI45: D8 | DJ45: FALSE | DL45: =IFERROR(ISEVEN(DK45/2),"") ->  | DM45: E8 | DN45: FALSE | DP45: =IFERROR(ISEVEN(DO45/2),"") ->  | DQ45: F8 | DR45: FALSE | DT45: =IFERROR(ISEVEN(DS45/2),"") ->  | DU45: G8 | DV45: FALSE | DX45: =IFERROR(ISEVEN(DW45/2),"") ->  | DY45: H8
B46: FALSE | E46: A1 | F46: FALSE | I46: B1 | J46: FALSE | M46: C1 | N46: FALSE | Q46: D1 | R46: FALSE | U46: E1 | V46: FALSE | Y46: F1 | Z46: FALSE | AC46: G1 | AD46: FALSE | AG46: H1 | AH46: FALSE | AJ46: =IFERROR(ISEVEN(AI46/2),"") ->  | AK46: A2 | AL46: FALSE | AN46: =IFERROR(ISEVEN(AM46/2),"") ->  | AO46: B2 | AP46: FALSE | AR46: =IFERROR(ISEVEN(AQ46/2),"") ->  | AS46: C2 | AT46: FALSE | AV46: =IFERROR(ISEVEN(AU46/2),"") ->  | AW46: D2 | AX46: FALSE | AZ46: =IFERROR(ISEVEN(AY46/2),"") ->  | BA46: E2 | BB46: FALSE | BD46: =IFERROR(ISEVEN(BC46/2),"") ->  | BE46: F2 | BF46: FALSE | BH46: =IFERROR(ISEVEN(BG46/2),"") ->  | BI46: G2 | BJ46: FALSE | BM46: H2 | BN46: FALSE | BP46: =IFERROR(ISEVEN(BO46/2),"") ->  | BQ46: A7 | BR46: FALSE | BT46: =IFERROR(ISEVEN(BS46/2),"") ->  | BU46: B7 | BV46: FALSE | BX46: =IFERROR(ISEVEN(BW46/2),"") ->  | BY46: C7 | BZ46: FALSE | CB46: =IFERROR(ISEVEN(CA46/2),"") ->  | CC46: D7 | CD46: FALSE | CF46: =IFERROR(ISEVEN(CE46/2),"") ->  | CG46: E7 | CH46: FALSE | CJ46: =IFERROR(ISEVEN(CI46/2),"") ->  | CK46: F7 | CL46: FALSE | CN46: =IFERROR(ISEVEN(CM46/2),"") ->  | CO46: G7 | CP46: FALSE | CR46: =IFERROR(ISEVEN(CQ46/2),"") ->  | CS46: H7 | CT46: FALSE | CV46: =IFERROR(ISEVEN(CU46/2),"") ->  | CW46: A8 | CX46: FALSE | CZ46: =IFERROR(ISEVEN(CY46/2),"") ->  | DA46: B8 | DB46: FALSE | DD46: =IFERROR(ISEVEN(DC46/2),"") ->  | DE46: C8 | DF46: FALSE | DH46: =IFERROR(ISEVEN(DG46/2),"") ->  | DI46: D8 | DJ46: FALSE | DL46: =IFERROR(ISEVEN(DK46/2),"") ->  | DM46: E8 | DN46: FALSE | DP46: =IFERROR(ISEVEN(DO46/2),"") ->  | DQ46: F8 | DR46: FALSE | DT46: =IFERROR(ISEVEN(DS46/2),"") ->  | DU46: G8 | DV46: FALSE | DX46: =IFERROR(ISEVEN(DW46/2),"") ->  | DY46: H8
B47: FALSE | E47: A1 | F47: FALSE | I47: B1 | J47: FALSE | M47: C1 | N47: FALSE | Q47: D1 | R47: FALSE | U47: E1 | V47: FALSE | Y47: F1 | Z47: FALSE | AC47: G1 | AD47: FALSE | AG47: H1 | AH47: FALSE | AJ47: =IFERROR(ISEVEN(AI47/2),"") ->  | AK47: A2 | AL47: FALSE | AN47: =IFERROR(ISEVEN(AM47/2),"") ->  | AO47: B2 | AP47: FALSE | AR47: =IFERROR(ISEVEN(AQ47/2),"") ->  | AS47: C2 | AT47: FALSE | AV47: =IFERROR(ISEVEN(AU47/2),"") ->  | AW47: D2 | AX47: FALSE | AZ47: =IFERROR(ISEVEN(AY47/2),"") ->  | BA47: E2 | BB47: FALSE | BD47: =IFERROR(ISEVEN(BC47/2),"") ->  | BE47: F2 | BF47: FALSE | BH47: =IFERROR(ISEVEN(BG47/2),"") ->  | BI47: G2 | BJ47: FALSE | BM47: H2 | BN47: FALSE | BP47: =IFERROR(ISEVEN(BO47/2),"") ->  | BQ47: A7 | BR47: FALSE | BT47: =IFERROR(ISEVEN(BS47/2),"") ->  | BU47: B7 | BV47: FALSE | BX47: =IFERROR(ISEVEN(BW47/2),"") ->  | BY47: C7 | BZ47: FALSE | CB47: =IFERROR(ISEVEN(CA47/2),"") ->  | CC47: D7 | CD47: FALSE | CF47: =IFERROR(ISEVEN(CE47/2),"") ->  | CG47: E7 | CH47: FALSE | CJ47: =IFERROR(ISEVEN(CI47/2),"") ->  | CK47: F7 | CL47: FALSE | CN47: =IFERROR(ISEVEN(CM47/2),"") ->  | CO47: G7 | CP47: FALSE | CR47: =IFERROR(ISEVEN(CQ47/2),"") ->  | CS47: H7 | CT47: FALSE | CV47: =IFERROR(ISEVEN(CU47/2),"") ->  | CW47: A8 | CX47: FALSE | CZ47: =IFERROR(ISEVEN(CY47/2),"") ->  | DA47: B8 | DB47: FALSE | DD47: =IFERROR(ISEVEN(DC47/2),"") ->  | DE47: C8 | DF47: FALSE | DH47: =IFERROR(ISEVEN(DG47/2),"") ->  | DI47: D8 | DJ47: FALSE | DL47: =IFERROR(ISEVEN(DK47/2),"") ->  | DM47: E8 | DN47: FALSE | DP47: =IFERROR(ISEVEN(DO47/2),"") ->  | DQ47: F8 | DR47: FALSE | DT47: =IFERROR(ISEVEN(DS47/2),"") ->  | DU47: G8 | DV47: FALSE | DX47: =IFERROR(ISEVEN(DW47/2),"") ->  | DY47: H8
B48: FALSE | E48: A1 | F48: FALSE | I48: B1 | J48: FALSE | M48: C1 | N48: FALSE | Q48: D1 | R48: FALSE | U48: E1 | V48: FALSE | Y48: F1 | Z48: FALSE | AC48: G1 | AD48: FALSE | AG48: H1 | AH48: FALSE | AJ48: =IFERROR(ISEVEN(AI48/2),"") ->  | AK48: A2 | AL48: FALSE | AN48: =IFERROR(ISEVEN(AM48/2),"") ->  | AO48: B2 | AP48: FALSE | AR48: =IFERROR(ISEVEN(AQ48/2),"") ->  | AS48: C2 | AT48: FALSE | AV48: =IFERROR(ISEVEN(AU48/2),"") ->  | AW48: D2 | AX48: FALSE | AZ48: =IFERROR(ISEVEN(AY48/2),"") ->  | BA48: E2 | BB48: FALSE | BD48: =IFERROR(ISEVEN(BC48/2),"") ->  | BE48: F2 | BF48: FALSE | BH48: =IFERROR(ISEVEN(BG48/2),"") ->  | BI48: G2 | BJ48: FALSE | BM48: H2 | BN48: FALSE | BP48: =IFERROR(ISEVEN(BO48/2),"") ->  | BQ48: A7 | BR48: FALSE | BT48: =IFERROR(ISEVEN(BS48/2),"") ->  | BU48: B7 | BV48: FALSE | BX48: =IFERROR(ISEVEN(BW48/2),"") ->  | BY48: C7 | BZ48: FALSE | CB48: =IFERROR(ISEVEN(CA48/2),"") ->  | CC48: D7 | CD48: FALSE | CF48: =IFERROR(ISEVEN(CE48/2),"") ->  | CG48: E7 | CH48: FALSE | CJ48: =IFERROR(ISEVEN(CI48/2),"") ->  | CK48: F7 | CL48: FALSE | CN48: =IFERROR(ISEVEN(CM48/2),"") ->  | CO48: G7 | CP48: FALSE | CR48: =IFERROR(ISEVEN(CQ48/2),"") ->  | CS48: H7 | CT48: FALSE | CV48: =IFERROR(ISEVEN(CU48/2),"") ->  | CW48: A8 | CX48: FALSE | CZ48: =IFERROR(ISEVEN(CY48/2),"") ->  | DA48: B8 | DB48: FALSE | DD48: =IFERROR(ISEVEN(DC48/2),"") ->  | DE48: C8 | DF48: FALSE | DH48: =IFERROR(ISEVEN(DG48/2),"") ->  | DI48: D8 | DJ48: FALSE | DL48: =IFERROR(ISEVEN(DK48/2),"") ->  | DM48: E8 | DN48: FALSE | DP48: =IFERROR(ISEVEN(DO48/2),"") ->  | DQ48: F8 | DR48: FALSE | DT48: =IFERROR(ISEVEN(DS48/2),"") ->  | DU48: G8 | DV48: FALSE | DX48: =IFERROR(ISEVEN(DW48/2),"") ->  | DY48: H8
B49: FALSE | E49: A1 | F49: FALSE | I49: B1 | J49: FALSE | M49: C1 | N49: FALSE | Q49: D1 | R49: FALSE | U49: E1 | V49: FALSE | Y49: F1 | Z49: FALSE | AC49: G1 | AD49: FALSE | AG49: H1 | AH49: FALSE | AJ49: =IFERROR(ISEVEN(AI49/2),"") ->  | AK49: A2 | AL49: FALSE | AN49: =IFERROR(ISEVEN(AM49/2),"") ->  | AO49: B2 | AP49: FALSE | AR49: =IFERROR(ISEVEN(AQ49/2),"") ->  | AS49: C2 | AT49: FALSE | AV49: =IFERROR(ISEVEN(AU49/2),"") ->  | AW49: D2 | AX49: FALSE | AZ49: =IFERROR(ISEVEN(AY49/2),"") ->  | BA49: E2 | BB49: FALSE | BD49: =IFERROR(ISEVEN(BC49/2),"") ->  | BE49: F2 | BF49: FALSE | BH49: =IFERROR(ISEVEN(BG49/2),"") ->  | BI49: G2 | BJ49: FALSE | BM49: H2 | BN49: FALSE | BP49: =IFERROR(ISEVEN(BO49/2),"") ->  | BQ49: A7 | BR49: FALSE | BT49: =IFERROR(ISEVEN(BS49/2),"") ->  | BU49: B7 | BV49: FALSE | BX49: =IFERROR(ISEVEN(BW49/2),"") ->  | BY49: C7 | BZ49: FALSE | CB49: =IFERROR(ISEVEN(CA49/2),"") ->  | CC49: D7 | CD49: FALSE | CF49: =IFERROR(ISEVEN(CE49/2),"") ->  | CG49: E7 | CH49: FALSE | CJ49: =IFERROR(ISEVEN(CI49/2),"") ->  | CK49: F7 | CL49: FALSE | CN49: =IFERROR(ISEVEN(CM49/2),"") ->  | CO49: G7 | CP49: FALSE | CR49: =IFERROR(ISEVEN(CQ49/2),"") ->  | CS49: H7 | CT49: FALSE | CV49: =IFERROR(ISEVEN(CU49/2),"") ->  | CW49: A8 | CX49: FALSE | CZ49: =IFERROR(ISEVEN(CY49/2),"") ->  | DA49: B8 | DB49: FALSE | DD49: =IFERROR(ISEVEN(DC49/2),"") ->  | DE49: C8 | DF49: FALSE | DH49: =IFERROR(ISEVEN(DG49/2),"") ->  | DI49: D8 | DJ49: FALSE | DL49: =IFERROR(ISEVEN(DK49/2),"") ->  | DM49: E8 | DN49: FALSE | DP49: =IFERROR(ISEVEN(DO49/2),"") ->  | DQ49: F8 | DR49: FALSE | DT49: =IFERROR(ISEVEN(DS49/2),"") ->  | DU49: G8 | DV49: FALSE | DX49: =IFERROR(ISEVEN(DW49/2),"") ->  | DY49: H8
B50: FALSE | E50: A1 | F50: FALSE | I50: B1 | J50: FALSE | M50: C1 | N50: FALSE | Q50: D1 | R50: FALSE | U50: E1 | V50: FALSE | Y50: F1 | Z50: FALSE | AC50: G1 | AD50: FALSE | AG50: H1 | AH50: FALSE | AJ50: =IFERROR(ISEVEN(AI50/2),"") ->  | AK50: A2 | AL50: FALSE | AN50: =IFERROR(ISEVEN(AM50/2),"") ->  | AO50: B2 | AP50: FALSE | AR50: =IFERROR(ISEVEN(AQ50/2),"") ->  | AS50: C2 | AT50: FALSE | AV50: =IFERROR(ISEVEN(AU50/2),"") ->  | AW50: D2 | AX50: FALSE | AZ50: =IFERROR(ISEVEN(AY50/2),"") ->  | BA50: E2 | BB50: FALSE | BD50: =IFERROR(ISEVEN(BC50/2),"") ->  | BE50: F2 | BF50: FALSE | BH50: =IFERROR(ISEVEN(BG50/2),"") ->  | BI50: G2 | BJ50: FALSE | BM50: H2 | BN50: FALSE | BP50: =IFERROR(ISEVEN(BO50/2),"") ->  | BQ50: A7 | BR50: FALSE | BT50: =IFERROR(ISEVEN(BS50/2),"") ->  | BU50: B7 | BV50: FALSE | BX50: =IFERROR(ISEVEN(BW50/2),"") ->  | BY50: C7 | BZ50: FALSE | CB50: =IFERROR(ISEVEN(CA50/2),"") ->  | CC50: D7 | CD50: FALSE | CF50: =IFERROR(ISEVEN(CE50/2),"") ->  | CG50: E7 | CH50: FALSE | CJ50: =IFERROR(ISEVEN(CI50/2),"") ->  | CK50: F7 | CL50: FALSE | CN50: =IFERROR(ISEVEN(CM50/2),"") ->  | CO50: G7 | CP50: FALSE | CR50: =IFERROR(ISEVEN(CQ50/2),"") ->  | CS50: H7 | CT50: FALSE | CV50: =IFERROR(ISEVEN(CU50/2),"") ->  | CW50: A8 | CX50: FALSE | CZ50: =IFERROR(ISEVEN(CY50/2),"") ->  | DA50: B8 | DB50: FALSE | DD50: =IFERROR(ISEVEN(DC50/2),"") ->  | DE50: C8 | DF50: FALSE | DH50: =IFERROR(ISEVEN(DG50/2),"") ->  | DI50: D8 | DJ50: FALSE | DL50: =IFERROR(ISEVEN(DK50/2),"") ->  | DM50: E8 | DN50: FALSE | DP50: =IFERROR(ISEVEN(DO50/2),"") ->  | DQ50: F8 | DR50: FALSE | DT50: =IFERROR(ISEVEN(DS50/2),"") ->  | DU50: G8 | DV50: FALSE | DX50: =IFERROR(ISEVEN(DW50/2),"") ->  | DY50: H8
B51: FALSE | E51: A1 | F51: FALSE | I51: B1 | J51: FALSE | M51: C1 | N51: FALSE | Q51: D1 | R51: FALSE | U51: E1 | V51: FALSE | Y51: F1 | Z51: FALSE | AC51: G1 | AD51: FALSE | AG51: H1 | AH51: FALSE | AJ51: =IFERROR(ISEVEN(AI51/2),"") ->  | AK51: A2 | AL51: FALSE | AN51: =IFERROR(ISEVEN(AM51/2),"") ->  | AO51: B2 | AP51: FALSE | AR51: =IFERROR(ISEVEN(AQ51/2),"") ->  | AS51: C2 | AT51: FALSE | AV51: =IFERROR(ISEVEN(AU51/2),"") ->  | AW51: D2 | AX51: FALSE | AZ51: =IFERROR(ISEVEN(AY51/2),"") ->  | BA51: E2 | BB51: FALSE | BD51: =IFERROR(ISEVEN(BC51/2),"") ->  | BE51: F2 | BF51: FALSE | BH51: =IFERROR(ISEVEN(BG51/2),"") ->  | BI51: G2 | BJ51: FALSE | BM51: H2 | BN51: FALSE | BP51: =IFERROR(ISEVEN(BO51/2),"") ->  | BQ51: A7 | BR51: FALSE | BT51: =IFERROR(ISEVEN(BS51/2),"") ->  | BU51: B7 | BV51: FALSE | BX51: =IFERROR(ISEVEN(BW51/2),"") ->  | BY51: C7 | BZ51: FALSE | CB51: =IFERROR(ISEVEN(CA51/2),"") ->  | CC51: D7 | CD51: FALSE | CF51: =IFERROR(ISEVEN(CE51/2),"") ->  | CG51: E7 | CH51: FALSE | CJ51: =IFERROR(ISEVEN(CI51/2),"") ->  | CK51: F7 | CL51: FALSE | CN51: =IFERROR(ISEVEN(CM51/2),"") ->  | CO51: G7 | CP51: FALSE | CR51: =IFERROR(ISEVEN(CQ51/2),"") ->  | CS51: H7 | CT51: FALSE | CV51: =IFERROR(ISEVEN(CU51/2),"") ->  | CW51: A8 | CX51: FALSE | CZ51: =IFERROR(ISEVEN(CY51/2),"") ->  | DA51: B8 | DB51: FALSE | DD51: =IFERROR(ISEVEN(DC51/2),"") ->  | DE51: C8 | DF51: FALSE | DH51: =IFERROR(ISEVEN(DG51/2),"") ->  | DI51: D8 | DJ51: FALSE | DL51: =IFERROR(ISEVEN(DK51/2),"") ->  | DM51: E8 | DN51: FALSE | DP51: =IFERROR(ISEVEN(DO51/2),"") ->  | DQ51: F8 | DR51: FALSE | DT51: =IFERROR(ISEVEN(DS51/2),"") ->  | DU51: G8 | DV51: FALSE | DX51: =IFERROR(ISEVEN(DW51/2),"") ->  | DY51: H8
B52: FALSE | E52: A1 | F52: FALSE | I52: B1 | J52: FALSE | M52: C1 | N52: FALSE | Q52: D1 | R52: FALSE | U52: E1 | V52: FALSE | Y52: F1 | Z52: FALSE | AC52: G1 | AD52: FALSE | AG52: H1 | AH52: FALSE | AJ52: =IFERROR(ISEVEN(AI52/2),"") ->  | AK52: A2 | AL52: FALSE | AN52: =IFERROR(ISEVEN(AM52/2),"") ->  | AO52: B2 | AP52: FALSE | AR52: =IFERROR(ISEVEN(AQ52/2),"") ->  | AS52: C2 | AT52: FALSE | AV52: =IFERROR(ISEVEN(AU52/2),"") ->  | AW52: D2 | AX52: FALSE | AZ52: =IFERROR(ISEVEN(AY52/2),"") ->  | BA52: E2 | BB52: FALSE | BD52: =IFERROR(ISEVEN(BC52/2),"") ->  | BE52: F2 | BF52: FALSE | BH52: =IFERROR(ISEVEN(BG52/2),"") ->  | BI52: G2 | BJ52: FALSE | BM52: H2 | BN52: FALSE | BP52: =IFERROR(ISEVEN(BO52/2),"") ->  | BQ52: A7 | BR52: FALSE | BT52: =IFERROR(ISEVEN(BS52/2),"") ->  | BU52: B7 | BV52: FALSE | BX52: =IFERROR(ISEVEN(BW52/2),"") ->  | BY52: C7 | BZ52: FALSE | CB52: =IFERROR(ISEVEN(CA52/2),"") ->  | CC52: D7 | CD52: FALSE | CF52: =IFERROR(ISEVEN(CE52/2),"") ->  | CG52: E7 | CH52: FALSE | CJ52: =IFERROR(ISEVEN(CI52/2),"") ->  | CK52: F7 | CL52: FALSE | CN52: =IFERROR(ISEVEN(CM52/2),"") ->  | CO52: G7 | CP52: FALSE | CR52: =IFERROR(ISEVEN(CQ52/2),"") ->  | CS52: H7 | CT52: FALSE | CV52: =IFERROR(ISEVEN(CU52/2),"") ->  | CW52: A8 | CX52: FALSE | CZ52: =IFERROR(ISEVEN(CY52/2),"") ->  | DA52: B8 | DB52: FALSE | DD52: =IFERROR(ISEVEN(DC52/2),"") ->  | DE52: C8 | DF52: FALSE | DH52: =IFERROR(ISEVEN(DG52/2),"") ->  | DI52: D8 | DJ52: FALSE | DL52: =IFERROR(ISEVEN(DK52/2),"") ->  | DM52: E8 | DN52: FALSE | DP52: =IFERROR(ISEVEN(DO52/2),"") ->  | DQ52: F8 | DR52: FALSE | DT52: =IFERROR(ISEVEN(DS52/2),"") ->  | DU52: G8 | DV52: FALSE | DX52: =IFERROR(ISEVEN(DW52/2),"") ->  | DY52: H8
B53: FALSE | E53: A1 | F53: FALSE | I53: B1 | J53: FALSE | M53: C1 | N53: FALSE | Q53: D1 | R53: FALSE | U53: E1 | V53: FALSE | Y53: F1 | Z53: FALSE | AC53: G1 | AD53: FALSE | AG53: H1 | AH53: FALSE | AJ53: =IFERROR(ISEVEN(AI53/2),"") ->  | AK53: A2 | AL53: FALSE | AN53: =IFERROR(ISEVEN(AM53/2),"") ->  | AO53: B2 | AP53: FALSE | AR53: =IFERROR(ISEVEN(AQ53/2),"") ->  | AS53: C2 | AT53: FALSE | AV53: =IFERROR(ISEVEN(AU53/2),"") ->  | AW53: D2 | AX53: FALSE | AZ53: =IFERROR(ISEVEN(AY53/2),"") ->  | BA53: E2 | BB53: FALSE | BD53: =IFERROR(ISEVEN(BC53/2),"") ->  | BE53: F2 | BF53: FALSE | BH53: =IFERROR(ISEVEN(BG53/2),"") ->  | BI53: G2 | BJ53: FALSE | BM53: H2 | BN53: FALSE | BP53: =IFERROR(ISEVEN(BO53/2),"") ->  | BQ53: A7 | BR53: FALSE | BT53: =IFERROR(ISEVEN(BS53/2),"") ->  | BU53: B7 | BV53: FALSE | BX53: =IFERROR(ISEVEN(BW53/2),"") ->  | BY53: C7 | BZ53: FALSE | CB53: =IFERROR(ISEVEN(CA53/2),"") ->  | CC53: D7 | CD53: FALSE | CF53: =IFERROR(ISEVEN(CE53/2),"") ->  | CG53: E7 | CH53: FALSE | CJ53: =IFERROR(ISEVEN(CI53/2),"") ->  | CK53: F7 | CL53: FALSE | CN53: =IFERROR(ISEVEN(CM53/2),"") ->  | CO53: G7 | CP53: FALSE | CR53: =IFERROR(ISEVEN(CQ53/2),"") ->  | CS53: H7 | CT53: FALSE | CV53: =IFERROR(ISEVEN(CU53/2),"") ->  | CW53: A8 | CX53: FALSE | CZ53: =IFERROR(ISEVEN(CY53/2),"") ->  | DA53: B8 | DB53: FALSE | DD53: =IFERROR(ISEVEN(DC53/2),"") ->  | DE53: C8 | DF53: FALSE | DH53: =IFERROR(ISEVEN(DG53/2),"") ->  | DI53: D8 | DJ53: FALSE | DL53: =IFERROR(ISEVEN(DK53/2),"") ->  | DM53: E8 | DN53: FALSE | DP53: =IFERROR(ISEVEN(DO53/2),"") ->  | DQ53: F8 | DR53: FALSE | DT53: =IFERROR(ISEVEN(DS53/2),"") ->  | DU53: G8 | DV53: FALSE | DX53: =IFERROR(ISEVEN(DW53/2),"") ->  | DY53: H8
B54: FALSE | E54: A1 | F54: FALSE | I54: B1 | J54: FALSE | M54: C1 | N54: FALSE | Q54: D1 | R54: FALSE | U54: E1 | V54: FALSE | Y54: F1 | Z54: FALSE | AC54: G1 | AD54: FALSE | AG54: H1 | AH54: FALSE | AJ54: =IFERROR(ISEVEN(AI54/2),"") ->  | AK54: A2 | AL54: FALSE | AN54: =IFERROR(ISEVEN(AM54/2),"") ->  | AO54: B2 | AP54: FALSE | AR54: =IFERROR(ISEVEN(AQ54/2),"") ->  | AS54: C2 | AT54: FALSE | AV54: =IFERROR(ISEVEN(AU54/2),"") ->  | AW54: D2 | AX54: FALSE | AZ54: =IFERROR(ISEVEN(AY54/2),"") ->  | BA54: E2 | BB54: FALSE | BD54: =IFERROR(ISEVEN(BC54/2),"") ->  | BE54: F2 | BF54: FALSE | BH54: =IFERROR(ISEVEN(BG54/2),"") ->  | BI54: G2 | BJ54: FALSE | BM54: H2 | BN54: FALSE | BP54: =IFERROR(ISEVEN(BO54/2),"") ->  | BQ54: A7 | BR54: FALSE | BT54: =IFERROR(ISEVEN(BS54/2),"") ->  | BU54: B7 | BV54: FALSE | BX54: =IFERROR(ISEVEN(BW54/2),"") ->  | BY54: C7 | BZ54: FALSE | CB54: =IFERROR(ISEVEN(CA54/2),"") ->  | CC54: D7 | CD54: FALSE | CF54: =IFERROR(ISEVEN(CE54/2),"") ->  | CG54: E7 | CH54: FALSE | CJ54: =IFERROR(ISEVEN(CI54/2),"") ->  | CK54: F7 | CL54: FALSE | CN54: =IFERROR(ISEVEN(CM54/2),"") ->  | CO54: G7 | CP54: FALSE | CR54: =IFERROR(ISEVEN(CQ54/2),"") ->  | CS54: H7 | CT54: FALSE | CV54: =IFERROR(ISEVEN(CU54/2),"") ->  | CW54: A8 | CX54: FALSE | CZ54: =IFERROR(ISEVEN(CY54/2),"") ->  | DA54: B8 | DB54: FALSE | DD54: =IFERROR(ISEVEN(DC54/2),"") ->  | DE54: C8 | DF54: FALSE | DH54: =IFERROR(ISEVEN(DG54/2),"") ->  | DI54: D8 | DJ54: FALSE | DL54: =IFERROR(ISEVEN(DK54/2),"") ->  | DM54: E8 | DN54: FALSE | DP54: =IFERROR(ISEVEN(DO54/2),"") ->  | DQ54: F8 | DR54: FALSE | DT54: =IFERROR(ISEVEN(DS54/2),"") ->  | DU54: G8 | DV54: FALSE | DX54: =IFERROR(ISEVEN(DW54/2),"") ->  | DY54: H8
B55: FALSE | E55: A1 | F55: FALSE | I55: B1 | J55: FALSE | M55: C1 | N55: FALSE | Q55: D1 | R55: FALSE | U55: E1 | V55: FALSE | Y55: F1 | Z55: FALSE | AC55: G1 | AD55: FALSE | AG55: H1 | AH55: FALSE | AJ55: =IFERROR(ISEVEN(AI55/2),"") ->  | AK55: A2 | AL55: FALSE | AN55: =IFERROR(ISEVEN(AM55/2),"") ->  | AO55: B2 | AP55: FALSE | AR55: =IFERROR(ISEVEN(AQ55/2),"") ->  | AS55: C2 | AT55: FALSE | AV55: =IFERROR(ISEVEN(AU55/2),"") ->  | AW55: D2 | AX55: FALSE | AZ55: =IFERROR(ISEVEN(AY55/2),"") ->  | BA55: E2 | BB55: FALSE | BD55: =IFERROR(ISEVEN(BC55/2),"") ->  | BE55: F2 | BF55: FALSE | BH55: =IFERROR(ISEVEN(BG55/2),"") ->  | BI55: G2 | BJ55: FALSE | BM55: H2 | BN55: FALSE | BP55: =IFERROR(ISEVEN(BO55/2),"") ->  | BQ55: A7 | BR55: FALSE | BT55: =IFERROR(ISEVEN(BS55/2),"") ->  | BU55: B7 | BV55: FALSE | BX55: =IFERROR(ISEVEN(BW55/2),"") ->  | BY55: C7 | BZ55: FALSE | CB55: =IFERROR(ISEVEN(CA55/2),"") ->  | CC55: D7 | CD55: FALSE | CF55: =IFERROR(ISEVEN(CE55/2),"") ->  | CG55: E7 | CH55: FALSE | CJ55: =IFERROR(ISEVEN(CI55/2),"") ->  | CK55: F7 | CL55: FALSE | CN55: =IFERROR(ISEVEN(CM55/2),"") ->  | CO55: G7 | CP55: FALSE | CR55: =IFERROR(ISEVEN(CQ55/2),"") ->  | CS55: H7 | CT55: FALSE | CV55: =IFERROR(ISEVEN(CU55/2),"") ->  | CW55: A8 | CX55: FALSE | CZ55: =IFERROR(ISEVEN(CY55/2),"") ->  | DA55: B8 | DB55: FALSE | DD55: =IFERROR(ISEVEN(DC55/2),"") ->  | DE55: C8 | DF55: FALSE | DH55: =IFERROR(ISEVEN(DG55/2),"") ->  | DI55: D8 | DJ55: FALSE | DL55: =IFERROR(ISEVEN(DK55/2),"") ->  | DM55: E8 | DN55: FALSE | DP55: =IFERROR(ISEVEN(DO55/2),"") ->  | DQ55: F8 | DR55: FALSE | DT55: =IFERROR(ISEVEN(DS55/2),"") ->  | DU55: G8 | DV55: FALSE | DX55: =IFERROR(ISEVEN(DW55/2),"") ->  | DY55: H8
B56: FALSE | E56: A1 | F56: FALSE | I56: B1 | J56: FALSE | M56: C1 | N56: FALSE | Q56: D1 | R56: FALSE | U56: E1 | V56: FALSE | Y56: F1 | Z56: FALSE | AC56: G1 | AD56: FALSE | AG56: H1 | AH56: FALSE | AJ56: =IFERROR(ISEVEN(AI56/2),"") ->  | AK56: A2 | AL56: FALSE | AN56: =IFERROR(ISEVEN(AM56/2),"") ->  | AO56: B2 | AP56: FALSE | AR56: =IFERROR(ISEVEN(AQ56/2),"") ->  | AS56: C2 | AT56: FALSE | AV56: =IFERROR(ISEVEN(AU56/2),"") ->  | AW56: D2 | AX56: FALSE | AZ56: =IFERROR(ISEVEN(AY56/2),"") ->  | BA56: E2 | BB56: FALSE | BD56: =IFERROR(ISEVEN(BC56/2),"") ->  | BE56: F2 | BF56: FALSE | BH56: =IFERROR(ISEVEN(BG56/2),"") ->  | BI56: G2 | BJ56: FALSE | BM56: H2 | BN56: FALSE | BP56: =IFERROR(ISEVEN(BO56/2),"") ->  | BQ56: A7 | BR56: FALSE | BT56: =IFERROR(ISEVEN(BS56/2),"") ->  | BU56: B7 | BV56: FALSE | BX56: =IFERROR(ISEVEN(BW56/2),"") ->  | BY56: C7 | BZ56: FALSE | CB56: =IFERROR(ISEVEN(CA56/2),"") ->  | CC56: D7 | CD56: FALSE | CF56: =IFERROR(ISEVEN(CE56/2),"") ->  | CG56: E7 | CH56: FALSE | CJ56: =IFERROR(ISEVEN(CI56/2),"") ->  | CK56: F7 | CL56: FALSE | CN56: =IFERROR(ISEVEN(CM56/2),"") ->  | CO56: G7 | CP56: FALSE | CR56: =IFERROR(ISEVEN(CQ56/2),"") ->  | CS56: H7 | CT56: FALSE | CV56: =IFERROR(ISEVEN(CU56/2),"") ->  | CW56: A8 | CX56: FALSE | CZ56: =IFERROR(ISEVEN(CY56/2),"") ->  | DA56: B8 | DB56: FALSE | DD56: =IFERROR(ISEVEN(DC56/2),"") ->  | DE56: C8 | DF56: FALSE | DH56: =IFERROR(ISEVEN(DG56/2),"") ->  | DI56: D8 | DJ56: FALSE | DL56: =IFERROR(ISEVEN(DK56/2),"") ->  | DM56: E8 | DN56: FALSE | DP56: =IFERROR(ISEVEN(DO56/2),"") ->  | DQ56: F8 | DR56: FALSE | DT56: =IFERROR(ISEVEN(DS56/2),"") ->  | DU56: G8 | DV56: FALSE | DX56: =IFERROR(ISEVEN(DW56/2),"") ->  | DY56: H8
B57: FALSE | E57: A1 | F57: FALSE | I57: B1 | J57: FALSE | M57: C1 | N57: FALSE | Q57: D1 | R57: FALSE | U57: E1 | V57: FALSE | Y57: F1 | Z57: FALSE | AC57: G1 | AD57: FALSE | AG57: H1 | AH57: FALSE | AJ57: =IFERROR(ISEVEN(AI57/2),"") ->  | AK57: A2 | AL57: FALSE | AN57: =IFERROR(ISEVEN(AM57/2),"") ->  | AO57: B2 | AP57: FALSE | AR57: =IFERROR(ISEVEN(AQ57/2),"") ->  | AS57: C2 | AT57: FALSE | AV57: =IFERROR(ISEVEN(AU57/2),"") ->  | AW57: D2 | AX57: FALSE | AZ57: =IFERROR(ISEVEN(AY57/2),"") ->  | BA57: E2 | BB57: FALSE | BD57: =IFERROR(ISEVEN(BC57/2),"") ->  | BE57: F2 | BF57: FALSE | BH57: =IFERROR(ISEVEN(BG57/2),"") ->  | BI57: G2 | BJ57: FALSE | BM57: H2 | BN57: FALSE | BP57: =IFERROR(ISEVEN(BO57/2),"") ->  | BQ57: A7 | BR57: FALSE | BT57: =IFERROR(ISEVEN(BS57/2),"") ->  | BU57: B7 | BV57: FALSE | BX57: =IFERROR(ISEVEN(BW57/2),"") ->  | BY57: C7 | BZ57: FALSE | CB57: =IFERROR(ISEVEN(CA57/2),"") ->  | CC57: D7 | CD57: FALSE | CF57: =IFERROR(ISEVEN(CE57/2),"") ->  | CG57: E7 | CH57: FALSE | CJ57: =IFERROR(ISEVEN(CI57/2),"") ->  | CK57: F7 | CL57: FALSE | CN57: =IFERROR(ISEVEN(CM57/2),"") ->  | CO57: G7 | CP57: FALSE | CR57: =IFERROR(ISEVEN(CQ57/2),"") ->  | CS57: H7 | CT57: FALSE | CV57: =IFERROR(ISEVEN(CU57/2),"") ->  | CW57: A8 | CX57: FALSE | CZ57: =IFERROR(ISEVEN(CY57/2),"") ->  | DA57: B8 | DB57: FALSE | DD57: =IFERROR(ISEVEN(DC57/2),"") ->  | DE57: C8 | DF57: FALSE | DH57: =IFERROR(ISEVEN(DG57/2),"") ->  | DI57: D8 | DJ57: FALSE | DL57: =IFERROR(ISEVEN(DK57/2),"") ->  | DM57: E8 | DN57: FALSE | DP57: =IFERROR(ISEVEN(DO57/2),"") ->  | DQ57: F8 | DR57: FALSE | DT57: =IFERROR(ISEVEN(DS57/2),"") ->  | DU57: G8 | DV57: FALSE | DX57: =IFERROR(ISEVEN(DW57/2),"") ->  | DY57: H8
B58: FALSE | E58: A1 | F58: FALSE | I58: B1 | J58: FALSE | M58: C1 | N58: FALSE | Q58: D1 | R58: FALSE | U58: E1 | V58: FALSE | Y58: F1 | Z58: FALSE | AC58: G1 | AD58: FALSE | AG58: H1 | AH58: FALSE | AJ58: =IFERROR(ISEVEN(AI58/2),"") ->  | AK58: A2 | AL58: FALSE | AN58: =IFERROR(ISEVEN(AM58/2),"") ->  | AO58: B2 | AP58: FALSE | AR58: =IFERROR(ISEVEN(AQ58/2),"") ->  | AS58: C2 | AT58: FALSE | AV58: =IFERROR(ISEVEN(AU58/2),"") ->  | AW58: D2 | AX58: FALSE | AZ58: =IFERROR(ISEVEN(AY58/2),"") ->  | BA58: E2 | BB58: FALSE | BD58: =IFERROR(ISEVEN(BC58/2),"") ->  | BE58: F2 | BF58: FALSE | BH58: =IFERROR(ISEVEN(BG58/2),"") ->  | BI58: G2 | BJ58: FALSE | BM58: H2 | BN58: FALSE | BP58: =IFERROR(ISEVEN(BO58/2),"") ->  | BQ58: A7 | BR58: FALSE | BT58: =IFERROR(ISEVEN(BS58/2),"") ->  | BU58: B7 | BV58: FALSE | BX58: =IFERROR(ISEVEN(BW58/2),"") ->  | BY58: C7 | BZ58: FALSE | CB58: =IFERROR(ISEVEN(CA58/2),"") ->  | CC58: D7 | CD58: FALSE | CF58: =IFERROR(ISEVEN(CE58/2),"") ->  | CG58: E7 | CH58: FALSE | CJ58: =IFERROR(ISEVEN(CI58/2),"") ->  | CK58: F7 | CL58: FALSE | CN58: =IFERROR(ISEVEN(CM58/2),"") ->  | CO58: G7 | CP58: FALSE | CR58: =IFERROR(ISEVEN(CQ58/2),"") ->  | CS58: H7 | CT58: FALSE | CV58: =IFERROR(ISEVEN(CU58/2),"") ->  | CW58: A8 | CX58: FALSE | CZ58: =IFERROR(ISEVEN(CY58/2),"") ->  | DA58: B8 | DB58: FALSE | DD58: =IFERROR(ISEVEN(DC58/2),"") ->  | DE58: C8 | DF58: FALSE | DH58: =IFERROR(ISEVEN(DG58/2),"") ->  | DI58: D8 | DJ58: FALSE | DL58: =IFERROR(ISEVEN(DK58/2),"") ->  | DM58: E8 | DN58: FALSE | DP58: =IFERROR(ISEVEN(DO58/2),"") ->  | DQ58: F8 | DR58: FALSE | DT58: =IFERROR(ISEVEN(DS58/2),"") ->  | DU58: G8 | DV58: FALSE | DX58: =IFERROR(ISEVEN(DW58/2),"") ->  | DY58: H8
B59: TRUE | E59: A1 | F59: TRUE | I59: B1 | J59: TRUE | M59: C1 | N59: TRUE | Q59: D1 | R59: TRUE | U59: E1 | V59: TRUE | Y59: F1 | Z59: TRUE | AC59: G1 | AD59: TRUE | AG59: H1 | AH59: TRUE | AJ59: =IFERROR(ISEVEN(AI59/2),"") ->  | AK59: A2 | AL59: TRUE | AN59: =IFERROR(ISEVEN(AM59/2),"") ->  | AO59: B2 | AP59: TRUE | AR59: =IFERROR(ISEVEN(AQ59/2),"") ->  | AS59: C2 | AT59: TRUE | AV59: =IFERROR(ISEVEN(AU59/2),"") ->  | AW59: D2 | AX59: TRUE | AZ59: =IFERROR(ISEVEN(AY59/2),"") ->  | BA59: E2 | BB59: TRUE | BD59: =IFERROR(ISEVEN(BC59/2),"") ->  | BE59: F2 | BF59: TRUE | BH59: =IFERROR(ISEVEN(BG59/2),"") ->  | BI59: G2 | BJ59: TRUE | BM59: H2 | BN59: TRUE | BP59: =IFERROR(ISEVEN(BO59/2),"") ->  | BQ59: A7 | BR59: TRUE | BT59: =IFERROR(ISEVEN(BS59/2),"") ->  | BU59: B7 | BV59: TRUE | BX59: =IFERROR(ISEVEN(BW59/2),"") ->  | BY59: C7 | BZ59: TRUE | CB59: =IFERROR(ISEVEN(CA59/2),"") ->  | CC59: D7 | CD59: TRUE | CF59: =IFERROR(ISEVEN(CE59/2),"") ->  | CG59: E7 | CH59: TRUE | CJ59: =IFERROR(ISEVEN(CI59/2),"") ->  | CK59: F7 | CL59: TRUE | CN59: =IFERROR(ISEVEN(CM59/2),"") ->  | CO59: G7 | CP59: TRUE | CR59: =IFERROR(ISEVEN(CQ59/2),"") ->  | CS59: H7 | CT59: TRUE | CV59: =IFERROR(ISEVEN(CU59/2),"") ->  | CW59: A8 | CX59: TRUE | CZ59: =IFERROR(ISEVEN(CY59/2),"") ->  | DA59: B8 | DB59: TRUE | DD59: =IFERROR(ISEVEN(DC59/2),"") ->  | DE59: C8 | DF59: TRUE | DH59: =IFERROR(ISEVEN(DG59/2),"") ->  | DI59: D8 | DJ59: TRUE | DL59: =IFERROR(ISEVEN(DK59/2),"") ->  | DM59: E8 | DN59: TRUE | DP59: =IFERROR(ISEVEN(DO59/2),"") ->  | DQ59: F8 | DR59: TRUE | DT59: =IFERROR(ISEVEN(DS59/2),"") ->  | DU59: G8 | DV59: TRUE | DX59: =IFERROR(ISEVEN(DW59/2),"") ->  | DY59: H8
CB60: Draget efter? | CC60: Flyttat 2?
B61: Rockad | AD61: Rockad | BZ61: En passant pos | CA61: =IFERROR(IF(CB20,SEARCH("d6",UPPER(RenHistorik),CA20+3),""),"") ->  | CB61: =IF(CA61-CA20=6,TRUE,FALSE) ->  | CC61: =IF(CC20="d5",TRUE,FALSE) -> FALSE | CT61: Rockad | DV61: Rockad
C62: =IFERROR(SEARCH("VOO1",UPPER(RenHistorik),1),0) -> 0 | AE62: =IFERROR(SEARCH("VOO2",UPPER(RenHistorik),1),0) -> 0 | CA62: =_xlfn.NUMBERVALUE(IFERROR(IF(CB20,SEARCH(CC20,UPPER(RenHistorik),CA20+3),""),"")&IFERROR(IF(AND(CB61,CC61,CA61>0),CA61,""),"")) -> 0 | CU62: =IFERROR(SEARCH("SOO1",UPPER(RenHistorik),1),0) -> 0 | DW62: =IFERROR(SEARCH("SOO2",UPPER(RenHistorik),1),0) -> 0

Sheet Visualisering (hidden)
F3: A | G3: B | H3: C | I3: D | J3: E | K3: F | L3: G | M3: H | O3: A1 | P3: B1 | Q3: C1 | R3: D1 | S3: E1 | T3: F1 | U3: G1 | V3: H1 | W3: A2 | X3: B2 | Y3: C2 | Z3: D2 | AA3: E2 | AB3: F2 | AC3: G2 | AD3: H2 | AE3: A7 | AF3: B7 | AG3: C7 | AH3: D7 | AI3: E7 | AJ3: F7 | AK3: G7 | AL3: H7 | AM3: A8 | AN3: B8 | AO3: C8 | AP3: D8 | AQ3: E8 | AR3: F8 | AS3: G8 | AT3: H8
E4: 1 | F4: =IFERROR(HLOOKUP(F$3&$E4,Placeringar,2,FALSE),"") -> A1 | G4: B1 | H4: C1 | I4: D1 | J4: E1 | K4: F1 | L4: G1 | M4: H1 | O4: VT | P4: VS | Q4: VL | R4: VD | S4: VK | T4: VL | U4: VS | V4: VT | W4: VB | X4: VB | Y4: VB | Z4: VB | AA4: VB | AB4: VB | AC4: VB | AD4: VB | AE4: SB | AF4: SB | AG4: SB | AH4: SB | AI4: SB | AJ4: SB | AK4: SB | AL4: SB | AM4: ST | AN4: SS | AO4: SL | AP4: SD | AQ4: SK | AR4: SL | AS4: SS | AT4: ST
E5: 2 | F5: A2 | G5: B2 | H5: C2 | I5: D2 | J5: E2 | K5: F2 | L5: G2 | M5: H2
E6: 3
E7: 4
E8: 5
E9: 6
E10: 7 | F10: A7 | G10: B7 | H10: C7 | I10: D7 | J10: E7 | K10: F7 | L10: G7 | M10: H7
E11: 8 | F11: A8 | G11: B8 | H11: C8 | I11: D8 | J11: E8 | K11: F8 | L11: G8 | M11: H8
F13: =F14*F26 -> 2 | G13: =G14*G26 -> 4 | H13: 6 | I13: 8 | J13: 10 | K13: 12 | L13: 14 | M13: 16
E14: =SUM(F13:M13)/SUM(F14:M14) -> 4.5 | F14: =COUNTIF(F18:F25,"V*") -> 2 | G14: =COUNTIF(G18:G25,"V*") -> 2 | H14: 2 | I14: 2 | J14: 2 | K14: 2 | L14: 2 | M14: 2
F15: =F16*F26 -> 2 | G15: =G16*G26 -> 4 | H15: 6 | I15: 8 | J15: 10 | K15: 12 | L15: 14 | M15: 16
E16: =SUM(F15:M15)/SUM(F16:M16) -> 4.5 | F16: =COUNTIF(F18:F25,"S*") -> 2 | G16: =COUNTIF(G18:G25,"S*") -> 2 | H16: 2 | I16: 2 | J16: 2 | K16: 2 | L16: 2 | M16: 2
F17: A | G17: B | H17: C | I17: D | J17: E | K17: F | L17: G | M17: H | O17: =IF(Logik!E1="",HLOOKUP(Visualisering!O4,Pjaser,2,FALSE),"") ->  | P17: =IF(Logik!F1="",HLOOKUP(Visualisering!P4,Pjaser,2,FALSE),"") ->  | Q17: =IF(Logik!G1="",HLOOKUP(Visualisering!Q4,Pjaser,2,FALSE),"") ->  | R17: =IF(Logik!H1="",HLOOKUP(Visualisering!R4,Pjaser,2,FALSE),"") ->  | S17: =IF(Logik!I1="",HLOOKUP(Visualisering!S4,Pjaser,2,FALSE),"") ->  | T17: =IF(Logik!J1="",HLOOKUP(Visualisering!T4,Pjaser,2,FALSE),"") ->  | U17: =IF(Logik!K1="",HLOOKUP(Visualisering!U4,Pjaser,2,FALSE),"") ->  | V17: =IF(Logik!L1="",HLOOKUP(Visualisering!V4,Pjaser,2,FALSE),"") ->  | X17: =O17&P17&Q17&R17&S17&T17&U17&V17&O18&P18&Q18&R18&S18&T18&U18&V18 -> 
A18: =B18*E18 -> 8 | B18: =COUNTIF(F18:M18,"V*") -> 8 | C18: =D18*E18 -> 0 | D18: =COUNTIF(F18:M18,"S*") -> 0 | E18: 1 | F18: =IFERROR(HLOOKUP(F4,PjasStart,2,FALSE),"") -> VT | G18: VS | H18: VL | I18: VD | J18: VK | K18: VL | L18: VS | M18: VT | O18: =IF(Logik!M1="",HLOOKUP(Visualisering!W4,Pjaser,2,FALSE),"") ->  | P18: =IF(Logik!N1="",HLOOKUP(Visualisering!X4,Pjaser,2,FALSE),"") ->  | Q18: =IF(Logik!O1="",HLOOKUP(Visualisering!Y4,Pjaser,2,FALSE),"") ->  | R18: =IF(Logik!P1="",HLOOKUP(Visualisering!Z4,Pjaser,2,FALSE),"") ->  | S18: =IF(Logik!Q1="",HLOOKUP(Visualisering!AA4,Pjaser,2,FALSE),"") ->  | T18: =IF(Logik!R1="",HLOOKUP(Visualisering!AB4,Pjaser,2,FALSE),"") ->  | U18: =IF(Logik!S1="",HLOOKUP(Visualisering!AC4,Pjaser,2,FALSE),"") ->  | V18: =IF(Logik!T1="",HLOOKUP(Visualisering!AD4,Pjaser,2,FALSE),"") -> 
A19: =B19*E19 -> 16 | B19: =COUNTIF(F19:M19,"V*") -> 8 | C19: =D19*E19 -> 0 | D19: =COUNTIF(F19:M19,"S*") -> 0 | E19: 2 | F19: VB | G19: VB | H19: VB | I19: VB | J19: VB | K19: VB | L19: VB | M19: VB
A20: 0 | B20: 0 | C20: 0 | D20: 0 | E20: 3 | O20: =IF(Logik!U1="",HLOOKUP(Visualisering!AE4,Pjaser,2,FALSE),"") ->  | P20: =IF(Logik!V1="",HLOOKUP(Visualisering!AF4,Pjaser,2,FALSE),"") ->  | Q20: =IF(Logik!W1="",HLOOKUP(Visualisering!AG4,Pjaser,2,FALSE),"") ->  | R20: =IF(Logik!X1="",HLOOKUP(Visualisering!AH4,Pjaser,2,FALSE),"") ->  | S20: =IF(Logik!Y1="",HLOOKUP(Visualisering!AI4,Pjaser,2,FALSE),"") ->  | T20: =IF(Logik!Z1="",HLOOKUP(Visualisering!AJ4,Pjaser,2,FALSE),"") ->  | U20: =IF(Logik!AA1="",HLOOKUP(Visualisering!AK4,Pjaser,2,FALSE),"") ->  | V20: =IF(Logik!AB1="",HLOOKUP(Visualisering!AL4,Pjaser,2,FALSE),"") ->  | X20: =O20&P20&Q20&R20&S20&T20&U20&V20&O21&P21&Q21&R21&S21&T21&U21&V21 -> 
A21: 0 | B21: 0 | C21: 0 | D21: 0 | E21: 4 | O21: =IF(Logik!AC1="",HLOOKUP(Visualisering!AM4,Pjaser,2,FALSE),"") ->  | P21: =IF(Logik!AD1="",HLOOKUP(Visualisering!AN4,Pjaser,2,FALSE),"") ->  | Q21: =IF(Logik!AE1="",HLOOKUP(Visualisering!AO4,Pjaser,2,FALSE),"") ->  | R21: =IF(Logik!AF1="",HLOOKUP(Visualisering!AP4,Pjaser,2,FALSE),"") ->  | S21: =IF(Logik!AG1="",HLOOKUP(Visualisering!AQ4,Pjaser,2,FALSE),"") ->  | T21: =IF(Logik!AH1="",HLOOKUP(Visualisering!AR4,Pjaser,2,FALSE),"") ->  | U21: =IF(Logik!AI1="",HLOOKUP(Visualisering!AS4,Pjaser,2,FALSE),"") ->  | V21: =IF(Logik!AJ1="",HLOOKUP(Visualisering!AT4,Pjaser,2,FALSE),"") -> 
A22: 0 | B22: 0 | C22: 0 | D22: 0 | E22: 5
A23: 0 | B23: 0 | C23: 0 | D23: 0 | E23: 6
A24: 0 | B24: 0 | C24: 56 | D24: 8 | E24: 7 | F24: SB | G24: SB | H24: SB | I24: SB | J24: SB | K24: SB | L24: SB | M24: SB
A25: 0 | B25: 0 | C25: 64 | D25: 8 | E25: 8 | F25: ST | G25: SS | H25: SL | I25: SD | J25: SK | K25: SL | L25: SS | M25: ST
B26: =SUM(A18:A25)/SUM(B18:B25) -> 1.5 | D26: =SUM(C18:C25)/SUM(D18:D25) -> 7.5 | F26: 1 | G26: 2 | H26: 3 | I26: 4 | J26: 5 | K26: 6 | L26: 7 | M26: 8
F27: A | G27: B | H27: C | I27: D | J27: E | K27: F | L27: G | M27: H | O27: SK | P27: SD | Q27: ST | R27: SL | S27: SS | T27: SB | U27: VK | V27: VD | W27: VT | X27: VL | Y27: VS | Z27: VB
E28: 1 | F28: =IFERROR(HLOOKUP(F18,Pjaser,2,FALSE),"") -> ♖ | G28: ♘ | H28: ♗ | I28: ♕ | J28: ♔ | K28: ♗ | L28: ♘ | M28: ♖ | O28: ♚ | P28: ♛ | Q28: ♜ | R28: ♝ | S28: ♞ | T28: ♟ | U28: ♔ | V28: ♕ | W28: ♖ | X28: ♗ | Y28: ♘ | Z28: ♙
E29: 2 | F29: ♙ | G29: ♙ | H29: ♙ | I29: ♙ | J29: ♙ | K29: ♙ | L29: ♙ | M29: ♙ | N29: Värde | O29: 20000 | P29: 900 | Q29: 500 | R29: 300 | S29: 300 | T29: 100 | U29: 20000 | V29: 900 | W29: 500 | X29: 300 | Y29: 300 | Z29: 100
E30: 3 | N30: Försvar | O30: 100 | P30: 900 | Q30: 500 | R30: 300 | S30: 300 | T30: 100 | U30: 100 | V30: 900 | W30: 500 | X30: 300 | Y30: 300 | Z30: 100
E31: 4
E32: 5
E33: 6
E34: 7 | F34: ♟ | G34: ♟ | H34: ♟ | I34: ♟ | J34: ♟ | K34: ♟ | L34: ♟ | M34: ♟
E35: 8 | F35: ♜ | G35: ♞ | H35: ♝ | I35: ♛ | J35: ♚ | K35: ♝ | L35: ♞ | M35: ♜

Sheet Stat (hidden)
C3: Pjäs | D3: Pos | E3: Poäng | F3: PosPoäng | G3: FörsvarPoäng | H3: Attackpoäng | I3: AttackKung | J3: PosFrånMedel | K3: PosFrånMotståndaresMedel | L3: Möjligheter | M3: MöjlPoä
B4: 1 | C4: A1 | D4: =OFFSET(Logik!$D$1,0,Stat!B4) -> A1 | E4: =OFFSET(Logik!$D$1,2,B4) -> 500 | F4: =OFFSET(Logik!$D$1,3,B4) -> 6 | G4: =P_A1!$E$9 -> 408 | H4: =P_A1!$E$10 -> 0 | I4: =Logik!E5 -> 45.45454545 | J4: =OFFSET(Logik!$D$1,5,B4) -> 12 | K4: =OFFSET(Logik!$D$1,6,B4) -> 20 | L4: =P_A1!$E$14 -> 0 | M4: =L4*E4 -> 0
B5: 2 | C5: B1 | D5: =OFFSET(Logik!$D$1,0,Stat!B5) -> B1 | E5: =OFFSET(Logik!$D$1,2,B5) -> 300 | F5: =OFFSET(Logik!$D$1,3,B5) -> 8 | G5: =P_B1!$E$9 -> 100 | H5: =P_B1!$E$10 -> 0 | I5: =Logik!F5 -> 30 | J5: =OFFSET(Logik!$D$1,5,B5) -> 14 | K5: =OFFSET(Logik!$D$1,6,B5) -> 18 | L5: =P_B1!$E$14 -> 2 | M5: =L5*E5 -> 600
B6: 3 | C6: C1 | D6: =OFFSET(Logik!$D$1,0,Stat!B6) -> C1 | E6: =OFFSET(Logik!$D$1,2,B6) -> 300 | F6: =OFFSET(Logik!$D$1,3,B6) -> 10 | G6: =P_C1!$E$9 -> 200 | H6: =P_C1!$E$10 -> 0 | I6: =Logik!G5 -> 33.33333333 | J6: =OFFSET(Logik!$D$1,5,B6) -> 16 | K6: =OFFSET(Logik!$D$1,6,B6) -> 16 | L6: =P_C1!$E$27 -> 0 | M6: 0
B7: 4 | C7: D1 | D7: =OFFSET(Logik!$D$1,0,Stat!B7) -> D1 | E7: =OFFSET(Logik!$D$1,2,B7) -> 900 | F7: =OFFSET(Logik!$D$1,3,B7) -> 12 | G7: =P_D1!E9 -> 742 | H7: =P_D1!E10 -> 0 | I7: =Logik!H5 -> 112.5 | J7: =OFFSET(Logik!$D$1,5,B7) -> 18 | K7: =OFFSET(Logik!$D$1,6,B7) -> 14 | L7: =P_D1!$E$27 -> 0 | M7: 0
B8: 5 | C8: E1 | D8: =OFFSET(Logik!$D$1,0,Stat!B8) -> E1 | E8: =OFFSET(Logik!$D$1,2,B8) -> 20000 | F8: =OFFSET(Logik!$D$1,3,B8) -> 32 | I8: =Logik!I5 -> 0 | J8: =OFFSET(Logik!$D$1,5,B8) -> 18 | K8: =OFFSET(Logik!$D$1,6,B8) -> 14 | L8: =P_E1!$E$27 -> 0 | M8: 0
B9: 6 | C9: F1 | D9: =OFFSET(Logik!$D$1,0,Stat!B9) -> F1 | E9: =OFFSET(Logik!$D$1,2,B9) -> 300 | F9: =OFFSET(Logik!$D$1,3,B9) -> 10 | G9: =P_F1!$E$9 -> 200 | H9: =P_F1!$E$10 -> 0 | I9: =Logik!J5 -> 37.5 | J9: =OFFSET(Logik!$D$1,5,B9) -> 16 | K9: =OFFSET(Logik!$D$1,6,B9) -> 16 | L9: =P_F1!$E$27 -> 0 | M9: 0
B10: 7 | C10: G1 | D10: =OFFSET(Logik!$D$1,0,Stat!B10) -> G1 | E10: =OFFSET(Logik!$D$1,2,B10) -> 300 | F10: =OFFSET(Logik!$D$1,3,B10) -> 8 | G10: =P_G1!$E$9 -> 100 | H10: =P_G1!$E$10 -> 0 | I10: =Logik!K5 -> 33.33333333 | J10: =OFFSET(Logik!$D$1,5,B10) -> 14 | K10: =OFFSET(Logik!$D$1,6,B10) -> 18 | L10: =P_G1!$E$14 -> 2 | M10: 600
B11: 8 | C11: H1 | D11: =OFFSET(Logik!$D$1,0,Stat!B11) -> H1 | E11: =OFFSET(Logik!$D$1,2,B11) -> 500 | F11: =OFFSET(Logik!$D$1,3,B11) -> 6 | G11: =P_H1!$E$9 -> 408 | H11: =P_H1!$E$10 -> 0 | I11: =Logik!L5 -> 50 | J11: =OFFSET(Logik!$D$1,5,B11) -> 12 | K11: =OFFSET(Logik!$D$1,6,B11) -> 20 | L11: =P_H1!$E$14 -> 0 | M11: 0
B12: 9 | C12: A2 | D12: =OFFSET(Logik!$D$1,0,Stat!B12) -> A2 | E12: =OFFSET(Logik!$D$1,2,B12) -> 100 | F12: =OFFSET(Logik!$D$1,3,B12) -> 0 | G12: =P_A2!$E$9 -> 0 | H12: =P_A2!$E$10 -> 0 | I12: =Logik!M5 -> 10 | J12: =OFFSET(Logik!$D$1,5,B12) -> 12 | K12: =OFFSET(Logik!$D$1,6,B12) -> 18 | L12: =P_A2!$E$14 -> 2 | M12: 200
B13: 10 | C13: B2 | D13: =OFFSET(Logik!$D$1,0,Stat!B13) -> B2 | E13: =OFFSET(Logik!$D$1,2,B13) -> 100 | F13: =OFFSET(Logik!$D$1,3,B13) -> 0 | G13: =P_B2!$E$9 -> 0 | H13: =P_B2!$E$10 -> 0 | I13: =Logik!N5 -> 11.11111111 | J13: =OFFSET(Logik!$D$1,5,B13) -> 14 | K13: =OFFSET(Logik!$D$1,6,B13) -> 16 | L13: =P_B2!$E$14 -> 2 | M13: 200
B14: 11 | C14: C2 | D14: =OFFSET(Logik!$D$1,0,Stat!B14) -> C2 | E14: =OFFSET(Logik!$D$1,2,B14) -> 100 | F14: =OFFSET(Logik!$D$1,3,B14) -> 0 | G14: =P_C2!$E$9 -> 0 | H14: =P_C2!$E$10 -> 0 | I14: =Logik!O5 -> 12.5 | J14: =OFFSET(Logik!$D$1,5,B14) -> 16 | K14: =OFFSET(Logik!$D$1,6,B14) -> 14 | L14: =P_C2!$E$14 -> 2 | M14: 200
B15: 12 | C15: D2 | D15: =OFFSET(Logik!$D$1,0,Stat!B15) -> D2 | E15: =OFFSET(Logik!$D$1,2,B15) -> 100 | F15: =OFFSET(Logik!$D$1,3,B15) -> 0 | G15: =P_D2!$E$9 -> 0 | H15: =P_D2!$E$10 -> 0 | I15: =Logik!P5 -> 14.28571429 | J15: =OFFSET(Logik!$D$1,5,B15) -> 18 | K15: =OFFSET(Logik!$D$1,6,B15) -> 12 | L15: =P_D2!$E$14 -> 2 | M15: 200
B16: 13 | C16: E2 | D16: =OFFSET(Logik!$D$1,0,Stat!B16) -> E2 | E16: =OFFSET(Logik!$D$1,2,B16) -> 100 | F16: =OFFSET(Logik!$D$1,3,B16) -> 0 | G16: =P_E2!$E$9 -> 0 | H16: =P_E2!$E$10 -> 0 | I16: =Logik!Q5 -> 16.66666667 | J16: =OFFSET(Logik!$D$1,5,B16) -> 18 | K16: =OFFSET(Logik!$D$1,6,B16) -> 12 | L16: =P_E2!$E$14 -> 2 | M16: 200
B17: 14 | C17: F2 | D17: =OFFSET(Logik!$D$1,0,Stat!B17) -> F2 | E17: =OFFSET(Logik!$D$1,2,B17) -> 100 | F17: =OFFSET(Logik!$D$1,3,B17) -> 0 | G17: =P_F2!$E$9 -> 0 | H17: =P_F2!$E$10 -> 0 | I17: =Logik!R5 -> 14.28571429 | J17: =OFFSET(Logik!$D$1,5,B17) -> 16 | K17: =OFFSET(Logik!$D$1,6,B17) -> 14 | L17: =P_F2!$E$14 -> 2 | M17: 200
B18: 15 | C18: G2 | D18: =OFFSET(Logik!$D$1,0,Stat!B18) -> G2 | E18: =OFFSET(Logik!$D$1,2,B18) -> 100 | F18: =OFFSET(Logik!$D$1,3,B18) -> 0 | G18: =P_G2!$E$9 -> 0 | H18: =P_G2!$E$10 -> 0 | I18: =Logik!S5 -> 12.5 | J18: =OFFSET(Logik!$D$1,5,B18) -> 14 | K18: =OFFSET(Logik!$D$1,6,B18) -> 16 | L18: =P_G2!$E$14 -> 2 | M18: 200
B19: 16 | C19: H2 | D19: =OFFSET(Logik!$D$1,0,Stat!B19) -> H2 | E19: =OFFSET(Logik!$D$1,2,B19) -> 100 | F19: =OFFSET(Logik!$D$1,3,B19) -> 0 | G19: =P_H2!$E$9 -> 0 | H19: =P_H2!$E$10 -> 0 | I19: =Logik!T5 -> 11.11111111 | J19: =OFFSET(Logik!$D$1,5,B19) -> 12 | K19: =OFFSET(Logik!$D$1,6,B19) -> 18 | L19: =P_H2!$E$14 -> 2 | M19: 200
B20: 17 | C20: A7 | D20: =OFFSET(Logik!$D$1,0,Stat!B20) -> A7 | E20: =OFFSET(Logik!$D$1,2,B20) -> 100 | F20: =OFFSET(Logik!$D$1,3,B20) -> 0 | G20: =P_A7!$E$9 -> 0 | H20: =P_A7!$E$10 -> 0 | I20: =Logik!U5 -> 10 | J20: =OFFSET(Logik!$D$1,5,B20) -> 12 | K20: =OFFSET(Logik!$D$1,6,B20) -> 18 | L20: =P_A7!$E$14 -> 2 | M20: 200
B21: 18 | C21: B7 | D21: =OFFSET(Logik!$D$1,0,Stat!B21) -> B7 | E21: =OFFSET(Logik!$D$1,2,B21) -> 100 | F21: =OFFSET(Logik!$D$1,3,B21) -> 0 | G21: =P_B7!$E$9 -> 0 | H21: =P_B7!$E$10 -> 0 | I21: =Logik!V5 -> 11.11111111 | J21: =OFFSET(Logik!$D$1,5,B21) -> 14 | K21: =OFFSET(Logik!$D$1,6,B21) -> 16 | L21: =P_B7!$E$14 -> 2 | M21: 200
B22: 19 | C22: C7 | D22: =OFFSET(Logik!$D$1,0,Stat!B22) -> C7 | E22: =OFFSET(Logik!$D$1,2,B22) -> 100 | F22: =OFFSET(Logik!$D$1,3,B22) -> 0 | G22: =P_C7!$E$9 -> 0 | H22: =P_C7!$E$10 -> 0 | I22: =Logik!W5 -> 12.5 | J22: =OFFSET(Logik!$D$1,5,B22) -> 16 | K22: =OFFSET(Logik!$D$1,6,B22) -> 14 | L22: =P_C7!$E$14 -> 2 | M22: 200
B23: 20 | C23: D7 | D23: =OFFSET(Logik!$D$1,0,Stat!B23) -> D7 | E23: =OFFSET(Logik!$D$1,2,B23) -> 100 | F23: =OFFSET(Logik!$D$1,3,B23) -> 0 | G23: =P_D7!$E$9 -> 0 | H23: =P_D7!$E$10 -> 0 | I23: =Logik!X5 -> 14.28571429 | J23: =OFFSET(Logik!$D$1,5,B23) -> 18 | K23: =OFFSET(Logik!$D$1,6,B23) -> 12 | L23: =P_D7!$E$14 -> 2 | M23: 200
B24: 21 | C24: E7 | D24: =OFFSET(Logik!$D$1,0,Stat!B24) -> E7 | E24: =OFFSET(Logik!$D$1,2,B24) -> 100 | F24: =OFFSET(Logik!$D$1,3,B24) -> 0 | G24: =P_E7!$E$9 -> 0 | H24: =P_E7!$E$10 -> 0 | I24: =Logik!Y5 -> 16.66666667 | J24: =OFFSET(Logik!$D$1,5,B24) -> 18 | K24: =OFFSET(Logik!$D$1,6,B24) -> 12 | L24: =P_E7!$E$14 -> 2 | M24: 200
B25: 22 | C25: F7 | D25: =OFFSET(Logik!$D$1,0,Stat!B25) -> F7 | E25: =OFFSET(Logik!$D$1,2,B25) -> 100 | F25: =OFFSET(Logik!$D$1,3,B25) -> 0 | G25: =P_F7!$E$9 -> 0 | H25: =P_F7!$E$10 -> 0 | I25: =Logik!Z5 -> 14.28571429 | J25: =OFFSET(Logik!$D$1,5,B25) -> 16 | K25: =OFFSET(Logik!$D$1,6,B25) -> 14 | L25: =P_F7!$E$14 -> 2 | M25: 200
B26: 23 | C26: G7 | D26: =OFFSET(Logik!$D$1,0,Stat!B26) -> G7 | E26: =OFFSET(Logik!$D$1,2,B26) -> 100 | F26: =OFFSET(Logik!$D$1,3,B26) -> 0 | G26: =P_G7!$E$9 -> 0 | H26: =P_G7!$E$10 -> 0 | I26: =Logik!AA5 -> 12.5 | J26: =OFFSET(Logik!$D$1,5,B26) -> 14 | K26: =OFFSET(Logik!$D$1,6,B26) -> 16 | L26: =P_G7!$E$14 -> 2 | M26: 200
B27: 24 | C27: H7 | D27: =OFFSET(Logik!$D$1,0,Stat!B27) -> H7 | E27: =OFFSET(Logik!$D$1,2,B27) -> 100 | F27: =OFFSET(Logik!$D$1,3,B27) -> 0 | G27: =P_H7!$E$9 -> 0 | H27: =P_H7!$E$10 -> 0 | I27: =Logik!AB5 -> 11.11111111 | J27: =OFFSET(Logik!$D$1,5,B27) -> 12 | K27: =OFFSET(Logik!$D$1,6,B27) -> 18 | L27: =P_H7!$E$14 -> 2 | M27: 200
B28: 25 | C28: A8 | D28: =OFFSET(Logik!$D$1,0,Stat!B28) -> A8 | E28: =OFFSET(Logik!$D$1,2,B28) -> 500 | F28: =OFFSET(Logik!$D$1,3,B28) -> 6 | G28: =P_A8!$E$9 -> 408 | H28: =P_A8!$E$10 -> 0 | I28: =Logik!AC5 -> 45.45454545 | J28: =OFFSET(Logik!$D$1,5,B28) -> 12 | K28: =OFFSET(Logik!$D$1,6,B28) -> 20 | L28: =P_A8!$E$14 -> 0 | M28: 0
B29: 26 | C29: B8 | D29: =OFFSET(Logik!$D$1,0,Stat!B29) -> B8 | E29: =OFFSET(Logik!$D$1,2,B29) -> 300 | F29: =OFFSET(Logik!$D$1,3,B29) -> 8 | G29: =P_B8!$E$9 -> 100 | H29: =P_B8!$E$10 -> 0 | I29: =Logik!AD5 -> 30 | J29: =OFFSET(Logik!$D$1,5,B29) -> 14 | K29: =OFFSET(Logik!$D$1,6,B29) -> 18 | L29: =P_B8!$E$14 -> 2 | M29: 600
B30: 27 | C30: C8 | D30: =OFFSET(Logik!$D$1,0,Stat!B30) -> C8 | E30: =OFFSET(Logik!$D$1,2,B30) -> 300 | F30: =OFFSET(Logik!$D$1,3,B30) -> 10 | G30: =P_C8!$E$9 -> 200 | H30: =P_C8!$E$10 -> 0 | I30: =Logik!AE5 -> 33.33333333 | J30: =OFFSET(Logik!$D$1,5,B30) -> 16 | K30: =OFFSET(Logik!$D$1,6,B30) -> 16 | L30: =P_C8!$E$27 -> 0 | M30: 0
B31: 28 | C31: D8 | D31: =OFFSET(Logik!$D$1,0,Stat!B31) -> D8 | E31: =OFFSET(Logik!$D$1,2,B31) -> 900 | F31: =OFFSET(Logik!$D$1,3,B31) -> 12 | G31: =P_D8!$E$9 -> 742 | H31: =P_D8!$E$10 -> 0 | I31: =Logik!AF5 -> 112.5 | J31: =OFFSET(Logik!$D$1,5,B31) -> 18 | K31: =OFFSET(Logik!$D$1,6,B31) -> 14 | L31: =P_D8!$E$27 -> 0 | M31: 0
B32: 29 | C32: E8 | D32: =OFFSET(Logik!$D$1,0,Stat!B32) -> E8 | E32: =OFFSET(Logik!$D$1,2,B32) -> 20000 | F32: =OFFSET(Logik!$D$1,3,B32) -> 32 | I32: =Logik!AG5 -> 0 | J32: =OFFSET(Logik!$D$1,5,B32) -> 18 | K32: =OFFSET(Logik!$D$1,6,B32) -> 14 | L32: =P_E8!$E$27 -> 0 | M32: 0
B33: 30 | C33: F8 | D33: =OFFSET(Logik!$D$1,0,Stat!B33) -> F8 | E33: =OFFSET(Logik!$D$1,2,B33) -> 300 | F33: =OFFSET(Logik!$D$1,3,B33) -> 10 | G33: =P_F8!$E$9 -> 200 | H33: =P_F8!$E$10 -> 0 | I33: =Logik!AH5 -> 37.5 | J33: =OFFSET(Logik!$D$1,5,B33) -> 16 | K33: =OFFSET(Logik!$D$1,6,B33) -> 16 | L33: =P_F8!$E$27 -> 0 | M33: 0
B34: 31 | C34: G8 | D34: =OFFSET(Logik!$D$1,0,Stat!B34) -> G8 | E34: =OFFSET(Logik!$D$1,2,B34) -> 300 | F34: =OFFSET(Logik!$D$1,3,B34) -> 8 | G34: =P_G8!$E$9 -> 100 | H34: =P_G8!$E$10 -> 0 | I34: =Logik!AI5 -> 33.33333333 | J34: =OFFSET(Logik!$D$1,5,B34) -> 14 | K34: =OFFSET(Logik!$D$1,6,B34) -> 18 | L34: =P_G8!$E$14 -> 2 | M34: 600
B35: 32 | C35: H8 | D35: =OFFSET(Logik!$D$1,0,Stat!B35) -> H8 | E35: =OFFSET(Logik!$D$1,2,B35) -> 500 | F35: =OFFSET(Logik!$D$1,3,B35) -> 6 | G35: =P_H8!$E$9 -> 408 | H35: =P_H8!$E$10 -> 0 | I35: =Logik!AJ5 -> 50 | J35: =OFFSET(Logik!$D$1,5,B35) -> 12 | K35: =OFFSET(Logik!$D$1,6,B35) -> 20 | L35: =P_H8!$E$14 -> 0 | M35: 0
A37: Summa Vit | E37: =SUM(E4:E19) -> 23900 | F37: =SUM(F4:F19) -> 92 | G37: =SUM(G4:G19)/10 -> 215.8 | H37: =SUM(H4:H19)/5 -> 0 | I37: =SUM(I4:I19) -> 444.5815296 | J37: =SUM(J4:J19) -> 240 | K37: =SUM(K4:K19) -> 256 | M37: =SUM(M4:M19) -> 2800 | S37: =SUM(E37:Q37) -> 27948.38153
A38: Summa Svart | E38: =SUM(E20:E35) -> 23900 | F38: =SUM(F20:F35) -> 92 | G38: =SUM(G20:G35)/10 -> 215.8 | H38: =SUM(H20:H35)/5 -> 0 | I38: 444.5815296 | J38: =SUM(J20:J35) -> 240 | K38: =SUM(K20:K35) -> 256 | M38: =SUM(M20:M35) -> 2800 | S38: =SUM(E38:Q38) -> 27948.38153

Sheet SpelBraden (hidden)
B2: Möjliga drag Vit | N2: Möjliga drag svart
B3: A | C3: B | D3: C | E3: D | F3: E | G3: F | H3: G | I3: H | N3: A | O3: B | P3: C | Q3: D | R3: E | S3: F | T3: G | U3: H | Z3: A | AA3: B | AB3: C | AC3: D | AD3: E | AE3: F | AF3: G | AG3: H
A4: 8 | B4: =(LEN(allaDVit)-LEN(SUBSTITUTE(allaDVit,B$3&$A4,"")))/2 -> 0 | C4: 0 | D4: 0 | E4: 0 | F4: 0 | G4: 0 | H4: 0 | I4: 0 | J4: =SUM(B4:I4) -> 0 | M4: 8 | N4: =(LEN(allaDSvart)-LEN(SUBSTITUTE(allaDSvart,N$3&$M4,"")))/2 -> 0 | O4: 0 | P4: 0 | Q4: 0 | R4: 0 | S4: 0 | T4: 0 | U4: 0 | V4: =SUM(N4:U4) -> 0 | Y4: 8
A5: 7 | B5: 0 | C5: 0 | D5: 0 | E5: 0 | F5: 0 | G5: 0 | H5: 0 | I5: 0 | J5: =SUM(B5:I5) -> 0 | M5: 7 | N5: 0 | O5: 0 | P5: 0 | Q5: 0 | R5: 0 | S5: 0 | T5: 0 | U5: 0 | V5: 0 | Y5: 7
A6: 6 | B6: 0 | C6: 0 | D6: 0 | E6: 0 | F6: 0 | G6: 0 | H6: 0 | I6: 0 | J6: 0 | M6: 6 | N6: 2 | O6: 1 | P6: 2 | Q6: 1 | R6: 1 | S6: 2 | T6: 1 | U6: 2 | V6: 12 | Y6: 6
A7: 5 | B7: 0 | C7: 0 | D7: 0 | E7: 0 | F7: 0 | G7: 0 | H7: 0 | I7: 0 | J7: 0 | M7: 5 | N7: 1 | O7: 1 | P7: 1 | Q7: 1 | R7: 1 | S7: 1 | T7: 1 | U7: 1 | V7: 8 | Y7: 5
A8: 4 | B8: 1 | C8: 1 | D8: 1 | E8: 1 | F8: 1 | G8: 1 | H8: 1 | I8: 1 | J8: 8 | M8: 4 | N8: 0 | O8: 0 | P8: 0 | Q8: 0 | R8: 0 | S8: 0 | T8: 0 | U8: 0 | V8: 0 | Y8: 4
A9: 3 | B9: 2 | C9: 1 | D9: 2 | E9: 1 | F9: 1 | G9: 2 | H9: 1 | I9: 2 | J9: 12 | M9: 3 | N9: 0 | O9: 0 | P9: 0 | Q9: 0 | R9: 0 | S9: 0 | T9: 0 | U9: 0 | V9: 0 | Y9: 3
A10: 2 | B10: 0 | C10: 0 | D10: 0 | E10: 0 | F10: 0 | G10: 0 | H10: 0 | I10: 0 | J10: 0 | M10: 2 | N10: 0 | O10: 0 | P10: 0 | Q10: 0 | R10: 0 | S10: 0 | T10: 0 | U10: 0 | V10: 0 | Y10: 2
A11: 1 | B11: 0 | C11: 0 | D11: 0 | E11: 0 | F11: 0 | G11: 0 | H11: 0 | I11: 0 | J11: 0 | M11: 1 | N11: 0 | O11: 0 | P11: 0 | Q11: 0 | R11: 0 | S11: 0 | T11: 0 | U11: 0 | V11: 0 | Y11: 1
B12: =SUM(B4:B11) -> 3 | C12: =SUM(C4:C11) -> 2 | D12: 3 | E12: 2 | F12: 2 | G12: 3 | H12: 2 | I12: 3 | N12: =SUM(N4:N11) -> 3 | O12: 2 | P12: 3 | Q12: 2 | R12: 2 | S12: 3 | T12: 2 | U12: 3 | V12: 20

Sheet RensaHistorik (hidden)
F1: =SUBSTITUTE(Start!P5,"Q","") -> 
F2: =SUBSTITUTE(F1,"x","") -> 
F3: =SUBSTITUTE(F2,"N","") -> 
F4: =SUBSTITUTE(F3,"+","") -> 
F5: =SUBSTITUTE(F4,"R","") -> 
F6: =SUBSTITUTE(F5,"B","") -> 
E7: 1 | F7: =SUBSTITUTE(F6," "&E7&". ","") -> 
E8: 2
E9: 3
E10: 4
E11: 5
E12: 6
E13: 7
E14: 8
E15: 9
E16: 10
E17: 11
E18: 12
E19: 13
E20: 14
E21: 15
E22: 16
E23: 17
E24: 18
E25: 19
E26: 20
E27: 21
E28: 22
E29: 23
E30: 24
E31: 25
E32: 26
E33: 27
E34: 28
E35: 29
E36: 30
E37: 31
E38: 32
E39: 33
E40: 34
E41: 35
E42: 36
E43: 37
E44: 38
E45: 39
E46: 40
E47: 41
E48: 42
E49: 43
E50: 44
E51: 45
E52: 46
E53: 47
E54: 48
E55: 49
E56: 50
E57: 51
E58: 52
E59: 53
E60: 54
E61: 55
E62: 56
E63: 57
E64: 58
E65: 59
E66: 60
E67: 61
E68: 62
E69: 63
E70: 64
E71: 65 | F71: =SUBSTITUTE(F70," "&E71&". ","") -> 
E72: 66
E73: 67
E74: 68
E75: 69
E76: 70
E77: 71
E78: 72
E79: 73
E80: 74
E81: 75
E82: 76
E83: 77
E84: 78
E85: 79
E86: 80
E87: 81
E88: 82
E89: 83
E90: 84
E91: 85
E92: 86
E93: 87
E94: 88
E95: 89
E96: 90
E97: 91
E98: 92
E99: 93
E100: 94
E101: 95
E102: 96
E103: 97
E104: 98
E105: 99
E106: 100
E107: 101
E108: 102
E109: 103
E110: 104
E111: 105
E112: 106
E113: 107
E114: 108
E115: 109
E116: 110
E117: 111
E118: 112
E119: 113
E120: 114
E121: 115
E122: 116
E123: 117
E124: 118
E125: 119
E126: 120
E127: 121
E128: 122
E129: 123
E130: 124
E131: 125
E132: 126
E133: 127
E134: 128
E135: 129 | F135: =SUBSTITUTE(F134," "&E135&". ","") -> 
E136: 130
E137: 131
E138: 132
E139: 133
E140: 134
E141: 135
E142: 136
E143: 137
E144: 138
E145: 139
E146: 140
E147: 141
E148: 142
E149: 143
E150: 144
E151: 145
E152: 146
E153: 147
E154: 148
E155: 149
E156: 150
E157: 151
E158: 152
E159: 153
E160: 154
E161: 155
E162: 156
E163: 157
E164: 158
E165: 159
E166: 160
E167: 161
E168: 162
E169: 163
E170: 164
E171: 165
E172: 166
E173: 167
E174: 168
E175: 169
E176: 170
E177: 171
E178: 172
E179: 173
E180: 174
E181: 175
E182: 176
E183: 177
E184: 178
E185: 179
E186: 180
E187: 181
E188: 182
E189: 183
E190: 184
E191: 185
E192: 186
E193: 187
E194: 188
E195: 189
E196: 190
E197: 191
E198: 192
E199: 193 | F199: =SUBSTITUTE(F198," "&E199&". ","") -> 
E200: 194
... 220 more rows

Sheet RVB (hidden)
A1: Kombo | B1: Pjäs | C1: PosX | D1: PosY | E1: Flytt | F1: Attack
A2: =B2&C2&D2 -> VBA2 | B2: VB | C2: A | D2: 2 | E2: =C2&D2&IF(D2<8,C2&D2+1,"")&IF(D2=2,C2&4,"") -> A2A3A4 | F2: =IF(D2<8,IF(C2<>"A",CHAR(CODE(C2)-1)&D2+1,"")&IF(C2<>"H",CHAR(CODE(C2)+1)&D2+1,""),"") -> B3
A3: =B3&C3&D3 -> VBA3 | B3: VB | C3: A | D3: 3 | E3: =C3&D3&IF(D3<8,C3&D3+1,"")&IF(D3=2,C3&4,"") -> A3A4 | F3: =IF(D3<8,IF(C3<>"A",CHAR(CODE(C3)-1)&D3+1,"")&IF(C3<>"H",CHAR(CODE(C3)+1)&D3+1,""),"") -> B4
A4: VBA4 | B4: VB | C4: A | D4: 4 | E4: A4A5 | F4: B5
A5: VBA5 | B5: VB | C5: A | D5: 5 | E5: A5A6 | F5: B6
A6: VBA6 | B6: VB | C6: A | D6: 6 | E6: A6A7 | F6: B7
A7: VBA7 | B7: VB | C7: A | D7: 7 | E7: A7A8 | F7: B8
A8: VBA8 | B8: VB | C8: A | D8: 8 | E8: A8
A9: =B9&C9&D9 -> VBB1 | B9: VB | C9: B | D9: 1 | E9: B1B2 | F9: =IF(D9<8,IF(C9<>"A",CHAR(CODE(C9)-1)&D9+1,"")&IF(C9<>"H",CHAR(CODE(C9)+1)&D9+1,""),"") -> A2C2
A10: =B10&C10&D10 -> VBB2 | B10: VB | C10: B | D10: 2 | E10: B2B3B4 | F10: =IF(D10<8,IF(C10<>"A",CHAR(CODE(C10)-1)&D10+1,"")&IF(C10<>"H",CHAR(CODE(C10)+1)&D10+1,""),"") -> A3C3
A11: VBB3 | B11: VB | C11: B | D11: 3 | E11: B3B4 | F11: A4C4
A12: VBB4 | B12: VB | C12: B | D12: 4 | E12: B4B5 | F12: A5C5
A13: VBB5 | B13: VB | C13: B | D13: 5 | E13: B5B6 | F13: A6C6
A14: VBB6 | B14: VB | C14: B | D14: 6 | E14: B6B7 | F14: A7C7
A15: VBB7 | B15: VB | C15: B | D15: 7 | E15: B7B8 | F15: A8C8
A16: VBB8 | B16: VB | C16: B | D16: 8 | E16: B8
A17: =B17&C17&D17 -> VBC2 | B17: VB | C17: C | D17: 2 | E17: C2C3C4 | F17: =IF(D17<8,IF(C17<>"A",CHAR(CODE(C17)-1)&D17+1,"")&IF(C17<>"H",CHAR(CODE(C17)+1)&D17+1,""),"") -> B3D3
A18: =B18&C18&D18 -> VBC3 | B18: VB | C18: C | D18: 3 | E18: C3C4 | F18: =IF(D18<8,IF(C18<>"A",CHAR(CODE(C18)-1)&D18+1,"")&IF(C18<>"H",CHAR(CODE(C18)+1)&D18+1,""),"") -> B4D4
A19: VBC4 | B19: VB | C19: C | D19: 4 | E19: C4C5 | F19: B5D5
A20: VBC5 | B20: VB | C20: C | D20: 5 | E20: C5C6 | F20: B6D6
A21: VBC6 | B21: VB | C21: C | D21: 6 | E21: C6C7 | F21: B7D7
A22: VBC7 | B22: VB | C22: C | D22: 7 | E22: C7C8 | F22: B8D8
A23: VBC8 | B23: VB | C23: C | D23: 8 | E23: C8
A24: =B24&C24&D24 -> VBD2 | B24: VB | C24: D | D24: 2 | E24: D2D3D4 | F24: =IF(D24<8,IF(C24<>"A",CHAR(CODE(C24)-1)&D24+1,"")&IF(C24<>"H",CHAR(CODE(C24)+1)&D24+1,""),"") -> C3E3
A25: =B25&C25&D25 -> VBD3 | B25: VB | C25: D | D25: 3 | E25: D3D4 | F25: =IF(D25<8,IF(C25<>"A",CHAR(CODE(C25)-1)&D25+1,"")&IF(C25<>"H",CHAR(CODE(C25)+1)&D25+1,""),"") -> C4E4
A26: VBD4 | B26: VB | C26: D | D26: 4 | E26: D4D5 | F26: C5E5
A27: VBD5 | B27: VB | C27: D | D27: 5 | E27: D5D6 | F27: C6E6
A28: VBD6 | B28: VB | C28: D | D28: 6 | E28: D6D7 | F28: C7E7
A29: VBD7 | B29: VB | C29: D | D29: 7 | E29: D7D8 | F29: C8E8
A30: VBD8 | B30: VB | C30: D | D30: 8 | E30: D8
A31: =B31&C31&D31 -> VBE2 | B31: VB | C31: E | D31: 2 | E31: =C31&D31&IF(D31<8,C31&D31+1,"")&IF(D31=2,C31&4,"") -> E2E3E4 | F31: =IF(D31<8,IF(C31<>"A",CHAR(CODE(C31)-1)&D31+1,"")&IF(C31<>"H",CHAR(CODE(C31)+1)&D31+1,""),"") -> D3F3
A32: VBE3 | B32: VB | C32: E | D32: 3 | E32: E3E4 | F32: D4F4
A33: VBE4 | B33: VB | C33: E | D33: 4 | E33: E4E5 | F33: D5F5
A34: VBE5 | B34: VB | C34: E | D34: 5 | E34: E5E6 | F34: D6F6
A35: VBE6 | B35: VB | C35: E | D35: 6 | E35: E6E7 | F35: D7F7
A36: VBE7 | B36: VB | C36: E | D36: 7 | E36: E7E8 | F36: D8F8
A37: VBE8 | B37: VB | C37: E | D37: 8 | E37: E8
A38: VBF2 | B38: VB | C38: F | D38: 2 | E38: F2F3F4 | F38: E3G3
A39: VBF3 | B39: VB | C39: F | D39: 3 | E39: F3F4 | F39: E4G4
A40: VBF4 | B40: VB | C40: F | D40: 4 | E40: F4F5 | F40: E5G5
A41: VBF5 | B41: VB | C41: F | D41: 5 | E41: F5F6 | F41: E6G6
A42: VBF6 | B42: VB | C42: F | D42: 6 | E42: F6F7 | F42: E7G7
A43: VBF7 | B43: VB | C43: F | D43: 7 | E43: F7F8 | F43: E8G8
A44: VBF8 | B44: VB | C44: F | D44: 8 | E44: F8
A45: =B45&C45&D45 -> VBG1 | B45: VB | C45: G | D45: 1 | E45: G1G2 | F45: =IF(D45<8,IF(C45<>"A",CHAR(CODE(C45)-1)&D45+1,"")&IF(C45<>"H",CHAR(CODE(C45)+1)&D45+1,""),"") -> F2H2
A46: VBG2 | B46: VB | C46: G | D46: 2 | E46: G2G3G4 | F46: F3H3
A47: VBG3 | B47: VB | C47: G | D47: 3 | E47: G3G4 | F47: F4H4
A48: VBG4 | B48: VB | C48: G | D48: 4 | E48: G4G5 | F48: F5H5
A49: VBG5 | B49: VB | C49: G | D49: 5 | E49: G5G6 | F49: F6H6
A50: VBG6 | B50: VB | C50: G | D50: 6 | E50: G6G7 | F50: F7H7
A51: VBG7 | B51: VB | C51: G | D51: 7 | E51: G7G8 | F51: F8H8
A52: VBG8 | B52: VB | C52: G | D52: 8 | E52: G8
A53: =B53&C53&D53 -> VBH2 | B53: VB | C53: H | D53: 2 | E53: H2H3H4 | F53: =IF(D53<8,IF(C53<>"A",CHAR(CODE(C53)-1)&D53+1,"")&IF(C53<>"H",CHAR(CODE(C53)+1)&D53+1,""),"") -> G3
A54: =B54&C54&D54 -> VBH3 | B54: VB | C54: H | D54: 3 | E54: H3H4 | F54: =IF(D54<8,IF(C54<>"A",CHAR(CODE(C54)-1)&D54+1,"")&IF(C54<>"H",CHAR(CODE(C54)+1)&D54+1,""),"") -> G4
A55: VBH4 | B55: VB | C55: H | D55: 4 | E55: H4H5 | F55: G5
A56: VBH5 | B56: VB | C56: H | D56: 5 | E56: H5H6 | F56: G6
A57: VBH6 | B57: VB | C57: H | D57: 6 | E57: H6H7 | F57: G7
A58: VBH7 | B58: VB | C58: H | D58: 7 | E58: H7H8 | F58: G8
A59: VBH8 | B59: VB | C59: H | D59: 8 | E59: H8
A60: =B60&C60&D60 -> VBH2 | B60: VB | C60: H | D60: 2 | E60: H2H3H4 | F60: =IF(D60<8,IF(C60<>"A",CHAR(CODE(C60)-1)&D60+1,"")&IF(C60<>"H",CHAR(CODE(C60)+1)&D60+1,""),"") -> G3
A61: =B61&C61&D61 -> VBH3 | B61: VB | C61: H | D61: 3 | E61: H3H4 | F61: =IF(D61<8,IF(C61<>"A",CHAR(CODE(C61)-1)&D61+1,"")&IF(C61<>"H",CHAR(CODE(C61)+1)&D61+1,""),"") -> G4
A62: VBH4 | B62: VB | C62: H | D62: 4 | E62: H4H5 | F62: G5
A63: VBH5 | B63: VB | C63: H | D63: 5 | E63: H5H6 | F63: G6
A64: VBH6 | B64: VB | C64: H | D64: 6 | E64: H6H7 | F64: G7
A65: VBH7 | B65: VB | C65: H | D65: 7 | E65: H7H8 | F65: G8
A66: VBH8 | B66: VB | C66: H | D66: 8 | E66: H8
A67: =B67&C67&D67 -> SBA1 | B67: SB | C67: A | D67: 1 | E67: =C67&D67&IF(D67>1,C67&D67-1,"")&IF(D67=7,C67&5,"") -> A1 | F67: =IF(D67>1,IF(C67<>"A",CHAR(CODE(C67)-1)&D67-1,"")&IF(C67<>"H",CHAR(CODE(C67)+1)&D67-1,""),"") -> 
A68: =B68&C68&D68 -> SBA2 | B68: SB | C68: A | D68: 2 | E68: =C68&D68&IF(D68>1,C68&D68-1,"")&IF(D68=7,C68&5,"") -> A2A1 | F68: =IF(D68>1,IF(C68<>"A",CHAR(CODE(C68)-1)&D68-1,"")&IF(C68<>"H",CHAR(CODE(C68)+1)&D68-1,""),"") -> B1
A69: SBA3 | B69: SB | C69: A | D69: 3 | E69: A3A2 | F69: B2
A70: SBA4 | B70: SB | C70: A | D70: 4 | E70: A4A3 | F70: B3
A71: SBA5 | B71: SB | C71: A | D71: 5 | E71: A5A4 | F71: B4
A72: SBA6 | B72: SB | C72: A | D72: 6 | E72: A6A5 | F72: B5
A73: SBA7 | B73: SB | C73: A | D73: 7 | E73: A7A6A5 | F73: B6
A74: =B74&C74&D74 -> SBB1 | B74: SB | C74: B | D74: 1 | E74: B1 | F74: =IF(D74>1,IF(C74<>"A",CHAR(CODE(C74)-1)&D74-1,"")&IF(C74<>"H",CHAR(CODE(C74)+1)&D74-1,""),"") -> 
A75: =B75&C75&D75 -> SBB2 | B75: SB | C75: B | D75: 2 | E75: B2B1 | F75: =IF(D75>1,IF(C75<>"A",CHAR(CODE(C75)-1)&D75-1,"")&IF(C75<>"H",CHAR(CODE(C75)+1)&D75-1,""),"") -> A1C1
A76: SBB3 | B76: SB | C76: B | D76: 3 | E76: B3B2 | F76: A2C2
A77: SBB4 | B77: SB | C77: B | D77: 4 | E77: B4B3 | F77: A3C3
A78: SBB5 | B78: SB | C78: B | D78: 5 | E78: B5B4 | F78: A4C4
A79: SBB6 | B79: SB | C79: B | D79: 6 | E79: B6B5 | F79: A5C5
A80: SBB7 | B80: SB | C80: B | D80: 7 | E80: B7B6B5 | F80: A6C6
A81: =B81&C81&D81 -> SBC1 | B81: SB | C81: C | D81: 1 | E81: C1 | F81: =IF(D81>1,IF(C81<>"A",CHAR(CODE(C81)-1)&D81-1,"")&IF(C81<>"H",CHAR(CODE(C81)+1)&D81-1,""),"") -> 
A82: =B82&C82&D82 -> SBC2 | B82: SB | C82: C | D82: 2 | E82: C2C1 | F82: =IF(D82>1,IF(C82<>"A",CHAR(CODE(C82)-1)&D82-1,"")&IF(C82<>"H",CHAR(CODE(C82)+1)&D82-1,""),"") -> B1D1
A83: SBC3 | B83: SB | C83: C | D83: 3 | E83: C3C2 | F83: B2D2
A84: SBC4 | B84: SB | C84: C | D84: 4 | E84: C4C3 | F84: B3D3
A85: SBC5 | B85: SB | C85: C | D85: 5 | E85: C5C4 | F85: B4D4
A86: SBC6 | B86: SB | C86: C | D86: 6 | E86: C6C5 | F86: B5D5
A87: SBC7 | B87: SB | C87: C | D87: 7 | E87: C7C6C5 | F87: B6D6
A88: =B88&C88&D88 -> SBD2 | B88: SB | C88: D | D88: 2 | E88: D2D1 | F88: =IF(D88>1,IF(C88<>"A",CHAR(CODE(C88)-1)&D88-1,"")&IF(C88<>"H",CHAR(CODE(C88)+1)&D88-1,""),"") -> C1E1
A89: SBD3 | B89: SB | C89: D | D89: 3 | E89: D3D2 | F89: C2E2
A90: SBD4 | B90: SB | C90: D | D90: 4 | E90: D4D3 | F90: C3E3
A91: SBD5 | B91: SB | C91: D | D91: 5 | E91: D5D4 | F91: C4E4
A92: SBD6 | B92: SB | C92: D | D92: 6 | E92: D6D5 | F92: C5E5
A93: SBD7 | B93: SB | C93: D | D93: 7 | E93: D7D6D5 | F93: C6E6
A94: =B94&C94&D94 -> SBE1 | B94: SB | C94: E | D94: 1 | E94: E1 | F94: =IF(D94>1,IF(C94<>"A",CHAR(CODE(C94)-1)&D94-1,"")&IF(C94<>"H",CHAR(CODE(C94)+1)&D94-1,""),"") -> 
A95: =B95&C95&D95 -> SBE2 | B95: SB | C95: E | D95: 2 | E95: E2E1 | F95: =IF(D95>1,IF(C95<>"A",CHAR(CODE(C95)-1)&D95-1,"")&IF(C95<>"H",CHAR(CODE(C95)+1)&D95-1,""),"") -> D1F1
A96: SBE3 | B96: SB | C96: E | D96: 3 | E96: E3E2 | F96: D2F2
A97: SBE4 | B97: SB | C97: E | D97: 4 | E97: E4E3 | F97: D3F3
A98: SBE5 | B98: SB | C98: E | D98: 5 | E98: E5E4 | F98: D4F4
A99: SBE6 | B99: SB | C99: E | D99: 6 | E99: E6E5 | F99: D5F5
A100: SBE7 | B100: SB | C100: E | D100: 7 | E100: E7E6E5 | F100: D6F6
A101: =B101&C101&D101 -> SBF1 | B101: SB | C101: F | D101: 1 | E101: F1 | F101: =IF(D101>1,IF(C101<>"A",CHAR(CODE(C101)-1)&D101-1,"")&IF(C101<>"H",CHAR(CODE(C101)+1)&D101-1,""),"") -> 
A102: =B102&C102&D102 -> SBF2 | B102: SB | C102: F | D102: 2 | E102: F2F1 | F102: =IF(D102>1,IF(C102<>"A",CHAR(CODE(C102)-1)&D102-1,"")&IF(C102<>"H",CHAR(CODE(C102)+1)&D102-1,""),"") -> E1G1
A103: SBF3 | B103: SB | C103: F | D103: 3 | E103: F3F2 | F103: E2G2
A104: SBF4 | B104: SB | C104: F | D104: 4 | E104: F4F3 | F104: E3G3
A105: SBF5 | B105: SB | C105: F | D105: 5 | E105: F5F4 | F105: E4G4
A106: SBF6 | B106: SB | C106: F | D106: 6 | E106: F6F5 | F106: E5G5
A107: SBF7 | B107: SB | C107: F | D107: 7 | E107: F7F6F5 | F107: E6G6
A108: =B108&C108&D108 -> SBG1 | B108: SB | C108: G | D108: 1 | E108: G1 | F108: =IF(D108>1,IF(C108<>"A",CHAR(CODE(C108)-1)&D108-1,"")&IF(C108<>"H",CHAR(CODE(C108)+1)&D108-1,""),"") -> 
A109: =B109&C109&D109 -> SBG2 | B109: SB | C109: G | D109: 2 | E109: G2G1 | F109: =IF(D109>1,IF(C109<>"A",CHAR(CODE(C109)-1)&D109-1,"")&IF(C109<>"H",CHAR(CODE(C109)+1)&D109-1,""),"") -> F1H1
A110: SBG3 | B110: SB | C110: G | D110: 3 | E110: G3G2 | F110: F2H2
A111: SBG4 | B111: SB | C111: G | D111: 4 | E111: G4G3 | F111: F3H3
A112: SBG5 | B112: SB | C112: G | D112: 5 | E112: G5G4 | F112: F4H4
A113: SBG6 | B113: SB | C113: G | D113: 6 | E113: G6G5 | F113: F5H5
A114: SBG7 | B114: SB | C114: G | D114: 7 | E114: G7G6G5 | F114: F6H6
A115: SBH2 | B115: SB | C115: H | D115: 2 | E115: H2H1 | F115: G1
A116: SBH3 | B116: SB | C116: H | D116: 3 | E116: H3H2 | F116: G2
A117: SBH4 | B117: SB | C117: H | D117: 4 | E117: H4H3 | F117: G3
A118: SBH5 | B118: SB | C118: H | D118: 5 | E118: H5H4 | F118: G4
A119: SBH6 | B119: SB | C119: H | D119: 6 | E119: H6H5 | F119: G5
A120: SBH7 | B120: SB | C120: H | D120: 7 | E120: H7H6H5 | F120: G6

Sheet RVL (hidden)
A1: Kombo | B1: Pjäs | C1: PosX | D1: PosY | E1: FlyttA | F1: FlyttB | G1: FlyttC | H1: FlyttD | I1: AttackA | J1: AttackB | K1: AttackC | L1: AttackD
A2: =B2&C2&D2 -> VLA1 | B2: VL | C2: A | D2: 1 | E2: =$C2&$D2&I2 -> A1 | F2: =C2&D2&J2 -> A1 | G2: =K2 ->  | H2: =L2 -> H8G7F6E5D4C3B2 | I2: =CONCATENATE(M2,N2,O2,P2,Q2,R2,S2) ->  | J2: =CONCATENATE(T2,U2,V2,W2,X2,Y2,Z2) ->  | K2: =CONCATENATE(AG2,AF2,AE2,AD2,AC2,AB2,AA2) ->  | L2: =CONCATENATE(AN2,AM2,AL2,AK2,AJ2,AI2,AH2) -> H8G7F6E5D4C3B2 | M2: =IF(AND($D2-1>0,CODE($C2)-1>64),CHAR(CODE($C2)-1)&$D2-1,"") ->  | N2: =IF(AND($D2-2>0,CODE($C2)-2>64),CHAR(CODE($C2)-2)&$D2-2,"") ->  | O2: =IF(AND($D2-3>0,CODE($C2)-3>64),CHAR(CODE($C2)-3)&$D2-3,"") ->  | P2: =IF(AND($D2-4>0,CODE($C2)-4>64),CHAR(CODE($C2)-4)&$D2-4,"") ->  | Q2: =IF(AND($D2-5>0,CODE($C2)-5>64),CHAR(CODE($C2)-5)&$D2-5,"") ->  | R2: =IF(AND($D2-6>0,CODE($C2)-6>64),CHAR(CODE($C2)-6)&$D2-6,"") ->  | S2: =IF(AND($D2-7>0,CODE($C2)-7>64),CHAR(CODE($C2)-7)&$D2-7,"") ->  | T2: =IF(AND($D2+1<9,CODE($C2)-1>64),CHAR(CODE($C2)-1)&$D2+1,"") ->  | U2: =IF(AND($D2+2<9,CODE($C2)-2>64),CHAR(CODE($C2)-2)&$D2+2,"") ->  | V2: =IF(AND($D2+3<9,CODE($C2)-3>64),CHAR(CODE($C2)-3)&$D2+3,"") ->  | W2: =IF(AND($D2+4<9,CODE($C2)-4>64),CHAR(CODE($C2)-4)&$D2+4,"") ->  | X2: =IF(AND($D2+5<9,CODE($C2)-5>64),CHAR(CODE($C2)-5)&$D2+5,"") ->  | Y2: =IF(AND($D2+6<9,CODE($C2)-6>64),CHAR(CODE($C2)-6)&$D2+6,"") ->  | Z2: =IF(AND($D2+7<9,CODE($C2)-7>64),CHAR(CODE($C2)-7)&$D2+7,"") ->  | AA2: =IF(AND($D2-1>0,CODE($C2)+1<73),CHAR(CODE($C2)+1)&$D2-1,"") ->  | AB2: =IF(AND($D2-2>0,CODE($C2)+2<73),CHAR(CODE($C2)+2)&$D2-2,"") ->  | AC2: =IF(AND($D2-3>0,CODE($C2)+3<73),CHAR(CODE($C2)+3)&$D2-3,"") ->  | AD2: =IF(AND($D2-4>0,CODE($C2)+4<73),CHAR(CODE($C2)+4)&$D2-4,"") ->  | AE2: =IF(AND($D2-5>0,CODE($C2)+5<73),CHAR(CODE($C2)+5)&$D2-5,"") ->  | AF2: =IF(AND($D2-6>0,CODE($C2)+6<73),CHAR(CODE($C2)+6)&$D2-6,"") ->  | AG2: =IF(AND($D2-7>0,CODE($C2)+7<73),CHAR(CODE($C2)+7)&$D2-7,"") ->  | AH2: =IF(AND($D2+1<9,CODE($C2)+1<73),CHAR(CODE($C2)+1)&$D2+1,"") -> B2 | AI2: =IF(AND($D2+2<9,CODE($C2)+2<73),CHAR(CODE($C2)+2)&$D2+2,"") -> C3 | AJ2: =IF(AND($D2+3<9,CODE($C2)+3<73),CHAR(CODE($C2)+3)&$D2+3,"") -> D4 | AK2: =IF(AND($D2+4<9,CODE($C2)+4<73),CHAR(CODE($C2)+4)&$D2+4,"") -> E5 | AL2: =IF(AND($D2+5<9,CODE($C2)+5<73),CHAR(CODE($C2)+5)&$D2+5,"") -> F6 | AM2: =IF(AND($D2+6<9,CODE($C2)+6<73),CHAR(CODE($C2)+6)&$D2+6,"") -> G7 | AN2: =IF(AND($D2+7<9,CODE($C2)+7<73),CHAR(CODE($C2)+7)&$D2+7,"") -> H8
A3: =B3&C3&D3 -> VLA2 | B3: VL | C3: A | D3: 2 | E3: =$C3&$D3&I3 -> A2 | F3: =C3&D3&J3 -> A2 | G3: =K3 -> B1 | H3: =L3 -> G8F7E6D5C4B3 | I3: =CONCATENATE(M3,N3,O3,P3,Q3,R3,S3) ->  | J3: =CONCATENATE(T3,U3,V3,W3,X3,Y3,Z3) ->  | K3: =CONCATENATE(AG3,AF3,AE3,AD3,AC3,AB3,AA3) -> B1 | L3: =CONCATENATE(AN3,AM3,AL3,AK3,AJ3,AI3,AH3) -> G8F7E6D5C4B3 | M3: =IF(AND($D3-1>0,CODE($C3)-1>64),CHAR(CODE($C3)-1)&$D3-1,"") ->  | N3: =IF(AND($D3-2>0,CODE($C3)-2>64),CHAR(CODE($C3)-2)&$D3-2,"") ->  | O3: =IF(AND($D3-3>0,CODE($C3)-3>64),CHAR(CODE($C3)-3)&$D3-3,"") ->  | P3: =IF(AND($D3-4>0,CODE($C3)-4>64),CHAR(CODE($C3)-4)&$D3-4,"") ->  | Q3: =IF(AND($D3-5>0,CODE($C3)-5>64),CHAR(CODE($C3)-5)&$D3-5,"") ->  | R3: =IF(AND($D3-6>0,CODE($C3)-6>64),CHAR(CODE($C3)-6)&$D3-6,"") ->  | S3: =IF(AND($D3-7>0,CODE($C3)-7>64),CHAR(CODE($C3)-7)&$D3-7,"") ->  | T3: =IF(AND($D3+1<9,CODE($C3)-1>64),CHAR(CODE($C3)-1)&$D3+1,"") ->  | U3: =IF(AND($D3+2<9,CODE($C3)-2>64),CHAR(CODE($C3)-2)&$D3+2,"") ->  | V3: =IF(AND($D3+3<9,CODE($C3)-3>64),CHAR(CODE($C3)-3)&$D3+3,"") ->  | W3: =IF(AND($D3+4<9,CODE($C3)-4>64),CHAR(CODE($C3)-4)&$D3+4,"") ->  | X3: =IF(AND($D3+5<9,CODE($C3)-5>64),CHAR(CODE($C3)-5)&$D3+5,"") ->  | Y3: =IF(AND($D3+6<9,CODE($C3)-6>64),CHAR(CODE($C3)-6)&$D3+6,"") ->  | Z3: =IF(AND($D3+7<9,CODE($C3)-7>64),CHAR(CODE($C3)-7)&$D3+7,"") ->  | AA3: =IF(AND($D3-1>0,CODE($C3)+1<73),CHAR(CODE($C3)+1)&$D3-1,"") -> B1 | AB3: =IF(AND($D3-2>0,CODE($C3)+2<73),CHAR(CODE($C3)+2)&$D3-2,"") ->  | AC3: =IF(AND($D3-3>0,CODE($C3)+3<73),CHAR(CODE($C3)+3)&$D3-3,"") ->  | AD3: =IF(AND($D3-4>0,CODE($C3)+4<73),CHAR(CODE($C3)+4)&$D3-4,"") ->  | AE3: =IF(AND($D3-5>0,CODE($C3)+5<73),CHAR(CODE($C3)+5)&$D3-5,"") ->  | AF3: =IF(AND($D3-6>0,CODE($C3)+6<73),CHAR(CODE($C3)+6)&$D3-6,"") ->  | AG3: =IF(AND($D3-7>0,CODE($C3)+7<73),CHAR(CODE($C3)+7)&$D3-7,"") ->  | AH3: =IF(AND($D3+1<9,CODE($C3)+1<73),CHAR(CODE($C3)+1)&$D3+1,"") -> B3 | AI3: =IF(AND($D3+2<9,CODE($C3)+2<73),CHAR(CODE($C3)+2)&$D3+2,"") -> C4 | AJ3: =IF(AND($D3+3<9,CODE($C3)+3<73),CHAR(CODE($C3)+3)&$D3+3,"") -> D5 | AK3: =IF(AND($D3+4<9,CODE($C3)+4<73),CHAR(CODE($C3)+4)&$D3+4,"") -> E6 | AL3: =IF(AND($D3+5<9,CODE($C3)+5<73),CHAR(CODE($C3)+5)&$D3+5,"") -> F7 | AM3: =IF(AND($D3+6<9,CODE($C3)+6<73),CHAR(CODE($C3)+6)&$D3+6,"") -> G8 | AN3: =IF(AND($D3+7<9,CODE($C3)+7<73),CHAR(CODE($C3)+7)&$D3+7,"") -> 
A4: VLA3 | B4: VL | C4: A | D4: 3 | E4: A3 | F4: A3 | G4: C1B2 | H4: F8E7D6C5B4 | K4: C1B2 | L4: F8E7D6C5B4 | AA4: B2 | AB4: C1 | AH4: B4 | AI4: C5 | AJ4: D6 | AK4: E7 | AL4: F8
A5: VLA4 | B5: VL | C5: A | D5: 4 | E5: =$C5&$D5&I5 -> A4 | F5: A4 | G5: D1C2B3 | H5: E8D7C6B5 | K5: D1C2B3 | L5: E8D7C6B5 | AA5: B3 | AB5: C2 | AC5: D1 | AH5: B5 | AI5: C6 | AJ5: D7 | AK5: E8
A6: VLA5 | B6: VL | C6: A | D6: 5 | E6: =$C6&$D6&I6 -> A5 | F6: A5 | G6: E1D2C3B4 | H6: D8C7B6 | K6: E1D2C3B4 | L6: D8C7B6 | AA6: B4 | AB6: C3 | AC6: D2 | AD6: E1 | AH6: B6 | AI6: C7 | AJ6: D8
A7: VLA6 | B7: VL | C7: A | D7: 6 | E7: A6 | F7: A6 | G7: F1E2D3C4B5 | H7: C8B7 | K7: F1E2D3C4B5 | L7: C8B7 | AA7: B5 | AB7: C4 | AC7: D3 | AD7: E2 | AE7: F1 | AH7: B7 | AI7: C8
A8: VLA7 | B8: VL | C8: A | D8: 7 | E8: =$C8&$D8&I8 -> A7 | F8: A7 | G8: G1F2E3D4C5B6 | H8: B8 | K8: G1F2E3D4C5B6 | L8: B8 | AA8: B6 | AB8: C5 | AC8: D4 | AD8: E3 | AE8: F2 | AF8: G1 | AH8: B8
A9: VLA8 | B9: VL | C9: A | D9: 8 | E9: A8 | F9: A8 | G9: H1G2F3E4D5C6B7 | K9: H1G2F3E4D5C6B7 | AA9: B7 | AB9: C6 | AC9: D5 | AD9: E4 | AE9: F3 | AF9: G2 | AG9: H1
A10: VLB1 | B10: VL | C10: B | D10: 1 | E10: B1 | F10: B1A2 | H10: H7G6F5E4D3C2 | J10: A2 | L10: H7G6F5E4D3C2 | T10: A2 | AH10: C2 | AI10: D3 | AJ10: E4 | AK10: F5 | AL10: G6 | AM10: H7
A11: VLB2 | B11: VL | C11: B | D11: 2 | E11: B2A1 | F11: B2A3 | G11: C1 | H11: H8G7F6E5D4C3 | I11: A1 | J11: A3 | K11: C1 | L11: H8G7F6E5D4C3 | M11: A1 | T11: A3 | AA11: C1 | AH11: C3 | AI11: D4 | AJ11: E5 | AK11: F6 | AL11: G7 | AM11: H8
A12: VLB3 | B12: VL | C12: B | D12: 3 | E12: B3A2 | F12: B3A4 | G12: D1C2 | H12: G8F7E6D5C4 | I12: A2 | J12: A4 | K12: D1C2 | L12: G8F7E6D5C4 | M12: A2 | T12: A4 | AA12: C2 | AB12: D1 | AH12: C4 | AI12: D5 | AJ12: E6 | AK12: F7 | AL12: G8
A13: VLB4 | B13: VL | C13: B | D13: 4 | E13: B4A3 | F13: B4A5 | G13: E1D2C3 | H13: F8E7D6C5 | I13: A3 | J13: A5 | K13: E1D2C3 | L13: F8E7D6C5 | M13: A3 | T13: A5 | AA13: C3 | AB13: D2 | AC13: E1 | AH13: C5 | AI13: D6 | AJ13: E7 | AK13: F8
A14: VLB5 | B14: VL | C14: B | D14: 5 | E14: B5A4 | F14: B5A6 | G14: F1E2D3C4 | H14: E8D7C6 | I14: A4 | J14: A6 | K14: F1E2D3C4 | L14: E8D7C6 | M14: A4 | T14: A6 | AA14: C4 | AB14: D3 | AC14: E2 | AD14: F1 | AH14: C6 | AI14: D7 | AJ14: E8
A15: VLB6 | B15: VL | C15: B | D15: 6 | E15: B6A5 | F15: B6A7 | G15: G1F2E3D4C5 | H15: D8C7 | I15: A5 | J15: A7 | K15: G1F2E3D4C5 | L15: D8C7 | M15: A5 | T15: A7 | AA15: C5 | AB15: D4 | AC15: E3 | AD15: F2 | AE15: G1 | AH15: C7 | AI15: D8
A16: VLB7 | B16: VL | C16: B | D16: 7 | E16: B7A6 | F16: B7A8 | G16: H1G2F3E4D5C6 | H16: C8 | I16: A6 | J16: A8 | K16: H1G2F3E4D5C6 | L16: C8 | M16: A6 | T16: A8 | AA16: C6 | AB16: D5 | AC16: E4 | AD16: F3 | AE16: G2 | AF16: H1 | AH16: C8
A17: VLB8 | B17: VL | C17: B | D17: 8 | E17: B8A7 | F17: B8 | G17: H2G3F4E5D6C7 | I17: A7 | K17: H2G3F4E5D6C7 | M17: A7 | AA17: C7 | AB17: D6 | AC17: E5 | AD17: F4 | AE17: G3 | AF17: H2
A18: VLC1 | B18: VL | C18: C | D18: 1 | E18: C1 | F18: C1B2A3 | H18: H6G5F4E3D2 | J18: B2A3 | L18: H6G5F4E3D2 | T18: B2 | U18: A3 | AH18: D2 | AI18: E3 | AJ18: F4 | AK18: G5 | AL18: H6
A19: =B19&C19&D19 -> VLC2 | B19: VL | C19: C | D19: 2 | E19: C2B1 | F19: C2B3A4 | G19: D1 | H19: H7G6F5E4D3 | I19: B1 | J19: B3A4 | K19: D1 | L19: H7G6F5E4D3 | M19: B1 | T19: B3 | U19: A4 | AA19: D1 | AH19: D3 | AI19: E4 | AJ19: F5 | AK19: G6 | AL19: H7
A20: =B20&C20&D20 -> VLC3 | B20: VL | C20: C | D20: 3 | E20: C3B2A1 | F20: C3B4A5 | G20: E1D2 | H20: H8G7F6E5D4 | I20: B2A1 | J20: B4A5 | K20: E1D2 | L20: H8G7F6E5D4 | M20: B2 | N20: A1 | T20: B4 | U20: A5 | AA20: D2 | AB20: E1 | AH20: D4 | AI20: E5 | AJ20: F6 | AK20: G7 | AL20: H8
A21: VLC4 | B21: VL | C21: C | D21: 4 | E21: C4B3A2 | F21: C4B5A6 | G21: F1E2D3 | H21: G8F7E6D5 | I21: B3A2 | J21: B5A6 | K21: F1E2D3 | L21: G8F7E6D5 | M21: B3 | N21: A2 | T21: B5 | U21: A6 | AA21: D3 | AB21: E2 | AC21: F1 | AH21: D5 | AI21: E6 | AJ21: F7 | AK21: G8
A22: VLC5 | B22: VL | C22: C | D22: 5 | E22: C5B4A3 | F22: C5B6A7 | G22: G1F2E3D4 | H22: F8E7D6 | I22: B4A3 | J22: B6A7 | K22: G1F2E3D4 | L22: F8E7D6 | M22: B4 | N22: A3 | T22: B6 | U22: A7 | AA22: D4 | AB22: E3 | AC22: F2 | AD22: G1 | AH22: D6 | AI22: E7 | AJ22: F8
A23: VLC6 | B23: VL | C23: C | D23: 6 | E23: C6B5A4 | F23: C6B7A8 | G23: H1G2F3E4D5 | H23: E8D7 | I23: B5A4 | J23: B7A8 | K23: H1G2F3E4D5 | L23: E8D7 | M23: B5 | N23: A4 | T23: B7 | U23: A8 | AA23: D5 | AB23: E4 | AC23: F3 | AD23: G2 | AE23: H1 | AH23: D7 | AI23: E8
A24: VLC7 | B24: VL | C24: C | D24: 7 | E24: C7B6A5 | F24: C7B8 | G24: H2G3F4E5D6 | H24: D8 | I24: B6A5 | J24: B8 | K24: H2G3F4E5D6 | L24: D8 | M24: B6 | N24: A5 | T24: B8 | AA24: D6 | AB24: E5 | AC24: F4 | AD24: G3 | AE24: H2 | AH24: D8
A25: VLC8 | B25: VL | C25: C | D25: 8 | E25: C8B7A6 | F25: C8 | G25: H3G4F5E6D7 | I25: B7A6 | K25: H3G4F5E6D7 | M25: B7 | N25: A6 | AA25: D7 | AB25: E6 | AC25: F5 | AD25: G4 | AE25: H3
A26: VLD1 | B26: VL | C26: D | D26: 1 | E26: D1 | F26: D1C2B3A4 | H26: H5G4F3E2 | J26: C2B3A4 | L26: H5G4F3E2 | T26: C2 | U26: B3 | V26: A4 | AH26: E2 | AI26: F3 | AJ26: G4 | AK26: H5
A27: =B27&C27&D27 -> VLD2 | B27: VL | C27: D | D27: 2 | E27: D2C1 | F27: D2C3B4A5 | G27: E1 | H27: H6G5F4E3 | I27: C1 | J27: C3B4A5 | K27: E1 | L27: H6G5F4E3 | M27: C1 | T27: C3 | U27: B4 | V27: A5 | AA27: E1 | AH27: E3 | AI27: F4 | AJ27: G5 | AK27: H6
A28: =B28&C28&D28 -> VLD3 | B28: VL | C28: D | D28: 3 | E28: D3C2B1 | F28: D3C4B5A6 | G28: F1E2 | H28: H7G6F5E4 | I28: C2B1 | J28: C4B5A6 | K28: F1E2 | L28: H7G6F5E4 | M28: C2 | N28: B1 | T28: C4 | U28: B5 | V28: A6 | AA28: E2 | AB28: F1 | AH28: E4 | AI28: F5 | AJ28: G6 | AK28: H7
A29: VLD4 | B29: VL | C29: D | D29: 4 | E29: D4C3B2A1 | F29: D4C5B6A7 | G29: G1F2E3 | H29: H8G7F6E5 | I29: C3B2A1 | J29: C5B6A7 | K29: G1F2E3 | L29: H8G7F6E5 | M29: C3 | N29: B2 | O29: A1 | T29: C5 | U29: B6 | V29: A7 | AA29: E3 | AB29: F2 | AC29: G1 | AH29: E5 | AI29: F6 | AJ29: G7 | AK29: H8
A30: VLD5 | B30: VL | C30: D | D30: 5 | E30: D5C4B3A2 | F30: D5C6B7A8 | G30: H1G2F3E4 | H30: G8F7E6 | I30: C4B3A2 | J30: C6B7A8 | K30: H1G2F3E4 | L30: G8F7E6 | M30: C4 | N30: B3 | O30: A2 | T30: C6 | U30: B7 | V30: A8 | AA30: E4 | AB30: F3 | AC30: G2 | AD30: H1 | AH30: E6 | AI30: F7 | AJ30: G8
A31: VLD6 | B31: VL | C31: D | D31: 6 | E31: D6C5B4A3 | F31: D6C7B8 | G31: H2G3F4E5 | H31: F8E7 | I31: C5B4A3 | J31: C7B8 | K31: H2G3F4E5 | L31: F8E7 | M31: C5 | N31: B4 | O31: A3 | T31: C7 | U31: B8 | AA31: E5 | AB31: F4 | AC31: G3 | AD31: H2 | AH31: E7 | AI31: F8
A32: VLD7 | B32: VL | C32: D | D32: 7 | E32: D7C6B5A4 | F32: D7C8 | G32: H3G4F5E6 | H32: E8 | I32: C6B5A4 | J32: C8 | K32: H3G4F5E6 | L32: E8 | M32: C6 | N32: B5 | O32: A4 | T32: C8 | AA32: E6 | AB32: F5 | AC32: G4 | AD32: H3 | AH32: E8
A33: VLD8 | B33: VL | C33: D | D33: 8 | E33: D8C7B6A5 | F33: D8 | G33: H4G5F6E7 | I33: C7B6A5 | K33: H4G5F6E7 | M33: C7 | N33: B6 | O33: A5 | AA33: E7 | AB33: F6 | AC33: G5 | AD33: H4
A34: VLE1 | B34: VL | C34: E | D34: 1 | E34: E1 | F34: E1D2C3B4A5 | H34: H4G3F2 | J34: D2C3B4A5 | L34: H4G3F2 | T34: D2 | U34: C3 | V34: B4 | W34: A5 | AH34: F2 | AI34: G3 | AJ34: H4
A35: VLE2 | B35: VL | C35: E | D35: 2 | E35: E2D1 | F35: E2D3C4B5A6 | G35: F1 | H35: H5G4F3 | I35: D1 | J35: D3C4B5A6 | K35: F1 | L35: H5G4F3 | M35: D1 | T35: D3 | U35: C4 | V35: B5 | W35: A6 | AA35: F1 | AH35: F3 | AI35: G4 | AJ35: H5
A36: VLE3 | B36: VL | C36: E | D36: 3 | E36: E3D2C1 | F36: E3D4C5B6A7 | G36: G1F2 | H36: H6G5F4 | I36: D2C1 | J36: D4C5B6A7 | K36: G1F2 | L36: H6G5F4 | M36: D2 | N36: C1 | T36: D4 | U36: C5 | V36: B6 | W36: A7 | AA36: F2 | AB36: G1 | AH36: F4 | AI36: G5 | AJ36: H6
A37: VLE4 | B37: VL | C37: E | D37: 4 | E37: E4D3C2B1 | F37: E4D5C6B7A8 | G37: H1G2F3 | H37: H7G6F5 | I37: D3C2B1 | J37: D5C6B7A8 | K37: H1G2F3 | L37: H7G6F5 | M37: D3 | N37: C2 | O37: B1 | T37: D5 | U37: C6 | V37: B7 | W37: A8 | AA37: F3 | AB37: G2 | AC37: H1 | AH37: F5 | AI37: G6 | AJ37: H7
A38: VLE5 | B38: VL | C38: E | D38: 5 | E38: E5D4C3B2A1 | F38: E5D6C7B8 | G38: H2G3F4 | H38: H8G7F6 | I38: D4C3B2A1 | J38: D6C7B8 | K38: H2G3F4 | L38: H8G7F6 | M38: D4 | N38: C3 | O38: B2 | P38: A1 | T38: D6 | U38: C7 | V38: B8 | AA38: F4 | AB38: G3 | AC38: H2 | AH38: F6 | AI38: G7 | AJ38: H8
A39: VLE6 | B39: VL | C39: E | D39: 6 | E39: E6D5C4B3A2 | F39: E6D7C8 | G39: H3G4F5 | H39: G8F7 | I39: D5C4B3A2 | J39: D7C8 | K39: H3G4F5 | L39: G8F7 | M39: D5 | N39: C4 | O39: B3 | P39: A2 | T39: D7 | U39: C8 | AA39: F5 | AB39: G4 | AC39: H3 | AH39: F7 | AI39: G8
A40: VLE7 | B40: VL | C40: E | D40: 7 | E40: E7D6C5B4A3 | F40: E7D8 | G40: H4G5F6 | H40: F8 | I40: D6C5B4A3 | J40: D8 | K40: H4G5F6 | L40: F8 | M40: D6 | N40: C5 | O40: B4 | P40: A3 | T40: D8 | AA40: F6 | AB40: G5 | AC40: H4 | AH40: F8
A41: VLE8 | B41: VL | C41: E | D41: 8 | E41: E8D7C6B5A4 | F41: E8 | G41: H5G6F7 | I41: D7C6B5A4 | K41: H5G6F7 | M41: D7 | N41: C6 | O41: B5 | P41: A4 | AA41: F7 | AB41: G6 | AC41: H5
A42: VLF1 | B42: VL | C42: F | D42: 1 | E42: F1 | F42: F1E2D3C4B5A6 | H42: H3G2 | J42: E2D3C4B5A6 | L42: H3G2 | T42: E2 | U42: D3 | V42: C4 | W42: B5 | X42: A6 | AH42: G2 | AI42: H3
A43: VLF2 | B43: VL | C43: F | D43: 2 | E43: F2E1 | F43: F2E3D4C5B6A7 | G43: G1 | H43: H4G3 | I43: E1 | J43: E3D4C5B6A7 | K43: G1 | L43: H4G3 | M43: E1 | T43: E3 | U43: D4 | V43: C5 | W43: B6 | X43: A7 | AA43: G1 | AH43: G3 | AI43: H4
A44: VLF3 | B44: VL | C44: F | D44: 3 | E44: F3E2D1 | F44: F3E4D5C6B7A8 | G44: H1G2 | H44: H5G4 | I44: E2D1 | J44: E4D5C6B7A8 | K44: H1G2 | L44: H5G4 | M44: E2 | N44: D1 | T44: E4 | U44: D5 | V44: C6 | W44: B7 | X44: A8 | AA44: G2 | AB44: H1 | AH44: G4 | AI44: H5
A45: VLF4 | B45: VL | C45: F | D45: 4 | E45: F4E3D2C1 | F45: F4E5D6C7B8 | G45: H2G3 | H45: H6G5 | I45: E3D2C1 | J45: E5D6C7B8 | K45: H2G3 | L45: H6G5 | M45: E3 | N45: D2 | O45: C1 | T45: E5 | U45: D6 | V45: C7 | W45: B8 | AA45: G3 | AB45: H2 | AH45: G5 | AI45: H6
A46: VLF5 | B46: VL | C46: F | D46: 5 | E46: F5E4D3C2B1 | F46: F5E6D7C8 | G46: H3G4 | H46: H7G6 | I46: E4D3C2B1 | J46: E6D7C8 | K46: H3G4 | L46: H7G6 | M46: E4 | N46: D3 | O46: C2 | P46: B1 | T46: E6 | U46: D7 | V46: C8 | AA46: G4 | AB46: H3 | AH46: G6 | AI46: H7
A47: VLF6 | B47: VL | C47: F | D47: 6 | E47: F6E5D4C3B2A1 | F47: F6E7D8 | G47: H4G5 | H47: H8G7 | I47: E5D4C3B2A1 | J47: E7D8 | K47: H4G5 | L47: H8G7 | M47: E5 | N47: D4 | O47: C3 | P47: B2 | Q47: A1 | T47: E7 | U47: D8 | AA47: G5 | AB47: H4 | AH47: G7 | AI47: H8
A48: VLF7 | B48: VL | C48: F | D48: 7 | E48: F7E6D5C4B3A2 | F48: F7E8 | G48: H5G6 | H48: G8 | I48: E6D5C4B3A2 | J48: E8 | K48: H5G6 | L48: G8 | M48: E6 | N48: D5 | O48: C4 | P48: B3 | Q48: A2 | T48: E8 | AA48: G6 | AB48: H5 | AH48: G8
A49: VLF8 | B49: VL | C49: F | D49: 8 | E49: F8E7D6C5B4A3 | F49: F8 | G49: H6G7 | I49: E7D6C5B4A3 | K49: H6G7 | M49: E7 | N49: D6 | O49: C5 | P49: B4 | Q49: A3 | AA49: G7 | AB49: H6
A50: VLG1 | B50: VL | C50: G | D50: 1 | E50: G1 | F50: G1F2E3D4C5B6A7 | H50: H2 | J50: F2E3D4C5B6A7 | L50: H2 | T50: F2 | U50: E3 | V50: D4 | W50: C5 | X50: B6 | Y50: A7 | AH50: H2
A51: VLG2 | B51: VL | C51: G | D51: 2 | E51: G2F1 | F51: G2F3E4D5C6B7A8 | G51: H1 | H51: H3 | I51: F1 | J51: F3E4D5C6B7A8 | K51: H1 | L51: H3 | M51: F1 | T51: F3 | U51: E4 | V51: D5 | W51: C6 | X51: B7 | Y51: A8 | AA51: H1 | AH51: H3
A52: VLG3 | B52: VL | C52: G | D52: 3 | E52: G3F2E1 | F52: G3F4E5D6C7B8 | G52: H2 | H52: H4 | I52: F2E1 | J52: F4E5D6C7B8 | K52: H2 | L52: H4 | M52: F2 | N52: E1 | T52: F4 | U52: E5 | V52: D6 | W52: C7 | X52: B8 | AA52: H2 | AH52: H4
A53: VLG4 | B53: VL | C53: G | D53: 4 | E53: G4F3E2D1 | F53: G4F5E6D7C8 | G53: H3 | H53: H5 | I53: F3E2D1 | J53: F5E6D7C8 | K53: H3 | L53: H5 | M53: F3 | N53: E2 | O53: D1 | T53: F5 | U53: E6 | V53: D7 | W53: C8 | AA53: H3 | AH53: H5
A54: VLG5 | B54: VL | C54: G | D54: 5 | E54: G5F4E3D2C1 | F54: G5F6E7D8 | G54: H4 | H54: H6 | I54: F4E3D2C1 | J54: F6E7D8 | K54: H4 | L54: H6 | M54: F4 | N54: E3 | O54: D2 | P54: C1 | T54: F6 | U54: E7 | V54: D8 | AA54: H4 | AH54: H6
A55: VLG6 | B55: VL | C55: G | D55: 6 | E55: G6F5E4D3C2B1 | F55: G6F7E8 | G55: H5 | H55: H7 | I55: F5E4D3C2B1 | J55: F7E8 | K55: H5 | L55: H7 | M55: F5 | N55: E4 | O55: D3 | P55: C2 | Q55: B1 | T55: F7 | U55: E8 | AA55: H5 | AH55: H7
A56: VLG7 | B56: VL | C56: G | D56: 7 | E56: G7F6E5D4C3B2A1 | F56: G7F8 | G56: H6 | H56: H8 | I56: F6E5D4C3B2A1 | J56: F8 | K56: H6 | L56: H8 | M56: F6 | N56: E5 | O56: D4 | P56: C3 | Q56: B2 | R56: A1 | T56: F8 | AA56: H6 | AH56: H8
A57: VLG8 | B57: VL | C57: G | D57: 8 | E57: G8F7E6D5C4B3A2 | F57: G8 | G57: H7 | I57: F7E6D5C4B3A2 | K57: H7 | M57: F7 | N57: E6 | O57: D5 | P57: C4 | Q57: B3 | R57: A2 | AA57: H7
A58: VLH1 | B58: VL | C58: H | D58: 1 | E58: H1 | F58: H1G2F3E4D5C6B7A8 | J58: G2F3E4D5C6B7A8 | T58: G2 | U58: F3 | V58: E4 | W58: D5 | X58: C6 | Y58: B7 | Z58: A8
A59: =B59&C59&D59 -> VLH2 | B59: VL | C59: H | D59: 2 | E59: H2G1 | F59: H2G3F4E5D6C7B8 | I59: G1 | J59: G3F4E5D6C7B8 | M59: G1 | T59: G3 | U59: F4 | V59: E5 | W59: D6 | X59: C7 | Y59: B8
A60: =B60&C60&D60 -> VLH3 | B60: VL | C60: H | D60: 3 | E60: H3G2F1 | F60: H3G4F5E6D7C8 | I60: G2F1 | J60: G4F5E6D7C8 | M60: G2 | N60: F1 | T60: G4 | U60: F5 | V60: E6 | W60: D7 | X60: C8
A61: VLH4 | B61: VL | C61: H | D61: 4 | E61: H4G3F2E1 | F61: H4G5F6E7D8 | I61: G3F2E1 | J61: G5F6E7D8 | M61: G3 | N61: F2 | O61: E1 | T61: G5 | U61: F6 | V61: E7 | W61: D8
A62: VLH5 | B62: VL | C62: H | D62: 5 | E62: H5G4F3E2D1 | F62: H5G6F7E8 | I62: G4F3E2D1 | J62: G6F7E8 | M62: G4 | N62: F3 | O62: E2 | P62: D1 | T62: G6 | U62: F7 | V62: E8
A63: VLH6 | B63: VL | C63: H | D63: 6 | E63: H6G5F4E3D2C1 | F63: H6G7F8 | I63: G5F4E3D2C1 | J63: G7F8 | M63: G5 | N63: F4 | O63: E3 | P63: D2 | Q63: C1 | T63: G7 | U63: F8
A64: VLH7 | B64: VL | C64: H | D64: 7 | E64: H7G6F5E4D3C2B1 | F64: H7G8 | I64: G6F5E4D3C2B1 | J64: G8 | M64: G6 | N64: F5 | O64: E4 | P64: D3 | Q64: C2 | R64: B1 | T64: G8
A65: VLH8 | B65: VL | C65: H | D65: 8 | E65: H8G7F6E5D4C3B2A1 | F65: H8 | I65: G7F6E5D4C3B2A1 | M65: G7 | N65: F6 | O65: E5 | P65: D4 | Q65: C3 | R65: B2 | S65: A1
A66: =B66&C66&D66 -> SLA1 | B66: SL | C66: A | D66: 1 | E66: A1 | F66: A1 | H66: H8G7F6E5D4C3B2 | L66: H8G7F6E5D4C3B2 | AH66: B2 | AI66: C3 | AJ66: D4 | AK66: E5 | AL66: F6 | AM66: G7 | AN66: H8
A67: =B67&C67&D67 -> SLA2 | B67: SL | C67: A | D67: 2 | E67: =$C67&$D67&I67 -> A2 | F67: =C67&D67&J67 -> A2 | G67: =K67 -> B1 | H67: =L67 -> G8F7E6D5C4B3 | I67: =CONCATENATE(M67,N67,O67,P67,Q67,R67,S67) ->  | J67: =CONCATENATE(T67,U67,V67,W67,X67,Y67,Z67) ->  | K67: =CONCATENATE(AG67,AF67,AE67,AD67,AC67,AB67,AA67) -> B1 | L67: =CONCATENATE(AN67,AM67,AL67,AK67,AJ67,AI67,AH67) -> G8F7E6D5C4B3 | M67: =IF(AND($D67-1>0,CODE($C67)-1>64),CHAR(CODE($C67)-1)&$D67-1,"") ->  | N67: =IF(AND($D67-2>0,CODE($C67)-2>64),CHAR(CODE($C67)-2)&$D67-2,"") ->  | O67: =IF(AND($D67-3>0,CODE($C67)-3>64),CHAR(CODE($C67)-3)&$D67-3,"") ->  | P67: =IF(AND($D67-4>0,CODE($C67)-4>64),CHAR(CODE($C67)-4)&$D67-4,"") ->  | Q67: =IF(AND($D67-5>0,CODE($C67)-5>64),CHAR(CODE($C67)-5)&$D67-5,"") ->  | R67: =IF(AND($D67-6>0,CODE($C67)-6>64),CHAR(CODE($C67)-6)&$D67-6,"") ->  | S67: =IF(AND($D67-7>0,CODE($C67)-7>64),CHAR(CODE($C67)-7)&$D67-7,"") ->  | T67: =IF(AND($D67+1<9,CODE($C67)-1>64),CHAR(CODE($C67)-1)&$D67+1,"") ->  | U67: =IF(AND($D67+2<9,CODE($C67)-2>64),CHAR(CODE($C67)-2)&$D67+2,"") ->  | V67: =IF(AND($D67+3<9,CODE($C67)-3>64),CHAR(CODE($C67)-3)&$D67+3,"") ->  | W67: =IF(AND($D67+4<9,CODE($C67)-4>64),CHAR(CODE($C67)-4)&$D67+4,"") ->  | X67: =IF(AND($D67+5<9,CODE($C67)-5>64),CHAR(CODE($C67)-5)&$D67+5,"") ->  | Y67: =IF(AND($D67+6<9,CODE($C67)-6>64),CHAR(CODE($C67)-6)&$D67+6,"") ->  | Z67: =IF(AND($D67+7<9,CODE($C67)-7>64),CHAR(CODE($C67)-7)&$D67+7,"") ->  | AA67: =IF(AND($D67-1>0,CODE($C67)+1<73),CHAR(CODE($C67)+1)&$D67-1,"") -> B1 | AB67: =IF(AND($D67-2>0,CODE($C67)+2<73),CHAR(CODE($C67)+2)&$D67-2,"") ->  | AC67: =IF(AND($D67-3>0,CODE($C67)+3<73),CHAR(CODE($C67)+3)&$D67-3,"") ->  | AD67: =IF(AND($D67-4>0,CODE($C67)+4<73),CHAR(CODE($C67)+4)&$D67-4,"") ->  | AE67: =IF(AND($D67-5>0,CODE($C67)+5<73),CHAR(CODE($C67)+5)&$D67-5,"") ->  | AF67: =IF(AND($D67-6>0,CODE($C67)+6<73),CHAR(CODE($C67)+6)&$D67-6,"") ->  | AG67: =IF(AND($D67-7>0,CODE($C67)+7<73),CHAR(CODE($C67)+7)&$D67-7,"") ->  | AH67: =IF(AND($D67+1<9,CODE($C67)+1<73),CHAR(CODE($C67)+1)&$D67+1,"") -> B3 | AI67: =IF(AND($D67+2<9,CODE($C67)+2<73),CHAR(CODE($C67)+2)&$D67+2,"") -> C4 | AJ67: =IF(AND($D67+3<9,CODE($C67)+3<73),CHAR(CODE($C67)+3)&$D67+3,"") -> D5 | AK67: =IF(AND($D67+4<9,CODE($C67)+4<73),CHAR(CODE($C67)+4)&$D67+4,"") -> E6 | AL67: =IF(AND($D67+5<9,CODE($C67)+5<73),CHAR(CODE($C67)+5)&$D67+5,"") -> F7 | AM67: =IF(AND($D67+6<9,CODE($C67)+6<73),CHAR(CODE($C67)+6)&$D67+6,"") -> G8 | AN67: =IF(AND($D67+7<9,CODE($C67)+7<73),CHAR(CODE($C67)+7)&$D67+7,"") -> 
A68: SLA3 | B68: SL | C68: A | D68: 3 | E68: A3 | F68: A3 | G68: C1B2 | H68: F8E7D6C5B4 | K68: C1B2 | L68: F8E7D6C5B4 | AA68: B2 | AB68: C1 | AH68: B4 | AI68: C5 | AJ68: D6 | AK68: E7 | AL68: F8
A69: SLA4 | B69: SL | C69: A | D69: 4 | E69: A4 | F69: A4 | G69: D1C2B3 | H69: E8D7C6B5 | K69: D1C2B3 | L69: E8D7C6B5 | AA69: B3 | AB69: C2 | AC69: D1 | AH69: B5 | AI69: C6 | AJ69: D7 | AK69: E8
A70: SLA5 | B70: SL | C70: A | D70: 5 | E70: A5 | F70: A5 | G70: E1D2C3B4 | H70: D8C7B6 | K70: E1D2C3B4 | L70: D8C7B6 | AA70: B4 | AB70: C3 | AC70: D2 | AD70: E1 | AH70: B6 | AI70: C7 | AJ70: D8
A71: SLA6 | B71: SL | C71: A | D71: 6 | E71: A6 | F71: A6 | G71: F1E2D3C4B5 | H71: C8B7 | K71: F1E2D3C4B5 | L71: C8B7 | AA71: B5 | AB71: C4 | AC71: D3 | AD71: E2 | AE71: F1 | AH71: B7 | AI71: C8
A72: SLA7 | B72: SL | C72: A | D72: 7 | E72: A7 | F72: A7 | G72: G1F2E3D4C5B6 | H72: B8 | K72: G1F2E3D4C5B6 | L72: B8 | AA72: B6 | AB72: C5 | AC72: D4 | AD72: E3 | AE72: F2 | AF72: G1 | AH72: B8
A73: SLA8 | B73: SL | C73: A | D73: 8 | E73: A8 | F73: A8 | G73: H1G2F3E4D5C6B7 | K73: H1G2F3E4D5C6B7 | AA73: B7 | AB73: C6 | AC73: D5 | AD73: E4 | AE73: F3 | AF73: G2 | AG73: H1
A74: SLB1 | B74: SL | C74: B | D74: 1 | E74: B1 | F74: B1A2 | H74: H7G6F5E4D3C2 | J74: A2 | L74: H7G6F5E4D3C2 | T74: A2 | AH74: C2 | AI74: D3 | AJ74: E4 | AK74: F5 | AL74: G6 | AM74: H7
A75: SLB2 | B75: SL | C75: B | D75: 2 | E75: B2A1 | F75: B2A3 | G75: C1 | H75: H8G7F6E5D4C3 | I75: A1 | J75: A3 | K75: C1 | L75: H8G7F6E5D4C3 | M75: A1 | T75: A3 | AA75: C1 | AH75: C3 | AI75: D4 | AJ75: E5 | AK75: F6 | AL75: G7 | AM75: H8
A76: SLB3 | B76: SL | C76: B | D76: 3 | E76: B3A2 | F76: B3A4 | G76: D1C2 | H76: G8F7E6D5C4 | I76: A2 | J76: A4 | K76: D1C2 | L76: G8F7E6D5C4 | M76: A2 | T76: A4 | AA76: C2 | AB76: D1 | AH76: C4 | AI76: D5 | AJ76: E6 | AK76: F7 | AL76: G8
A77: SLB4 | B77: SL | C77: B | D77: 4 | E77: B4A3 | F77: B4A5 | G77: E1D2C3 | H77: F8E7D6C5 | I77: A3 | J77: A5 | K77: E1D2C3 | L77: F8E7D6C5 | M77: A3 | T77: A5 | AA77: C3 | AB77: D2 | AC77: E1 | AH77: C5 | AI77: D6 | AJ77: E7 | AK77: F8
A78: SLB5 | B78: SL | C78: B | D78: 5 | E78: B5A4 | F78: B5A6 | G78: F1E2D3C4 | H78: E8D7C6 | I78: A4 | J78: A6 | K78: F1E2D3C4 | L78: E8D7C6 | M78: A4 | T78: A6 | AA78: C4 | AB78: D3 | AC78: E2 | AD78: F1 | AH78: C6 | AI78: D7 | AJ78: E8
A79: SLB6 | B79: SL | C79: B | D79: 6 | E79: B6A5 | F79: B6A7 | G79: G1F2E3D4C5 | H79: D8C7 | I79: A5 | J79: A7 | K79: G1F2E3D4C5 | L79: D8C7 | M79: A5 | T79: A7 | AA79: C5 | AB79: D4 | AC79: E3 | AD79: F2 | AE79: G1 | AH79: C7 | AI79: D8
A80: SLB7 | B80: SL | C80: B | D80: 7 | E80: B7A6 | F80: B7A8 | G80: H1G2F3E4D5C6 | H80: C8 | I80: A6 | J80: A8 | K80: H1G2F3E4D5C6 | L80: C8 | M80: A6 | T80: A8 | AA80: C6 | AB80: D5 | AC80: E4 | AD80: F3 | AE80: G2 | AF80: H1 | AH80: C8
A81: SLB8 | B81: SL | C81: B | D81: 8 | E81: B8A7 | F81: B8 | G81: H2G3F4E5D6C7 | I81: A7 | K81: H2G3F4E5D6C7 | M81: A7 | AA81: C7 | AB81: D6 | AC81: E5 | AD81: F4 | AE81: G3 | AF81: H2
A82: SLC1 | B82: SL | C82: C | D82: 1 | E82: C1 | F82: C1B2A3 | H82: H6G5F4E3D2 | J82: B2A3 | L82: H6G5F4E3D2 | T82: B2 | U82: A3 | AH82: D2 | AI82: E3 | AJ82: F4 | AK82: G5 | AL82: H6
A83: =B83&C83&D83 -> SLC2 | B83: SL | C83: C | D83: 2 | E83: C2B1 | F83: C2B3A4 | G83: D1 | H83: H7G6F5E4D3 | I83: B1 | J83: B3A4 | K83: D1 | L83: H7G6F5E4D3 | M83: B1 | T83: B3 | U83: A4 | AA83: D1 | AH83: D3 | AI83: E4 | AJ83: F5 | AK83: G6 | AL83: H7
A84: =B84&C84&D84 -> SLC3 | B84: SL | C84: C | D84: 3 | E84: C3B2A1 | F84: C3B4A5 | G84: E1D2 | H84: H8G7F6E5D4 | I84: B2A1 | J84: B4A5 | K84: E1D2 | L84: H8G7F6E5D4 | M84: B2 | N84: A1 | T84: B4 | U84: A5 | AA84: D2 | AB84: E1 | AH84: D4 | AI84: E5 | AJ84: F6 | AK84: G7 | AL84: H8
A85: SLC4 | B85: SL | C85: C | D85: 4 | E85: C4B3A2 | F85: C4B5A6 | G85: F1E2D3 | H85: G8F7E6D5 | I85: B3A2 | J85: B5A6 | K85: F1E2D3 | L85: G8F7E6D5 | M85: B3 | N85: A2 | T85: B5 | U85: A6 | AA85: D3 | AB85: E2 | AC85: F1 | AH85: D5 | AI85: E6 | AJ85: F7 | AK85: G8
A86: SLC5 | B86: SL | C86: C | D86: 5 | E86: C5B4A3 | F86: C5B6A7 | G86: G1F2E3D4 | H86: F8E7D6 | I86: B4A3 | J86: B6A7 | K86: G1F2E3D4 | L86: F8E7D6 | M86: B4 | N86: A3 | T86: B6 | U86: A7 | AA86: D4 | AB86: E3 | AC86: F2 | AD86: G1 | AH86: D6 | AI86: E7 | AJ86: F8
A87: SLC6 | B87: SL | C87: C | D87: 6 | E87: C6B5A4 | F87: C6B7A8 | G87: H1G2F3E4D5 | H87: E8D7 | I87: B5A4 | J87: B7A8 | K87: H1G2F3E4D5 | L87: E8D7 | M87: B5 | N87: A4 | T87: B7 | U87: A8 | AA87: D5 | AB87: E4 | AC87: F3 | AD87: G2 | AE87: H1 | AH87: D7 | AI87: E8
A88: SLC7 | B88: SL | C88: C | D88: 7 | E88: C7B6A5 | F88: C7B8 | G88: H2G3F4E5D6 | H88: D8 | I88: B6A5 | J88: B8 | K88: H2G3F4E5D6 | L88: D8 | M88: B6 | N88: A5 | T88: B8 | AA88: D6 | AB88: E5 | AC88: F4 | AD88: G3 | AE88: H2 | AH88: D8
A89: SLC8 | B89: SL | C89: C | D89: 8 | E89: C8B7A6 | F89: C8 | G89: H3G4F5E6D7 | I89: B7A6 | K89: H3G4F5E6D7 | M89: B7 | N89: A6 | AA89: D7 | AB89: E6 | AC89: F5 | AD89: G4 | AE89: H3
A90: SLD1 | B90: SL | C90: D | D90: 1 | E90: D1 | F90: D1C2B3A4 | H90: H5G4F3E2 | J90: C2B3A4 | L90: H5G4F3E2 | T90: C2 | U90: B3 | V90: A4 | AH90: E2 | AI90: F3 | AJ90: G4 | AK90: H5
A91: =B91&C91&D91 -> SLD2 | B91: SL | C91: D | D91: 2 | E91: D2C1 | F91: D2C3B4A5 | G91: E1 | H91: H6G5F4E3 | I91: C1 | J91: C3B4A5 | K91: E1 | L91: H6G5F4E3 | M91: C1 | T91: C3 | U91: B4 | V91: A5 | AA91: E1 | AH91: E3 | AI91: F4 | AJ91: G5 | AK91: H6
A92: =B92&C92&D92 -> SLD3 | B92: SL | C92: D | D92: 3 | E92: D3C2B1 | F92: D3C4B5A6 | G92: F1E2 | H92: H7G6F5E4 | I92: C2B1 | J92: C4B5A6 | K92: F1E2 | L92: H7G6F5E4 | M92: C2 | N92: B1 | T92: C4 | U92: B5 | V92: A6 | AA92: E2 | AB92: F1 | AH92: E4 | AI92: F5 | AJ92: G6 | AK92: H7
A93: SLD4 | B93: SL | C93: D | D93: 4 | E93: D4C3B2A1 | F93: D4C5B6A7 | G93: G1F2E3 | H93: H8G7F6E5 | I93: C3B2A1 | J93: C5B6A7 | K93: G1F2E3 | L93: H8G7F6E5 | M93: C3 | N93: B2 | O93: A1 | T93: C5 | U93: B6 | V93: A7 | AA93: E3 | AB93: F2 | AC93: G1 | AH93: E5 | AI93: F6 | AJ93: G7 | AK93: H8
A94: SLD5 | B94: SL | C94: D | D94: 5 | E94: D5C4B3A2 | F94: D5C6B7A8 | G94: H1G2F3E4 | H94: G8F7E6 | I94: C4B3A2 | J94: C6B7A8 | K94: H1G2F3E4 | L94: G8F7E6 | M94: C4 | N94: B3 | O94: A2 | T94: C6 | U94: B7 | V94: A8 | AA94: E4 | AB94: F3 | AC94: G2 | AD94: H1 | AH94: E6 | AI94: F7 | AJ94: G8
A95: SLD6 | B95: SL | C95: D | D95: 6 | E95: D6C5B4A3 | F95: D6C7B8 | G95: H2G3F4E5 | H95: F8E7 | I95: C5B4A3 | J95: C7B8 | K95: H2G3F4E5 | L95: F8E7 | M95: C5 | N95: B4 | O95: A3 | T95: C7 | U95: B8 | AA95: E5 | AB95: F4 | AC95: G3 | AD95: H2 | AH95: E7 | AI95: F8
A96: SLD7 | B96: SL | C96: D | D96: 7 | E96: D7C6B5A4 | F96: D7C8 | G96: H3G4F5E6 | H96: E8 | I96: C6B5A4 | J96: C8 | K96: H3G4F5E6 | L96: E8 | M96: C6 | N96: B5 | O96: A4 | T96: C8 | AA96: E6 | AB96: F5 | AC96: G4 | AD96: H3 | AH96: E8
A97: SLD8 | B97: SL | C97: D | D97: 8 | E97: D8C7B6A5 | F97: D8 | G97: H4G5F6E7 | I97: C7B6A5 | K97: H4G5F6E7 | M97: C7 | N97: B6 | O97: A5 | AA97: E7 | AB97: F6 | AC97: G5 | AD97: H4
A98: SLE1 | B98: SL | C98: E | D98: 1 | E98: E1 | F98: E1D2C3B4A5 | H98: H4G3F2 | J98: D2C3B4A5 | L98: H4G3F2 | T98: D2 | U98: C3 | V98: B4 | W98: A5 | AH98: F2 | AI98: G3 | AJ98: H4
A99: SLE2 | B99: SL | C99: E | D99: 2 | E99: E2D1 | F99: E2D3C4B5A6 | G99: F1 | H99: H5G4F3 | I99: D1 | J99: D3C4B5A6 | K99: F1 | L99: H5G4F3 | M99: D1 | T99: D3 | U99: C4 | V99: B5 | W99: A6 | AA99: F1 | AH99: F3 | AI99: G4 | AJ99: H5
A100: SLE3 | B100: SL | C100: E | D100: 3 | E100: E3D2C1 | F100: E3D4C5B6A7 | G100: G1F2 | H100: H6G5F4 | I100: D2C1 | J100: D4C5B6A7 | K100: G1F2 | L100: H6G5F4 | M100: D2 | N100: C1 | T100: D4 | U100: C5 | V100: B6 | W100: A7 | AA100: F2 | AB100: G1 | AH100: F4 | AI100: G5 | AJ100: H6
A101: SLE4 | B101: SL | C101: E | D101: 4 | E101: E4D3C2B1 | F101: E4D5C6B7A8 | G101: H1G2F3 | H101: H7G6F5 | I101: D3C2B1 | J101: D5C6B7A8 | K101: H1G2F3 | L101: H7G6F5 | M101: D3 | N101: C2 | O101: B1 | T101: D5 | U101: C6 | V101: B7 | W101: A8 | AA101: F3 | AB101: G2 | AC101: H1 | AH101: F5 | AI101: G6 | AJ101: H7
A102: SLE5 | B102: SL | C102: E | D102: 5 | E102: E5D4C3B2A1 | F102: E5D6C7B8 | G102: H2G3F4 | H102: H8G7F6 | I102: D4C3B2A1 | J102: D6C7B8 | K102: H2G3F4 | L102: H8G7F6 | M102: D4 | N102: C3 | O102: B2 | P102: A1 | T102: D6 | U102: C7 | V102: B8 | AA102: F4 | AB102: G3 | AC102: H2 | AH102: F6 | AI102: G7 | AJ102: H8
A103: SLE6 | B103: SL | C103: E | D103: 6 | E103: E6D5C4B3A2 | F103: E6D7C8 | G103: H3G4F5 | H103: G8F7 | I103: D5C4B3A2 | J103: D7C8 | K103: H3G4F5 | L103: G8F7 | M103: D5 | N103: C4 | O103: B3 | P103: A2 | T103: D7 | U103: C8 | AA103: F5 | AB103: G4 | AC103: H3 | AH103: F7 | AI103: G8
A104: SLE7 | B104: SL | C104: E | D104: 7 | E104: E7D6C5B4A3 | F104: E7D8 | G104: H4G5F6 | H104: F8 | I104: D6C5B4A3 | J104: D8 | K104: H4G5F6 | L104: F8 | M104: D6 | N104: C5 | O104: B4 | P104: A3 | T104: D8 | AA104: F6 | AB104: G5 | AC104: H4 | AH104: F8
A105: SLE8 | B105: SL | C105: E | D105: 8 | E105: E8D7C6B5A4 | F105: E8 | G105: H5G6F7 | I105: D7C6B5A4 | K105: H5G6F7 | M105: D7 | N105: C6 | O105: B5 | P105: A4 | AA105: F7 | AB105: G6 | AC105: H5
A106: SLF1 | B106: SL | C106: F | D106: 1 | E106: F1 | F106: F1E2D3C4B5A6 | H106: H3G2 | J106: E2D3C4B5A6 | L106: H3G2 | T106: E2 | U106: D3 | V106: C4 | W106: B5 | X106: A6 | AH106: G2 | AI106: H3
A107: SLF2 | B107: SL | C107: F | D107: 2 | E107: F2E1 | F107: F2E3D4C5B6A7 | G107: G1 | H107: H4G3 | I107: E1 | J107: E3D4C5B6A7 | K107: G1 | L107: H4G3 | M107: E1 | T107: E3 | U107: D4 | V107: C5 | W107: B6 | X107: A7 | AA107: G1 | AH107: G3 | AI107: H4
A108: SLF3 | B108: SL | C108: F | D108: 3 | E108: F3E2D1 | F108: F3E4D5C6B7A8 | G108: H1G2 | H108: H5G4 | I108: E2D1 | J108: E4D5C6B7A8 | K108: H1G2 | L108: H5G4 | M108: E2 | N108: D1 | T108: E4 | U108: D5 | V108: C6 | W108: B7 | X108: A8 | AA108: G2 | AB108: H1 | AH108: G4 | AI108: H5
A109: SLF4 | B109: SL | C109: F | D109: 4 | E109: F4E3D2C1 | F109: F4E5D6C7B8 | G109: H2G3 | H109: H6G5 | I109: E3D2C1 | J109: E5D6C7B8 | K109: H2G3 | L109: H6G5 | M109: E3 | N109: D2 | O109: C1 | T109: E5 | U109: D6 | V109: C7 | W109: B8 | AA109: G3 | AB109: H2 | AH109: G5 | AI109: H6
A110: SLF5 | B110: SL | C110: F | D110: 5 | E110: F5E4D3C2B1 | F110: F5E6D7C8 | G110: H3G4 | H110: H7G6 | I110: E4D3C2B1 | J110: E6D7C8 | K110: H3G4 | L110: H7G6 | M110: E4 | N110: D3 | O110: C2 | P110: B1 | T110: E6 | U110: D7 | V110: C8 | AA110: G4 | AB110: H3 | AH110: G6 | AI110: H7
A111: SLF6 | B111: SL | C111: F | D111: 6 | E111: F6E5D4C3B2A1 | F111: F6E7D8 | G111: H4G5 | H111: H8G7 | I111: E5D4C3B2A1 | J111: E7D8 | K111: H4G5 | L111: H8G7 | M111: E5 | N111: D4 | O111: C3 | P111: B2 | Q111: A1 | T111: E7 | U111: D8 | AA111: G5 | AB111: H4 | AH111: G7 | AI111: H8
A112: SLF7 | B112: SL | C112: F | D112: 7 | E112: F7E6D5C4B3A2 | F112: F7E8 | G112: H5G6 | H112: G8 | I112: E6D5C4B3A2 | J112: E8 | K112: H5G6 | L112: G8 | M112: E6 | N112: D5 | O112: C4 | P112: B3 | Q112: A2 | T112: E8 | AA112: G6 | AB112: H5 | AH112: G8
A113: SLF8 | B113: SL | C113: F | D113: 8 | E113: F8E7D6C5B4A3 | F113: F8 | G113: H6G7 | I113: E7D6C5B4A3 | K113: H6G7 | M113: E7 | N113: D6 | O113: C5 | P113: B4 | Q113: A3 | AA113: G7 | AB113: H6
A114: SLG1 | B114: SL | C114: G | D114: 1 | E114: G1 | F114: G1F2E3D4C5B6A7 | H114: H2 | J114: F2E3D4C5B6A7 | L114: H2 | T114: F2 | U114: E3 | V114: D4 | W114: C5 | X114: B6 | Y114: A7 | AH114: H2
A115: SLG2 | B115: SL | C115: G | D115: 2 | E115: G2F1 | F115: G2F3E4D5C6B7A8 | G115: H1 | H115: H3 | I115: F1 | J115: F3E4D5C6B7A8 | K115: H1 | L115: H3 | M115: F1 | T115: F3 | U115: E4 | V115: D5 | W115: C6 | X115: B7 | Y115: A8 | AA115: H1 | AH115: H3
A116: SLG3 | B116: SL | C116: G | D116: 3 | E116: G3F2E1 | F116: G3F4E5D6C7B8 | G116: H2 | H116: H4 | I116: F2E1 | J116: F4E5D6C7B8 | K116: H2 | L116: H4 | M116: F2 | N116: E1 | T116: F4 | U116: E5 | V116: D6 | W116: C7 | X116: B8 | AA116: H2 | AH116: H4
A117: SLG4 | B117: SL | C117: G | D117: 4 | E117: G4F3E2D1 | F117: G4F5E6D7C8 | G117: H3 | H117: H5 | I117: F3E2D1 | J117: F5E6D7C8 | K117: H3 | L117: H5 | M117: F3 | N117: E2 | O117: D1 | T117: F5 | U117: E6 | V117: D7 | W117: C8 | AA117: H3 | AH117: H5
A118: SLG5 | B118: SL | C118: G | D118: 5 | E118: G5F4E3D2C1 | F118: G5F6E7D8 | G118: H4 | H118: H6 | I118: F4E3D2C1 | J118: F6E7D8 | K118: H4 | L118: H6 | M118: F4 | N118: E3 | O118: D2 | P118: C1 | T118: F6 | U118: E7 | V118: D8 | AA118: H4 | AH118: H6
A119: SLG6 | B119: SL | C119: G | D119: 6 | E119: G6F5E4D3C2B1 | F119: G6F7E8 | G119: H5 | H119: H7 | I119: F5E4D3C2B1 | J119: F7E8 | K119: H5 | L119: H7 | M119: F5 | N119: E4 | O119: D3 | P119: C2 | Q119: B1 | T119: F7 | U119: E8 | AA119: H5 | AH119: H7
A120: SLG7 | B120: SL | C120: G | D120: 7 | E120: G7F6E5D4C3B2A1 | F120: G7F8 | G120: H6 | H120: H8 | I120: F6E5D4C3B2A1 | J120: F8 | K120: H6 | L120: H8 | M120: F6 | N120: E5 | O120: D4 | P120: C3 | Q120: B2 | R120: A1 | T120: F8 | AA120: H6 | AH120: H8
A121: SLG8 | B121: SL | C121: G | D121: 8 | E121: G8F7E6D5C4B3A2 | F121: G8 | G121: H7 | I121: F7E6D5C4B3A2 | K121: H7 | M121: F7 | N121: E6 | O121: D5 | P121: C4 | Q121: B3 | R121: A2 | AA121: H7
A122: SLH1 | B122: SL | C122: H | D122: 1 | E122: H1 | F122: H1G2F3E4D5C6B7A8 | J122: G2F3E4D5C6B7A8 | T122: G2 | U122: F3 | V122: E4 | W122: D5 | X122: C6 | Y122: B7 | Z122: A8
A123: =B123&C123&D123 -> SLH2 | B123: SL | C123: H | D123: 2 | E123: H2G1 | F123: H2G3F4E5D6C7B8 | I123: G1 | J123: G3F4E5D6C7B8 | M123: G1 | T123: G3 | U123: F4 | V123: E5 | W123: D6 | X123: C7 | Y123: B8
A124: =B124&C124&D124 -> SLH3 | B124: SL | C124: H | D124: 3 | E124: H3G2F1 | F124: H3G4F5E6D7C8 | I124: G2F1 | J124: G4F5E6D7C8 | M124: G2 | N124: F1 | T124: G4 | U124: F5 | V124: E6 | W124: D7 | X124: C8
A125: SLH4 | B125: SL | C125: H | D125: 4 | E125: H4G3F2E1 | F125: H4G5F6E7D8 | I125: G3F2E1 | J125: G5F6E7D8 | M125: G3 | N125: F2 | O125: E1 | T125: G5 | U125: F6 | V125: E7 | W125: D8
A126: SLH5 | B126: SL | C126: H | D126: 5 | E126: H5G4F3E2D1 | F126: H5G6F7E8 | I126: G4F3E2D1 | J126: G6F7E8 | M126: G4 | N126: F3 | O126: E2 | P126: D1 | T126: G6 | U126: F7 | V126: E8
A127: SLH6 | B127: SL | C127: H | D127: 6 | E127: H6G5F4E3D2C1 | F127: H6G7F8 | I127: G5F4E3D2C1 | J127: G7F8 | M127: G5 | N127: F4 | O127: E3 | P127: D2 | Q127: C1 | T127: G7 | U127: F8
A128: SLH7 | B128: SL | C128: H | D128: 7 | E128: H7G6F5E4D3C2B1 | F128: H7G8 | I128: G6F5E4D3C2B1 | J128: G8 | M128: G6 | N128: F5 | O128: E4 | P128: D3 | Q128: C2 | R128: B1 | T128: G8
A129: SLH8 | B129: SL | C129: H | D129: 8 | E129: H8G7F6E5D4C3B2A1 | F129: H8 | I129: G7F6E5D4C3B2A1 | M129: G7 | N129: F6 | O129: E5 | P129: D4 | Q129: C3 | R129: B2 | S129: A1

Sheet RVD (hidden)
A1: Kombo | B1: Pjäs | C1: PosX | D1: PosY | E1: FlyttA | F1: FlyttB | G1: FlyttC | H1: FlyttD | I1: FlyttE | J1: FlyttF | K1: FlyttG | L1: FlyttH | M1: Flytt1 | N1: Flytt2 | O1: AttackA | P1: AttackB | Q1: AttackC | R1: AttackD
A2: =B2&C2&D2 -> VDA1 | B2: VD | C2: A | D2: 1 | E2: =$C2&$D2&O2 -> A1 | F2: =C2&D2&P2 -> A1 | G2: =Q2 ->  | H2: =R2 -> H8G7F6E5D4C3B2 | I2: =LEFT(M2,FIND(C2&D2,M2)+1) -> A1 | J2: =RIGHT(M2,LEN(M2)-FIND(C2&D2,M2)-1) -> B1C1D1E1F1G1H1 | K2: =LEFT(N2,FIND(C2&D2,N2)+1) -> A1 | L2: =RIGHT(N2,LEN(N2)-FIND(C2&D2,N2)-1) -> A2A3A4A5A6A7A8 | M2: ="A"&D2&"B"&D2&"C"&D2&"D"&D2&"E"&D2&"F"&D2&"G"&D2&"H"&D2 -> A1B1C1D1E1F1G1H1 | N2: =C2&"1"&C2&"2"&C2&"3"&C2&"4"&C2&"5"&C2&"6"&C2&"7"&C2&"8" -> A1A2A3A4A5A6A7A8 | O2: =CONCATENATE(S2,T2,U2,V2,W2,X2,Y2) ->  | P2: =CONCATENATE(Z2,AA2,AB2,AC2,AD2,AE2,AF2) ->  | Q2: =CONCATENATE(AM2,AL2,AK2,AJ2,AI2,AH2,AG2) ->  | R2: =CONCATENATE(AT2,AS2,AR2,AQ2,AP2,AO2,AN2) -> H8G7F6E5D4C3B2 | S2: =IF(AND($D2-1>0,CODE($C2)-1>64),CHAR(CODE($C2)-1)&$D2-1,"") ->  | T2: =IF(AND($D2-2>0,CODE($C2)-2>64),CHAR(CODE($C2)-2)&$D2-2,"") ->  | U2: =IF(AND($D2-3>0,CODE($C2)-3>64),CHAR(CODE($C2)-3)&$D2-3,"") ->  | V2: =IF(AND($D2-4>0,CODE($C2)-4>64),CHAR(CODE($C2)-4)&$D2-4,"") ->  | W2: =IF(AND($D2-5>0,CODE($C2)-5>64),CHAR(CODE($C2)-5)&$D2-5,"") ->  | X2: =IF(AND($D2-6>0,CODE($C2)-6>64),CHAR(CODE($C2)-6)&$D2-6,"") ->  | Y2: =IF(AND($D2-7>0,CODE($C2)-7>64),CHAR(CODE($C2)-7)&$D2-7,"") ->  | Z2: =IF(AND($D2+1<9,CODE($C2)-1>64),CHAR(CODE($C2)-1)&$D2+1,"") ->  | AA2: =IF(AND($D2+2<9,CODE($C2)-2>64),CHAR(CODE($C2)-2)&$D2+2,"") ->  | AB2: =IF(AND($D2+3<9,CODE($C2)-3>64),CHAR(CODE($C2)-3)&$D2+3,"") ->  | AC2: =IF(AND($D2+4<9,CODE($C2)-4>64),CHAR(CODE($C2)-4)&$D2+4,"") ->  | AD2: =IF(AND($D2+5<9,CODE($C2)-5>64),CHAR(CODE($C2)-5)&$D2+5,"") ->  | AE2: =IF(AND($D2+6<9,CODE($C2)-6>64),CHAR(CODE($C2)-6)&$D2+6,"") ->  | AF2: =IF(AND($D2+7<9,CODE($C2)-7>64),CHAR(CODE($C2)-7)&$D2+7,"") ->  | AG2: =IF(AND($D2-1>0,CODE($C2)+1<73),CHAR(CODE($C2)+1)&$D2-1,"") ->  | AH2: =IF(AND($D2-2>0,CODE($C2)+2<73),CHAR(CODE($C2)+2)&$D2-2,"") ->  | AI2: =IF(AND($D2-3>0,CODE($C2)+3<73),CHAR(CODE($C2)+3)&$D2-3,"") ->  | AJ2: =IF(AND($D2-4>0,CODE($C2)+4<73),CHAR(CODE($C2)+4)&$D2-4,"") ->  | AK2: =IF(AND($D2-5>0,CODE($C2)+5<73),CHAR(CODE($C2)+5)&$D2-5,"") ->  | AL2: =IF(AND($D2-6>0,CODE($C2)+6<73),CHAR(CODE($C2)+6)&$D2-6,"") ->  | AM2: =IF(AND($D2-7>0,CODE($C2)+7<73),CHAR(CODE($C2)+7)&$D2-7,"") ->  | AN2: =IF(AND($D2+1<9,CODE($C2)+1<73),CHAR(CODE($C2)+1)&$D2+1,"") -> B2 | AO2: =IF(AND($D2+2<9,CODE($C2)+2<73),CHAR(CODE($C2)+2)&$D2+2,"") -> C3 | AP2: =IF(AND($D2+3<9,CODE($C2)+3<73),CHAR(CODE($C2)+3)&$D2+3,"") -> D4 | AQ2: =IF(AND($D2+4<9,CODE($C2)+4<73),CHAR(CODE($C2)+4)&$D2+4,"") -> E5 | AR2: =IF(AND($D2+5<9,CODE($C2)+5<73),CHAR(CODE($C2)+5)&$D2+5,"") -> F6 | AS2: =IF(AND($D2+6<9,CODE($C2)+6<73),CHAR(CODE($C2)+6)&$D2+6,"") -> G7 | AT2: =IF(AND($D2+7<9,CODE($C2)+7<73),CHAR(CODE($C2)+7)&$D2+7,"") -> H8
A3: =B3&C3&D3 -> VDA2 | B3: VD | C3: A | D3: 2 | E3: =$C3&$D3&O3 -> A2 | F3: A2 | G3: B1 | H3: G8F7E6D5C4B3 | I3: =LEFT(M3,FIND(C3&D3,M3)+1) -> A2 | J3: =RIGHT(M3,LEN(M3)-FIND(C3&D3,M3)-1) -> B2C2D2E2F2G2H2 | K3: =LEFT(N3,FIND(C3&D3,N3)+1) -> A1A2 | L3: =RIGHT(N3,LEN(N3)-FIND(C3&D3,N3)-1) -> A3A4A5A6A7A8 | M3: ="A"&D3&"B"&D3&"C"&D3&"D"&D3&"E"&D3&"F"&D3&"G"&D3&"H"&D3 -> A2B2C2D2E2F2G2H2 | N3: =C3&"1"&C3&"2"&C3&"3"&C3&"4"&C3&"5"&C3&"6"&C3&"7"&C3&"8" -> A1A2A3A4A5A6A7A8 | O3: =CONCATENATE(S3,T3,U3,V3,W3,X3,Y3) ->  | P3: =CONCATENATE(Z3,AA3,AB3,AC3,AD3,AE3,AF3) ->  | Q3: =CONCATENATE(AM3,AL3,AK3,AJ3,AI3,AH3,AG3) -> B1 | R3: =CONCATENATE(AT3,AS3,AR3,AQ3,AP3,AO3,AN3) -> G8F7E6D5C4B3 | S3: =IF(AND($D3-1>0,CODE($C3)-1>64),CHAR(CODE($C3)-1)&$D3-1,"") ->  | T3: =IF(AND($D3-2>0,CODE($C3)-2>64),CHAR(CODE($C3)-2)&$D3-2,"") ->  | U3: =IF(AND($D3-3>0,CODE($C3)-3>64),CHAR(CODE($C3)-3)&$D3-3,"") ->  | V3: =IF(AND($D3-4>0,CODE($C3)-4>64),CHAR(CODE($C3)-4)&$D3-4,"") ->  | W3: =IF(AND($D3-5>0,CODE($C3)-5>64),CHAR(CODE($C3)-5)&$D3-5,"") ->  | X3: =IF(AND($D3-6>0,CODE($C3)-6>64),CHAR(CODE($C3)-6)&$D3-6,"") ->  | Y3: =IF(AND($D3-7>0,CODE($C3)-7>64),CHAR(CODE($C3)-7)&$D3-7,"") ->  | Z3: =IF(AND($D3+1<9,CODE($C3)-1>64),CHAR(CODE($C3)-1)&$D3+1,"") ->  | AA3: =IF(AND($D3+2<9,CODE($C3)-2>64),CHAR(CODE($C3)-2)&$D3+2,"") ->  | AB3: =IF(AND($D3+3<9,CODE($C3)-3>64),CHAR(CODE($C3)-3)&$D3+3,"") ->  | AC3: =IF(AND($D3+4<9,CODE($C3)-4>64),CHAR(CODE($C3)-4)&$D3+4,"") ->  | AD3: =IF(AND($D3+5<9,CODE($C3)-5>64),CHAR(CODE($C3)-5)&$D3+5,"") ->  | AE3: =IF(AND($D3+6<9,CODE($C3)-6>64),CHAR(CODE($C3)-6)&$D3+6,"") ->  | AF3: =IF(AND($D3+7<9,CODE($C3)-7>64),CHAR(CODE($C3)-7)&$D3+7,"") ->  | AG3: =IF(AND($D3-1>0,CODE($C3)+1<73),CHAR(CODE($C3)+1)&$D3-1,"") -> B1 | AH3: =IF(AND($D3-2>0,CODE($C3)+2<73),CHAR(CODE($C3)+2)&$D3-2,"") ->  | AI3: =IF(AND($D3-3>0,CODE($C3)+3<73),CHAR(CODE($C3)+3)&$D3-3,"") ->  | AJ3: =IF(AND($D3-4>0,CODE($C3)+4<73),CHAR(CODE($C3)+4)&$D3-4,"") ->  | AK3: =IF(AND($D3-5>0,CODE($C3)+5<73),CHAR(CODE($C3)+5)&$D3-5,"") ->  | AL3: =IF(AND($D3-6>0,CODE($C3)+6<73),CHAR(CODE($C3)+6)&$D3-6,"") ->  | AM3: =IF(AND($D3-7>0,CODE($C3)+7<73),CHAR(CODE($C3)+7)&$D3-7,"") ->  | AN3: =IF(AND($D3+1<9,CODE($C3)+1<73),CHAR(CODE($C3)+1)&$D3+1,"") -> B3 | AO3: =IF(AND($D3+2<9,CODE($C3)+2<73),CHAR(CODE($C3)+2)&$D3+2,"") -> C4 | AP3: =IF(AND($D3+3<9,CODE($C3)+3<73),CHAR(CODE($C3)+3)&$D3+3,"") -> D5 | AQ3: =IF(AND($D3+4<9,CODE($C3)+4<73),CHAR(CODE($C3)+4)&$D3+4,"") -> E6 | AR3: =IF(AND($D3+5<9,CODE($C3)+5<73),CHAR(CODE($C3)+5)&$D3+5,"") -> F7 | AS3: =IF(AND($D3+6<9,CODE($C3)+6<73),CHAR(CODE($C3)+6)&$D3+6,"") -> G8 | AT3: =IF(AND($D3+7<9,CODE($C3)+7<73),CHAR(CODE($C3)+7)&$D3+7,"") -> 
A4: VDA3 | B4: VD | C4: A | D4: 3 | E4: A3 | F4: A3 | G4: C1B2 | H4: F8E7D6C5B4 | I4: A3 | J4: B3C3D3E3F3G3H3 | K4: A1A2A3 | L4: A4A5A6A7A8 | M4: A3B3C3D3E3F3G3H3 | N4: A1A2A3A4A5A6A7A8 | Q4: C1B2 | R4: F8E7D6C5B4 | AG4: B2 | AH4: C1 | AN4: B4 | AO4: C5 | AP4: D6 | AQ4: E7 | AR4: F8
A5: VDA4 | B5: VD | C5: A | D5: 4 | E5: =$C5&$D5&O5 -> A4 | F5: A4 | G5: D1C2B3 | H5: E8D7C6B5 | I5: A4 | J5: B4C4D4E4F4G4H4 | K5: A1A2A3A4 | L5: A5A6A7A8 | M5: A4B4C4D4E4F4G4H4 | N5: A1A2A3A4A5A6A7A8 | Q5: D1C2B3 | R5: E8D7C6B5 | AG5: B3 | AH5: C2 | AI5: D1 | AN5: B5 | AO5: C6 | AP5: D7 | AQ5: E8
A6: VDA5 | B6: VD | C6: A | D6: 5 | E6: A5 | F6: A5 | G6: E1D2C3B4 | H6: D8C7B6 | I6: A5 | J6: B5C5D5E5F5G5H5 | K6: A1A2A3A4A5 | L6: A6A7A8 | M6: A5B5C5D5E5F5G5H5 | N6: A1A2A3A4A5A6A7A8 | Q6: E1D2C3B4 | R6: D8C7B6 | AG6: B4 | AH6: C3 | AI6: D2 | AJ6: E1 | AN6: B6 | AO6: C7 | AP6: D8
A7: VDA6 | B7: VD | C7: A | D7: 6 | E7: A6 | F7: A6 | G7: F1E2D3C4B5 | H7: C8B7 | I7: A6 | J7: B6C6D6E6F6G6H6 | K7: A1A2A3A4A5A6 | L7: A7A8 | M7: A6B6C6D6E6F6G6H6 | N7: A1A2A3A4A5A6A7A8 | Q7: F1E2D3C4B5 | R7: C8B7 | AG7: B5 | AH7: C4 | AI7: D3 | AJ7: E2 | AK7: F1 | AN7: B7 | AO7: C8
A8: VDA7 | B8: VD | C8: A | D8: 7 | E8: A7 | F8: A7 | G8: G1F2E3D4C5B6 | H8: B8 | I8: A7 | J8: B7C7D7E7F7G7H7 | K8: A1A2A3A4A5A6A7 | L8: A8 | M8: A7B7C7D7E7F7G7H7 | N8: A1A2A3A4A5A6A7A8 | Q8: G1F2E3D4C5B6 | R8: B8 | AG8: B6 | AH8: C5 | AI8: D4 | AJ8: E3 | AK8: F2 | AL8: G1 | AN8: B8
A9: VDA8 | B9: VD | C9: A | D9: 8 | E9: A8 | F9: A8 | G9: H1G2F3E4D5C6B7 | I9: A8 | J9: B8C8D8E8F8G8H8 | K9: A1A2A3A4A5A6A7A8 | M9: A8B8C8D8E8F8G8H8 | N9: A1A2A3A4A5A6A7A8 | Q9: H1G2F3E4D5C6B7 | AG9: B7 | AH9: C6 | AI9: D5 | AJ9: E4 | AK9: F3 | AL9: G2 | AM9: H1
A10: VDB1 | B10: VD | C10: B | D10: 1 | E10: B1 | F10: B1A2 | H10: H7G6F5E4D3C2 | I10: A1B1 | J10: C1D1E1F1G1H1 | K10: B1 | L10: B2B3B4B5B6B7B8 | M10: A1B1C1D1E1F1G1H1 | N10: B1B2B3B4B5B6B7B8 | P10: A2 | R10: H7G6F5E4D3C2 | Z10: A2 | AN10: C2 | AO10: D3 | AP10: E4 | AQ10: F5 | AR10: G6 | AS10: H7
A11: VDB2 | B11: VD | C11: B | D11: 2 | E11: B2A1 | F11: B2A3 | G11: C1 | H11: H8G7F6E5D4C3 | I11: A2B2 | J11: C2D2E2F2G2H2 | K11: B1B2 | L11: B3B4B5B6B7B8 | M11: A2B2C2D2E2F2G2H2 | N11: B1B2B3B4B5B6B7B8 | O11: A1 | P11: A3 | Q11: C1 | R11: H8G7F6E5D4C3 | S11: A1 | Z11: A3 | AG11: C1 | AN11: C3 | AO11: D4 | AP11: E5 | AQ11: F6 | AR11: G7 | AS11: H8
A12: VDB3 | B12: VD | C12: B | D12: 3 | E12: B3A2 | F12: B3A4 | G12: D1C2 | H12: G8F7E6D5C4 | I12: A3B3 | J12: C3D3E3F3G3H3 | K12: B1B2B3 | L12: B4B5B6B7B8 | M12: A3B3C3D3E3F3G3H3 | N12: B1B2B3B4B5B6B7B8 | O12: A2 | P12: A4 | Q12: D1C2 | R12: G8F7E6D5C4 | S12: A2 | Z12: A4 | AG12: C2 | AH12: D1 | AN12: C4 | AO12: D5 | AP12: E6 | AQ12: F7 | AR12: G8
A13: VDB4 | B13: VD | C13: B | D13: 4 | E13: B4A3 | F13: B4A5 | G13: E1D2C3 | H13: F8E7D6C5 | I13: A4B4 | J13: C4D4E4F4G4H4 | K13: B1B2B3B4 | L13: B5B6B7B8 | M13: A4B4C4D4E4F4G4H4 | N13: B1B2B3B4B5B6B7B8 | O13: A3 | P13: A5 | Q13: E1D2C3 | R13: F8E7D6C5 | S13: A3 | Z13: A5 | AG13: C3 | AH13: D2 | AI13: E1 | AN13: C5 | AO13: D6 | AP13: E7 | AQ13: F8
A14: VDB5 | B14: VD | C14: B | D14: 5 | E14: B5A4 | F14: B5A6 | G14: F1E2D3C4 | H14: E8D7C6 | I14: A5B5 | J14: C5D5E5F5G5H5 | K14: B1B2B3B4B5 | L14: B6B7B8 | M14: A5B5C5D5E5F5G5H5 | N14: B1B2B3B4B5B6B7B8 | O14: A4 | P14: A6 | Q14: F1E2D3C4 | R14: E8D7C6 | S14: A4 | Z14: A6 | AG14: C4 | AH14: D3 | AI14: E2 | AJ14: F1 | AN14: C6 | AO14: D7 | AP14: E8
A15: VDB6 | B15: VD | C15: B | D15: 6 | E15: B6A5 | F15: B6A7 | G15: G1F2E3D4C5 | H15: D8C7 | I15: A6B6 | J15: C6D6E6F6G6H6 | K15: B1B2B3B4B5B6 | L15: B7B8 | M15: A6B6C6D6E6F6G6H6 | N15: B1B2B3B4B5B6B7B8 | O15: A5 | P15: A7 | Q15: G1F2E3D4C5 | R15: D8C7 | S15: A5 | Z15: A7 | AG15: C5 | AH15: D4 | AI15: E3 | AJ15: F2 | AK15: G1 | AN15: C7 | AO15: D8
A16: VDB7 | B16: VD | C16: B | D16: 7 | E16: B7A6 | F16: B7A8 | G16: H1G2F3E4D5C6 | H16: C8 | I16: A7B7 | J16: C7D7E7F7G7H7 | K16: B1B2B3B4B5B6B7 | L16: B8 | M16: A7B7C7D7E7F7G7H7 | N16: B1B2B3B4B5B6B7B8 | O16: A6 | P16: A8 | Q16: H1G2F3E4D5C6 | R16: C8 | S16: A6 | Z16: A8 | AG16: C6 | AH16: D5 | AI16: E4 | AJ16: F3 | AK16: G2 | AL16: H1 | AN16: C8
A17: VDB8 | B17: VD | C17: B | D17: 8 | E17: B8A7 | F17: B8 | G17: H2G3F4E5D6C7 | I17: A8B8 | J17: C8D8E8F8G8H8 | K17: B1B2B3B4B5B6B7B8 | M17: A8B8C8D8E8F8G8H8 | N17: B1B2B3B4B5B6B7B8 | O17: A7 | Q17: H2G3F4E5D6C7 | S17: A7 | AG17: C7 | AH17: D6 | AI17: E5 | AJ17: F4 | AK17: G3 | AL17: H2
A18: VDC1 | B18: VD | C18: C | D18: 1 | E18: C1 | F18: C1B2A3 | H18: H6G5F4E3D2 | I18: A1B1C1 | J18: D1E1F1G1H1 | K18: C1 | L18: C2C3C4C5C6C7C8 | M18: A1B1C1D1E1F1G1H1 | N18: C1C2C3C4C5C6C7C8 | P18: B2A3 | R18: H6G5F4E3D2 | Z18: B2 | AA18: A3 | AN18: D2 | AO18: E3 | AP18: F4 | AQ18: G5 | AR18: H6
A19: =B19&C19&D19 -> VDC2 | B19: VD | C19: C | D19: 2 | E19: C2B1 | F19: C2B3A4 | G19: D1 | H19: H7G6F5E4D3 | I19: A2B2C2 | J19: D2E2F2G2H2 | K19: C1C2 | L19: C3C4C5C6C7C8 | M19: A2B2C2D2E2F2G2H2 | N19: C1C2C3C4C5C6C7C8 | O19: B1 | P19: B3A4 | Q19: D1 | R19: H7G6F5E4D3 | S19: B1 | Z19: B3 | AA19: A4 | AG19: D1 | AN19: D3 | AO19: E4 | AP19: F5 | AQ19: G6 | AR19: H7
A20: =B20&C20&D20 -> VDC3 | B20: VD | C20: C | D20: 3 | E20: C3B2A1 | F20: C3B4A5 | G20: E1D2 | H20: H8G7F6E5D4 | I20: A3B3C3 | J20: D3E3F3G3H3 | K20: C1C2C3 | L20: C4C5C6C7C8 | M20: A3B3C3D3E3F3G3H3 | N20: C1C2C3C4C5C6C7C8 | O20: B2A1 | P20: B4A5 | Q20: E1D2 | R20: H8G7F6E5D4 | S20: B2 | T20: A1 | Z20: B4 | AA20: A5 | AG20: D2 | AH20: E1 | AN20: D4 | AO20: E5 | AP20: F6 | AQ20: G7 | AR20: H8
A21: VDC4 | B21: VD | C21: C | D21: 4 | E21: C4B3A2 | F21: C4B5A6 | G21: F1E2D3 | H21: G8F7E6D5 | I21: A4B4C4 | J21: D4E4F4G4H4 | K21: C1C2C3C4 | L21: C5C6C7C8 | M21: A4B4C4D4E4F4G4H4 | N21: C1C2C3C4C5C6C7C8 | O21: B3A2 | P21: B5A6 | Q21: F1E2D3 | R21: G8F7E6D5 | S21: B3 | T21: A2 | Z21: B5 | AA21: A6 | AG21: D3 | AH21: E2 | AI21: F1 | AN21: D5 | AO21: E6 | AP21: F7 | AQ21: G8
A22: VDC5 | B22: VD | C22: C | D22: 5 | E22: C5B4A3 | F22: C5B6A7 | G22: G1F2E3D4 | H22: F8E7D6 | I22: A5B5C5 | J22: D5E5F5G5H5 | K22: C1C2C3C4C5 | L22: C6C7C8 | M22: A5B5C5D5E5F5G5H5 | N22: C1C2C3C4C5C6C7C8 | O22: B4A3 | P22: B6A7 | Q22: G1F2E3D4 | R22: F8E7D6 | S22: B4 | T22: A3 | Z22: B6 | AA22: A7 | AG22: D4 | AH22: E3 | AI22: F2 | AJ22: G1 | AN22: D6 | AO22: E7 | AP22: F8
A23: VDC6 | B23: VD | C23: C | D23: 6 | E23: C6B5A4 | F23: C6B7A8 | G23: H1G2F3E4D5 | H23: E8D7 | I23: A6B6C6 | J23: D6E6F6G6H6 | K23: C1C2C3C4C5C6 | L23: C7C8 | M23: A6B6C6D6E6F6G6H6 | N23: C1C2C3C4C5C6C7C8 | O23: B5A4 | P23: B7A8 | Q23: H1G2F3E4D5 | R23: E8D7 | S23: B5 | T23: A4 | Z23: B7 | AA23: A8 | AG23: D5 | AH23: E4 | AI23: F3 | AJ23: G2 | AK23: H1 | AN23: D7 | AO23: E8
A24: VDC7 | B24: VD | C24: C | D24: 7 | E24: C7B6A5 | F24: C7B8 | G24: H2G3F4E5D6 | H24: D8 | I24: A7B7C7 | J24: D7E7F7G7H7 | K24: C1C2C3C4C5C6C7 | L24: C8 | M24: A7B7C7D7E7F7G7H7 | N24: C1C2C3C4C5C6C7C8 | O24: B6A5 | P24: B8 | Q24: H2G3F4E5D6 | R24: D8 | S24: B6 | T24: A5 | Z24: B8 | AG24: D6 | AH24: E5 | AI24: F4 | AJ24: G3 | AK24: H2 | AN24: D8
A25: VDC8 | B25: VD | C25: C | D25: 8 | E25: C8B7A6 | F25: C8 | G25: H3G4F5E6D7 | I25: A8B8C8 | J25: D8E8F8G8H8 | K25: C1C2C3C4C5C6C7C8 | M25: A8B8C8D8E8F8G8H8 | N25: C1C2C3C4C5C6C7C8 | O25: B7A6 | Q25: H3G4F5E6D7 | S25: B7 | T25: A6 | AG25: D7 | AH25: E6 | AI25: F5 | AJ25: G4 | AK25: H3
A26: VDD1 | B26: VD | C26: D | D26: 1 | E26: D1 | F26: D1C2B3A4 | H26: H5G4F3E2 | I26: A1B1C1D1 | J26: E1F1G1H1 | K26: D1 | L26: D2D3D4D5D6D7D8 | M26: A1B1C1D1E1F1G1H1 | N26: D1D2D3D4D5D6D7D8 | P26: C2B3A4 | R26: H5G4F3E2 | Z26: C2 | AA26: B3 | AB26: A4 | AN26: E2 | AO26: F3 | AP26: G4 | AQ26: H5
A27: =B27&C27&D27 -> VDD2 | B27: VD | C27: D | D27: 2 | E27: D2C1 | F27: D2C3B4A5 | G27: E1 | H27: H6G5F4E3 | I27: A2B2C2D2 | J27: E2F2G2H2 | K27: D1D2 | L27: D3D4D5D6D7D8 | M27: A2B2C2D2E2F2G2H2 | N27: D1D2D3D4D5D6D7D8 | O27: C1 | P27: C3B4A5 | Q27: E1 | R27: H6G5F4E3 | S27: C1 | Z27: C3 | AA27: B4 | AB27: A5 | AG27: E1 | AN27: E3 | AO27: F4 | AP27: G5 | AQ27: H6
A28: =B28&C28&D28 -> VDD3 | B28: VD | C28: D | D28: 3 | E28: D3C2B1 | F28: D3C4B5A6 | G28: F1E2 | H28: H7G6F5E4 | I28: A3B3C3D3 | J28: E3F3G3H3 | K28: D1D2D3 | L28: D4D5D6D7D8 | M28: A3B3C3D3E3F3G3H3 | N28: D1D2D3D4D5D6D7D8 | O28: C2B1 | P28: C4B5A6 | Q28: F1E2 | R28: H7G6F5E4 | S28: C2 | T28: B1 | Z28: C4 | AA28: B5 | AB28: A6 | AG28: E2 | AH28: F1 | AN28: E4 | AO28: F5 | AP28: G6 | AQ28: H7
A29: VDD4 | B29: VD | C29: D | D29: 4 | E29: D4C3B2A1 | F29: D4C5B6A7 | G29: G1F2E3 | H29: H8G7F6E5 | I29: A4B4C4D4 | J29: E4F4G4H4 | K29: D1D2D3D4 | L29: D5D6D7D8 | M29: A4B4C4D4E4F4G4H4 | N29: D1D2D3D4D5D6D7D8 | O29: C3B2A1 | P29: C5B6A7 | Q29: G1F2E3 | R29: H8G7F6E5 | S29: C3 | T29: B2 | U29: A1 | Z29: C5 | AA29: B6 | AB29: A7 | AG29: E3 | AH29: F2 | AI29: G1 | AN29: E5 | AO29: F6 | AP29: G7 | AQ29: H8
A30: VDD5 | B30: VD | C30: D | D30: 5 | E30: D5C4B3A2 | F30: D5C6B7A8 | G30: H1G2F3E4 | H30: G8F7E6 | I30: A5B5C5D5 | J30: E5F5G5H5 | K30: D1D2D3D4D5 | L30: D6D7D8 | M30: A5B5C5D5E5F5G5H5 | N30: D1D2D3D4D5D6D7D8 | O30: C4B3A2 | P30: C6B7A8 | Q30: H1G2F3E4 | R30: G8F7E6 | S30: C4 | T30: B3 | U30: A2 | Z30: C6 | AA30: B7 | AB30: A8 | AG30: E4 | AH30: F3 | AI30: G2 | AJ30: H1 | AN30: E6 | AO30: F7 | AP30: G8
A31: VDD6 | B31: VD | C31: D | D31: 6 | E31: D6C5B4A3 | F31: D6C7B8 | G31: H2G3F4E5 | H31: F8E7 | I31: A6B6C6D6 | J31: E6F6G6H6 | K31: D1D2D3D4D5D6 | L31: D7D8 | M31: A6B6C6D6E6F6G6H6 | N31: D1D2D3D4D5D6D7D8 | O31: C5B4A3 | P31: C7B8 | Q31: H2G3F4E5 | R31: F8E7 | S31: C5 | T31: B4 | U31: A3 | Z31: C7 | AA31: B8 | AG31: E5 | AH31: F4 | AI31: G3 | AJ31: H2 | AN31: E7 | AO31: F8
A32: VDD7 | B32: VD | C32: D | D32: 7 | E32: D7C6B5A4 | F32: D7C8 | G32: H3G4F5E6 | H32: E8 | I32: A7B7C7D7 | J32: E7F7G7H7 | K32: D1D2D3D4D5D6D7 | L32: D8 | M32: A7B7C7D7E7F7G7H7 | N32: D1D2D3D4D5D6D7D8 | O32: C6B5A4 | P32: C8 | Q32: H3G4F5E6 | R32: E8 | S32: C6 | T32: B5 | U32: A4 | Z32: C8 | AG32: E6 | AH32: F5 | AI32: G4 | AJ32: H3 | AN32: E8
A33: VDD8 | B33: VD | C33: D | D33: 8 | E33: D8C7B6A5 | F33: D8 | G33: H4G5F6E7 | I33: A8B8C8D8 | J33: E8F8G8H8 | K33: D1D2D3D4D5D6D7D8 | M33: A8B8C8D8E8F8G8H8 | N33: D1D2D3D4D5D6D7D8 | O33: C7B6A5 | Q33: H4G5F6E7 | S33: C7 | T33: B6 | U33: A5 | AG33: E7 | AH33: F6 | AI33: G5 | AJ33: H4
A34: VDE1 | B34: VD | C34: E | D34: 1 | E34: E1 | F34: =C34&D34&P34 -> E1D2C3B4A5 | G34: =Q34 ->  | H34: =R34 -> H4G3F2 | I34: A1B1C1D1E1 | J34: F1G1H1 | K34: E1 | L34: E2E3E4E5E6E7E8 | M34: A1B1C1D1E1F1G1H1 | N34: E1E2E3E4E5E6E7E8 | P34: D2C3B4A5 | R34: H4G3F2 | Z34: D2 | AA34: C3 | AB34: B4 | AC34: A5 | AN34: F2 | AO34: G3 | AP34: H4
A35: VDE2 | B35: VD | C35: E | D35: 2 | E35: E2D1 | F35: E2D3C4B5A6 | G35: F1 | H35: H5G4F3 | I35: A2B2C2D2E2 | J35: F2G2H2 | K35: E1E2 | L35: E3E4E5E6E7E8 | M35: A2B2C2D2E2F2G2H2 | N35: E1E2E3E4E5E6E7E8 | O35: D1 | P35: D3C4B5A6 | Q35: F1 | R35: H5G4F3 | S35: D1 | Z35: D3 | AA35: C4 | AB35: B5 | AC35: A6 | AG35: F1 | AN35: F3 | AO35: G4 | AP35: H5
A36: VDE3 | B36: VD | C36: E | D36: 3 | E36: E3D2C1 | F36: E3D4C5B6A7 | G36: G1F2 | H36: H6G5F4 | I36: A3B3C3D3E3 | J36: F3G3H3 | K36: E1E2E3 | L36: E4E5E6E7E8 | M36: A3B3C3D3E3F3G3H3 | N36: E1E2E3E4E5E6E7E8 | O36: D2C1 | P36: D4C5B6A7 | Q36: G1F2 | R36: H6G5F4 | S36: D2 | T36: C1 | Z36: D4 | AA36: C5 | AB36: B6 | AC36: A7 | AG36: F2 | AH36: G1 | AN36: F4 | AO36: G5 | AP36: H6
A37: VDE4 | B37: VD | C37: E | D37: 4 | E37: =$C37&$D37&O37 -> E4D3C2B1 | F37: E4D5C6B7A8 | G37: H1G2F3 | H37: H7G6F5 | I37: A4B4C4D4E4 | J37: F4G4H4 | K37: E1E2E3E4 | L37: E5E6E7E8 | M37: A4B4C4D4E4F4G4H4 | N37: E1E2E3E4E5E6E7E8 | O37: D3C2B1 | P37: D5C6B7A8 | Q37: H1G2F3 | R37: H7G6F5 | S37: D3 | T37: C2 | U37: B1 | Z37: D5 | AA37: C6 | AB37: B7 | AC37: A8 | AG37: F3 | AH37: G2 | AI37: H1 | AN37: F5 | AO37: G6 | AP37: H7
A38: VDE5 | B38: VD | C38: E | D38: 5 | E38: E5D4C3B2A1 | F38: E5D6C7B8 | G38: H2G3F4 | H38: H8G7F6 | I38: A5B5C5D5E5 | J38: F5G5H5 | K38: E1E2E3E4E5 | L38: E6E7E8 | M38: A5B5C5D5E5F5G5H5 | N38: E1E2E3E4E5E6E7E8 | O38: D4C3B2A1 | P38: D6C7B8 | Q38: H2G3F4 | R38: H8G7F6 | S38: D4 | T38: C3 | U38: B2 | V38: A1 | Z38: D6 | AA38: C7 | AB38: B8 | AG38: F4 | AH38: G3 | AI38: H2 | AN38: F6 | AO38: G7 | AP38: H8
A39: VDE6 | B39: VD | C39: E | D39: 6 | E39: E6D5C4B3A2 | F39: E6D7C8 | G39: H3G4F5 | H39: G8F7 | I39: A6B6C6D6E6 | J39: F6G6H6 | K39: E1E2E3E4E5E6 | L39: E7E8 | M39: A6B6C6D6E6F6G6H6 | N39: E1E2E3E4E5E6E7E8 | O39: D5C4B3A2 | P39: D7C8 | Q39: H3G4F5 | R39: G8F7 | S39: D5 | T39: C4 | U39: B3 | V39: A2 | Z39: D7 | AA39: C8 | AG39: F5 | AH39: G4 | AI39: H3 | AN39: F7 | AO39: G8
A40: VDE7 | B40: VD | C40: E | D40: 7 | E40: E7D6C5B4A3 | F40: E7D8 | G40: H4G5F6 | H40: F8 | I40: A7B7C7D7E7 | J40: F7G7H7 | K40: E1E2E3E4E5E6E7 | L40: E8 | M40: A7B7C7D7E7F7G7H7 | N40: E1E2E3E4E5E6E7E8 | O40: D6C5B4A3 | P40: D8 | Q40: H4G5F6 | R40: F8 | S40: D6 | T40: C5 | U40: B4 | V40: A3 | Z40: D8 | AG40: F6 | AH40: G5 | AI40: H4 | AN40: F8
A41: VDE8 | B41: VD | C41: E | D41: 8 | E41: E8D7C6B5A4 | F41: E8 | G41: H5G6F7 | I41: A8B8C8D8E8 | J41: F8G8H8 | K41: E1E2E3E4E5E6E7E8 | M41: A8B8C8D8E8F8G8H8 | N41: E1E2E3E4E5E6E7E8 | O41: D7C6B5A4 | Q41: H5G6F7 | S41: D7 | T41: C6 | U41: B5 | V41: A4 | AG41: F7 | AH41: G6 | AI41: H5
A42: VDF1 | B42: VD | C42: F | D42: 1 | E42: F1 | F42: F1E2D3C4B5A6 | H42: H3G2 | I42: A1B1C1D1E1F1 | J42: G1H1 | K42: F1 | L42: F2F3F4F5F6F7F8 | M42: A1B1C1D1E1F1G1H1 | N42: F1F2F3F4F5F6F7F8 | P42: E2D3C4B5A6 | R42: H3G2 | Z42: E2 | AA42: D3 | AB42: C4 | AC42: B5 | AD42: A6 | AN42: G2 | AO42: H3
A43: VDF2 | B43: VD | C43: F | D43: 2 | E43: F2E1 | F43: F2E3D4C5B6A7 | G43: G1 | H43: H4G3 | I43: A2B2C2D2E2F2 | J43: G2H2 | K43: F1F2 | L43: F3F4F5F6F7F8 | M43: A2B2C2D2E2F2G2H2 | N43: F1F2F3F4F5F6F7F8 | O43: E1 | P43: E3D4C5B6A7 | Q43: G1 | R43: H4G3 | S43: E1 | Z43: E3 | AA43: D4 | AB43: C5 | AC43: B6 | AD43: A7 | AG43: G1 | AN43: G3 | AO43: H4
A44: VDF3 | B44: VD | C44: F | D44: 3 | E44: F3E2D1 | F44: F3E4D5C6B7A8 | G44: H1G2 | H44: H5G4 | I44: A3B3C3D3E3F3 | J44: G3H3 | K44: F1F2F3 | L44: F4F5F6F7F8 | M44: A3B3C3D3E3F3G3H3 | N44: F1F2F3F4F5F6F7F8 | O44: E2D1 | P44: E4D5C6B7A8 | Q44: H1G2 | R44: H5G4 | S44: E2 | T44: D1 | Z44: E4 | AA44: D5 | AB44: C6 | AC44: B7 | AD44: A8 | AG44: G2 | AH44: H1 | AN44: G4 | AO44: H5
A45: VDF4 | B45: VD | C45: F | D45: 4 | E45: F4E3D2C1 | F45: F4E5D6C7B8 | G45: H2G3 | H45: H6G5 | I45: A4B4C4D4E4F4 | J45: G4H4 | K45: F1F2F3F4 | L45: F5F6F7F8 | M45: A4B4C4D4E4F4G4H4 | N45: F1F2F3F4F5F6F7F8 | O45: E3D2C1 | P45: E5D6C7B8 | Q45: H2G3 | R45: H6G5 | S45: E3 | T45: D2 | U45: C1 | Z45: E5 | AA45: D6 | AB45: C7 | AC45: B8 | AG45: G3 | AH45: H2 | AN45: G5 | AO45: H6
A46: VDF5 | B46: VD | C46: F | D46: 5 | E46: F5E4D3C2B1 | F46: F5E6D7C8 | G46: H3G4 | H46: H7G6 | I46: A5B5C5D5E5F5 | J46: G5H5 | K46: F1F2F3F4F5 | L46: F6F7F8 | M46: A5B5C5D5E5F5G5H5 | N46: F1F2F3F4F5F6F7F8 | O46: E4D3C2B1 | P46: E6D7C8 | Q46: H3G4 | R46: H7G6 | S46: E4 | T46: D3 | U46: C2 | V46: B1 | Z46: E6 | AA46: D7 | AB46: C8 | AG46: G4 | AH46: H3 | AN46: G6 | AO46: H7
A47: VDF6 | B47: VD | C47: F | D47: 6 | E47: F6E5D4C3B2A1 | F47: F6E7D8 | G47: H4G5 | H47: H8G7 | I47: A6B6C6D6E6F6 | J47: G6H6 | K47: F1F2F3F4F5F6 | L47: F7F8 | M47: A6B6C6D6E6F6G6H6 | N47: F1F2F3F4F5F6F7F8 | O47: E5D4C3B2A1 | P47: E7D8 | Q47: H4G5 | R47: H8G7 | S47: E5 | T47: D4 | U47: C3 | V47: B2 | W47: A1 | Z47: E7 | AA47: D8 | AG47: G5 | AH47: H4 | AN47: G7 | AO47: H8
A48: VDF7 | B48: VD | C48: F | D48: 7 | E48: F7E6D5C4B3A2 | F48: F7E8 | G48: H5G6 | H48: G8 | I48: A7B7C7D7E7F7 | J48: G7H7 | K48: F1F2F3F4F5F6F7 | L48: F8 | M48: A7B7C7D7E7F7G7H7 | N48: F1F2F3F4F5F6F7F8 | O48: E6D5C4B3A2 | P48: E8 | Q48: H5G6 | R48: G8 | S48: E6 | T48: D5 | U48: C4 | V48: B3 | W48: A2 | Z48: E8 | AG48: G6 | AH48: H5 | AN48: G8
A49: VDF8 | B49: VD | C49: F | D49: 8 | E49: F8E7D6C5B4A3 | F49: F8 | G49: H6G7 | I49: A8B8C8D8E8F8 | J49: G8H8 | K49: F1F2F3F4F5F6F7F8 | M49: A8B8C8D8E8F8G8H8 | N49: F1F2F3F4F5F6F7F8 | O49: E7D6C5B4A3 | Q49: H6G7 | S49: E7 | T49: D6 | U49: C5 | V49: B4 | W49: A3 | AG49: G7 | AH49: H6
A50: VDG1 | B50: VD | C50: G | D50: 1 | E50: G1 | F50: G1F2E3D4C5B6A7 | H50: H2 | I50: A1B1C1D1E1F1G1 | J50: H1 | K50: G1 | L50: G2G3G4G5G6G7G8 | M50: A1B1C1D1E1F1G1H1 | N50: G1G2G3G4G5G6G7G8 | P50: F2E3D4C5B6A7 | R50: H2 | Z50: F2 | AA50: E3 | AB50: D4 | AC50: C5 | AD50: B6 | AE50: A7 | AN50: H2
A51: VDG2 | B51: VD | C51: G | D51: 2 | E51: G2F1 | F51: G2F3E4D5C6B7A8 | G51: H1 | H51: H3 | I51: A2B2C2D2E2F2G2 | J51: H2 | K51: G1G2 | L51: G3G4G5G6G7G8 | M51: A2B2C2D2E2F2G2H2 | N51: G1G2G3G4G5G6G7G8 | O51: F1 | P51: F3E4D5C6B7A8 | Q51: H1 | R51: H3 | S51: F1 | Z51: F3 | AA51: E4 | AB51: D5 | AC51: C6 | AD51: B7 | AE51: A8 | AG51: H1 | AN51: H3
A52: VDG3 | B52: VD | C52: G | D52: 3 | E52: G3F2E1 | F52: G3F4E5D6C7B8 | G52: H2 | H52: H4 | I52: A3B3C3D3E3F3G3 | J52: H3 | K52: G1G2G3 | L52: G4G5G6G7G8 | M52: A3B3C3D3E3F3G3H3 | N52: G1G2G3G4G5G6G7G8 | O52: F2E1 | P52: F4E5D6C7B8 | Q52: H2 | R52: H4 | S52: F2 | T52: E1 | Z52: F4 | AA52: E5 | AB52: D6 | AC52: C7 | AD52: B8 | AG52: H2 | AN52: H4
A53: VDG4 | B53: VD | C53: G | D53: 4 | E53: G4F3E2D1 | F53: G4F5E6D7C8 | G53: H3 | H53: H5 | I53: A4B4C4D4E4F4G4 | J53: H4 | K53: G1G2G3G4 | L53: G5G6G7G8 | M53: A4B4C4D4E4F4G4H4 | N53: G1G2G3G4G5G6G7G8 | O53: F3E2D1 | P53: F5E6D7C8 | Q53: H3 | R53: H5 | S53: F3 | T53: E2 | U53: D1 | Z53: F5 | AA53: E6 | AB53: D7 | AC53: C8 | AG53: H3 | AN53: H5
A54: VDG5 | B54: VD | C54: G | D54: 5 | E54: G5F4E3D2C1 | F54: G5F6E7D8 | G54: H4 | H54: H6 | I54: A5B5C5D5E5F5G5 | J54: H5 | K54: G1G2G3G4G5 | L54: G6G7G8 | M54: A5B5C5D5E5F5G5H5 | N54: G1G2G3G4G5G6G7G8 | O54: F4E3D2C1 | P54: F6E7D8 | Q54: H4 | R54: H6 | S54: F4 | T54: E3 | U54: D2 | V54: C1 | Z54: F6 | AA54: E7 | AB54: D8 | AG54: H4 | AN54: H6
A55: VDG6 | B55: VD | C55: G | D55: 6 | E55: G6F5E4D3C2B1 | F55: G6F7E8 | G55: H5 | H55: H7 | I55: A6B6C6D6E6F6G6 | J55: H6 | K55: G1G2G3G4G5G6 | L55: G7G8 | M55: A6B6C6D6E6F6G6H6 | N55: G1G2G3G4G5G6G7G8 | O55: F5E4D3C2B1 | P55: F7E8 | Q55: H5 | R55: H7 | S55: F5 | T55: E4 | U55: D3 | V55: C2 | W55: B1 | Z55: F7 | AA55: E8 | AG55: H5 | AN55: H7
A56: VDG7 | B56: VD | C56: G | D56: 7 | E56: G7F6E5D4C3B2A1 | F56: G7F8 | G56: H6 | H56: H8 | I56: A7B7C7D7E7F7G7 | J56: H7 | K56: G1G2G3G4G5G6G7 | L56: G8 | M56: A7B7C7D7E7F7G7H7 | N56: G1G2G3G4G5G6G7G8 | O56: F6E5D4C3B2A1 | P56: F8 | Q56: H6 | R56: H8 | S56: F6 | T56: E5 | U56: D4 | V56: C3 | W56: B2 | X56: A1 | Z56: F8 | AG56: H6 | AN56: H8
A57: VDG8 | B57: VD | C57: G | D57: 8 | E57: G8F7E6D5C4B3A2 | F57: G8 | G57: H7 | I57: A8B8C8D8E8F8G8 | J57: H8 | K57: G1G2G3G4G5G6G7G8 | M57: A8B8C8D8E8F8G8H8 | N57: G1G2G3G4G5G6G7G8 | O57: F7E6D5C4B3A2 | Q57: H7 | S57: F7 | T57: E6 | U57: D5 | V57: C4 | W57: B3 | X57: A2 | AG57: H7
A58: VDH1 | B58: VD | C58: H | D58: 1 | E58: H1 | F58: H1G2F3E4D5C6B7A8 | I58: A1B1C1D1E1F1G1H1 | K58: H1 | L58: H2H3H4H5H6H7H8 | M58: A1B1C1D1E1F1G1H1 | N58: H1H2H3H4H5H6H7H8 | P58: G2F3E4D5C6B7A8 | Z58: G2 | AA58: F3 | AB58: E4 | AC58: D5 | AD58: C6 | AE58: B7 | AF58: A8
A59: =B59&C59&D59 -> VDH2 | B59: VD | C59: H | D59: 2 | E59: H2G1 | F59: H2G3F4E5D6C7B8 | I59: A2B2C2D2E2F2G2H2 | K59: H1H2 | L59: H3H4H5H6H7H8 | M59: A2B2C2D2E2F2G2H2 | N59: H1H2H3H4H5H6H7H8 | O59: G1 | P59: G3F4E5D6C7B8 | S59: G1 | Z59: G3 | AA59: F4 | AB59: E5 | AC59: D6 | AD59: C7 | AE59: B8
A60: =B60&C60&D60 -> VDH3 | B60: VD | C60: H | D60: 3 | E60: H3G2F1 | F60: H3G4F5E6D7C8 | I60: A3B3C3D3E3F3G3H3 | K60: H1H2H3 | L60: H4H5H6H7H8 | M60: A3B3C3D3E3F3G3H3 | N60: H1H2H3H4H5H6H7H8 | O60: G2F1 | P60: G4F5E6D7C8 | S60: G2 | T60: F1 | Z60: G4 | AA60: F5 | AB60: E6 | AC60: D7 | AD60: C8
A61: VDH4 | B61: VD | C61: H | D61: 4 | E61: H4G3F2E1 | F61: H4G5F6E7D8 | I61: A4B4C4D4E4F4G4H4 | K61: H1H2H3H4 | L61: H5H6H7H8 | M61: A4B4C4D4E4F4G4H4 | N61: H1H2H3H4H5H6H7H8 | O61: G3F2E1 | P61: G5F6E7D8 | S61: G3 | T61: F2 | U61: E1 | Z61: G5 | AA61: F6 | AB61: E7 | AC61: D8
A62: VDH5 | B62: VD | C62: H | D62: 5 | E62: H5G4F3E2D1 | F62: H5G6F7E8 | I62: A5B5C5D5E5F5G5H5 | K62: H1H2H3H4H5 | L62: H6H7H8 | M62: A5B5C5D5E5F5G5H5 | N62: H1H2H3H4H5H6H7H8 | O62: G4F3E2D1 | P62: G6F7E8 | S62: G4 | T62: F3 | U62: E2 | V62: D1 | Z62: G6 | AA62: F7 | AB62: E8
A63: VDH6 | B63: VD | C63: H | D63: 6 | E63: H6G5F4E3D2C1 | F63: H6G7F8 | I63: A6B6C6D6E6F6G6H6 | K63: H1H2H3H4H5H6 | L63: H7H8 | M63: A6B6C6D6E6F6G6H6 | N63: H1H2H3H4H5H6H7H8 | O63: G5F4E3D2C1 | P63: G7F8 | S63: G5 | T63: F4 | U63: E3 | V63: D2 | W63: C1 | Z63: G7 | AA63: F8
A64: VDH7 | B64: VD | C64: H | D64: 7 | E64: H7G6F5E4D3C2B1 | F64: H7G8 | I64: A7B7C7D7E7F7G7H7 | K64: H1H2H3H4H5H6H7 | L64: H8 | M64: A7B7C7D7E7F7G7H7 | N64: H1H2H3H4H5H6H7H8 | O64: G6F5E4D3C2B1 | P64: G8 | S64: G6 | T64: F5 | U64: E4 | V64: D3 | W64: C2 | X64: B1 | Z64: G8
A65: VDH8 | B65: VD | C65: H | D65: 8 | E65: H8G7F6E5D4C3B2A1 | F65: H8 | I65: A8B8C8D8E8F8G8H8 | K65: H1H2H3H4H5H6H7H8 | M65: A8B8C8D8E8F8G8H8 | N65: H1H2H3H4H5H6H7H8 | O65: G7F6E5D4C3B2A1 | S65: G7 | T65: F6 | U65: E5 | V65: D4 | W65: C3 | X65: B2 | Y65: A1

Sheet RVK (hidden)
A1: Kombo | B1: Pjäs | C1: PosX | D1: PosY | E1: Flytt | F1: Upp | G1: HögerUpp | H1: Höger | I1: HögerNed | J1: Ned | K1: VänsterNed | L1: Vänster | M1: VänsterUpp
A2: =B2&C2&D2 -> VKA1 | B2: VK | C2: A | D2: 1 | E2: =C2&D2&F2&G2&H2&I2&J2&K2&L2&M2 -> A1B1B2A2 | F2: =IF(AND($D2-1>0),C2&$D2-1,"") ->  | G2: =IF(AND($D2-1>0,CODE($C2)+1<73),CHAR(CODE($C2)+1)&$D2-1,"") ->  | H2: =IF(AND(CODE($C2)+1<73),CHAR(CODE($C2)+1)&$D2,"") -> B1 | I2: =IF(AND($D2+1<9,CODE($C2)+1<73),CHAR(CODE($C2)+1)&$D2+1,"") -> B2 | J2: =IF(AND($D2+1<9),C2&$D2+1,"") -> A2 | K2: =IF(AND($D2+1<9,CODE($C2)-1>64),CHAR(CODE($C2)-1)&$D2+1,"") ->  | L2: =IF(AND(CODE($C2)-1>64),CHAR(CODE($C2)-1)&$D2,"") ->  | M2: =IF(AND($D2-1>0,CODE($C2)-1>64),CHAR(CODE($C2)-1)&$D2-1,"") -> 
A3: =B3&C3&D3 -> VKA2 | B3: VK | C3: A | D3: 2 | E3: =C3&D3&F3&G3&H3&I3&J3&K3&L3&M3 -> A2A1B1B2B3A3 | F3: =IF(AND($D3-1>0),C3&$D3-1,"") -> A1 | G3: =IF(AND($D3-1>0,CODE($C3)+1<73),CHAR(CODE($C3)+1)&$D3-1,"") -> B1 | H3: =IF(AND(CODE($C3)+1<73),CHAR(CODE($C3)+1)&$D3,"") -> B2 | I3: =IF(AND($D3+1<9,CODE($C3)+1<73),CHAR(CODE($C3)+1)&$D3+1,"") -> B3 | J3: =IF(AND($D3+1<9),C3&$D3+1,"") -> A3 | K3: =IF(AND($D3+1<9,CODE($C3)-1>64),CHAR(CODE($C3)-1)&$D3+1,"") ->  | L3: =IF(AND(CODE($C3)-1>64),CHAR(CODE($C3)-1)&$D3,"") ->  | M3: =IF(AND($D3-1>0,CODE($C3)-1>64),CHAR(CODE($C3)-1)&$D3-1,"") -> 
A4: VKA3 | B4: VK | C4: A | D4: 3 | E4: A3A2B2B3B4A4 | F4: A2 | G4: B2 | H4: B3 | I4: B4 | J4: A4
A5: VKA4 | B5: VK | C5: A | D5: 4 | E5: A4A3B3B4B5A5 | F5: A3 | G5: B3 | H5: B4 | I5: B5 | J5: A5
A6: VKA5 | B6: VK | C6: A | D6: 5 | E6: A5A4B4B5B6A6 | F6: A4 | G6: B4 | H6: B5 | I6: B6 | J6: A6
A7: VKA6 | B7: VK | C7: A | D7: 6 | E7: A6A5B5B6B7A7 | F7: A5 | G7: B5 | H7: B6 | I7: B7 | J7: A7
A8: VKA7 | B8: VK | C8: A | D8: 7 | E8: A7A6B6B7B8A8 | F8: A6 | G8: B6 | H8: B7 | I8: B8 | J8: A8
A9: VKA8 | B9: VK | C9: A | D9: 8 | E9: A8A7B7B8 | F9: A7 | G9: B7 | H9: B8
A10: VKB1 | B10: VK | C10: B | D10: 1 | E10: B1C1C2B2A2A1 | H10: C1 | I10: C2 | J10: B2 | K10: A2 | L10: A1
A11: VKB2 | B11: VK | C11: B | D11: 2 | E11: B2B1C1C2C3B3A3A2A1 | F11: B1 | G11: C1 | H11: C2 | I11: C3 | J11: B3 | K11: A3 | L11: A2 | M11: A1
A12: VKB3 | B12: VK | C12: B | D12: 3 | E12: B3B2C2C3C4B4A4A3A2 | F12: B2 | G12: C2 | H12: C3 | I12: C4 | J12: B4 | K12: A4 | L12: A3 | M12: A2
A13: VKB4 | B13: VK | C13: B | D13: 4 | E13: B4B3C3C4C5B5A5A4A3 | F13: B3 | G13: C3 | H13: C4 | I13: C5 | J13: B5 | K13: A5 | L13: A4 | M13: A3
A14: VKB5 | B14: VK | C14: B | D14: 5 | E14: B5B4C4C5C6B6A6A5A4 | F14: B4 | G14: C4 | H14: C5 | I14: C6 | J14: B6 | K14: A6 | L14: A5 | M14: A4
A15: VKB6 | B15: VK | C15: B | D15: 6 | E15: B6B5C5C6C7B7A7A6A5 | F15: B5 | G15: C5 | H15: C6 | I15: C7 | J15: B7 | K15: A7 | L15: A6 | M15: A5
A16: VKB7 | B16: VK | C16: B | D16: 7 | E16: B7B6C6C7C8B8A8A7A6 | F16: B6 | G16: C6 | H16: C7 | I16: C8 | J16: B8 | K16: A8 | L16: A7 | M16: A6
A17: VKB8 | B17: VK | C17: B | D17: 8 | E17: B8B7C7C8A8A7 | F17: B7 | G17: C7 | H17: C8 | L17: A8 | M17: A7
A18: VKC1 | B18: VK | C18: C | D18: 1 | E18: C1D1D2C2B2B1 | H18: D1 | I18: D2 | J18: C2 | K18: B2 | L18: B1
A19: =B19&C19&D19 -> VKC2 | B19: VK | C19: C | D19: 2 | E19: C2C1D1D2D3C3B3B2B1 | F19: C1 | G19: D1 | H19: D2 | I19: D3 | J19: C3 | K19: B3 | L19: B2 | M19: B1
A20: =B20&C20&D20 -> VKC3 | B20: VK | C20: C | D20: 3 | E20: C3C2D2D3D4C4B4B3B2 | F20: C2 | G20: D2 | H20: D3 | I20: D4 | J20: C4 | K20: B4 | L20: B3 | M20: B2
A21: VKC4 | B21: VK | C21: C | D21: 4 | E21: C4C3D3D4D5C5B5B4B3 | F21: C3 | G21: D3 | H21: D4 | I21: D5 | J21: C5 | K21: B5 | L21: B4 | M21: B3
A22: VKC5 | B22: VK | C22: C | D22: 5 | E22: C5C4D4D5D6C6B6B5B4 | F22: C4 | G22: D4 | H22: D5 | I22: D6 | J22: C6 | K22: B6 | L22: B5 | M22: B4
A23: VKC6 | B23: VK | C23: C | D23: 6 | E23: C6C5D5D6D7C7B7B6B5 | F23: C5 | G23: D5 | H23: D6 | I23: D7 | J23: C7 | K23: B7 | L23: B6 | M23: B5
A24: VKC7 | B24: VK | C24: C | D24: 7 | E24: C7C6D6D7D8C8B8B7B6 | F24: C6 | G24: D6 | H24: D7 | I24: D8 | J24: C8 | K24: B8 | L24: B7 | M24: B6
A25: VKC8 | B25: VK | C25: C | D25: 8 | E25: C8C7D7D8B8B7 | F25: C7 | G25: D7 | H25: D8 | L25: B8 | M25: B7
A26: VKD1 | B26: VK | C26: D | D26: 1 | E26: D1E1E2D2C2C1 | H26: E1 | I26: E2 | J26: D2 | K26: C2 | L26: C1
A27: =B27&C27&D27 -> VKD2 | B27: VK | C27: D | D27: 2 | E27: D2D1E1E2E3D3C3C2C1 | F27: D1 | G27: E1 | H27: E2 | I27: E3 | J27: D3 | K27: C3 | L27: C2 | M27: C1
A28: =B28&C28&D28 -> VKD3 | B28: VK | C28: D | D28: 3 | E28: D3D2E2E3E4D4C4C3C2 | F28: D2 | G28: E2 | H28: E3 | I28: E4 | J28: D4 | K28: C4 | L28: C3 | M28: C2
A29: VKD4 | B29: VK | C29: D | D29: 4 | E29: D4D3E3E4E5D5C5C4C3 | F29: D3 | G29: E3 | H29: E4 | I29: E5 | J29: D5 | K29: C5 | L29: C4 | M29: C3
A30: VKD5 | B30: VK | C30: D | D30: 5 | E30: D5D4E4E5E6D6C6C5C4 | F30: D4 | G30: E4 | H30: E5 | I30: E6 | J30: D6 | K30: C6 | L30: C5 | M30: C4
A31: VKD6 | B31: VK | C31: D | D31: 6 | E31: D6D5E5E6E7D7C7C6C5 | F31: D5 | G31: E5 | H31: E6 | I31: E7 | J31: D7 | K31: C7 | L31: C6 | M31: C5
A32: VKD7 | B32: VK | C32: D | D32: 7 | E32: D7D6E6E7E8D8C8C7C6 | F32: D6 | G32: E6 | H32: E7 | I32: E8 | J32: D8 | K32: C8 | L32: C7 | M32: C6
A33: VKD8 | B33: VK | C33: D | D33: 8 | E33: D8D7E7E8C8C7 | F33: D7 | G33: E7 | H33: E8 | L33: C8 | M33: C7
A34: VKE1 | B34: VK | C34: E | D34: 1 | E34: E1F1F2E2D2D1 | H34: F1 | I34: F2 | J34: E2 | K34: D2 | L34: D1
A35: VKE2 | B35: VK | C35: E | D35: 2 | E35: E2E1F1F2F3E3D3D2D1 | F35: E1 | G35: F1 | H35: F2 | I35: F3 | J35: E3 | K35: D3 | L35: D2 | M35: D1
A36: VKE3 | B36: VK | C36: E | D36: 3 | E36: E3E2F2F3F4E4D4D3D2 | F36: E2 | G36: F2 | H36: F3 | I36: F4 | J36: E4 | K36: D4 | L36: D3 | M36: D2
A37: VKE4 | B37: VK | C37: E | D37: 4 | E37: E4E3F3F4F5E5D5D4D3 | F37: E3 | G37: F3 | H37: F4 | I37: F5 | J37: E5 | K37: D5 | L37: D4 | M37: D3
A38: VKE5 | B38: VK | C38: E | D38: 5 | E38: E5E4F4F5F6E6D6D5D4 | F38: E4 | G38: F4 | H38: F5 | I38: F6 | J38: E6 | K38: D6 | L38: D5 | M38: D4
A39: VKE6 | B39: VK | C39: E | D39: 6 | E39: E6E5F5F6F7E7D7D6D5 | F39: E5 | G39: F5 | H39: F6 | I39: F7 | J39: E7 | K39: D7 | L39: D6 | M39: D5
A40: VKE7 | B40: VK | C40: E | D40: 7 | E40: E7E6F6F7F8E8D8D7D6 | F40: E6 | G40: F6 | H40: F7 | I40: F8 | J40: E8 | K40: D8 | L40: D7 | M40: D6
A41: VKE8 | B41: VK | C41: E | D41: 8 | E41: E8E7F7F8D8D7 | F41: E7 | G41: F7 | H41: F8 | L41: D8 | M41: D7
A42: VKF1 | B42: VK | C42: F | D42: 1 | E42: F1G1G2F2E2E1 | H42: G1 | I42: G2 | J42: F2 | K42: E2 | L42: E1
A43: VKF2 | B43: VK | C43: F | D43: 2 | E43: F2F1G1G2G3F3E3E2E1 | F43: F1 | G43: G1 | H43: G2 | I43: G3 | J43: F3 | K43: E3 | L43: E2 | M43: E1
A44: VKF3 | B44: VK | C44: F | D44: 3 | E44: F3F2G2G3G4F4E4E3E2 | F44: F2 | G44: G2 | H44: G3 | I44: G4 | J44: F4 | K44: E4 | L44: E3 | M44: E2
A45: VKF4 | B45: VK | C45: F | D45: 4 | E45: F4F3G3G4G5F5E5E4E3 | F45: F3 | G45: G3 | H45: G4 | I45: G5 | J45: F5 | K45: E5 | L45: E4 | M45: E3
A46: VKF5 | B46: VK | C46: F | D46: 5 | E46: F5F4G4G5G6F6E6E5E4 | F46: F4 | G46: G4 | H46: G5 | I46: G6 | J46: F6 | K46: E6 | L46: E5 | M46: E4
A47: VKF6 | B47: VK | C47: F | D47: 6 | E47: F6F5G5G6G7F7E7E6E5 | F47: F5 | G47: G5 | H47: G6 | I47: G7 | J47: F7 | K47: E7 | L47: E6 | M47: E5
A48: VKF7 | B48: VK | C48: F | D48: 7 | E48: F7F6G6G7G8F8E8E7E6 | F48: F6 | G48: G6 | H48: G7 | I48: G8 | J48: F8 | K48: E8 | L48: E7 | M48: E6
A49: VKF8 | B49: VK | C49: F | D49: 8 | E49: F8F7G7G8E8E7 | F49: F7 | G49: G7 | H49: G8 | L49: E8 | M49: E7
A50: VKG1 | B50: VK | C50: G | D50: 1 | E50: G1H1H2G2F2F1 | H50: H1 | I50: H2 | J50: G2 | K50: F2 | L50: F1
A51: VKG2 | B51: VK | C51: G | D51: 2 | E51: G2G1H1H2H3G3F3F2F1 | F51: G1 | G51: H1 | H51: H2 | I51: H3 | J51: G3 | K51: F3 | L51: F2 | M51: F1
A52: VKG3 | B52: VK | C52: G | D52: 3 | E52: G3G2H2H3H4G4F4F3F2 | F52: G2 | G52: H2 | H52: H3 | I52: H4 | J52: G4 | K52: F4 | L52: F3 | M52: F2
A53: VKG4 | B53: VK | C53: G | D53: 4 | E53: G4G3H3H4H5G5F5F4F3 | F53: G3 | G53: H3 | H53: H4 | I53: H5 | J53: G5 | K53: F5 | L53: F4 | M53: F3
A54: VKG5 | B54: VK | C54: G | D54: 5 | E54: G5G4H4H5H6G6F6F5F4 | F54: G4 | G54: H4 | H54: H5 | I54: H6 | J54: G6 | K54: F6 | L54: F5 | M54: F4
A55: VKG6 | B55: VK | C55: G | D55: 6 | E55: G6G5H5H6H7G7F7F6F5 | F55: G5 | G55: H5 | H55: H6 | I55: H7 | J55: G7 | K55: F7 | L55: F6 | M55: F5
A56: VKG7 | B56: VK | C56: G | D56: 7 | E56: G7G6H6H7H8G8F8F7F6 | F56: G6 | G56: H6 | H56: H7 | I56: H8 | J56: G8 | K56: F8 | L56: F7 | M56: F6
A57: VKG8 | B57: VK | C57: G | D57: 8 | E57: G8G7H7H8F8F7 | F57: G7 | G57: H7 | H57: H8 | L57: F8 | M57: F7
A58: VKH1 | B58: VK | C58: H | D58: 1 | E58: H1H2G2G1 | J58: H2 | K58: G2 | L58: G1
A59: =B59&C59&D59 -> VKH2 | B59: VK | C59: H | D59: 2 | E59: H2H1H3G3G2G1 | F59: H1 | J59: H3 | K59: G3 | L59: G2 | M59: G1
A60: =B60&C60&D60 -> VKH3 | B60: VK | C60: H | D60: 3 | E60: H3H2H4G4G3G2 | F60: H2 | J60: H4 | K60: G4 | L60: G3 | M60: G2
A61: VKH4 | B61: VK | C61: H | D61: 4 | E61: H4H3H5G5G4G3 | F61: H3 | J61: H5 | K61: G5 | L61: G4 | M61: G3
A62: VKH5 | B62: VK | C62: H | D62: 5 | E62: H5H4H6G6G5G4 | F62: H4 | J62: H6 | K62: G6 | L62: G5 | M62: G4
A63: VKH6 | B63: VK | C63: H | D63: 6 | E63: H6H5H7G7G6G5 | F63: H5 | J63: H7 | K63: G7 | L63: G6 | M63: G5
A64: VKH7 | B64: VK | C64: H | D64: 7 | E64: H7H6H8G8G7G6 | F64: H6 | J64: H8 | K64: G8 | L64: G7 | M64: G6
A65: VKH8 | B65: VK | C65: H | D65: 8 | E65: H8H7G8G7 | F65: H7 | L65: G8 | M65: G7

Sheet RVS (hidden)
A1: Kombo | B1: Pjäs | C1: PosX | D1: PosY | E1: Flytt | F1: Flytt1 | G1: Flytt2 | H1: Flytt3 | I1: Flytt4 | J1: Flytt5 | K1: Flytt6 | L1: Flytt7 | M1: Flytt8
A2: =B2&C2&D2 -> VSA1 | B2: VS | C2: A | D2: 1 | E2: =CONCATENATE(C2&D2,F2,G2,H2,I2,J2,K2,L2,M2) -> A1B3C2 | F2: =IF(AND($D2-2>0,CODE($C2)-1>64),CHAR(CODE($C2)-1)&$D2-2,"") ->  | G2: =IF(AND($D2-2>0,CODE($C2)+1<73),CHAR(CODE($C2)+1)&$D2-2,"") ->  | H2: =IF(AND($D2+2<9,CODE($C2)-1>64),CHAR(CODE($C2)-1)&$D2+2,"") ->  | I2: =IF(AND($D2+2<9,CODE($C2)+1<73),CHAR(CODE($C2)+1)&$D2+2,"") -> B3 | J2: =IF(AND($D2-1>0,CODE($C2)-2>64),CHAR(CODE($C2)-2)&$D2-1,"") ->  | K2: =IF(AND($D2-1>0,CODE($C2)+2<73),CHAR(CODE($C2)+2)&$D2-1,"") ->  | L2: =IF(AND($D2+1<9,CODE($C2)-2>64),CHAR(CODE($C2)-2)&$D2+1,"") ->  | M2: =IF(AND($D2+1<9,CODE($C2)+2<73),CHAR(CODE($C2)+2)&$D2+1,"") -> C2
A3: =B3&C3&D3 -> VSA2 | B3: VS | C3: A | D3: 2 | E3: =CONCATENATE(C3&D3,F3,G3,H3,I3,J3,K3,L3,M3) -> A2B4C1C3 | F3: =IF(AND($D3-2>0,CODE($C3)-1>64),CHAR(CODE($C3)-1)&$D3-2,"") ->  | G3: =IF(AND($D3-2>0,CODE($C3)+1<73),CHAR(CODE($C3)+1)&$D3-2,"") ->  | H3: =IF(AND($D3+2<9,CODE($C3)-1>64),CHAR(CODE($C3)-1)&$D3+2,"") ->  | I3: =IF(AND($D3+2<9,CODE($C3)+1<73),CHAR(CODE($C3)+1)&$D3+2,"") -> B4 | J3: =IF(AND($D3-1>0,CODE($C3)-2>64),CHAR(CODE($C3)-2)&$D3-1,"") ->  | K3: =IF(AND($D3-1>0,CODE($C3)+2<73),CHAR(CODE($C3)+2)&$D3-1,"") -> C1 | L3: =IF(AND($D3+1<9,CODE($C3)-2>64),CHAR(CODE($C3)-2)&$D3+1,"") ->  | M3: =IF(AND($D3+1<9,CODE($C3)+2<73),CHAR(CODE($C3)+2)&$D3+1,"") -> C3
A4: VSA3 | B4: VS | C4: A | D4: 3 | E4: A3B1B5C2C4 | G4: B1 | I4: B5 | K4: C2 | M4: C4
A5: VSA4 | B5: VS | C5: A | D5: 4 | E5: A4B2B6C3C5 | G5: B2 | I5: B6 | K5: C3 | M5: C5
A6: VSA5 | B6: VS | C6: A | D6: 5 | E6: A5B3B7C4C6 | G6: B3 | I6: B7 | K6: C4 | M6: C6
A7: VSA6 | B7: VS | C7: A | D7: 6 | E7: A6B4B8C5C7 | G7: B4 | I7: B8 | K7: C5 | M7: C7
A8: VSA7 | B8: VS | C8: A | D8: 7 | E8: A7B5C6C8 | G8: B5 | K8: C6 | M8: C8
A9: VSA8 | B9: VS | C9: A | D9: 8 | E9: A8B6C7 | G9: B6 | K9: C7
A10: VSB1 | B10: VS | C10: B | D10: 1 | E10: B1A3C3D2 | H10: A3 | I10: C3 | M10: D2
A11: VSB2 | B11: VS | C11: B | D11: 2 | E11: B2A4C4D1D3 | H11: A4 | I11: C4 | K11: D1 | M11: D3
A12: VSB3 | B12: VS | C12: B | D12: 3 | E12: B3A1C1A5C5D2D4 | F12: A1 | G12: C1 | H12: A5 | I12: C5 | K12: D2 | M12: D4
A13: VSB4 | B13: VS | C13: B | D13: 4 | E13: B4A2C2A6C6D3D5 | F13: A2 | G13: C2 | H13: A6 | I13: C6 | K13: D3 | M13: D5
A14: VSB5 | B14: VS | C14: B | D14: 5 | E14: B5A3C3A7C7D4D6 | F14: A3 | G14: C3 | H14: A7 | I14: C7 | K14: D4 | M14: D6
A15: VSB6 | B15: VS | C15: B | D15: 6 | E15: B6A4C4A8C8D5D7 | F15: A4 | G15: C4 | H15: A8 | I15: C8 | K15: D5 | M15: D7
A16: VSB7 | B16: VS | C16: B | D16: 7 | E16: B7A5C5D6D8 | F16: A5 | G16: C5 | K16: D6 | M16: D8
A17: VSB8 | B17: VS | C17: B | D17: 8 | E17: B8A6C6D7 | F17: A6 | G17: C6 | K17: D7
A18: VSC1 | B18: VS | C18: C | D18: 1 | E18: C1B3D3A2E2 | H18: B3 | I18: D3 | L18: A2 | M18: E2
A19: =B19&C19&D19 -> VSC2 | B19: VS | C19: C | D19: 2 | E19: C2B4D4A1E1A3E3 | H19: B4 | I19: D4 | J19: A1 | K19: E1 | L19: A3 | M19: E3
A20: =B20&C20&D20 -> VSC3 | B20: VS | C20: C | D20: 3 | E20: C3B1D1B5D5A2E2A4E4 | F20: B1 | G20: D1 | H20: B5 | I20: D5 | J20: A2 | K20: E2 | L20: A4 | M20: E4
A21: VSC4 | B21: VS | C21: C | D21: 4 | E21: C4B2D2B6D6A3E3A5E5 | F21: B2 | G21: D2 | H21: B6 | I21: D6 | J21: A3 | K21: E3 | L21: A5 | M21: E5
A22: VSC5 | B22: VS | C22: C | D22: 5 | E22: C5B3D3B7D7A4E4A6E6 | F22: B3 | G22: D3 | H22: B7 | I22: D7 | J22: A4 | K22: E4 | L22: A6 | M22: E6
A23: VSC6 | B23: VS | C23: C | D23: 6 | E23: C6B4D4B8D8A5E5A7E7 | F23: B4 | G23: D4 | H23: B8 | I23: D8 | J23: A5 | K23: E5 | L23: A7 | M23: E7
A24: VSC7 | B24: VS | C24: C | D24: 7 | E24: C7B5D5A6E6A8E8 | F24: B5 | G24: D5 | J24: A6 | K24: E6 | L24: A8 | M24: E8
A25: VSC8 | B25: VS | C25: C | D25: 8 | E25: C8B6D6A7E7 | F25: B6 | G25: D6 | J25: A7 | K25: E7
A26: VSD1 | B26: VS | C26: D | D26: 1 | E26: D1C3E3B2F2 | H26: C3 | I26: E3 | L26: B2 | M26: F2
A27: =B27&C27&D27 -> VSD2 | B27: VS | C27: D | D27: 2 | E27: D2C4E4B1F1B3F3 | H27: C4 | I27: E4 | J27: B1 | K27: F1 | L27: B3 | M27: F3
A28: =B28&C28&D28 -> VSD3 | B28: VS | C28: D | D28: 3 | E28: D3C1E1C5E5B2F2B4F4 | F28: C1 | G28: E1 | H28: C5 | I28: E5 | J28: B2 | K28: F2 | L28: B4 | M28: F4
A29: VSD4 | B29: VS | C29: D | D29: 4 | E29: D4C2E2C6E6B3F3B5F5 | F29: C2 | G29: E2 | H29: C6 | I29: E6 | J29: B3 | K29: F3 | L29: B5 | M29: F5
A30: VSD5 | B30: VS | C30: D | D30: 5 | E30: D5C3E3C7E7B4F4B6F6 | F30: C3 | G30: E3 | H30: C7 | I30: E7 | J30: B4 | K30: F4 | L30: B6 | M30: F6
A31: VSD6 | B31: VS | C31: D | D31: 6 | E31: D6C4E4C8E8B5F5B7F7 | F31: C4 | G31: E4 | H31: C8 | I31: E8 | J31: B5 | K31: F5 | L31: B7 | M31: F7
A32: VSD7 | B32: VS | C32: D | D32: 7 | E32: D7C5E5B6F6B8F8 | F32: C5 | G32: E5 | J32: B6 | K32: F6 | L32: B8 | M32: F8
A33: VSD8 | B33: VS | C33: D | D33: 8 | E33: D8C6E6B7F7 | F33: C6 | G33: E6 | J33: B7 | K33: F7
A34: VSE1 | B34: VS | C34: E | D34: 1 | E34: E1D3F3C2G2 | H34: D3 | I34: F3 | L34: C2 | M34: G2
A35: VSE2 | B35: VS | C35: E | D35: 2 | E35: E2D4F4C1G1C3G3 | H35: D4 | I35: F4 | J35: C1 | K35: G1 | L35: C3 | M35: G3
A36: VSE3 | B36: VS | C36: E | D36: 3 | E36: E3D1F1D5F5C2G2C4G4 | F36: D1 | G36: F1 | H36: D5 | I36: F5 | J36: C2 | K36: G2 | L36: C4 | M36: G4
A37: VSE4 | B37: VS | C37: E | D37: 4 | E37: E4D2F2D6F6C3G3C5G5 | F37: D2 | G37: F2 | H37: D6 | I37: F6 | J37: C3 | K37: G3 | L37: C5 | M37: G5
A38: VSE5 | B38: VS | C38: E | D38: 5 | E38: E5D3F3D7F7C4G4C6G6 | F38: D3 | G38: F3 | H38: D7 | I38: F7 | J38: C4 | K38: G4 | L38: C6 | M38: G6
A39: VSE6 | B39: VS | C39: E | D39: 6 | E39: E6D4F4D8F8C5G5C7G7 | F39: D4 | G39: F4 | H39: D8 | I39: F8 | J39: C5 | K39: G5 | L39: C7 | M39: G7
A40: VSE7 | B40: VS | C40: E | D40: 7 | E40: E7D5F5C6G6C8G8 | F40: D5 | G40: F5 | J40: C6 | K40: G6 | L40: C8 | M40: G8
A41: VSE8 | B41: VS | C41: E | D41: 8 | E41: E8D6F6C7G7 | F41: D6 | G41: F6 | J41: C7 | K41: G7
A42: VSF1 | B42: VS | C42: F | D42: 1 | E42: F1E3G3D2H2 | H42: E3 | I42: G3 | L42: D2 | M42: H2
A43: VSF2 | B43: VS | C43: F | D43: 2 | E43: F2E4G4D1H1D3H3 | H43: E4 | I43: G4 | J43: D1 | K43: H1 | L43: D3 | M43: H3
A44: VSF3 | B44: VS | C44: F | D44: 3 | E44: F3E1G1E5G5D2H2D4H4 | F44: E1 | G44: G1 | H44: E5 | I44: G5 | J44: D2 | K44: H2 | L44: D4 | M44: H4
A45: VSF4 | B45: VS | C45: F | D45: 4 | E45: F4E2G2E6G6D3H3D5H5 | F45: E2 | G45: G2 | H45: E6 | I45: G6 | J45: D3 | K45: H3 | L45: D5 | M45: H5
A46: VSF5 | B46: VS | C46: F | D46: 5 | E46: F5E3G3E7G7D4H4D6H6 | F46: E3 | G46: G3 | H46: E7 | I46: G7 | J46: D4 | K46: H4 | L46: D6 | M46: H6
A47: VSF6 | B47: VS | C47: F | D47: 6 | E47: F6E4G4E8G8D5H5D7H7 | F47: E4 | G47: G4 | H47: E8 | I47: G8 | J47: D5 | K47: H5 | L47: D7 | M47: H7
A48: VSF7 | B48: VS | C48: F | D48: 7 | E48: F7E5G5D6H6D8H8 | F48: E5 | G48: G5 | J48: D6 | K48: H6 | L48: D8 | M48: H8
A49: VSF8 | B49: VS | C49: F | D49: 8 | E49: F8E6G6D7H7 | F49: E6 | G49: G6 | J49: D7 | K49: H7
A50: VSG1 | B50: VS | C50: G | D50: 1 | E50: G1F3H3E2 | H50: F3 | I50: H3 | L50: E2
A51: VSG2 | B51: VS | C51: G | D51: 2 | E51: G2F4H4E1E3 | H51: F4 | I51: H4 | J51: E1 | L51: E3
A52: VSG3 | B52: VS | C52: G | D52: 3 | E52: G3F1H1F5H5E2E4 | F52: F1 | G52: H1 | H52: F5 | I52: H5 | J52: E2 | L52: E4
A53: VSG4 | B53: VS | C53: G | D53: 4 | E53: G4F2H2F6H6E3E5 | F53: F2 | G53: H2 | H53: F6 | I53: H6 | J53: E3 | L53: E5
A54: VSG5 | B54: VS | C54: G | D54: 5 | E54: G5F3H3F7H7E4E6 | F54: F3 | G54: H3 | H54: F7 | I54: H7 | J54: E4 | L54: E6
A55: VSG6 | B55: VS | C55: G | D55: 6 | E55: G6F4H4F8H8E5E7 | F55: F4 | G55: H4 | H55: F8 | I55: H8 | J55: E5 | L55: E7
A56: VSG7 | B56: VS | C56: G | D56: 7 | E56: G7F5H5E6E8 | F56: F5 | G56: H5 | J56: E6 | L56: E8
A57: VSG8 | B57: VS | C57: G | D57: 8 | E57: G8F6H6E7 | F57: F6 | G57: H6 | J57: E7
A58: VSH1 | B58: VS | C58: H | D58: 1 | E58: H1G3F2 | H58: G3 | L58: F2
A59: =B59&C59&D59 -> VSH2 | B59: VS | C59: H | D59: 2 | E59: H2G4F1F3 | H59: G4 | J59: F1 | L59: F3
A60: =B60&C60&D60 -> VSH3 | B60: VS | C60: H | D60: 3 | E60: H3G1G5F2F4 | F60: G1 | H60: G5 | J60: F2 | L60: F4
A61: VSH4 | B61: VS | C61: H | D61: 4 | E61: H4G2G6F3F5 | F61: G2 | H61: G6 | J61: F3 | L61: F5
A62: VSH5 | B62: VS | C62: H | D62: 5 | E62: H5G3G7F4F6 | F62: G3 | H62: G7 | J62: F4 | L62: F6
A63: VSH6 | B63: VS | C63: H | D63: 6 | E63: H6G4G8F5F7 | F63: G4 | H63: G8 | J63: F5 | L63: F7
A64: VSH7 | B64: VS | C64: H | D64: 7 | E64: H7G5F6F8 | F64: G5 | J64: F6 | L64: F8
A65: VSH8 | B65: VS | C65: H | D65: 8 | E65: H8G6F7 | F65: G6 | J65: F7

Sheet P_A1 (hidden)
F1: =Logik!D1 -> Pos: | G1: Pjäs: | H1: RäckviddX | I1: Pos | J1: =RIGHT($E$2,LEN($E$2)-$E$4+1) -> A1B1C1D1E1F1G1H1 | K1: =LEFT($E$2,$E$4-1) ->  | L1: RäckviddY | N1: =RIGHT($E$3,LEN($E$3)-$E$5+1) -> A1A2A3A4A5A6A7A8 | O1: =LEFT($E$3,$E$5-1) ->  | P1: Nåbar | Q1: Vad | R1: Poäng | S1: PosPoäng | T1: MöjligaDrag
A2: Pjäs: | B2: =Logik!E2 -> A1 | D2: RäckviddX | E2: =IF($B$3<>"","A"&B5&"B"&B5&"C"&B5&"D"&B5&"E"&B5&"F"&B5&"G"&B5&"H"&B5,"") -> A1B1C1D1E1F1G1H1 | F2: =UPPER(Logik!E1) -> A1 | G2: =UPPER(F2) -> A1 | H2: =IF($G2<>"",IF($G2<>$B$3,IF(IFERROR(FIND($G2,$E$2)>0,FALSE),TRUE,FALSE),FALSE),FALSE) -> FALSE | I2: =IF(H2,FIND($G2,$E$2),"") ->  | J2: =IF(AND(I2<>"",I2>0,I2>$E$4),LEFT(J1,MIN(I2-$E$4+2,LEN(J1))),J1) -> A1B1C1D1E1F1G1H1 | K2: =IF(AND($G2<>"",$G2>0,$I2<$E$4),RIGHT(K1,MIN($E$4-$I2,LEN(K1))),K1) ->  | L2: =IF($G2<>"",IF($G2<>$B$3,IF(IFERROR(FIND($G2,$E$3)>0,FALSE),TRUE,FALSE),FALSE),FALSE) -> FALSE | M2: =IF(L2,FIND($G2,$E$3),"") ->  | N2: =IF(AND(M2<>"",M2>0,M2>$E$5),LEFT(N1,MIN(M2-$E$5+2,LEN(N1))),N1) -> A1A2A3A4A5A6A7A8 | O2: =IF(AND($G2<>"",$G2>0,M2<$E$5),RIGHT(O1,MIN($E$5-M2,LEN(O1))),O1) ->  | P2: =IFERROR(IF(AND(G2<>"",$G2<>$B$3),FIND(G2,$E$8),""),"") ->  | Q2: A1 | R2: =IF(P2<>"",HLOOKUP(HLOOKUP(Q2,PjasStart,2,FALSE),Pjaser,4,FALSE),0) -> 0 | S2: =IF(P2<>"",OFFSET(Logik!$D$4,0,ROW()-1),0) -> 0 | T2: =SUBSTITUTE(E8,G2,"") -> B1A2
A3: Pos: | B3: =UPPER(Logik!E1) -> A1 | D3: RäckviddY | E3: =IF($B$3<>"",B4&"1"&B4&"2"&B4&"3"&B4&"4"&B4&"5"&B4&"6"&B4&"7"&B4&"8","") -> A1A2A3A4A5A6A7A8 | F3: =Logik!F1 -> B1 | G3: =UPPER(F3) -> B1 | H3: =IF($G3<>"",IF($G3<>$B$3,IF(IFERROR(FIND($G3,$E$2)>0,FALSE),TRUE,FALSE),FALSE),FALSE) -> TRUE | I3: =IF(H3,FIND($G3,$E$2),"") -> 3 | J3: =IF(AND(I3<>"",I3>0,I3>$E$4),LEFT(J2,MIN(I3-$E$4+2,LEN(J2))),J2) -> A1B1 | K3: =IF(AND($G3<>"",$G3>0,$I3<$E$4),RIGHT(K2,MIN($E$4-$I3,LEN(K2))),K2) ->  | L3: =IF($G3<>"",IF($G3<>$B$3,IF(IFERROR(FIND($G3,$E$3)>0,FALSE),TRUE,FALSE),FALSE),FALSE) -> FALSE | M3: =IF(L3,FIND($G3,$E$3),"") ->  | N3: =IF(AND(M3<>"",M3>0,M3>$E$5),LEFT(N2,MIN(M3-$E$5+2,LEN(N2))),N2) -> A1A2A3A4A5A6A7A8 | O3: =IF(AND($G3<>"",$G3>0,M3<$E$5),RIGHT(O2,MIN($E$5-M3,LEN(O2))),O2) ->  | P3: =IFERROR(IF(AND(G3<>"",$G3<>$B$3),FIND(G3,$E$8),""),"") -> 3 | Q3: B1 | R3: 300 | S3: =IF(P3<>"",OFFSET(Logik!$D$4,0,ROW()-1),0) -> 8 | T3: =SUBSTITUTE(T2,G3,"") -> A2
A4: PosX: | B4: =LEFT(B3,1) -> A | D4: PosX | E4: =FIND(B3,E2) -> 1 | F4: =Logik!G1 -> C1 | G4: C1 | H4: TRUE | I4: 5 | J4: A1B1 | L4: FALSE | N4: A1A2A3A4A5A6A7A8 | Q4: C1 | R4: 0 | S4: =IF(P4<>"",OFFSET(Logik!$D$4,0,ROW()-1),0) -> 0 | T4: =SUBSTITUTE(T3,G4,"") -> A2
A5: PosY: | B5: =RIGHT(B3,1) -> 1 | D5: PosY | E5: =FIND(B3,E3) -> 1 | F5: =Logik!H1 -> D1 | G5: D1 | H5: TRUE | I5: 7 | J5: A1B1 | L5: FALSE | N5: A1A2A3A4A5A6A7A8 | Q5: D1 | R5: 0 | S5: =IF(P5<>"",OFFSET(Logik!$D$4,0,ROW()-1),0) -> 0 | T5: A2
D6: RX | E6: =K33&J33 -> A1B1 | F6: =Logik!I1 -> E1 | G6: E1 | H6: TRUE | I6: 9 | J6: A1B1 | L6: FALSE | N6: A1A2A3A4A5A6A7A8 | Q6: E1 | R6: 0 | S6: =IF(P6<>"",OFFSET(Logik!$D$4,0,ROW()-1),0) -> 0 | T6: A2
A7: Poäng | B7: =Logik!E3 -> 500 | D7: RY | E7: =O33&N33 -> A1A2 | F7: =Logik!J1 -> F1 | G7: F1 | H7: TRUE | I7: 11 | J7: A1B1 | L7: FALSE | N7: A1A2A3A4A5A6A7A8 | Q7: F1 | R7: 0 | S7: =IF(P7<>"",OFFSET(Logik!$D$4,0,ROW()-1),0) -> 0 | T7: A2
A8: PosPoäng | B8: =Logik!E4 -> 6 | D8: RXY | E8: =E6&E7 -> A1B1A1A2 | F8: =Logik!K1 -> G1 | G8: G1 | H8: TRUE | I8: 13 | J8: A1B1 | L8: FALSE | N8: A1A2A3A4A5A6A7A8 | Q8: G1 | R8: 0 | S8: =IF(P8<>"",OFFSET(Logik!$D$4,0,ROW()-1),0) -> 0 | T8: A2
D9: Försvar | E9: =SUM(R2:R17)+SUM(S2:S17) -> 408 | F9: =Logik!L1 -> H1 | G9: H1 | H9: TRUE | I9: 15 | J9: A1B1 | L9: FALSE | N9: A1A2A3A4A5A6A7A8 | Q9: H1 | R9: 0 | S9: =IF(P9<>"",OFFSET(Logik!$D$4,0,ROW()-1),0) -> 0 | T9: A2
D10: Attack | E10: =SUM(R18:R33)+SUM(S18:S33) -> 0 | F10: =Logik!M1 -> A2 | G10: A2 | H10: FALSE | J10: A1B1 | L10: TRUE | M10: 3 | N10: A1A2 | P10: 7 | Q10: A2 | R10: 100 | S10: =IF(P10<>"",OFFSET(Logik!$D$4,0,ROW()-1),0) -> 0
D11: R Antal | E11: =LEN(E8)/2 -> 4 | F11: =Logik!N1 -> B2 | G11: B2 | H11: FALSE | J11: A1B1 | L11: FALSE | N11: A1A2 | Q11: B2 | R11: 0 | S11: =IF(P11<>"",OFFSET(Logik!$D$4,0,ROW()-1),0) -> 0
F12: =Logik!O1 -> C2 | G12: C2 | H12: FALSE | J12: A1B1 | L12: FALSE | N12: A1A2 | Q12: C2 | R12: 0 | S12: =IF(P12<>"",OFFSET(Logik!$D$4,0,ROW()-1),0) -> 0
D13: MöjligaDrag | E13: =T17 ->  | F13: =Logik!P1 -> D2 | G13: D2 | H13: FALSE | J13: A1B1 | L13: FALSE | N13: A1A2 | Q13: D2 | R13: 0 | S13: =IF(P13<>"",OFFSET(Logik!$D$4,0,ROW()-1),0) -> 0
D14: D Antal | E14: =LEN(E13)/2 -> 0 | F14: =Logik!Q1 -> E2 | G14: E2 | H14: FALSE | J14: A1B1 | L14: FALSE | N14: A1A2 | Q14: E2 | R14: 0 | S14: =IF(P14<>"",OFFSET(Logik!$D$4,0,ROW()-1),0) -> 0
F15: =Logik!R1 -> F2 | G15: F2 | H15: FALSE | J15: A1B1 | L15: FALSE | N15: A1A2 | Q15: F2 | R15: 0 | S15: =IF(P15<>"",OFFSET(Logik!$D$4,0,ROW()-1),0) -> 0
F16: =Logik!S1 -> G2 | G16: G2 | H16: FALSE | J16: A1B1 | L16: FALSE | N16: A1A2 | Q16: G2 | R16: 0 | S16: =IF(P16<>"",OFFSET(Logik!$D$4,0,ROW()-1),0) -> 0
F17: =Logik!T1 -> H2 | G17: H2 | H17: FALSE | J17: A1B1 | L17: FALSE | N17: A1A2 | Q17: H2 | R17: 0 | S17: =IF(P17<>"",OFFSET(Logik!$D$4,0,ROW()-1),0) -> 0
F18: =Logik!U1 -> A7 | G18: A7 | H18: FALSE | J18: A1B1 | L18: TRUE | M18: 13 | N18: A1A2 | Q18: A7 | R18: =IF(P18<>"",HLOOKUP(HLOOKUP(Q18,PjasStart,2,FALSE),Pjaser,3,FALSE),0) -> 0 | S18: =IF(P18<>"",OFFSET(Logik!$D$4,0,ROW()-1),0) -> 0
F19: =Logik!V1 -> B7 | G19: B7 | H19: FALSE | J19: A1B1 | L19: FALSE | N19: A1A2 | Q19: B7 | R19: 0 | S19: =IF(P19<>"",OFFSET(Logik!$D$4,0,ROW()-1),0) -> 0
F20: =Logik!W1 -> C7 | G20: C7 | H20: FALSE | J20: A1B1 | L20: FALSE | N20: A1A2 | Q20: C7 | R20: 0 | S20: =IF(P20<>"",OFFSET(Logik!$D$4,0,ROW()-1),0) -> 0
F21: =Logik!X1 -> D7 | G21: D7 | H21: FALSE | J21: A1B1 | L21: FALSE | N21: A1A2 | Q21: D7 | R21: 0 | S21: =IF(P21<>"",OFFSET(Logik!$D$4,0,ROW()-1),0) -> 0
F22: =Logik!Y1 -> E7 | G22: E7 | H22: FALSE | J22: A1B1 | L22: FALSE | N22: A1A2 | Q22: E7 | R22: 0 | S22: =IF(P22<>"",OFFSET(Logik!$D$4,0,ROW()-1),0) -> 0
F23: =Logik!Z1 -> F7 | G23: F7 | H23: FALSE | J23: A1B1 | L23: FALSE | N23: A1A2 | Q23: F7 | R23: 0 | S23: =IF(P23<>"",OFFSET(Logik!$D$4,0,ROW()-1),0) -> 0
F24: =Logik!AA1 -> G7 | G24: G7 | H24: FALSE | J24: A1B1 | L24: FALSE | N24: A1A2 | Q24: G7 | R24: 0 | S24: =IF(P24<>"",OFFSET(Logik!$D$4,0,ROW()-1),0) -> 0
F25: =Logik!AB1 -> H7 | G25: H7 | H25: FALSE | J25: A1B1 | L25: FALSE | N25: A1A2 | Q25: H7 | R25: 0 | S25: =IF(P25<>"",OFFSET(Logik!$D$4,0,ROW()-1),0) -> 0
F26: =Logik!AC1 -> A8 | G26: A8 | H26: FALSE | J26: A1B1 | L26: TRUE | M26: 15 | N26: A1A2 | Q26: A8 | R26: 0 | S26: =IF(P26<>"",OFFSET(Logik!$D$4,0,ROW()-1),0) -> 0
F27: =Logik!AD1 -> B8 | G27: B8 | H27: FALSE | J27: A1B1 | L27: FALSE | N27: A1A2 | Q27: B8 | R27: 0 | S27: =IF(P27<>"",OFFSET(Logik!$D$4,0,ROW()-1),0) -> 0
F28: =Logik!AE1 -> C8 | G28: C8 | H28: FALSE | J28: A1B1 | L28: FALSE | N28: A1A2 | Q28: C8 | R28: 0 | S28: =IF(P28<>"",OFFSET(Logik!$D$4,0,ROW()-1),0) -> 0
F29: =Logik!AF1 -> D8 | G29: D8 | H29: FALSE | J29: A1B1 | L29: FALSE | N29: A1A2 | Q29: D8 | R29: 0 | S29: =IF(P29<>"",OFFSET(Logik!$D$4,0,ROW()-1),0) -> 0
F30: =Logik!AG1 -> E8 | G30: E8 | H30: FALSE | J30: A1B1 | L30: FALSE | N30: A1A2 | Q30: E8 | R30: 0 | S30: =IF(P30<>"",OFFSET(Logik!$D$4,0,ROW()-1),0) -> 0
F31: =Logik!AH1 -> F8 | G31: F8 | H31: FALSE | J31: A1B1 | L31: FALSE | N31: A1A2 | Q31: F8 | R31: 0 | S31: =IF(P31<>"",OFFSET(Logik!$D$4,0,ROW()-1),0) -> 0
F32: =Logik!AI1 -> G8 | G32: G8 | H32: FALSE | J32: A1B1 | L32: FALSE | N32: A1A2 | Q32: G8 | R32: 0 | S32: =IF(P32<>"",OFFSET(Logik!$D$4,0,ROW()-1),0) -> 0
F33: =Logik!AJ1 -> H8 | G33: H8 | H33: FALSE | J33: A1B1 | L33: FALSE | N33: A1A2 | Q33: H8 | R33: 0 | S33: =IF(P33<>"",OFFSET(Logik!$D$4,0,ROW()-1),0) -> 0

Sheet P_B1 (hidden)
F1: =Logik!D1 -> Pos: | G1: Pjäs: | H1: RäckviddX | I1: Pos | J1: =SUBSTITUTE(E2,B3,"") -> A3C3D2 | K1: =LEFT($E$2,$E$4-1) ->  | P1: Nåbar | Q1: Vad | R1: Poäng | S1: PosPoäng | T1: MöjligaDrag
A2: Pjäs: | B2: =Logik!F2 -> B1 | D2: RäckviddX | E2: =IFERROR(INDEX(tblRVS,MATCH("VS"&$B$3,RVS!$A$2:$A$120,0),5),"") -> B1A3C3D2 | F2: =UPPER(Logik!E1) -> A1 | G2: =UPPER(F2) -> A1 | H2: =IF($G2<>"",IF($G2<>$B$3,IF(IFERROR(FIND($G2,$E$2)>0,FALSE),TRUE,FALSE),FALSE),FALSE) -> FALSE | I2: =IF(H2,FIND($G2,$E$2),"") ->  | J2: =J1 -> A3C3D2 | K2: =IF(AND($G2<>"",$G2>0,$I2<$E$4),RIGHT(K1,MIN($E$4-$I2,LEN(K1))),K1) ->  | P2: =IFERROR(IF(AND(G2<>"",$G2<>$B$3),FIND(G2,$E$6),""),"") ->  | Q2: A1 | R2: =IF(P2<>"",HLOOKUP(HLOOKUP(Q2,PjasStart,2,FALSE),Pjaser,4,FALSE),0) -> 0 | S2: =IF(P2<>"",OFFSET(Logik!$D$4,0,ROW()-1),0) -> 0 | T2: =SUBSTITUTE(E6,G2,"") -> A3C3D2
A3: Pos: | B3: =UPPER(Logik!F1) -> B1 | F3: =Logik!F1 -> B1 | G3: =UPPER(F3) -> B1 | H3: =IF($G3<>"",IF($G3<>$B$3,IF(IFERROR(FIND($G3,$E$2)>0,FALSE),TRUE,FALSE),FALSE),FALSE) -> FALSE | I3: =IF(H3,FIND($G3,$E$2),"") ->  | J3: =J2 -> A3C3D2 | K3: =IF(AND($G3<>"",$G3>0,$I3<$E$4),RIGHT(K2,MIN($E$4-$I3,LEN(K2))),K2) ->  | P3: =IFERROR(IF(AND(G3<>"",$G3<>$B$3),FIND(G3,$E$6),""),"") ->  | Q3: B1 | R3: 0 | S3: =IF(P3<>"",OFFSET(Logik!$D$4,0,ROW()-1),0) -> 0 | T3: =SUBSTITUTE(T2,G3,"") -> A3C3D2
A4: PosX: | B4: =LEFT(B3,1) -> B | D4: PosX | E4: =FIND(B3,E2) -> 1 | F4: =Logik!G1 -> C1 | G4: C1 | H4: FALSE | J4: A3C3D2 | Q4: C1 | R4: 0 | S4: =IF(P4<>"",OFFSET(Logik!$D$4,0,ROW()-1),0) -> 0 | T4: =SUBSTITUTE(T3,G4,"") -> A3C3D2
A5: PosY: | B5: =RIGHT(B3,1) -> 1 | F5: =Logik!H1 -> D1 | G5: D1 | H5: FALSE | J5: A3C3D2 | Q5: D1 | R5: 0 | S5: =IF(P5<>"",OFFSET(Logik!$D$4,0,ROW()-1),0) -> 0 | T5: A3C3D2
D6: RX | E6: =K33&J33 -> A3C3D2 | F6: =Logik!I1 -> E1 | G6: E1 | H6: FALSE | J6: A3C3D2 | Q6: E1 | R6: 0 | S6: =IF(P6<>"",OFFSET(Logik!$D$4,0,ROW()-1),0) -> 0 | T6: A3C3D2
A7: Poäng | B7: =Logik!F3 -> 300 | F7: =Logik!J1 -> F1 | G7: F1 | H7: FALSE | J7: A3C3D2 | Q7: F1 | R7: 0 | S7: =IF(P7<>"",OFFSET(Logik!$D$4,0,ROW()-1),0) -> 0 | T7: A3C3D2
A8: PosPoäng | B8: =Logik!F4 -> 8 | F8: =Logik!K1 -> G1 | G8: G1 | H8: FALSE | J8: A3C3D2 | Q8: G1 | R8: 0 | S8: =IF(P8<>"",OFFSET(Logik!$D$4,0,ROW()-1),0) -> 0 | T8: A3C3D2
D9: Försvar | E9: =SUM(R2:R17)+SUM(S2:S17) -> 100 | F9: =Logik!L1 -> H1 | G9: H1 | H9: FALSE | J9: A3C3D2 | Q9: H1 | R9: 0 | S9: =IF(P9<>"",OFFSET(Logik!$D$4,0,ROW()-1),0) -> 0 | T9: A3C3D2
D10: Attack | E10: =SUM(R18:R33)+SUM(S18:S33) -> 0 | F10: =Logik!M1 -> A2 | G10: A2 | H10: FALSE | J10: A3C3D2 | Q10: A2 | R10: 0 | S10: =IF(P10<>"",OFFSET(Logik!$D$4,0,ROW()-1),0) -> 0 | T10: A3C3D2
D11: R Antal | E11: =LEN(E6)/2 -> 3 | F11: =Logik!N1 -> B2 | G11: B2 | H11: FALSE | J11: A3C3D2 | Q11: B2 | R11: 0 | S11: =IF(P11<>"",OFFSET(Logik!$D$4,0,ROW()-1),0) -> 0 | T11: A3C3D2
F12: =Logik!O1 -> C2 | G12: C2 | H12: FALSE | J12: A3C3D2 | Q12: C2 | R12: 0 | S12: =IF(P12<>"",OFFSET(Logik!$D$4,0,ROW()-1),0) -> 0 | T12: A3C3D2
D13: MöjligaDrag | E13: =T17 -> A3C3 | F13: =Logik!P1 -> D2 | G13: D2 | H13: TRUE | I13: 7 | J13: A3C3D2 | P13: 5 | Q13: D2 | R13: 100 | S13: =IF(P13<>"",OFFSET(Logik!$D$4,0,ROW()-1),0) -> 0 | T13: A3C3
D14: D Antal | E14: =LEN(E13)/2 -> 2 | F14: =Logik!Q1 -> E2 | G14: E2 | H14: FALSE | J14: A3C3D2 | Q14: E2 | R14: 0 | S14: =IF(P14<>"",OFFSET(Logik!$D$4,0,ROW()-1),0) -> 0 | T14: A3C3
F15: =Logik!R1 -> F2 | G15: F2 | H15: FALSE | J15: A3C3D2 | Q15: F2 | R15: 0 | S15: =IF(P15<>"",OFFSET(Logik!$D$4,0,ROW()-1),0) -> 0 | T15: A3C3
F16: =Logik!S1 -> G2 | G16: G2 | H16: FALSE | J16: A3C3D2 | Q16: G2 | R16: 0 | S16: =IF(P16<>"",OFFSET(Logik!$D$4,0,ROW()-1),0) -> 0 | T16: A3C3
F17: =Logik!T1 -> H2 | G17: H2 | H17: FALSE | J17: A3C3D2 | Q17: H2 | R17: 0 | S17: =IF(P17<>"",OFFSET(Logik!$D$4,0,ROW()-1),0) -> 0 | T17: A3C3
F18: =Logik!U1 -> A7 | G18: A7 | H18: FALSE | J18: A3C3D2 | Q18: A7 | R18: =IF(P18<>"",HLOOKUP(HLOOKUP(Q18,PjasStart,2,FALSE),Pjaser,3,FALSE),0) -> 0 | S18: =IF(P18<>"",OFFSET(Logik!$D$4,0,ROW()-1),0) -> 0
F19: =Logik!V1 -> B7 | G19: B7 | H19: FALSE | J19: A3C3D2 | Q19: B7 | R19: 0 | S19: =IF(P19<>"",OFFSET(Logik!$D$4,0,ROW()-1),0) -> 0
F20: =Logik!W1 -> C7 | G20: C7 | H20: FALSE | J20: A3C3D2 | Q20: C7 | R20: 0 | S20: =IF(P20<>"",OFFSET(Logik!$D$4,0,ROW()-1),0) -> 0
F21: =Logik!X1 -> D7 | G21: D7 | H21: FALSE | J21: A3C3D2 | Q21: D7 | R21: 0 | S21: =IF(P21<>"",OFFSET(Logik!$D$4,0,ROW()-1),0) -> 0
F22: =Logik!Y1 -> E7 | G22: E7 | H22: FALSE | J22: A3C3D2 | Q22: E7 | R22: 0 | S22: =IF(P22<>"",OFFSET(Logik!$D$4,0,ROW()-1),0) -> 0
F23: =Logik!Z1 -> F7 | G23: F7 | H23: FALSE | J23: A3C3D2 | Q23: F7 | R23: 0 | S23: =IF(P23<>"",OFFSET(Logik!$D$4,0,ROW()-1),0) -> 0
F24: =Logik!AA1 -> G7 | G24: G7 | H24: FALSE | J24: A3C3D2 | Q24: G7 | R24: 0 | S24: =IF(P24<>"",OFFSET(Logik!$D$4,0,ROW()-1),0) -> 0
F25: =Logik!AB1 -> H7 | G25: H7 | H25: FALSE | J25: A3C3D2 | Q25: H7 | R25: 0 | S25: =IF(P25<>"",OFFSET(Logik!$D$4,0,ROW()-1),0) -> 0
F26: =Logik!AC1 -> A8 | G26: A8 | H26: FALSE | J26: A3C3D2 | Q26: A8 | R26: 0 | S26: =IF(P26<>"",OFFSET(Logik!$D$4,0,ROW()-1),0) -> 0
F27: =Logik!AD1 -> B8 | G27: B8 | H27: FALSE | J27: A3C3D2 | Q27: B8 | R27: 0 | S27: =IF(P27<>"",OFFSET(Logik!$D$4,0,ROW()-1),0) -> 0
F28: =Logik!AE1 -> C8 | G28: C8 | H28: FALSE | J28: A3C3D2 | Q28: C8 | R28: 0 | S28: =IF(P28<>"",OFFSET(Logik!$D$4,0,ROW()-1),0) -> 0
F29: =Logik!AF1 -> D8 | G29: D8 | H29: FALSE | J29: A3C3D2 | Q29: D8 | R29: 0 | S29: =IF(P29<>"",OFFSET(Logik!$D$4,0,ROW()-1),0) -> 0
F30: =Logik!AG1 -> E8 | G30: E8 | H30: FALSE | J30: A3C3D2 | Q30: E8 | R30: 0 | S30: =IF(P30<>"",OFFSET(Logik!$D$4,0,ROW()-1),0) -> 0
F31: =Logik!AH1 -> F8 | G31: F8 | H31: FALSE | J31: A3C3D2 | Q31: F8 | R31: 0 | S31: =IF(P31<>"",OFFSET(Logik!$D$4,0,ROW()-1),0) -> 0
F32: =Logik!AI1 -> G8 | G32: G8 | H32: FALSE | J32: A3C3D2 | Q32: G8 | R32: 0 | S32: =IF(P32<>"",OFFSET(Logik!$D$4,0,ROW()-1),0) -> 0
F33: =Logik!AJ1 -> H8 | G33: H8 | H33: FALSE | J33: A3C3D2 | Q33: H8 | R33: 0 | S33: =IF(P33<>"",OFFSET(Logik!$D$4,0,ROW()-1),0) -> 0

Sheet P_C1 (hidden)
F1: =Logik!D1 -> Pos: | G1: Pjäs: | H1: Fräckvidd | I1: Pos | J1: =RIGHT($E$23,LEN($E$23)-$E$4+1) -> C1 | K1: =LEFT($E$23,$E$4-1) -> H6G5F4E3D2 | L1: Fräckvidd | M1: Pos | N1: =RIGHT($E$24,LEN($E$24)-$E$5+1) -> C1B2A3 | O1: =LEFT($E$24,$E$5-1) ->  | P1: Nåbar | Q1: Vad | R1: Poäng | S1: PosPoäng | T1: MöjligaDrag
A2: Pjäs: | B2: =Logik!G2 -> C1 | F2: =UPPER(Logik!E1) -> A1 | G2: =UPPER(F2) -> A1 | H2: =IF($G2<>"",IF($G2<>$B$3,IF(IFERROR(FIND($G2,$E$23)>0,FALSE),TRUE,FALSE),FALSE),FALSE) -> FALSE | I2: =IF(H2,FIND($G2,$E$23),"") ->  | J2: =IFERROR(IF(AND($I2<>"",$I2>0,$I2>$E$4),LEFT(J1,MIN($I2-$E$4+2,LEN(J1))),J1),J1) -> C1 | K2: =IF(AND($I2<>"",$I2>0,$I2<$E$4),RIGHT(K1,MIN($E$4-$I2,LEN(K1))),K1) -> H6G5F4E3D2 | L2: =IF($G2<>"",IF($G2<>$B$3,IF(IFERROR(FIND($G2,$E$24)>0,FALSE),TRUE,FALSE),FALSE),FALSE) -> FALSE | M2: =IF(L2,FIND($G2,$E$24),"") ->  | N2: =IFERROR(IF(AND($M2<>"",$M2>0,$M2>$E$5),LEFT(N1,MIN($M2-$E$5+2,LEN(N1))),N1),N1) -> C1B2A3 | O2: =IF(AND($M2<>"",$M2>0,$M2<$E$5),RIGHT(O1,MIN($E$5-$M2,LEN(O1))),O1) ->  | P2: =IFERROR(IF(AND(G2<>"",$G2<>$B$3),FIND(G2,$E$8),""),"") ->  | Q2: A1 | R2: =IF(P2<>"",HLOOKUP(HLOOKUP(Q2,PjasStart,2,FALSE),Pjaser,4,FALSE),0) -> 0 | S2: =IF(P2<>"",OFFSET(Logik!$D$4,0,ROW()-1),0) -> 0 | T2: =SUBSTITUTE(E8,G2,"") -> D2C1C1B2
A3: Pos: | B3: =UPPER(Logik!G1) -> C1 | F3: =Logik!F1 -> B1 | G3: =UPPER(F3) -> B1 | H3: =IF($G3<>"",IF($G3<>$B$3,IF(IFERROR(FIND($G3,$E$23)>0,FALSE),TRUE,FALSE),FALSE),FALSE) -> FALSE | I3: =IF(H3,FIND($G3,$E$23),"") ->  | J3: =IFERROR(IF(AND($I3<>"",$I3>0,$I3>$E$4),LEFT(J2,MIN($I3-$E$4+2,LEN(J2))),J2),J2) -> C1 | K3: =IF(AND($I3<>"",$I3>0,$I3<$E$4),RIGHT(K2,MIN($E$4-$I3,LEN(K2))),K2) -> H6G5F4E3D2 | L3: =IF($G3<>"",IF($G3<>$B$3,IF(IFERROR(FIND($G3,$E$24)>0,FALSE),TRUE,FALSE),FALSE),FALSE) -> FALSE | M3: =IF(L3,FIND($G3,$E$24),"") ->  | N3: =IFERROR(IF(AND($M3<>"",$M3>0,$M3>$E$5),LEFT(N2,MIN($M3-$E$5+2,LEN(N2))),N2),N2) -> C1B2A3 | O3: =IF(AND($M3<>"",$M3>0,$M3<$E$5),RIGHT(O2,MIN($E$5-$M3,LEN(O2))),O2) ->  | P3: =IFERROR(IF(AND(G3<>"",$G3<>$B$3),FIND(G3,$E$8),""),"") ->  | Q3: B1 | R3: 0 | S3: =IF(P3<>"",OFFSET(Logik!$D$4,0,ROW()-1),0) -> 0 | T3: =SUBSTITUTE(T2,G3,"") -> D2C1C1B2
A4: PosX: | B4: =LEFT(B3,1) -> C | D4: PosX | E4: =FIND(B3,E23) -> 11 | F4: =Logik!G1 -> C1 | G4: C1 | H4: FALSE | J4: C1 | K4: H6G5F4E3D2 | L4: FALSE | N4: C1B2A3 | Q4: C1 | R4: 0 | S4: =IF(P4<>"",OFFSET(Logik!$D$4,0,ROW()-1),0) -> 0 | T4: =SUBSTITUTE(T3,G4,"") -> D2B2
A5: PosY: | B5: =RIGHT(B3,1) -> 1 | D5: PosY | E5: =IFERROR(FIND(B3,E24),0) -> 1 | F5: =Logik!H1 -> D1 | G5: D1 | H5: FALSE | J5: C1 | K5: H6G5F4E3D2 | L5: FALSE | N5: C1B2A3 | Q5: D1 | R5: 0 | S5: =IF(P5<>"",OFFSET(Logik!$D$4,0,ROW()-1),0) -> 0 | T5: D2B2
D6: RA | E6: =K33&J33 -> D2C1 | F6: =Logik!I1 -> E1 | G6: E1 | H6: FALSE | J6: C1 | K6: H6G5F4E3D2 | L6: FALSE | N6: C1B2A3 | Q6: E1 | R6: 0 | S6: =IF(P6<>"",OFFSET(Logik!$D$4,0,ROW()-1),0) -> 0 | T6: D2B2
A7: Poäng | B7: =Logik!G3 -> 300 | D7: RB | E7: =O33&N33 -> C1B2 | F7: =Logik!J1 -> F1 | G7: F1 | H7: FALSE | J7: C1 | K7: H6G5F4E3D2 | L7: FALSE | N7: C1B2A3 | Q7: F1 | R7: 0 | S7: =IF(P7<>"",OFFSET(Logik!$D$4,0,ROW()-1),0) -> 0 | T7: D2B2
A8: PosPoäng | B8: =Logik!G4 -> 10 | D8: RAB | E8: =E6&E7 -> D2C1C1B2 | F8: =Logik!K1 -> G1 | G8: G1 | H8: FALSE | J8: C1 | K8: H6G5F4E3D2 | L8: FALSE | N8: C1B2A3 | Q8: G1 | R8: 0 | S8: =IF(P8<>"",OFFSET(Logik!$D$4,0,ROW()-1),0) -> 0 | T8: D2B2
D9: Försvar | E9: =SUM(R2:R17)+SUM(S2:S17) -> 200 | F9: =Logik!L1 -> H1 | G9: H1 | H9: FALSE | J9: C1 | K9: H6G5F4E3D2 | L9: FALSE | N9: C1B2A3 | Q9: H1 | R9: 0 | S9: =IF(P9<>"",OFFSET(Logik!$D$4,0,ROW()-1),0) -> 0 | T9: D2B2
D10: Attack | E10: =SUM(R18:R33)+SUM(S18:S33) -> 0 | F10: =Logik!M1 -> A2 | G10: A2 | H10: FALSE | J10: C1 | K10: H6G5F4E3D2 | L10: FALSE | N10: C1B2A3 | Q10: A2 | R10: 0 | S10: =IF(P10<>"",OFFSET(Logik!$D$4,0,ROW()-1),0) -> 0 | T10: D2B2
D11: R Antal | E11: =LEN(E8)/2 -> 4 | F11: =Logik!N1 -> B2 | G11: B2 | H11: FALSE | J11: C1 | K11: H6G5F4E3D2 | L11: TRUE | M11: 3 | N11: C1B2 | P11: 7 | Q11: B2 | R11: 100 | S11: =IF(P11<>"",OFFSET(Logik!$D$4,0,ROW()-1),0) -> 0 | T11: D2
F12: =Logik!O1 -> C2 | G12: C2 | H12: FALSE | J12: C1 | K12: H6G5F4E3D2 | L12: FALSE | N12: C1B2 | Q12: C2 | R12: 0 | S12: =IF(P12<>"",OFFSET(Logik!$D$4,0,ROW()-1),0) -> 0 | T12: D2
D13: FRvA | E13: =IFERROR(INDEX(tblRVL,MATCH("VL"&$B$3,RVL!$A$2:$A$129,0),5),"") -> C1 | F13: =Logik!P1 -> D2 | G13: D2 | H13: TRUE | I13: 9 | J13: C1 | K13: D2 | L13: FALSE | N13: C1B2 | P13: 1 | Q13: D2 | R13: 100 | S13: =IF(P13<>"",OFFSET(Logik!$D$4,0,ROW()-1),0) -> 0
D14: FRvB | E14: =IFERROR(INDEX(tblRVL,MATCH("VL"&$B$3,RVL!$A$2:$A$129,0),6),"") -> C1B2A3 | F14: =Logik!Q1 -> E2 | G14: E2 | H14: FALSE | J14: C1 | K14: D2 | L14: FALSE | N14: C1B2 | Q14: E2 | R14: 0 | S14: =IF(P14<>"",OFFSET(Logik!$D$4,0,ROW()-1),0) -> 0
D15: FRvC | E15: =IFERROR(INDEX(tblRVL,MATCH("VL"&$B$3,RVL!$A$2:$A$129,0),7),"") ->  | F15: =Logik!R1 -> F2 | G15: F2 | H15: FALSE | J15: C1 | K15: D2 | L15: FALSE | N15: C1B2 | Q15: F2 | R15: 0 | S15: =IF(P15<>"",OFFSET(Logik!$D$4,0,ROW()-1),0) -> 0
D16: FRvD | E16: =IFERROR(INDEX(tblRVL,MATCH("VL"&$B$3,RVL!$A$2:$A$129,0),8),"") -> H6G5F4E3D2 | F16: =Logik!S1 -> G2 | G16: G2 | H16: FALSE | J16: C1 | K16: D2 | L16: FALSE | N16: C1B2 | Q16: G2 | R16: 0 | S16: =IF(P16<>"",OFFSET(Logik!$D$4,0,ROW()-1),0) -> 0
F17: =Logik!T1 -> H2 | G17: H2 | H17: FALSE | J17: C1 | K17: D2 | L17: FALSE | N17: C1B2 | Q17: H2 | R17: 0 | S17: =IF(P17<>"",OFFSET(Logik!$D$4,0,ROW()-1),0) -> 0
D18: ARvA | E18: =IFERROR(INDEX(tblRVL,MATCH("VL"&$B$3,RVL!$A$2:$A$129,0),9),"") ->  | F18: =Logik!U1 -> A7 | G18: A7 | H18: FALSE | J18: C1 | K18: D2 | L18: FALSE | N18: C1B2 | Q18: A7 | R18: =IF(P18<>"",HLOOKUP(HLOOKUP(Q18,PjasStart,2,FALSE),Pjaser,3,FALSE),0) -> 0 | S18: =IF(P18<>"",OFFSET(Logik!$D$4,0,ROW()-1),0) -> 0
D19: ARvB | E19: =IFERROR(INDEX(tblRVL,MATCH("VL"&$B$3,RVL!$A$2:$A$129,0),10),"") -> B2A3 | F19: =Logik!V1 -> B7 | G19: B7 | H19: FALSE | J19: C1 | K19: D2 | L19: FALSE | N19: C1B2 | Q19: B7 | R19: 0 | S19: =IF(P19<>"",OFFSET(Logik!$D$4,0,ROW()-1),0) -> 0
D20: ARvC | E20: =IFERROR(INDEX(tblRVL,MATCH("VL"&$B$3,RVL!$A$2:$A$129,0),11),"") ->  | F20: =Logik!W1 -> C7 | G20: C7 | H20: FALSE | J20: C1 | K20: D2 | L20: FALSE | N20: C1B2 | Q20: C7 | R20: 0 | S20: =IF(P20<>"",OFFSET(Logik!$D$4,0,ROW()-1),0) -> 0
D21: ARvD | E21: =IFERROR(INDEX(tblRVL,MATCH("VL"&$B$3,RVL!$A$2:$A$129,0),12),"") -> H6G5F4E3D2 | F21: =Logik!X1 -> D7 | G21: D7 | H21: FALSE | J21: C1 | K21: D2 | L21: FALSE | N21: C1B2 | Q21: D7 | R21: 0 | S21: =IF(P21<>"",OFFSET(Logik!$D$4,0,ROW()-1),0) -> 0
F22: =Logik!Y1 -> E7 | G22: E7 | H22: FALSE | J22: C1 | K22: D2 | L22: FALSE | N22: C1B2 | Q22: E7 | R22: 0 | S22: =IF(P22<>"",OFFSET(Logik!$D$4,0,ROW()-1),0) -> 0
D23: FR1 | E23: =E16&E13 -> H6G5F4E3D2C1 | F23: =Logik!Z1 -> F7 | G23: F7 | H23: FALSE | J23: C1 | K23: D2 | L23: FALSE | N23: C1B2 | Q23: F7 | R23: 0 | S23: =IF(P23<>"",OFFSET(Logik!$D$4,0,ROW()-1),0) -> 0
D24: FR2 | E24: =E15&E14 -> C1B2A3 | F24: =Logik!AA1 -> G7 | G24: G7 | H24: FALSE | J24: C1 | K24: D2 | L24: FALSE | N24: C1B2 | Q24: G7 | R24: 0 | S24: =IF(P24<>"",OFFSET(Logik!$D$4,0,ROW()-1),0) -> 0
F25: =Logik!AB1 -> H7 | G25: H7 | H25: FALSE | J25: C1 | K25: D2 | L25: FALSE | N25: C1B2 | Q25: H7 | R25: 0 | S25: =IF(P25<>"",OFFSET(Logik!$D$4,0,ROW()-1),0) -> 0
D26: MöjligaDrag | E26: =T17 ->  | F26: =Logik!AC1 -> A8 | G26: A8 | H26: FALSE | J26: C1 | K26: D2 | L26: FALSE | N26: C1B2 | Q26: A8 | R26: 0 | S26: =IF(P26<>"",OFFSET(Logik!$D$4,0,ROW()-1),0) -> 0
D27: D Antal | E27: =LEN(E26)/2 -> 0 | F27: =Logik!AD1 -> B8 | G27: B8 | H27: FALSE | J27: C1 | K27: D2 | L27: FALSE | N27: C1B2 | Q27: B8 | R27: 0 | S27: =IF(P27<>"",OFFSET(Logik!$D$4,0,ROW()-1),0) -> 0
F28: =Logik!AE1 -> C8 | G28: C8 | H28: FALSE | J28: C1 | K28: D2 | L28: FALSE | N28: C1B2 | Q28: C8 | R28: 0 | S28: =IF(P28<>"",OFFSET(Logik!$D$4,0,ROW()-1),0) -> 0
F29: =Logik!AF1 -> D8 | G29: D8 | H29: FALSE | J29: C1 | K29: D2 | L29: FALSE | N29: C1B2 | Q29: D8 | R29: 0 | S29: =IF(P29<>"",OFFSET(Logik!$D$4,0,ROW()-1),0) -> 0
F30: =Logik!AG1 -> E8 | G30: E8 | H30: FALSE | J30: C1 | K30: D2 | L30: FALSE | N30: C1B2 | Q30: E8 | R30: 0 | S30: =IF(P30<>"",OFFSET(Logik!$D$4,0,ROW()-1),0) -> 0
F31: =Logik!AH1 -> F8 | G31: F8 | H31: FALSE | J31: C1 | K31: D2 | L31: FALSE | N31: C1B2 | Q31: F8 | R31: 0 | S31: =IF(P31<>"",OFFSET(Logik!$D$4,0,ROW()-1),0) -> 0
F32: =Logik!AI1 -> G8 | G32: G8 | H32: FALSE | J32: C1 | K32: D2 | L32: FALSE | N32: C1B2 | Q32: G8 | R32: 0 | S32: =IF(P32<>"",OFFSET(Logik!$D$4,0,ROW()-1),0) -> 0
F33: =Logik!AJ1 -> H8 | G33: H8 | H33: FALSE | J33: C1 | K33: D2 | L33: FALSE | N33: C1B2 | Q33: H8 | R33: 0 | S33: =IF(P33<>"",OFFSET(Logik!$D$4,0,ROW()-1),0) -> 0

Sheet P_D1 (hidden)
F1: =Logik!D1 -> Pos: | G1: Pjäs: | H1: Diagonal1 | I1: Pos | J1: =RIGHT($E$21,LEN($E$21)-$E$2+1) -> D1 | K1: =LEFT($E$21,$E$2-1) -> H5G4F3E2 | L1: Diagonal2 | M1: Pos | N1: =RIGHT($E$22,LEN($E$22)-$E$3+1) -> D1C2B3A4 | O1: =LEFT($E$22,$E$3-1) ->  | P1: Rät1 | Q1: Pos | R1: =RIGHT($E$23,LEN($E$23)-$E$4+1) -> D1E1F1G1H1 | S1: =LEFT($E$23,$E$4-1) -> A1B1C1 | T1: Rät2 | U1: Pos | V1: =RIGHT($E$24,LEN($E$24)-$E$5+1) -> D1D2D3D4D5D6D7D8 | W1: =LEFT($E$24,$E$5-1) ->  | X1: Nåbar | Y1: Vad | Z1: Poäng | AA1: PosPoäng | AB1: MöjligaDrag
A2: Pjäs: | B2: =Logik!H2 -> D1 | D2: PosDiag1 | E2: =FIND(B3,E21) -> 9 | F2: =UPPER(Logik!E1) -> A1 | G2: =UPPER(F2) -> A1 | H2: =IF($G2<>"",IF($G2<>$B$3,IF(IFERROR(FIND($G2,$E$21)>0,FALSE),TRUE,FALSE),FALSE),FALSE) -> FALSE | I2: =IF(H2,FIND($G2,$E$21),"") ->  | J2: =IFERROR(IF(AND($I2<>"",$I2>0,$I2>$E$2),LEFT(J1,MIN($I2-$E$2+2,LEN(J1))),J1),J1) -> D1 | K2: =IF(AND($I2<>"",$I2>0,$I2<$E$2),RIGHT(K1,MIN($E$2-$I2,LEN(K1))),K1) -> H5G4F3E2 | L2: =IF($G2<>"",IF($G2<>$B$3,IF(IFERROR(FIND($G2,$E$22)>0,FALSE),TRUE,FALSE),FALSE),FALSE) -> FALSE | M2: =IF(L2,FIND($G2,$E$22),"") ->  | N2: =IFERROR(IF(AND($M2<>"",$M2>0,$M2>$E$3),LEFT(N1,MIN($M2-$E$3+2,LEN(N1))),N1),N1) -> D1C2B3A4 | O2: =IF(AND($M2<>"",$M2>0,$M2<$E$3),RIGHT(O1,MIN($E$3-$M2,LEN(O1))),O1) ->  | P2: =IF($G2<>"",IF($G2<>$B$3,IF(IFERROR(FIND($G2,$E$23)>0,FALSE),TRUE,FALSE),FALSE),FALSE) -> TRUE | Q2: =IF(P2,FIND($G2,$E$23),"") -> 1 | R2: =IFERROR(IF(AND($Q2<>"",$Q2>0,$Q2>$E$4),LEFT(R1,MIN($Q2-$E$4+2,LEN(R1))),R1),R1) -> D1E1F1G1H1 | S2: =IF(AND($Q2<>"",$Q2>0,$Q2<$E$4),RIGHT(S1,MIN($E$4-$Q2,LEN(S1))),S1) -> A1B1C1 | T2: =IF($G2<>"",IF($G2<>$B$3,IF(IFERROR(FIND($G2,$E$24)>0,FALSE),TRUE,FALSE),FALSE),FALSE) -> FALSE | U2: =IF(T2,FIND($G2,$E$24),"") ->  | V2: =IFERROR(IF(AND($U2<>"",$U2>0,$U2>$E$5),LEFT(V1,MIN($U2-$E$5+2,LEN(V1))),V1),V1) -> D1D2D3D4D5D6D7D8 | W2: =IF(AND($U2<>"",$U2>0,$U2<$E$5),RIGHT(W1,MIN($E$5-$U2,LEN(W1))),W1) ->  | X2: =IFERROR(IF(AND(G2<>"",$G2<>$B$3),FIND(G2,$E$8),""),"") ->  | Y2: A1 | Z2: =IF(X2<>"",HLOOKUP(HLOOKUP(Y2,PjasStart,2,FALSE),Pjaser,4,FALSE),0) -> 0 | AA2: =IF(X2<>"",OFFSET(Logik!$D$4,0,ROW()-1),0) -> 0 | AB2: =SUBSTITUTE(E8,G2,"") -> E2D1D1C2C1D1E1D1D2
A3: Pos: | B3: =UPPER(Logik!H1) -> D1 | D3: PosDiag2 | E3: =IFERROR(FIND(B3,E22),0) -> 1 | F3: =Logik!F1 -> B1 | G3: =UPPER(F3) -> B1 | H3: FALSE | J3: D1 | K3: H5G4F3E2 | L3: FALSE | N3: D1C2B3A4 | P3: =IF($G3<>"",IF($G3<>$B$3,IF(IFERROR(FIND($G3,$E$23)>0,FALSE),TRUE,FALSE),FALSE),FALSE) -> TRUE | Q3: =IF(P3,FIND($G3,$E$23),"") -> 3 | R3: =IFERROR(IF(AND($Q3<>"",$Q3>0,$Q3>$E$4),LEFT(R2,MIN($Q3-$E$4+2,LEN(R2))),R2),R2) -> D1E1F1G1H1 | S3: =IF(AND($Q3<>"",$Q3>0,$Q3<$E$4),RIGHT(S2,MIN($E$4-$Q3,LEN(S2))),S2) -> B1C1 | T3: =IF($G3<>"",IF($G3<>$B$3,IF(IFERROR(FIND($G3,$E$24)>0,FALSE),TRUE,FALSE),FALSE),FALSE) -> FALSE | U3: =IF(T3,FIND($G3,$E$24),"") ->  | V3: =IFERROR(IF(AND($U3<>"",$U3>0,$U3>$E$5),LEFT(V2,MIN($U3-$E$5+2,LEN(V2))),V2),V2) -> D1D2D3D4D5D6D7D8 | W3: =IF(AND($U3<>"",$U3>0,$U3<$E$5),RIGHT(W2,MIN($E$5-$U3,LEN(W2))),W2) ->  | X3: =IFERROR(IF(AND(G3<>"",$G3<>$B$3),FIND(G3,$E$8),""),"") ->  | Y3: B1 | Z3: 0 | AA3: =IF(X3<>"",OFFSET(Logik!$D$4,0,ROW()-1),0) -> 0 | AB3: =SUBSTITUTE(AB2,G3,"") -> E2D1D1C2C1D1E1D1D2
A4: PosX: | B4: =LEFT(B3,1) -> D | D4: PosX | E4: =IFERROR(FIND(B3,E23),0) -> 7 | F4: =Logik!G1 -> C1 | G4: C1 | H4: FALSE | J4: D1 | K4: H5G4F3E2 | L4: FALSE | N4: D1C2B3A4 | P4: TRUE | Q4: 5 | R4: D1E1F1G1H1 | S4: C1 | T4: FALSE | V4: D1D2D3D4D5D6D7D8 | X4: 9 | Y4: C1 | Z4: 300 | AA4: =IF(X4<>"",OFFSET(Logik!$D$4,0,ROW()-1),0) -> 10 | AB4: =SUBSTITUTE(AB3,G4,"") -> E2D1D1C2D1E1D1D2
A5: PosY: | B5: =RIGHT(B3,1) -> 1 | D5: PosY | E5: =IFERROR(FIND(B3,E24),0) -> 1 | F5: =Logik!H1 -> D1 | G5: D1 | H5: FALSE | J5: D1 | K5: H5G4F3E2 | L5: FALSE | N5: D1C2B3A4 | P5: FALSE | R5: D1E1F1G1H1 | S5: C1 | T5: FALSE | V5: D1D2D3D4D5D6D7D8 | Y5: D1 | Z5: 0 | AA5: =IF(X5<>"",OFFSET(Logik!$D$4,0,ROW()-1),0) -> 0 | AB5: E2C2E1D2
D6: RA | E6: =K33&J33&O33&N33 -> E2D1D1C2 | F6: =Logik!I1 -> E1 | G6: E1 | H6: FALSE | J6: D1 | K6: H5G4F3E2 | L6: FALSE | N6: D1C2B3A4 | P6: TRUE | Q6: 9 | R6: D1E1 | S6: C1 | T6: FALSE | V6: D1D2D3D4D5D6D7D8 | X6: 13 | Y6: E1 | Z6: 100 | AA6: =IF(X6<>"",OFFSET(Logik!$D$4,0,ROW()-1),0) -> 32 | AB6: E2C2D2
A7: Poäng | B7: =Logik!H3 -> 900 | D7: RB | E7: =S33&R33&W33&V33 -> C1D1E1D1D2 | F7: =Logik!J1 -> F1 | G7: F1 | H7: FALSE | J7: D1 | K7: H5G4F3E2 | L7: FALSE | N7: D1C2B3A4 | P7: TRUE | Q7: 11 | R7: D1E1 | S7: C1 | T7: FALSE | V7: D1D2D3D4D5D6D7D8 | Y7: F1 | Z7: 0 | AA7: =IF(X7<>"",OFFSET(Logik!$D$4,0,ROW()-1),0) -> 0 | AB7: E2C2D2
A8: PosPoäng | B8: =Logik!H4 -> 12 | D8: RAB | E8: =E6&E7 -> E2D1D1C2C1D1E1D1D2 | F8: =Logik!K1 -> G1 | G8: G1 | H8: FALSE | J8: D1 | K8: H5G4F3E2 | L8: FALSE | N8: D1C2B3A4 | P8: TRUE | Q8: 13 | R8: D1E1 | S8: C1 | T8: FALSE | V8: D1D2D3D4D5D6D7D8 | Y8: G1 | Z8: 0 | AA8: =IF(X8<>"",OFFSET(Logik!$D$4,0,ROW()-1),0) -> 0 | AB8: E2C2D2
D9: Försvar | E9: =SUM(Z2:Z17)+SUM(AA2:AA17) -> 742 | F9: =Logik!L1 -> H1 | G9: H1 | H9: FALSE | J9: D1 | K9: H5G4F3E2 | L9: FALSE | N9: D1C2B3A4 | P9: TRUE | Q9: 15 | R9: D1E1 | S9: C1 | T9: FALSE | V9: D1D2D3D4D5D6D7D8 | Y9: H1 | Z9: 0 | AA9: =IF(X9<>"",OFFSET(Logik!$D$4,0,ROW()-1),0) -> 0 | AB9: E2C2D2
D10: Attack | E10: =SUM(Z18:Z33)+SUM(AA18:AA33) -> 0 | F10: =Logik!M1 -> A2 | G10: A2 | H10: FALSE | J10: D1 | K10: H5G4F3E2 | L10: FALSE | N10: D1C2B3A4 | P10: FALSE | R10: D1E1 | S10: C1 | T10: FALSE | V10: D1D2D3D4D5D6D7D8 | Y10: A2 | Z10: 0 | AA10: =IF(X10<>"",OFFSET(Logik!$D$4,0,ROW()-1),0) -> 0 | AB10: E2C2D2
D11: R Antal | E11: =LEN(E8)/2 -> 9 | F11: =Logik!N1 -> B2 | G11: B2 | H11: FALSE | J11: D1 | K11: H5G4F3E2 | L11: FALSE | N11: D1C2B3A4 | P11: FALSE | R11: D1E1 | S11: C1 | T11: FALSE | V11: D1D2D3D4D5D6D7D8 | Y11: B2 | Z11: 0 | AA11: =IF(X11<>"",OFFSET(Logik!$D$4,0,ROW()-1),0) -> 0 | AB11: E2C2D2
F12: =Logik!O1 -> C2 | G12: C2 | H12: FALSE | J12: D1 | K12: H5G4F3E2 | L12: TRUE | M12: 3 | N12: D1C2 | P12: FALSE | R12: D1E1 | S12: C1 | T12: FALSE | V12: D1D2D3D4D5D6D7D8 | X12: 7 | Y12: C2 | Z12: 100 | AA12: =IF(X12<>"",OFFSET(Logik!$D$4,0,ROW()-1),0) -> 0 | AB12: E2D2
D13: FRvA | E13: =IFERROR(INDEX(tblRVD,MATCH("VD"&$B$3,RVD!$A$2:$A$65,0),5),"") -> D1 | F13: =Logik!P1 -> D2 | G13: D2 | H13: FALSE | J13: D1 | K13: H5G4F3E2 | L13: FALSE | N13: D1C2 | P13: FALSE | R13: D1E1 | S13: C1 | T13: TRUE | U13: 3 | V13: D1D2 | X13: 17 | Y13: D2 | Z13: 100 | AA13: =IF(X13<>"",OFFSET(Logik!$D$4,0,ROW()-1),0) -> 0 | AB13: E2
D14: FRvB | E14: =IFERROR(INDEX(tblRVD,MATCH("VD"&$B$3,RVD!$A$2:$A$65,0),6),"") -> D1C2B3A4 | F14: =Logik!Q1 -> E2 | G14: E2 | H14: TRUE | I14: 7 | J14: D1 | K14: E2 | L14: FALSE | N14: D1C2 | P14: FALSE | R14: D1E1 | S14: C1 | T14: FALSE | V14: D1D2 | X14: 1 | Y14: E2 | Z14: 100 | AA14: =IF(X14<>"",OFFSET(Logik!$D$4,0,ROW()-1),0) -> 0
D15: FRvC | E15: =IFERROR(INDEX(tblRVD,MATCH("VD"&$B$3,RVD!$A$2:$A$65,0),7),"") ->  | F15: =Logik!R1 -> F2 | G15: F2 | H15: FALSE | J15: D1 | K15: E2 | L15: FALSE | N15: D1C2 | P15: FALSE | R15: D1E1 | S15: C1 | T15: FALSE | V15: D1D2 | Y15: F2 | Z15: 0 | AA15: =IF(X15<>"",OFFSET(Logik!$D$4,0,ROW()-1),0) -> 0
D16: FRvD | E16: =IFERROR(INDEX(tblRVD,MATCH("VD"&$B$3,RVD!$A$2:$A$65,0),8),"") -> H5G4F3E2 | F16: =Logik!S1 -> G2 | G16: G2 | H16: FALSE | J16: D1 | K16: E2 | L16: FALSE | N16: D1C2 | P16: FALSE | R16: D1E1 | S16: C1 | T16: FALSE | V16: D1D2 | Y16: G2 | Z16: 0 | AA16: =IF(X16<>"",OFFSET(Logik!$D$4,0,ROW()-1),0) -> 0
D17: FRvE | E17: =IFERROR(INDEX(tblRVD,MATCH("VD"&$B$3,RVD!$A$2:$A$65,0),9),"") -> A1B1C1D1 | F17: =Logik!T1 -> H2 | G17: H2 | H17: FALSE | J17: D1 | K17: E2 | L17: FALSE | N17: D1C2 | P17: FALSE | R17: D1E1 | S17: C1 | T17: FALSE | V17: D1D2 | Y17: H2 | Z17: 0 | AA17: =IF(X17<>"",OFFSET(Logik!$D$4,0,ROW()-1),0) -> 0
D18: FRvF | E18: =IFERROR(INDEX(tblRVD,MATCH("VD"&$B$3,RVD!$A$2:$A$65,0),10),"") -> E1F1G1H1 | F18: =Logik!U1 -> A7 | G18: A7 | H18: FALSE | J18: D1 | K18: E2 | L18: FALSE | N18: D1C2 | P18: FALSE | R18: D1E1 | S18: C1 | T18: FALSE | V18: D1D2 | Y18: A7 | Z18: =IF(X18<>"",HLOOKUP(HLOOKUP(Y18,PjasStart,2,FALSE),Pjaser,3,FALSE),0) -> 0 | AA18: =IF(X18<>"",OFFSET(Logik!$D$4,0,ROW()-1),0) -> 0
D19: FRvG | E19: =IFERROR(INDEX(tblRVD,MATCH("VD"&$B$3,RVD!$A$2:$A$65,0),11),"") -> D1 | F19: =Logik!V1 -> B7 | G19: B7 | H19: FALSE | J19: D1 | K19: E2 | L19: FALSE | N19: D1C2 | P19: FALSE | R19: D1E1 | S19: C1 | T19: FALSE | V19: D1D2 | Y19: B7 | Z19: 0 | AA19: =IF(X19<>"",OFFSET(Logik!$D$4,0,ROW()-1),0) -> 0
D20: FRvH | E20: =IFERROR(INDEX(tblRVD,MATCH("VD"&$B$3,RVD!$A$2:$A$65,0),12),"") -> D2D3D4D5D6D7D8 | F20: =Logik!W1 -> C7 | G20: C7 | H20: FALSE | J20: D1 | K20: E2 | L20: FALSE | N20: D1C2 | P20: FALSE | R20: D1E1 | S20: C1 | T20: FALSE | V20: D1D2 | Y20: C7 | Z20: 0 | AA20: =IF(X20<>"",OFFSET(Logik!$D$4,0,ROW()-1),0) -> 0
D21: FR1 | E21: =E16&E13 -> H5G4F3E2D1 | F21: =Logik!X1 -> D7 | G21: D7 | H21: FALSE | J21: D1 | K21: E2 | L21: FALSE | N21: D1C2 | P21: FALSE | R21: D1E1 | S21: C1 | T21: TRUE | U21: 13 | V21: D1D2 | Y21: D7 | Z21: 0 | AA21: =IF(X21<>"",OFFSET(Logik!$D$4,0,ROW()-1),0) -> 0
D22: FR2 | E22: =E15&E14 -> D1C2B3A4 | F22: =Logik!Y1 -> E7 | G22: E7 | H22: FALSE | J22: D1 | K22: E2 | L22: FALSE | N22: D1C2 | P22: FALSE | R22: D1E1 | S22: C1 | T22: FALSE | V22: D1D2 | Y22: E7 | Z22: 0 | AA22: =IF(X22<>"",OFFSET(Logik!$D$4,0,ROW()-1),0) -> 0
D23: FR3 | E23: =E17&E18 -> A1B1C1D1E1F1G1H1 | F23: =Logik!Z1 -> F7 | G23: F7 | H23: FALSE | J23: D1 | K23: E2 | L23: FALSE | N23: D1C2 | P23: FALSE | R23: D1E1 | S23: C1 | T23: FALSE | V23: D1D2 | Y23: F7 | Z23: 0 | AA23: =IF(X23<>"",OFFSET(Logik!$D$4,0,ROW()-1),0) -> 0
D24: FR4 | E24: =E19&E20 -> D1D2D3D4D5D6D7D8 | F24: =Logik!AA1 -> G7 | G24: G7 | H24: FALSE | J24: D1 | K24: E2 | L24: FALSE | N24: D1C2 | P24: FALSE | R24: D1E1 | S24: C1 | T24: FALSE | V24: D1D2 | Y24: G7 | Z24: 0 | AA24: =IF(X24<>"",OFFSET(Logik!$D$4,0,ROW()-1),0) -> 0
F25: =Logik!AB1 -> H7 | G25: H7 | H25: FALSE | J25: D1 | K25: E2 | L25: FALSE | N25: D1C2 | P25: FALSE | R25: D1E1 | S25: C1 | T25: FALSE | V25: D1D2 | Y25: H7 | Z25: 0 | AA25: =IF(X25<>"",OFFSET(Logik!$D$4,0,ROW()-1),0) -> 0
D26: MöjligaDrag | E26: =AB17 ->  | F26: =Logik!AC1 -> A8 | G26: A8 | H26: FALSE | J26: D1 | K26: E2 | L26: FALSE | N26: D1C2 | P26: FALSE | R26: D1E1 | S26: C1 | T26: FALSE | V26: D1D2 | Y26: A8 | Z26: 0 | AA26: =IF(X26<>"",OFFSET(Logik!$D$4,0,ROW()-1),0) -> 0
D27: D Antal | E27: =LEN(E26)/2 -> 0 | F27: =Logik!AD1 -> B8 | G27: B8 | H27: FALSE | J27: D1 | K27: E2 | L27: FALSE | N27: D1C2 | P27: FALSE | R27: D1E1 | S27: C1 | T27: FALSE | V27: D1D2 | Y27: B8 | Z27: 0 | AA27: =IF(X27<>"",OFFSET(Logik!$D$4,0,ROW()-1),0) -> 0
F28: =Logik!AE1 -> C8 | G28: C8 | H28: FALSE | J28: D1 | K28: E2 | L28: FALSE | N28: D1C2 | P28: FALSE | R28: D1E1 | S28: C1 | T28: FALSE | V28: D1D2 | Y28: C8 | Z28: 0 | AA28: =IF(X28<>"",OFFSET(Logik!$D$4,0,ROW()-1),0) -> 0
F29: =Logik!AF1 -> D8 | G29: D8 | H29: FALSE | J29: D1 | K29: E2 | L29: FALSE | N29: D1C2 | P29: FALSE | R29: D1E1 | S29: C1 | T29: TRUE | U29: 15 | V29: D1D2 | Y29: D8 | Z29: 0 | AA29: =IF(X29<>"",OFFSET(Logik!$D$4,0,ROW()-1),0) -> 0
F30: =Logik!AG1 -> E8 | G30: E8 | H30: FALSE | J30: D1 | K30: E2 | L30: FALSE | N30: D1C2 | P30: FALSE | R30: D1E1 | S30: C1 | T30: FALSE | V30: D1D2 | Y30: E8 | Z30: 0 | AA30: =IF(X30<>"",OFFSET(Logik!$D$4,0,ROW()-1),0) -> 0
F31: =Logik!AH1 -> F8 | G31: F8 | H31: FALSE | J31: D1 | K31: E2 | L31: FALSE | N31: D1C2 | P31: FALSE | R31: D1E1 | S31: C1 | T31: FALSE | V31: D1D2 | Y31: F8 | Z31: 0 | AA31: =IF(X31<>"",OFFSET(Logik!$D$4,0,ROW()-1),0) -> 0
F32: =Logik!AI1 -> G8 | G32: G8 | H32: FALSE | J32: D1 | K32: E2 | L32: FALSE | N32: D1C2 | P32: FALSE | R32: D1E1 | S32: C1 | T32: FALSE | V32: D1D2 | Y32: G8 | Z32: 0 | AA32: =IF(X32<>"",OFFSET(Logik!$D$4,0,ROW()-1),0) -> 0
F33: =Logik!AJ1 -> H8 | G33: H8 | H33: FALSE | J33: D1 | K33: E2 | L33: FALSE | N33: D1C2 | P33: FALSE | R33: D1E1 | S33: C1 | T33: FALSE | V33: D1D2 | Y33: H8 | Z33: 0 | AA33: =IF(X33<>"",OFFSET(Logik!$D$4,0,ROW()-1),0) -> 0

Sheet P_E1 (hidden)
F1: =Logik!D1 -> Pos: | G1: Pjäs: | H1: Diagonal1 | I1: Pos | J1: =RIGHT($E$21,LEN($E$21)-$E$2+1) -> E1F2 | K1: =LEFT($E$21,$E$2-1) ->  | L1: Diagonal2 | M1: Pos | N1: =RIGHT($E$22,LEN($E$22)-$E$3+1) -> E1F1 | O1: =LEFT($E$22,$E$3-1) -> D1 | P1: Rät1 | Q1: Pos | R1: =RIGHT($E$23,LEN($E$23)-$E$4+1) -> E1 | S1: =LEFT($E$23,$E$4-1) -> D2 | T1: Rät2 | U1: Pos | V1: =RIGHT($E$24,LEN($E$24)-$E$5+1) -> E1 | W1: =LEFT($E$24,$E$5-1) -> E2 | X1: Nåbar | Y1: Vad | Z1: Poäng | AA1: PosPoäng | AB1: MöjligaDrag
A2: Pjäs: | B2: =Logik!I2 -> E1 | D2: PosDiag1 | E2: =FIND(B3,E21) -> 1 | F2: =UPPER(Logik!E1) -> A1 | G2: =UPPER(F2) -> A1 | H2: =IF($G2<>"",IF($G2<>$B$3,IF(IFERROR(FIND($G2,$E$21)>0,FALSE),TRUE,FALSE),FALSE),FALSE) -> FALSE | I2: =IF(H2,FIND($G2,$E$21),"") ->  | J2: =IFERROR(IF(AND($I2<>"",$I2>0,$I2>$E$2),LEFT(J1,MIN($I2-$E$2+2,LEN(J1))),J1),J1) -> E1F2 | K2: =IF(AND($I2<>"",$I2>0,$I2<$E$2),RIGHT(K1,MIN($E$2-$I2,LEN(K1))),K1) ->  | L2: =IF($G2<>"",IF($G2<>$B$3,IF(IFERROR(FIND($G2,$E$22)>0,FALSE),TRUE,FALSE),FALSE),FALSE) -> FALSE | M2: =IF(L2,FIND($G2,$E$22),"") ->  | N2: =IFERROR(IF(AND($M2<>"",$M2>0,$M2>$E$3),LEFT(N1,MIN($M2-$E$3+2,LEN(N1))),N1),N1) -> E1F1 | O2: =IF(AND($M2<>"",$M2>0,$M2<$E$3),RIGHT(O1,MIN($E$3-$M2,LEN(O1))),O1) -> D1 | P2: =IF($G2<>"",IF($G2<>$B$3,IF(IFERROR(FIND($G2,$E$23)>0,FALSE),TRUE,FALSE),FALSE),FALSE) -> FALSE | Q2: =IF(P2,FIND($G2,$E$23),"") ->  | R2: =IFERROR(IF(AND($Q2<>"",$Q2>0,$Q2>$E$4),LEFT(R1,MIN($Q2-$E$4+2,LEN(R1))),R1),R1) -> E1 | S2: =IF(AND($Q2<>"",$Q2>0,$Q2<$E$4),RIGHT(S1,MIN($E$4-$Q2,LEN(S1))),S1) -> D2 | T2: =IF($G2<>"",IF($G2<>$B$3,IF(IFERROR(FIND($G2,$E$24)>0,FALSE),TRUE,FALSE),FALSE),FALSE) -> FALSE | U2: =IF(T2,FIND($G2,$E$24),"") ->  | V2: =IFERROR(IF(AND($U2<>"",$U2>0,$U2>$E$5),LEFT(V1,MIN($U2-$E$5+2,LEN(V1))),V1),V1) -> E1 | W2: =IF(AND($U2<>"",$U2>0,$U2<$E$5),RIGHT(W1,MIN($E$5-$U2,LEN(W1))),W1) -> E2 | X2: =IFERROR(IF(AND(G2<>"",$G2<>$B$3),FIND(G2,$E$8),""),"") ->  | Y2: A1 | Z2: =IF(X2<>"",HLOOKUP(HLOOKUP(Y2,PjasStart,2,FALSE),Pjaser,4,FALSE),0) -> 0 | AA2: =IF(X2<>"",OFFSET(Logik!$D$4,0,ROW()-1),0) -> 0 | AB2: =SUBSTITUTE(E8,G2,"") -> E1F2D1E1F1D2E1E2E1
A3: Pos: | B3: =UPPER(Logik!I1) -> E1 | D3: PosDiag2 | E3: =IFERROR(FIND(B3,E22),0) -> 3 | F3: =Logik!F1 -> B1 | G3: =UPPER(F3) -> B1 | H3: FALSE | J3: E1F2 | L3: FALSE | N3: E1F1 | O3: D1 | P3: =IF($G3<>"",IF($G3<>$B$3,IF(IFERROR(FIND($G3,$E$23)>0,FALSE),TRUE,FALSE),FALSE),FALSE) -> FALSE | Q3: =IF(P3,FIND($G3,$E$23),"") ->  | R3: =IFERROR(IF(AND($Q3<>"",$Q3>0,$Q3>$E$4),LEFT(R2,MIN($Q3-$E$4+2,LEN(R2))),R2),R2) -> E1 | S3: =IF(AND($Q3<>"",$Q3>0,$Q3<$E$4),RIGHT(S2,MIN($E$4-$Q3,LEN(S2))),S2) -> D2 | T3: =IF($G3<>"",IF($G3<>$B$3,IF(IFERROR(FIND($G3,$E$24)>0,FALSE),TRUE,FALSE),FALSE),FALSE) -> FALSE | U3: =IF(T3,FIND($G3,$E$24),"") ->  | V3: =IFERROR(IF(AND($U3<>"",$U3>0,$U3>$E$5),LEFT(V2,MIN($U3-$E$5+2,LEN(V2))),V2),V2) -> E1 | W3: =IF(AND($U3<>"",$U3>0,$U3<$E$5),RIGHT(W2,MIN($E$5-$U3,LEN(W2))),W2) -> E2 | X3: =IFERROR(IF(AND(G3<>"",$G3<>$B$3),FIND(G3,$E$8),""),"") ->  | Y3: B1 | Z3: 0 | AA3: =IF(X3<>"",OFFSET(Logik!$D$4,0,ROW()-1),0) -> 0 | AB3: =SUBSTITUTE(AB2,G3,"") -> E1F2D1E1F1D2E1E2E1
A4: PosX: | B4: =LEFT(B3,1) -> E | D4: PosX | E4: =IFERROR(FIND(B3,E23),0) -> 3 | F4: =Logik!G1 -> C1 | G4: C1 | H4: FALSE | J4: E1F2 | L4: FALSE | N4: E1F1 | O4: D1 | P4: FALSE | R4: E1 | S4: D2 | T4: FALSE | V4: E1 | W4: E2 | Y4: C1 | Z4: 0 | AA4: =IF(X4<>"",OFFSET(Logik!$D$4,0,ROW()-1),0) -> 0 | AB4: =SUBSTITUTE(AB3,G4,"") -> E1F2D1E1F1D2E1E2E1
A5: PosY: | B5: =RIGHT(B3,1) -> 1 | D5: PosY | E5: =IFERROR(FIND(B3,E24),0) -> 3 | F5: =Logik!H1 -> D1 | G5: D1 | H5: FALSE | J5: E1F2 | L5: TRUE | M5: 1 | N5: E1F1 | O5: D1 | P5: FALSE | R5: E1 | S5: D2 | T5: FALSE | V5: E1 | W5: E2 | X5: 5 | Y5: D1 | Z5: 900 | AA5: =IF(X5<>"",OFFSET(Logik!$D$4,0,ROW()-1),0) -> 12 | AB5: E1F2E1F1D2E1E2E1
D6: RA | E6: =K33&J33&O33&N33 -> E1F2D1E1F1 | F6: =Logik!I1 -> E1 | G6: E1 | H6: FALSE | J6: E1F2 | L6: FALSE | N6: E1F1 | O6: D1 | P6: FALSE | R6: E1 | S6: D2 | T6: FALSE | V6: E1 | W6: E2 | Y6: E1 | Z6: 0 | AA6: =IF(X6<>"",OFFSET(Logik!$D$4,0,ROW()-1),0) -> 0 | AB6: F2F1D2E2
A7: Poäng | B7: =Logik!I3 -> 20000 | D7: RB | E7: =S33&R33&W33&V33 -> D2E1E2E1 | F7: =Logik!J1 -> F1 | G7: F1 | H7: FALSE | J7: E1F2 | L7: TRUE | M7: 5 | N7: E1F1 | O7: D1 | P7: FALSE | R7: E1 | S7: D2 | T7: FALSE | V7: E1 | W7: E2 | X7: 9 | Y7: F1 | Z7: 300 | AA7: =IF(X7<>"",OFFSET(Logik!$D$4,0,ROW()-1),0) -> 10 | AB7: F2D2E2
A8: PosPoäng | B8: =Logik!I4 -> 32 | D8: RAB | E8: =E6&E7 -> E1F2D1E1F1D2E1E2E1 | F8: =Logik!K1 -> G1 | G8: G1 | H8: FALSE | J8: E1F2 | L8: FALSE | N8: E1F1 | O8: D1 | P8: FALSE | R8: E1 | S8: D2 | T8: FALSE | V8: E1 | W8: E2 | Y8: G1 | Z8: 0 | AA8: =IF(X8<>"",OFFSET(Logik!$D$4,0,ROW()-1),0) -> 0 | AB8: F2D2E2
D9: Försvar | E9: =SUM(Z2:Z17)+SUM(AA2:AA17) -> 1522 | F9: =Logik!L1 -> H1 | G9: H1 | H9: FALSE | J9: E1F2 | L9: FALSE | N9: E1F1 | O9: D1 | P9: FALSE | R9: E1 | S9: D2 | T9: FALSE | V9: E1 | W9: E2 | Y9: H1 | Z9: 0 | AA9: =IF(X9<>"",OFFSET(Logik!$D$4,0,ROW()-1),0) -> 0 | AB9: F2D2E2
D10: Attack | E10: =SUM(Z18:Z33)+SUM(AA18:AA33) -> 0 | F10: =Logik!M1 -> A2 | G10: A2 | H10: FALSE | J10: E1F2 | L10: FALSE | N10: E1F1 | O10: D1 | P10: FALSE | R10: E1 | S10: D2 | T10: FALSE | V10: E1 | W10: E2 | Y10: A2 | Z10: 0 | AA10: =IF(X10<>"",OFFSET(Logik!$D$4,0,ROW()-1),0) -> 0 | AB10: F2D2E2
D11: R Antal | E11: =LEN(E8)/2 -> 9 | F11: =Logik!N1 -> B2 | G11: B2 | H11: FALSE | J11: E1F2 | L11: FALSE | N11: E1F1 | O11: D1 | P11: FALSE | R11: E1 | S11: D2 | T11: FALSE | V11: E1 | W11: E2 | Y11: B2 | Z11: 0 | AA11: =IF(X11<>"",OFFSET(Logik!$D$4,0,ROW()-1),0) -> 0 | AB11: F2D2E2
F12: =Logik!O1 -> C2 | G12: C2 | H12: FALSE | J12: E1F2 | L12: FALSE | N12: E1F1 | O12: D1 | P12: FALSE | R12: E1 | S12: D2 | T12: FALSE | V12: E1 | W12: E2 | Y12: C2 | Z12: 0 | AA12: =IF(X12<>"",OFFSET(Logik!$D$4,0,ROW()-1),0) -> 0 | AB12: F2D2E2
D13: FRvA | E13: =IFERROR(INDEX(tblRVK,MATCH("VK"&$B$3,RVK!$A$2:$A$65,0),6),"") ->  | F13: =Logik!P1 -> D2 | G13: D2 | H13: FALSE | J13: E1F2 | L13: FALSE | N13: E1F1 | O13: D1 | P13: TRUE | Q13: 1 | R13: E1 | S13: D2 | T13: FALSE | V13: E1 | W13: E2 | X13: 11 | Y13: D2 | Z13: 100 | AA13: =IF(X13<>"",OFFSET(Logik!$D$4,0,ROW()-1),0) -> 0 | AB13: F2E2
D14: FRvB | E14: =IFERROR(INDEX(tblRVK,MATCH("VK"&$B$3,RVK!$A$2:$A$65,0),7),"") ->  | F14: =Logik!Q1 -> E2 | G14: E2 | H14: FALSE | J14: E1F2 | L14: FALSE | N14: E1F1 | O14: D1 | P14: FALSE | R14: E1 | S14: D2 | T14: TRUE | U14: 1 | V14: E1 | W14: E2 | X14: 15 | Y14: E2 | Z14: 100 | AA14: =IF(X14<>"",OFFSET(Logik!$D$4,0,ROW()-1),0) -> 0 | AB14: F2
D15: FRvC | E15: =IFERROR(INDEX(tblRVK,MATCH("VK"&$B$3,RVK!$A$2:$A$65,0),8),"") -> F1 | F15: =Logik!R1 -> F2 | G15: F2 | H15: TRUE | I15: 3 | J15: E1F2 | L15: FALSE | N15: E1F1 | O15: D1 | P15: FALSE | R15: E1 | S15: D2 | T15: FALSE | V15: E1 | W15: E2 | X15: 3 | Y15: F2 | Z15: 100 | AA15: =IF(X15<>"",OFFSET(Logik!$D$4,0,ROW()-1),0) -> 0
D16: FRvD | E16: =IFERROR(INDEX(tblRVK,MATCH("VK"&$B$3,RVK!$A$2:$A$65,0),9),"") -> F2 | F16: =Logik!S1 -> G2 | G16: G2 | H16: FALSE | J16: E1F2 | L16: FALSE | N16: E1F1 | O16: D1 | P16: FALSE | R16: E1 | S16: D2 | T16: FALSE | V16: E1 | W16: E2 | Y16: G2 | Z16: 0 | AA16: =IF(X16<>"",OFFSET(Logik!$D$4,0,ROW()-1),0) -> 0
D17: FRvE | E17: =IFERROR(INDEX(tblRVK,MATCH("VK"&$B$3,RVK!$A$2:$A$65,0),10),"") -> E2 | F17: =Logik!T1 -> H2 | G17: H2 | H17: FALSE | J17: E1F2 | L17: FALSE | N17: E1F1 | O17: D1 | P17: FALSE | R17: E1 | S17: D2 | T17: FALSE | V17: E1 | W17: E2 | Y17: H2 | Z17: 0 | AA17: =IF(X17<>"",OFFSET(Logik!$D$4,0,ROW()-1),0) -> 0
D18: FRvF | E18: =IFERROR(INDEX(tblRVK,MATCH("VK"&$B$3,RVK!$A$2:$A$65,0),11),"") -> D2 | F18: =Logik!U1 -> A7 | G18: A7 | H18: FALSE | J18: E1F2 | L18: FALSE | N18: E1F1 | O18: D1 | P18: FALSE | R18: E1 | S18: D2 | T18: FALSE | V18: E1 | W18: E2 | Y18: A7 | Z18: =IF(X18<>"",HLOOKUP(HLOOKUP(Y18,PjasStart,2,FALSE),Pjaser,3,FALSE),0) -> 0 | AA18: =IF(X18<>"",OFFSET(Logik!$D$4,0,ROW()-1),0) -> 0
D19: FRvG | E19: =IFERROR(INDEX(tblRVK,MATCH("VK"&$B$3,RVK!$A$2:$A$65,0),12),"") -> D1 | F19: =Logik!V1 -> B7 | G19: B7 | H19: FALSE | J19: E1F2 | L19: FALSE | N19: E1F1 | O19: D1 | P19: FALSE | R19: E1 | S19: D2 | T19: FALSE | V19: E1 | W19: E2 | Y19: B7 | Z19: 0 | AA19: =IF(X19<>"",OFFSET(Logik!$D$4,0,ROW()-1),0) -> 0
D20: FRvH | E20: =IFERROR(INDEX(tblRVK,MATCH("VK"&$B$3,RVK!$A$2:$A$65,0),13),"") ->  | F20: =Logik!W1 -> C7 | G20: C7 | H20: FALSE | J20: E1F2 | L20: FALSE | N20: E1F1 | O20: D1 | P20: FALSE | R20: E1 | S20: D2 | T20: FALSE | V20: E1 | W20: E2 | Y20: C7 | Z20: 0 | AA20: =IF(X20<>"",OFFSET(Logik!$D$4,0,ROW()-1),0) -> 0
D21: FR1 | E21: =E20&B3&E16 -> E1F2 | F21: =Logik!X1 -> D7 | G21: D7 | H21: FALSE | J21: E1F2 | L21: FALSE | N21: E1F1 | O21: D1 | P21: FALSE | R21: E1 | S21: D2 | T21: FALSE | V21: E1 | W21: E2 | Y21: D7 | Z21: 0 | AA21: =IF(X21<>"",OFFSET(Logik!$D$4,0,ROW()-1),0) -> 0
D22: FR2 | E22: =E19&B3&E15 -> D1E1F1 | F22: =Logik!Y1 -> E7 | G22: E7 | H22: FALSE | J22: E1F2 | L22: FALSE | N22: E1F1 | O22: D1 | P22: FALSE | R22: E1 | S22: D2 | T22: FALSE | V22: E1 | W22: E2 | Y22: E7 | Z22: 0 | AA22: =IF(X22<>"",OFFSET(Logik!$D$4,0,ROW()-1),0) -> 0
D23: FR3 | E23: =E18&B3&E14 -> D2E1 | F23: =Logik!Z1 -> F7 | G23: F7 | H23: FALSE | J23: E1F2 | L23: FALSE | N23: E1F1 | O23: D1 | P23: FALSE | R23: E1 | S23: D2 | T23: FALSE | V23: E1 | W23: E2 | Y23: F7 | Z23: 0 | AA23: =IF(X23<>"",OFFSET(Logik!$D$4,0,ROW()-1),0) -> 0
D24: FR4 | E24: =E17&B3&E13 -> E2E1 | F24: =Logik!AA1 -> G7 | G24: G7 | H24: FALSE | J24: E1F2 | L24: FALSE | N24: E1F1 | O24: D1 | P24: FALSE | R24: E1 | S24: D2 | T24: FALSE | V24: E1 | W24: E2 | Y24: G7 | Z24: 0 | AA24: =IF(X24<>"",OFFSET(Logik!$D$4,0,ROW()-1),0) -> 0
F25: =Logik!AB1 -> H7 | G25: H7 | H25: FALSE | J25: E1F2 | L25: FALSE | N25: E1F1 | O25: D1 | P25: FALSE | R25: E1 | S25: D2 | T25: FALSE | V25: E1 | W25: E2 | Y25: H7 | Z25: 0 | AA25: =IF(X25<>"",OFFSET(Logik!$D$4,0,ROW()-1),0) -> 0
D26: MöjligaDrag | E26: =AB17 ->  | F26: =Logik!AC1 -> A8 | G26: A8 | H26: FALSE | J26: E1F2 | L26: FALSE | N26: E1F1 | O26: D1 | P26: FALSE | R26: E1 | S26: D2 | T26: FALSE | V26: E1 | W26: E2 | Y26: A8 | Z26: 0 | AA26: =IF(X26<>"",OFFSET(Logik!$D$4,0,ROW()-1),0) -> 0
D27: D Antal | E27: =LEN(E26)/2 -> 0 | F27: =Logik!AD1 -> B8 | G27: B8 | H27: FALSE | J27: E1F2 | L27: FALSE | N27: E1F1 | O27: D1 | P27: FALSE | R27: E1 | S27: D2 | T27: FALSE | V27: E1 | W27: E2 | Y27: B8 | Z27: 0 | AA27: =IF(X27<>"",OFFSET(Logik!$D$4,0,ROW()-1),0) -> 0
F28: =Logik!AE1 -> C8 | G28: C8 | H28: FALSE | J28: E1F2 | L28: FALSE | N28: E1F1 | O28: D1 | P28: FALSE | R28: E1 | S28: D2 | T28: FALSE | V28: E1 | W28: E2 | Y28: C8 | Z28: 0 | AA28: =IF(X28<>"",OFFSET(Logik!$D$4,0,ROW()-1),0) -> 0
F29: =Logik!AF1 -> D8 | G29: D8 | H29: FALSE | J29: E1F2 | L29: FALSE | N29: E1F1 | O29: D1 | P29: FALSE | R29: E1 | S29: D2 | T29: FALSE | V29: E1 | W29: E2 | Y29: D8 | Z29: 0 | AA29: =IF(X29<>"",OFFSET(Logik!$D$4,0,ROW()-1),0) -> 0
F30: =Logik!AG1 -> E8 | G30: E8 | H30: FALSE | J30: E1F2 | L30: FALSE | N30: E1F1 | O30: D1 | P30: FALSE | R30: E1 | S30: D2 | T30: FALSE | V30: E1 | W30: E2 | Y30: E8 | Z30: 0 | AA30: =IF(X30<>"",OFFSET(Logik!$D$4,0,ROW()-1),0) -> 0
F31: =Logik!AH1 -> F8 | G31: F8 | H31: FALSE | J31: E1F2 | L31: FALSE | N31: E1F1 | O31: D1 | P31: FALSE | R31: E1 | S31: D2 | T31: FALSE | V31: E1 | W31: E2 | Y31: F8 | Z31: 0 | AA31: =IF(X31<>"",OFFSET(Logik!$D$4,0,ROW()-1),0) -> 0
F32: =Logik!AI1 -> G8 | G32: G8 | H32: FALSE | J32: E1F2 | L32: FALSE | N32: E1F1 | O32: D1 | P32: FALSE | R32: E1 | S32: D2 | T32: FALSE | V32: E1 | W32: E2 | Y32: G8 | Z32: 0 | AA32: =IF(X32<>"",OFFSET(Logik!$D$4,0,ROW()-1),0) -> 0
F33: =Logik!AJ1 -> H8 | G33: H8 | H33: FALSE | J33: E1F2 | L33: FALSE | N33: E1F1 | O33: D1 | P33: FALSE | R33: E1 | S33: D2 | T33: FALSE | V33: E1 | W33: E2 | Y33: H8 | Z33: 0 | AA33: =IF(X33<>"",OFFSET(Logik!$D$4,0,ROW()-1),0) -> 0

Sheet P_F1 (hidden)
F1: =Logik!D1 -> Pos: | G1: Pjäs: | H1: Fräckvidd | I1: Pos | J1: =RIGHT($E$23,LEN($E$23)-$E$4+1) -> F1 | K1: =LEFT($E$23,$E$4-1) -> H3G2 | L1: Fräckvidd | M1: Pos | N1: =RIGHT($E$24,LEN($E$24)-$E$5+1) -> F1E2D3C4B5A6 | O1: =LEFT($E$24,$E$5-1) ->  | P1: Nåbar | Q1: Vad | R1: Poäng | S1: PosPoäng | T1: MöjligaDrag
A2: Pjäs: | B2: =Logik!J2 -> F1 | F2: =UPPER(Logik!E1) -> A1 | G2: =UPPER(F2) -> A1 | H2: =IF($G2<>"",IF($G2<>$B$3,IF(IFERROR(FIND($G2,$E$23)>0,FALSE),TRUE,FALSE),FALSE),FALSE) -> FALSE | I2: =IF(H2,FIND($G2,$E$23),"") ->  | J2: =IFERROR(IF(AND($I2<>"",$I2>0,$I2>$E$4),LEFT(J1,MIN($I2-$E$4+2,LEN(J1))),J1),J1) -> F1 | K2: =IF(AND($I2<>"",$I2>0,$I2<$E$4),RIGHT(K1,MIN($E$4-$I2,LEN(K1))),K1) -> H3G2 | L2: =IF($G2<>"",IF($G2<>$B$3,IF(IFERROR(FIND($G2,$E$24)>0,FALSE),TRUE,FALSE),FALSE),FALSE) -> FALSE | M2: =IF(L2,FIND($G2,$E$24),"") ->  | N2: =IFERROR(IF(AND($M2<>"",$M2>0,$M2>$E$5),LEFT(N1,MIN($M2-$E$5+2,LEN(N1))),N1),N1) -> F1E2D3C4B5A6 | O2: =IF(AND($M2<>"",$M2>0,$M2<$E$5),RIGHT(O1,MIN($E$5-$M2,LEN(O1))),O1) ->  | P2: =IFERROR(IF(AND(G2<>"",$G2<>$B$3),FIND(G2,$E$8),""),"") ->  | Q2: A1 | R2: =IF(P2<>"",HLOOKUP(HLOOKUP(Q2,PjasStart,2,FALSE),Pjaser,4,FALSE),0) -> 0 | S2: =IF(P2<>"",OFFSET(Logik!$D$4,0,ROW()-1),0) -> 0 | T2: =SUBSTITUTE(E8,G2,"") -> G2F1F1E2
A3: Pos: | B3: =UPPER(Logik!J1) -> F1 | F3: =Logik!F1 -> B1 | G3: =UPPER(F3) -> B1 | H3: =IF($G3<>"",IF($G3<>$B$3,IF(IFERROR(FIND($G3,$E$23)>0,FALSE),TRUE,FALSE),FALSE),FALSE) -> FALSE | I3: =IF(H3,FIND($G3,$E$23),"") ->  | J3: =IFERROR(IF(AND($I3<>"",$I3>0,$I3>$E$4),LEFT(J2,MIN($I3-$E$4+2,LEN(J2))),J2),J2) -> F1 | K3: =IF(AND($I3<>"",$I3>0,$I3<$E$4),RIGHT(K2,MIN($E$4-$I3,LEN(K2))),K2) -> H3G2 | L3: =IF($G3<>"",IF($G3<>$B$3,IF(IFERROR(FIND($G3,$E$24)>0,FALSE),TRUE,FALSE),FALSE),FALSE) -> FALSE | M3: =IF(L3,FIND($G3,$E$24),"") ->  | N3: =IFERROR(IF(AND($M3<>"",$M3>0,$M3>$E$5),LEFT(N2,MIN($M3-$E$5+2,LEN(N2))),N2),N2) -> F1E2D3C4B5A6 | O3: =IF(AND($M3<>"",$M3>0,$M3<$E$5),RIGHT(O2,MIN($E$5-$M3,LEN(O2))),O2) ->  | P3: =IFERROR(IF(AND(G3<>"",$G3<>$B$3),FIND(G3,$E$8),""),"") ->  | Q3: B1 | R3: 0 | S3: =IF(P3<>"",OFFSET(Logik!$D$4,0,ROW()-1),0) -> 0 | T3: =SUBSTITUTE(T2,G3,"") -> G2F1F1E2
A4: PosX: | B4: =LEFT(B3,1) -> F | D4: PosX | E4: =FIND(B3,E23) -> 5 | F4: =Logik!G1 -> C1 | G4: C1 | H4: FALSE | J4: F1 | K4: H3G2 | L4: FALSE | N4: F1E2D3C4B5A6 | Q4: C1 | R4: 0 | S4: =IF(P4<>"",OFFSET(Logik!$D$4,0,ROW()-1),0) -> 0 | T4: =SUBSTITUTE(T3,G4,"") -> G2F1F1E2
A5: PosY: | B5: =RIGHT(B3,1) -> 1 | D5: PosY | E5: =IFERROR(FIND(B3,E24),0) -> 1 | F5: =Logik!H1 -> D1 | G5: D1 | H5: FALSE | J5: F1 | K5: H3G2 | L5: FALSE | N5: F1E2D3C4B5A6 | Q5: D1 | R5: 0 | S5: =IF(P5<>"",OFFSET(Logik!$D$4,0,ROW()-1),0) -> 0 | T5: G2F1F1E2
D6: RA | E6: =K33&J33 -> G2F1 | F6: =Logik!I1 -> E1 | G6: E1 | H6: FALSE | J6: F1 | K6: H3G2 | L6: FALSE | N6: F1E2D3C4B5A6 | Q6: E1 | R6: 0 | S6: =IF(P6<>"",OFFSET(Logik!$D$4,0,ROW()-1),0) -> 0 | T6: G2F1F1E2
A7: Poäng | B7: =Logik!J3 -> 300 | D7: RB | E7: =O33&N33 -> F1E2 | F7: =Logik!J1 -> F1 | G7: F1 | H7: FALSE | J7: F1 | K7: H3G2 | L7: FALSE | N7: F1E2D3C4B5A6 | Q7: F1 | R7: 0 | S7: =IF(P7<>"",OFFSET(Logik!$D$4,0,ROW()-1),0) -> 0 | T7: G2E2
A8: PosPoäng | B8: =Logik!J4 -> 10 | D8: RAB | E8: =E6&E7 -> G2F1F1E2 | F8: =Logik!K1 -> G1 | G8: G1 | H8: FALSE | J8: F1 | K8: H3G2 | L8: FALSE | N8: F1E2D3C4B5A6 | Q8: G1 | R8: 0 | S8: =IF(P8<>"",OFFSET(Logik!$D$4,0,ROW()-1),0) -> 0 | T8: G2E2
D9: Försvar | E9: =SUM(R2:R17)+SUM(S2:S17) -> 200 | F9: =Logik!L1 -> H1 | G9: H1 | H9: FALSE | J9: F1 | K9: H3G2 | L9: FALSE | N9: F1E2D3C4B5A6 | Q9: H1 | R9: 0 | S9: =IF(P9<>"",OFFSET(Logik!$D$4,0,ROW()-1),0) -> 0 | T9: G2E2
D10: Attack | E10: =SUM(R18:R33)+SUM(S18:S33) -> 0 | F10: =Logik!M1 -> A2 | G10: A2 | H10: FALSE | J10: F1 | K10: H3G2 | L10: FALSE | N10: F1E2D3C4B5A6 | Q10: A2 | R10: 0 | S10: =IF(P10<>"",OFFSET(Logik!$D$4,0,ROW()-1),0) -> 0 | T10: G2E2
D11: R Antal | E11: =LEN(E8)/2 -> 4 | F11: =Logik!N1 -> B2 | G11: B2 | H11: FALSE | J11: F1 | K11: H3G2 | L11: FALSE | N11: F1E2D3C4B5A6 | Q11: B2 | R11: 0 | S11: =IF(P11<>"",OFFSET(Logik!$D$4,0,ROW()-1),0) -> 0 | T11: G2E2
F12: =Logik!O1 -> C2 | G12: C2 | H12: FALSE | J12: F1 | K12: H3G2 | L12: FALSE | N12: F1E2D3C4B5A6 | Q12: C2 | R12: 0 | S12: =IF(P12<>"",OFFSET(Logik!$D$4,0,ROW()-1),0) -> 0 | T12: G2E2
D13: FRvA | E13: =IFERROR(INDEX(tblRVL,MATCH("VL"&$B$3,RVL!$A$2:$A$129,0),5),"") -> F1 | F13: =Logik!P1 -> D2 | G13: D2 | H13: FALSE | J13: F1 | K13: H3G2 | L13: FALSE | N13: F1E2D3C4B5A6 | Q13: D2 | R13: 0 | S13: =IF(P13<>"",OFFSET(Logik!$D$4,0,ROW()-1),0) -> 0 | T13: G2E2
D14: FRvB | E14: =IFERROR(INDEX(tblRVL,MATCH("VL"&$B$3,RVL!$A$2:$A$129,0),6),"") -> F1E2D3C4B5A6 | F14: =Logik!Q1 -> E2 | G14: E2 | H14: FALSE | J14: F1 | K14: H3G2 | L14: TRUE | M14: 3 | N14: F1E2 | P14: 7 | Q14: E2 | R14: 100 | S14: =IF(P14<>"",OFFSET(Logik!$D$4,0,ROW()-1),0) -> 0 | T14: G2
D15: FRvC | E15: =IFERROR(INDEX(tblRVL,MATCH("VL"&$B$3,RVL!$A$2:$A$129,0),7),"") ->  | F15: =Logik!R1 -> F2 | G15: F2 | H15: FALSE | J15: F1 | K15: H3G2 | L15: FALSE | N15: F1E2 | Q15: F2 | R15: 0 | S15: =IF(P15<>"",OFFSET(Logik!$D$4,0,ROW()-1),0) -> 0 | T15: G2
D16: FRvD | E16: =IFERROR(INDEX(tblRVL,MATCH("VL"&$B$3,RVL!$A$2:$A$129,0),8),"") -> H3G2 | F16: =Logik!S1 -> G2 | G16: G2 | H16: TRUE | I16: 3 | J16: F1 | K16: G2 | L16: FALSE | N16: F1E2 | P16: 1 | Q16: G2 | R16: 100 | S16: =IF(P16<>"",OFFSET(Logik!$D$4,0,ROW()-1),0) -> 0
F17: =Logik!T1 -> H2 | G17: H2 | H17: FALSE | J17: F1 | K17: G2 | L17: FALSE | N17: F1E2 | Q17: H2 | R17: 0 | S17: =IF(P17<>"",OFFSET(Logik!$D$4,0,ROW()-1),0) -> 0
D18: ARvA | E18: =IFERROR(INDEX(tblRVL,MATCH("VL"&$B$3,RVL!$A$2:$A$129,0),9),"") ->  | F18: =Logik!U1 -> A7 | G18: A7 | H18: FALSE | J18: F1 | K18: G2 | L18: FALSE | N18: F1E2 | Q18: A7 | R18: =IF(P18<>"",HLOOKUP(HLOOKUP(Q18,PjasStart,2,FALSE),Pjaser,3,FALSE),0) -> 0 | S18: =IF(P18<>"",OFFSET(Logik!$D$4,0,ROW()-1),0) -> 0
D19: ARvB | E19: =IFERROR(INDEX(tblRVL,MATCH("VL"&$B$3,RVL!$A$2:$A$129,0),10),"") -> E2D3C4B5A6 | F19: =Logik!V1 -> B7 | G19: B7 | H19: FALSE | J19: F1 | K19: G2 | L19: FALSE | N19: F1E2 | Q19: B7 | R19: 0 | S19: =IF(P19<>"",OFFSET(Logik!$D$4,0,ROW()-1),0) -> 0
D20: ARvC | E20: =IFERROR(INDEX(tblRVL,MATCH("VL"&$B$3,RVL!$A$2:$A$129,0),11),"") ->  | F20: =Logik!W1 -> C7 | G20: C7 | H20: FALSE | J20: F1 | K20: G2 | L20: FALSE | N20: F1E2 | Q20: C7 | R20: 0 | S20: =IF(P20<>"",OFFSET(Logik!$D$4,0,ROW()-1),0) -> 0
D21: ARvD | E21: =IFERROR(INDEX(tblRVL,MATCH("VL"&$B$3,RVL!$A$2:$A$129,0),12),"") -> H3G2 | F21: =Logik!X1 -> D7 | G21: D7 | H21: FALSE | J21: F1 | K21: G2 | L21: FALSE | N21: F1E2 | Q21: D7 | R21: 0 | S21: =IF(P21<>"",OFFSET(Logik!$D$4,0,ROW()-1),0) -> 0
F22: =Logik!Y1 -> E7 | G22: E7 | H22: FALSE | J22: F1 | K22: G2 | L22: FALSE | N22: F1E2 | Q22: E7 | R22: 0 | S22: =IF(P22<>"",OFFSET(Logik!$D$4,0,ROW()-1),0) -> 0
D23: FR1 | E23: =E16&E13 -> H3G2F1 | F23: =Logik!Z1 -> F7 | G23: F7 | H23: FALSE | J23: F1 | K23: G2 | L23: FALSE | N23: F1E2 | Q23: F7 | R23: 0 | S23: =IF(P23<>"",OFFSET(Logik!$D$4,0,ROW()-1),0) -> 0
D24: FR2 | E24: =E15&E14 -> F1E2D3C4B5A6 | F24: =Logik!AA1 -> G7 | G24: G7 | H24: FALSE | J24: F1 | K24: G2 | L24: FALSE | N24: F1E2 | Q24: G7 | R24: 0 | S24: =IF(P24<>"",OFFSET(Logik!$D$4,0,ROW()-1),0) -> 0
F25: =Logik!AB1 -> H7 | G25: H7 | H25: FALSE | J25: F1 | K25: G2 | L25: FALSE | N25: F1E2 | Q25: H7 | R25: 0 | S25: =IF(P25<>"",OFFSET(Logik!$D$4,0,ROW()-1),0) -> 0
D26: MöjligaDrag | E26: =T17 ->  | F26: =Logik!AC1 -> A8 | G26: A8 | H26: FALSE | J26: F1 | K26: G2 | L26: FALSE | N26: F1E2 | Q26: A8 | R26: 0 | S26: =IF(P26<>"",OFFSET(Logik!$D$4,0,ROW()-1),0) -> 0
D27: D Antal | E27: =LEN(E26)/2 -> 0 | F27: =Logik!AD1 -> B8 | G27: B8 | H27: FALSE | J27: F1 | K27: G2 | L27: FALSE | N27: F1E2 | Q27: B8 | R27: 0 | S27: =IF(P27<>"",OFFSET(Logik!$D$4,0,ROW()-1),0) -> 0
F28: =Logik!AE1 -> C8 | G28: C8 | H28: FALSE | J28: F1 | K28: G2 | L28: FALSE | N28: F1E2 | Q28: C8 | R28: 0 | S28: =IF(P28<>"",OFFSET(Logik!$D$4,0,ROW()-1),0) -> 0
F29: =Logik!AF1 -> D8 | G29: D8 | H29: FALSE | J29: F1 | K29: G2 | L29: FALSE | N29: F1E2 | Q29: D8 | R29: 0 | S29: =IF(P29<>"",OFFSET(Logik!$D$4,0,ROW()-1),0) -> 0
F30: =Logik!AG1 -> E8 | G30: E8 | H30: FALSE | J30: F1 | K30: G2 | L30: FALSE | N30: F1E2 | Q30: E8 | R30: 0 | S30: =IF(P30<>"",OFFSET(Logik!$D$4,0,ROW()-1),0) -> 0
F31: =Logik!AH1 -> F8 | G31: F8 | H31: FALSE | J31: F1 | K31: G2 | L31: FALSE | N31: F1E2 | Q31: F8 | R31: 0 | S31: =IF(P31<>"",OFFSET(Logik!$D$4,0,ROW()-1),0) -> 0
F32: =Logik!AI1 -> G8 | G32: G8 | H32: FALSE | J32: F1 | K32: G2 | L32: FALSE | N32: F1E2 | Q32: G8 | R32: 0 | S32: =IF(P32<>"",OFFSET(Logik!$D$4,0,ROW()-1),0) -> 0
F33: =Logik!AJ1 -> H8 | G33: H8 | H33: FALSE | J33: F1 | K33: G2 | L33: FALSE | N33: F1E2 | Q33: H8 | R33: 0 | S33: =IF(P33<>"",OFFSET(Logik!$D$4,0,ROW()-1),0) -> 0

Sheet P_G1 (hidden)
F1: =Logik!D1 -> Pos: | G1: Pjäs: | H1: RäckviddX | I1: Pos | J1: =SUBSTITUTE(E2,B3,"") -> F3H3E2 | K1: =LEFT($E$2,$E$4-1) ->  | P1: Nåbar | Q1: Vad | R1: Poäng | S1: PosPoäng | T1: MöjligaDrag
A2: Pjäs: | B2: =Logik!K2 -> G1 | D2: RäckviddX | E2: =IFERROR(INDEX(tblRVS,MATCH("VS"&$B$3,RVS!$A$2:$A$120,0),5),"") -> G1F3H3E2 | F2: =UPPER(Logik!E1) -> A1 | G2: =UPPER(F2) -> A1 | H2: =IF($G2<>"",IF($G2<>$B$3,IF(IFERROR(FIND($G2,$E$2)>0,FALSE),TRUE,FALSE),FALSE),FALSE) -> FALSE | I2: =IF(H2,FIND($G2,$E$2),"") ->  | J2: =J1 -> F3H3E2 | K2: =IF(AND($G2<>"",$G2>0,$I2<$E$4),RIGHT(K1,MIN($E$4-$I2,LEN(K1))),K1) ->  | P2: =IFERROR(IF(AND(G2<>"",$G2<>$B$3),FIND(G2,$E$6),""),"") ->  | Q2: A1 | R2: =IF(P2<>"",HLOOKUP(HLOOKUP(Q2,PjasStart,2,FALSE),Pjaser,4,FALSE),0) -> 0 | S2: =IF(P2<>"",OFFSET(Logik!$D$4,0,ROW()-1),0) -> 0 | T2: =SUBSTITUTE(E6,G2,"") -> F3H3E2
A3: Pos: | B3: =UPPER(Logik!K1) -> G1 | F3: =Logik!F1 -> B1 | G3: =UPPER(F3) -> B1 | H3: =IF($G3<>"",IF($G3<>$B$3,IF(IFERROR(FIND($G3,$E$2)>0,FALSE),TRUE,FALSE),FALSE),FALSE) -> FALSE | I3: =IF(H3,FIND($G3,$E$2),"") ->  | J3: =J2 -> F3H3E2 | K3: =IF(AND($G3<>"",$G3>0,$I3<$E$4),RIGHT(K2,MIN($E$4-$I3,LEN(K2))),K2) ->  | P3: =IFERROR(IF(AND(G3<>"",$G3<>$B$3),FIND(G3,$E$6),""),"") ->  | Q3: B1 | R3: 0 | S3: =IF(P3<>"",OFFSET(Logik!$D$4,0,ROW()-1),0) -> 0 | T3: =SUBSTITUTE(T2,G3,"") -> F3H3E2
A4: PosX: | B4: =LEFT(B3,1) -> G | D4: PosX | E4: =FIND(B3,E2) -> 1 | F4: =Logik!G1 -> C1 | G4: C1 | H4: FALSE | J4: F3H3E2 | Q4: C1 | R4: 0 | S4: =IF(P4<>"",OFFSET(Logik!$D$4,0,ROW()-1),0) -> 0 | T4: =SUBSTITUTE(T3,G4,"") -> F3H3E2
A5: PosY: | B5: =RIGHT(B3,1) -> 1 | F5: =Logik!H1 -> D1 | G5: D1 | H5: FALSE | J5: F3H3E2 | Q5: D1 | R5: 0 | S5: =IF(P5<>"",OFFSET(Logik!$D$4,0,ROW()-1),0) -> 0 | T5: F3H3E2
D6: RX | E6: =K33&J33 -> F3H3E2 | F6: =Logik!I1 -> E1 | G6: E1 | H6: FALSE | J6: F3H3E2 | Q6: E1 | R6: 0 | S6: =IF(P6<>"",OFFSET(Logik!$D$4,0,ROW()-1),0) -> 0 | T6: F3H3E2
A7: Poäng | B7: =Logik!K3 -> 300 | F7: =Logik!J1 -> F1 | G7: F1 | H7: FALSE | J7: F3H3E2 | Q7: F1 | R7: 0 | S7: =IF(P7<>"",OFFSET(Logik!$D$4,0,ROW()-1),0) -> 0 | T7: F3H3E2
A8: PosPoäng | B8: =Logik!K4 -> 8 | F8: =Logik!K1 -> G1 | G8: G1 | H8: FALSE | J8: F3H3E2 | Q8: G1 | R8: 0 | S8: =IF(P8<>"",OFFSET(Logik!$D$4,0,ROW()-1),0) -> 0 | T8: F3H3E2
D9: Försvar | E9: =SUM(R2:R17)+SUM(S2:S17) -> 100 | F9: =Logik!L1 -> H1 | G9: H1 | H9: FALSE | J9: F3H3E2 | Q9: H1 | R9: 0 | S9: =IF(P9<>"",OFFSET(Logik!$D$4,0,ROW()-1),0) -> 0 | T9: F3H3E2
D10: Attack | E10: =SUM(R18:R33)+SUM(S18:S33) -> 0 | F10: =Logik!M1 -> A2 | G10: A2 | H10: FALSE | J10: F3H3E2 | Q10: A2 | R10: 0 | S10: =IF(P10<>"",OFFSET(Logik!$D$4,0,ROW()-1),0) -> 0 | T10: F3H3E2
D11: R Antal | E11: =LEN(E6)/2 -> 3 | F11: =Logik!N1 -> B2 | G11: B2 | H11: FALSE | J11: F3H3E2 | Q11: B2 | R11: 0 | S11: =IF(P11<>"",OFFSET(Logik!$D$4,0,ROW()-1),0) -> 0 | T11: F3H3E2
F12: =Logik!O1 -> C2 | G12: C2 | H12: FALSE | J12: F3H3E2 | Q12: C2 | R12: 0 | S12: =IF(P12<>"",OFFSET(Logik!$D$4,0,ROW()-1),0) -> 0 | T12: F3H3E2
D13: MöjligaDrag | E13: =T17 -> F3H3 | F13: =Logik!P1 -> D2 | G13: D2 | H13: FALSE | J13: F3H3E2 | Q13: D2 | R13: 0 | S13: =IF(P13<>"",OFFSET(Logik!$D$4,0,ROW()-1),0) -> 0 | T13: F3H3E2
D14: D Antal | E14: =LEN(E13)/2 -> 2 | F14: =Logik!Q1 -> E2 | G14: E2 | H14: TRUE | I14: 7 | J14: F3H3E2 | P14: 5 | Q14: E2 | R14: 100 | S14: =IF(P14<>"",OFFSET(Logik!$D$4,0,ROW()-1),0) -> 0 | T14: F3H3
F15: =Logik!R1 -> F2 | G15: F2 | H15: FALSE | J15: F3H3E2 | Q15: F2 | R15: 0 | S15: =IF(P15<>"",OFFSET(Logik!$D$4,0,ROW()-1),0) -> 0 | T15: F3H3
F16: =Logik!S1 -> G2 | G16: G2 | H16: FALSE | J16: F3H3E2 | Q16: G2 | R16: 0 | S16: =IF(P16<>"",OFFSET(Logik!$D$4,0,ROW()-1),0) -> 0 | T16: F3H3
F17: =Logik!T1 -> H2 | G17: H2 | H17: FALSE | J17: F3H3E2 | Q17: H2 | R17: 0 | S17: =IF(P17<>"",OFFSET(Logik!$D$4,0,ROW()-1),0) -> 0 | T17: F3H3
F18: =Logik!U1 -> A7 | G18: A7 | H18: FALSE | J18: F3H3E2 | Q18: A7 | R18: =IF(P18<>"",HLOOKUP(HLOOKUP(Q18,PjasStart,2,FALSE),Pjaser,3,FALSE),0) -> 0 | S18: =IF(P18<>"",OFFSET(Logik!$D$4,0,ROW()-1),0) -> 0
F19: =Logik!V1 -> B7 | G19: B7 | H19: FALSE | J19: F3H3E2 | Q19: B7 | R19: 0 | S19: =IF(P19<>"",OFFSET(Logik!$D$4,0,ROW()-1),0) -> 0
F20: =Logik!W1 -> C7 | G20: C7 | H20: FALSE | J20: F3H3E2 | Q20: C7 | R20: 0 | S20: =IF(P20<>"",OFFSET(Logik!$D$4,0,ROW()-1),0) -> 0
F21: =Logik!X1 -> D7 | G21: D7 | H21: FALSE | J21: F3H3E2 | Q21: D7 | R21: 0 | S21: =IF(P21<>"",OFFSET(Logik!$D$4,0,ROW()-1),0) -> 0
F22: =Logik!Y1 -> E7 | G22: E7 | H22: FALSE | J22: F3H3E2 | Q22: E7 | R22: 0 | S22: =IF(P22<>"",OFFSET(Logik!$D$4,0,ROW()-1),0) -> 0
F23: =Logik!Z1 -> F7 | G23: F7 | H23: FALSE | J23: F3H3E2 | Q23: F7 | R23: 0 | S23: =IF(P23<>"",OFFSET(Logik!$D$4,0,ROW()-1),0) -> 0
F24: =Logik!AA1 -> G7 | G24: G7 | H24: FALSE | J24: F3H3E2 | Q24: G7 | R24: 0 | S24: =IF(P24<>"",OFFSET(Logik!$D$4,0,ROW()-1),0) -> 0
F25: =Logik!AB1 -> H7 | G25: H7 | H25: FALSE | J25: F3H3E2 | Q25: H7 | R25: 0 | S25: =IF(P25<>"",OFFSET(Logik!$D$4,0,ROW()-1),0) -> 0
F26: =Logik!AC1 -> A8 | G26: A8 | H26: FALSE | J26: F3H3E2 | Q26: A8 | R26: 0 | S26: =IF(P26<>"",OFFSET(Logik!$D$4,0,ROW()-1),0) -> 0
F27: =Logik!AD1 -> B8 | G27: B8 | H27: FALSE | J27: F3H3E2 | Q27: B8 | R27: 0 | S27: =IF(P27<>"",OFFSET(Logik!$D$4,0,ROW()-1),0) -> 0
F28: =Logik!AE1 -> C8 | G28: C8 | H28: FALSE | J28: F3H3E2 | Q28: C8 | R28: 0 | S28: =IF(P28<>"",OFFSET(Logik!$D$4,0,ROW()-1),0) -> 0
F29: =Logik!AF1 -> D8 | G29: D8 | H29: FALSE | J29: F3H3E2 | Q29: D8 | R29: 0 | S29: =IF(P29<>"",OFFSET(Logik!$D$4,0,ROW()-1),0) -> 0
F30: =Logik!AG1 -> E8 | G30: E8 | H30: FALSE | J30: F3H3E2 | Q30: E8 | R30: 0 | S30: =IF(P30<>"",OFFSET(Logik!$D$4,0,ROW()-1),0) -> 0
F31: =Logik!AH1 -> F8 | G31: F8 | H31: FALSE | J31: F3H3E2 | Q31: F8 | R31: 0 | S31: =IF(P31<>"",OFFSET(Logik!$D$4,0,ROW()-1),0) -> 0
F32: =Logik!AI1 -> G8 | G32: G8 | H32: FALSE | J32: F3H3E2 | Q32: G8 | R32: 0 | S32: =IF(P32<>"",OFFSET(Logik!$D$4,0,ROW()-1),0) -> 0
F33: =Logik!AJ1 -> H8 | G33: H8 | H33: FALSE | J33: F3H3E2 | Q33: H8 | R33: 0 | S33: =IF(P33<>"",OFFSET(Logik!$D$4,0,ROW()-1),0) -> 0

Sheet P_H1 (hidden)
F1: =Logik!D1 -> Pos: | G1: Pjäs: | H1: RäckviddX | I1: Pos | J1: =RIGHT($E$2,LEN($E$2)-$E$4+1) -> H1 | K1: =LEFT($E$2,$E$4-1) -> A1B1C1D1E1F1G1 | L1: RäckviddY | N1: =RIGHT($E$3,LEN($E$3)-$E$5+1) -> H1H2H3H4H5H6H7H8 | O1: =LEFT($E$3,$E$5-1) ->  | P1: Nåbar | Q1: Vad | R1: Poäng | S1: PosPoäng | T1: MöjligaDrag
A2: Pjäs: | B2: =Logik!L2 -> H1 | D2: RäckviddX | E2: =IF($B$3<>"","A"&B5&"B"&B5&"C"&B5&"D"&B5&"E"&B5&"F"&B5&"G"&B5&"H"&B5,"") -> A1B1C1D1E1F1G1H1 | F2: =UPPER(Logik!E1) -> A1 | G2: =UPPER(F2) -> A1 | H2: =IF($G2<>"",IF($G2<>$B$3,IF(IFERROR(FIND($G2,$E$2)>0,FALSE),TRUE,FALSE),FALSE),FALSE) -> TRUE | I2: =IF(H2,FIND($G2,$E$2),"") -> 1 | J2: =IF(AND(I2<>"",I2>0,I2>$E$4),LEFT(J1,MIN(I2-$E$4+2,LEN(J1))),J1) -> H1 | K2: =IF(AND($G2<>"",$G2>0,$I2<$E$4),RIGHT(K1,MIN($E$4-$I2,LEN(K1))),K1) -> A1B1C1D1E1F1G1 | L2: =IF($G2<>"",IF($G2<>$B$3,IF(IFERROR(FIND($G2,$E$3)>0,FALSE),TRUE,FALSE),FALSE),FALSE) -> FALSE | M2: =IF(L2,FIND($G2,$E$3),"") ->  | N2: =IF(AND(M2<>"",M2>0,M2>$E$5),LEFT(N1,MIN(M2-$E$5+2,LEN(N1))),N1) -> H1H2H3H4H5H6H7H8 | O2: =IF(AND($G2<>"",$G2>0,M2<$E$5),RIGHT(O1,MIN($E$5-M2,LEN(O1))),O1) ->  | P2: =IFERROR(IF(AND(G2<>"",$G2<>$B$3),FIND(G2,$E$8),""),"") ->  | Q2: A1 | R2: =IF(P2<>"",HLOOKUP(HLOOKUP(Q2,PjasStart,2,FALSE),Pjaser,4,FALSE),0) -> 0 | S2: =IF(P2<>"",OFFSET(Logik!$D$4,0,ROW()-1),0) -> 0 | T2: =SUBSTITUTE(E8,G2,"") -> G1H1H1H2
A3: Pos: | B3: =UPPER(Logik!L1) -> H1 | D3: RäckviddY | E3: =IF($B$3<>"",B4&"1"&B4&"2"&B4&"3"&B4&"4"&B4&"5"&B4&"6"&B4&"7"&B4&"8","") -> H1H2H3H4H5H6H7H8 | F3: =Logik!F1 -> B1 | G3: =UPPER(F3) -> B1 | H3: =IF($G3<>"",IF($G3<>$B$3,IF(IFERROR(FIND($G3,$E$2)>0,FALSE),TRUE,FALSE),FALSE),FALSE) -> TRUE | I3: =IF(H3,FIND($G3,$E$2),"") -> 3 | J3: =IF(AND(I3<>"",I3>0,I3>$E$4),LEFT(J2,MIN(I3-$E$4+2,LEN(J2))),J2) -> H1 | K3: =IF(AND($G3<>"",$G3>0,$I3<$E$4),RIGHT(K2,MIN($E$4-$I3,LEN(K2))),K2) -> B1C1D1E1F1G1 | L3: =IF($G3<>"",IF($G3<>$B$3,IF(IFERROR(FIND($G3,$E$3)>0,FALSE),TRUE,FALSE),FALSE),FALSE) -> FALSE | M3: =IF(L3,FIND($G3,$E$3),"") ->  | N3: =IF(AND(M3<>"",M3>0,M3>$E$5),LEFT(N2,MIN(M3-$E$5+2,LEN(N2))),N2) -> H1H2H3H4H5H6H7H8 | O3: =IF(AND($G3<>"",$G3>0,M3<$E$5),RIGHT(O2,MIN($E$5-M3,LEN(O2))),O2) ->  | P3: =IFERROR(IF(AND(G3<>"",$G3<>$B$3),FIND(G3,$E$8),""),"") ->  | Q3: B1 | R3: 0 | S3: =IF(P3<>"",OFFSET(Logik!$D$4,0,ROW()-1),0) -> 0 | T3: =SUBSTITUTE(T2,G3,"") -> G1H1H1H2
A4: PosX: | B4: =LEFT(B3,1) -> H | D4: PosX | E4: =FIND(B3,E2) -> 15 | F4: =Logik!G1 -> C1 | G4: C1 | H4: TRUE | I4: 5 | J4: H1 | K4: C1D1E1F1G1 | L4: FALSE | N4: H1H2H3H4H5H6H7H8 | Q4: C1 | R4: 0 | S4: =IF(P4<>"",OFFSET(Logik!$D$4,0,ROW()-1),0) -> 0 | T4: =SUBSTITUTE(T3,G4,"") -> G1H1H1H2
A5: PosY: | B5: =RIGHT(B3,1) -> 1 | D5: PosY | E5: =FIND(B3,E3) -> 1 | F5: =Logik!H1 -> D1 | G5: D1 | H5: TRUE | I5: 7 | J5: H1 | K5: D1E1F1G1 | L5: FALSE | N5: H1H2H3H4H5H6H7H8 | Q5: D1 | R5: 0 | S5: =IF(P5<>"",OFFSET(Logik!$D$4,0,ROW()-1),0) -> 0 | T5: G1H1H1H2
D6: RX | E6: =K33&J33 -> G1H1 | F6: =Logik!I1 -> E1 | G6: E1 | H6: TRUE | I6: 9 | J6: H1 | K6: E1F1G1 | L6: FALSE | N6: H1H2H3H4H5H6H7H8 | Q6: E1 | R6: 0 | S6: =IF(P6<>"",OFFSET(Logik!$D$4,0,ROW()-1),0) -> 0 | T6: G1H1H1H2
A7: Poäng | B7: =Logik!L3 -> 500 | D7: RY | E7: =O33&N33 -> H1H2 | F7: =Logik!J1 -> F1 | G7: F1 | H7: TRUE | I7: 11 | J7: H1 | K7: F1G1 | L7: FALSE | N7: H1H2H3H4H5H6H7H8 | Q7: F1 | R7: 0 | S7: =IF(P7<>"",OFFSET(Logik!$D$4,0,ROW()-1),0) -> 0 | T7: G1H1H1H2
A8: PosPoäng | B8: =Logik!L4 -> 6 | D8: RXY | E8: =E6&E7 -> G1H1H1H2 | F8: =Logik!K1 -> G1 | G8: G1 | H8: TRUE | I8: 13 | J8: H1 | K8: G1 | L8: FALSE | N8: H1H2H3H4H5H6H7H8 | P8: 1 | Q8: G1 | R8: 300 | S8: =IF(P8<>"",OFFSET(Logik!$D$4,0,ROW()-1),0) -> 8 | T8: H1H1H2
D9: Försvar | E9: =SUM(R2:R17)+SUM(S2:S17) -> 408 | F9: =Logik!L1 -> H1 | G9: H1 | H9: FALSE | J9: H1 | K9: G1 | L9: FALSE | N9: H1H2H3H4H5H6H7H8 | Q9: H1 | R9: 0 | S9: =IF(P9<>"",OFFSET(Logik!$D$4,0,ROW()-1),0) -> 0 | T9: H2
D10: Attack | E10: =SUM(R18:R33)+SUM(S18:S33) -> 0 | F10: =Logik!M1 -> A2 | G10: A2 | H10: FALSE | J10: H1 | K10: G1 | L10: FALSE | N10: H1H2H3H4H5H6H7H8 | Q10: A2 | R10: 0 | S10: =IF(P10<>"",OFFSET(Logik!$D$4,0,ROW()-1),0) -> 0 | T10: H2
D11: R Antal | E11: =LEN(E8)/2 -> 4 | F11: =Logik!N1 -> B2 | G11: B2 | H11: FALSE | J11: H1 | K11: G1 | L11: FALSE | N11: H1H2H3H4H5H6H7H8 | Q11: B2 | R11: 0 | S11: =IF(P11<>"",OFFSET(Logik!$D$4,0,ROW()-1),0) -> 0 | T11: H2
F12: =Logik!O1 -> C2 | G12: C2 | H12: FALSE | J12: H1 | K12: G1 | L12: FALSE | N12: H1H2H3H4H5H6H7H8 | Q12: C2 | R12: 0 | S12: =IF(P12<>"",OFFSET(Logik!$D$4,0,ROW()-1),0) -> 0 | T12: H2
D13: MöjligaDrag | E13: =T17 ->  | F13: =Logik!P1 -> D2 | G13: D2 | H13: FALSE | J13: H1 | K13: G1 | L13: FALSE | N13: H1H2H3H4H5H6H7H8 | Q13: D2 | R13: 0 | S13: =IF(P13<>"",OFFSET(Logik!$D$4,0,ROW()-1),0) -> 0 | T13: H2
D14: D Antal | E14: =LEN(E13)/2 -> 0 | F14: =Logik!Q1 -> E2 | G14: E2 | H14: FALSE | J14: H1 | K14: G1 | L14: FALSE | N14: H1H2H3H4H5H6H7H8 | Q14: E2 | R14: 0 | S14: =IF(P14<>"",OFFSET(Logik!$D$4,0,ROW()-1),0) -> 0 | T14: H2
F15: =Logik!R1 -> F2 | G15: F2 | H15: FALSE | J15: H1 | K15: G1 | L15: FALSE | N15: H1H2H3H4H5H6H7H8 | Q15: F2 | R15: 0 | S15: =IF(P15<>"",OFFSET(Logik!$D$4,0,ROW()-1),0) -> 0 | T15: H2
F16: =Logik!S1 -> G2 | G16: G2 | H16: FALSE | J16: H1 | K16: G1 | L16: FALSE | N16: H1H2H3H4H5H6H7H8 | Q16: G2 | R16: 0 | S16: =IF(P16<>"",OFFSET(Logik!$D$4,0,ROW()-1),0) -> 0 | T16: H2
F17: =Logik!T1 -> H2 | G17: H2 | H17: FALSE | J17: H1 | K17: G1 | L17: TRUE | M17: 3 | N17: H1H2 | P17: 7 | Q17: H2 | R17: 100 | S17: =IF(P17<>"",OFFSET(Logik!$D$4,0,ROW()-1),0) -> 0
F18: =Logik!U1 -> A7 | G18: A7 | H18: FALSE | J18: H1 | K18: G1 | L18: FALSE | N18: H1H2 | Q18: A7 | R18: =IF(P18<>"",HLOOKUP(HLOOKUP(Q18,PjasStart,2,FALSE),Pjaser,3,FALSE),0) -> 0 | S18: =IF(P18<>"",OFFSET(Logik!$D$4,0,ROW()-1),0) -> 0
F19: =Logik!V1 -> B7 | G19: B7 | H19: FALSE | J19: H1 | K19: G1 | L19: FALSE | N19: H1H2 | Q19: B7 | R19: 0 | S19: =IF(P19<>"",OFFSET(Logik!$D$4,0,ROW()-1),0) -> 0
F20: =Logik!W1 -> C7 | G20: C7 | H20: FALSE | J20: H1 | K20: G1 | L20: FALSE | N20: H1H2 | Q20: C7 | R20: 0 | S20: =IF(P20<>"",OFFSET(Logik!$D$4,0,ROW()-1),0) -> 0
F21: =Logik!X1 -> D7 | G21: D7 | H21: FALSE | J21: H1 | K21: G1 | L21: FALSE | N21: H1H2 | Q21: D7 | R21: 0 | S21: =IF(P21<>"",OFFSET(Logik!$D$4,0,ROW()-1),0) -> 0
F22: =Logik!Y1 -> E7 | G22: E7 | H22: FALSE | J22: H1 | K22: G1 | L22: FALSE | N22: H1H2 | Q22: E7 | R22: 0 | S22: =IF(P22<>"",OFFSET(Logik!$D$4,0,ROW()-1),0) -> 0
F23: =Logik!Z1 -> F7 | G23: F7 | H23: FALSE | J23: H1 | K23: G1 | L23: FALSE | N23: H1H2 | Q23: F7 | R23: 0 | S23: =IF(P23<>"",OFFSET(Logik!$D$4,0,ROW()-1),0) -> 0
F24: =Logik!AA1 -> G7 | G24: G7 | H24: FALSE | J24: H1 | K24: G1 | L24: FALSE | N24: H1H2 | Q24: G7 | R24: 0 | S24: =IF(P24<>"",OFFSET(Logik!$D$4,0,ROW()-1),0) -> 0
F25: =Logik!AB1 -> H7 | G25: H7 | H25: FALSE | J25: H1 | K25: G1 | L25: TRUE | M25: 13 | N25: H1H2 | Q25: H7 | R25: 0 | S25: =IF(P25<>"",OFFSET(Logik!$D$4,0,ROW()-1),0) -> 0
F26: =Logik!AC1 -> A8 | G26: A8 | H26: FALSE | J26: H1 | K26: G1 | L26: FALSE | N26: H1H2 | Q26: A8 | R26: 0 | S26: =IF(P26<>"",OFFSET(Logik!$D$4,0,ROW()-1),0) -> 0
F27: =Logik!AD1 -> B8 | G27: B8 | H27: FALSE | J27: H1 | K27: G1 | L27: FALSE | N27: H1H2 | Q27: B8 | R27: 0 | S27: =IF(P27<>"",OFFSET(Logik!$D$4,0,ROW()-1),0) -> 0
F28: =Logik!AE1 -> C8 | G28: C8 | H28: FALSE | J28: H1 | K28: G1 | L28: FALSE | N28: H1H2 | Q28: C8 | R28: 0 | S28: =IF(P28<>"",OFFSET(Logik!$D$4,0,ROW()-1),0) -> 0
F29: =Logik!AF1 -> D8 | G29: D8 | H29: FALSE | J29: H1 | K29: G1 | L29: FALSE | N29: H1H2 | Q29: D8 | R29: 0 | S29: =IF(P29<>"",OFFSET(Logik!$D$4,0,ROW()-1),0) -> 0
F30: =Logik!AG1 -> E8 | G30: E8 | H30: FALSE | J30: H1 | K30: G1 | L30: FALSE | N30: H1H2 | Q30: E8 | R30: 0 | S30: =IF(P30<>"",OFFSET(Logik!$D$4,0,ROW()-1),0) -> 0
F31: =Logik!AH1 -> F8 | G31: F8 | H31: FALSE | J31: H1 | K31: G1 | L31: FALSE | N31: H1H2 | Q31: F8 | R31: 0 | S31: =IF(P31<>"",OFFSET(Logik!$D$4,0,ROW()-1),0) -> 0
F32: =Logik!AI1 -> G8 | G32: G8 | H32: FALSE | J32: H1 | K32: G1 | L32: FALSE | N32: H1H2 | Q32: G8 | R32: 0 | S32: =IF(P32<>"",OFFSET(Logik!$D$4,0,ROW()-1),0) -> 0
F33: =Logik!AJ1 -> H8 | G33: H8 | H33: FALSE | J33: H1 | K33: G1 | L33: TRUE | M33: 15 | N33: H1H2 | Q33: H8 | R33: 0 | S33: =IF(P33<>"",OFFSET(Logik!$D$4,0,ROW()-1),0) -> 0

Sheet P_A8 (hidden)
F1: =Logik!D1 -> Pos: | G1: Pjäs: | H1: RäckviddX | I1: Pos | J1: =RIGHT($E$2,LEN($E$2)-$E$4+1) -> A8B8C8D8E8F8G8H8 | K1: =LEFT($E$2,$E$4-1) ->  | L1: RäckviddY | N1: =RIGHT($E$3,LEN($E$3)-$E$5+1) -> A8 | O1: =LEFT($E$3,$E$5-1) -> A1A2A3A4A5A6A7 | P1: Nåbar | Q1: Vad | R1: Poäng | S1: PosPoäng
A2: Pjäs: | B2: =Logik!AC2 -> A8 | D2: RäckviddX | E2: =IF($B$3<>"","A"&B5&"B"&B5&"C"&B5&"D"&B5&"E"&B5&"F"&B5&"G"&B5&"H"&B5,"") -> A8B8C8D8E8F8G8H8 | F2: =UPPER(Logik!E1) -> A1 | G2: =UPPER(F2) -> A1 | H2: =IF($G2<>"",IF($G2<>$B$3,IF(IFERROR(FIND($G2,$E$2)>0,FALSE),TRUE,FALSE),FALSE),FALSE) -> FALSE | I2: =IF(H2,FIND($G2,$E$2),"") ->  | J2: =IF(AND(I2<>"",I2>0,I2>$E$4),LEFT(J1,MIN(I2-$E$4+2,LEN(J1))),J1) -> A8B8C8D8E8F8G8H8 | K2: =IF(AND($G2<>"",$G2>0,$I2<$E$4),RIGHT(K1,MIN($E$4-$I2,LEN(K1))),K1) ->  | L2: =IF($G2<>"",IF($G2<>$B$3,IF(IFERROR(FIND($G2,$E$3)>0,FALSE),TRUE,FALSE),FALSE),FALSE) -> TRUE | M2: =IF(L2,FIND($G2,$E$3),"") -> 1 | N2: =IF(AND(M2<>"",M2>0,M2>$E$5),LEFT(N1,MIN(M2-$E$5+2,LEN(N1))),N1) -> A8 | O2: =IF(AND($G2<>"",$G2>0,M2<$E$5),RIGHT(O1,MIN($E$5-M2,LEN(O1))),O1) -> A1A2A3A4A5A6A7 | P2: =IFERROR(IF(AND(G2<>"",$G2<>$B$3),FIND(G2,$E$8),""),"") ->  | Q2: A1 | R2: =IF(P2<>"",HLOOKUP(HLOOKUP(Q2,PjasStart,2,FALSE),Pjaser,3,FALSE),0) -> 0 | S2: =IF(P2<>"",OFFSET(Logik!$D$4,0,ROW()-1),0) -> 0
A3: Pos: | B3: =UPPER(Logik!AC1) -> A8 | D3: RäckviddY | E3: =IF($B$3<>"",B4&"1"&B4&"2"&B4&"3"&B4&"4"&B4&"5"&B4&"6"&B4&"7"&B4&"8","") -> A1A2A3A4A5A6A7A8 | F3: =Logik!F1 -> B1 | G3: =UPPER(F3) -> B1 | H3: =IF($G3<>"",IF($G3<>$B$3,IF(IFERROR(FIND($G3,$E$2)>0,FALSE),TRUE,FALSE),FALSE),FALSE) -> FALSE | I3: =IF(H3,FIND($G3,$E$2),"") ->  | J3: =IF(AND(I3<>"",I3>0,I3>$E$4),LEFT(J2,MIN(I3-$E$4+2,LEN(J2))),J2) -> A8B8C8D8E8F8G8H8 | K3: =IF(AND($G3<>"",$G3>0,$I3<$E$4),RIGHT(K2,MIN($E$4-$I3,LEN(K2))),K2) ->  | L3: =IF($G3<>"",IF($G3<>$B$3,IF(IFERROR(FIND($G3,$E$3)>0,FALSE),TRUE,FALSE),FALSE),FALSE) -> FALSE | M3: =IF(L3,FIND($G3,$E$3),"") ->  | N3: =IF(AND(M3<>"",M3>0,M3>$E$5),LEFT(N2,MIN(M3-$E$5+2,LEN(N2))),N2) -> A8 | O3: =IF(AND($G3<>"",$G3>0,M3<$E$5),RIGHT(O2,MIN($E$5-M3,LEN(O2))),O2) -> A1A2A3A4A5A6A7 | P3: =IFERROR(IF(AND(G3<>"",$G3<>$B$3),FIND(G3,$E$8),""),"") ->  | Q3: B1 | R3: 0 | S3: =IF(P3<>"",OFFSET(Logik!$D$4,0,ROW()-1),0) -> 0
A4: PosX: | B4: =LEFT(B3,1) -> A | D4: PosX | E4: =FIND(B3,E2) -> 1 | F4: =Logik!G1 -> C1 | G4: C1 | H4: FALSE | J4: A8B8C8D8E8F8G8H8 | L4: FALSE | N4: A8 | O4: A1A2A3A4A5A6A7 | Q4: C1 | R4: 0 | S4: =IF(P4<>"",OFFSET(Logik!$D$4,0,ROW()-1),0) -> 0
A5: PosY: | B5: =RIGHT(B3,1) -> 8 | D5: PosY | E5: =FIND(B3,E3) -> 15 | F5: =Logik!H1 -> D1 | G5: D1 | H5: FALSE | J5: A8B8C8D8E8F8G8H8 | L5: FALSE | N5: A8 | O5: A1A2A3A4A5A6A7 | Q5: D1 | R5: 0 | S5: =IF(P5<>"",OFFSET(Logik!$D$4,0,ROW()-1),0) -> 0
D6: RX | E6: =K33&J33 -> A8B8 | F6: =Logik!I1 -> E1 | G6: E1 | H6: FALSE | J6: A8B8C8D8E8F8G8H8 | L6: FALSE | N6: A8 | O6: A1A2A3A4A5A6A7 | Q6: E1 | R6: 0 | S6: =IF(P6<>"",OFFSET(Logik!$D$4,0,ROW()-1),0) -> 0
A7: Poäng | B7: =Logik!AC3 -> 500 | D7: RY | E7: =O33&N33 -> A7A8 | F7: =Logik!J1 -> F1 | G7: F1 | H7: FALSE | J7: A8B8C8D8E8F8G8H8 | L7: FALSE | N7: A8 | O7: A1A2A3A4A5A6A7 | Q7: F1 | R7: 0 | S7: =IF(P7<>"",OFFSET(Logik!$D$4,0,ROW()-1),0) -> 0
A8: PosPoäng | B8: =Logik!AC4 -> 6 | D8: RXY | E8: =E6&E7 -> A8B8A7A8 | F8: =Logik!K1 -> G1 | G8: G1 | H8: FALSE | J8: A8B8C8D8E8F8G8H8 | L8: FALSE | N8: A8 | O8: A1A2A3A4A5A6A7 | Q8: G1 | R8: 0 | S8: =IF(P8<>"",OFFSET(Logik!$D$4,0,ROW()-1),0) -> 0
D9: Försvar | E9: =SUM(R18:R33)+SUM(S18:S33) -> 408 | F9: =Logik!L1 -> H1 | G9: H1 | H9: FALSE | J9: A8B8C8D8E8F8G8H8 | L9: FALSE | N9: A8 | O9: A1A2A3A4A5A6A7 | Q9: H1 | R9: 0 | S9: =IF(P9<>"",OFFSET(Logik!$D$4,0,ROW()-1),0) -> 0
D10: Attack | E10: =SUM(R2:R17)+SUM(S2:S17) -> 0 | F10: =Logik!M1 -> A2 | G10: A2 | H10: FALSE | J10: A8B8C8D8E8F8G8H8 | L10: TRUE | M10: 3 | N10: A8 | O10: A2A3A4A5A6A7 | Q10: A2 | R10: 0 | S10: =IF(P10<>"",OFFSET(Logik!$D$4,0,ROW()-1),0) -> 0
D11: R Antal | E11: =LEN(E8)/2 -> 4 | F11: =Logik!N1 -> B2 | G11: B2 | H11: FALSE | J11: A8B8C8D8E8F8G8H8 | L11: FALSE | N11: A8 | O11: A2A3A4A5A6A7 | Q11: B2 | R11: 0 | S11: =IF(P11<>"",OFFSET(Logik!$D$4,0,ROW()-1),0) -> 0
F12: =Logik!O1 -> C2 | G12: C2 | H12: FALSE | J12: A8B8C8D8E8F8G8H8 | L12: FALSE | N12: A8 | O12: A2A3A4A5A6A7 | Q12: C2 | R12: 0 | S12: =IF(P12<>"",OFFSET(Logik!$D$4,0,ROW()-1),0) -> 0
D13: MöjligaDrag | E13: =T33 ->  | F13: =Logik!P1 -> D2 | G13: D2 | H13: FALSE | J13: A8B8C8D8E8F8G8H8 | L13: FALSE | N13: A8 | O13: A2A3A4A5A6A7 | Q13: D2 | R13: 0 | S13: =IF(P13<>"",OFFSET(Logik!$D$4,0,ROW()-1),0) -> 0
D14: D Antal | E14: =LEN(E13)/2 -> 0 | F14: =Logik!Q1 -> E2 | G14: E2 | H14: FALSE | J14: A8B8C8D8E8F8G8H8 | L14: FALSE | N14: A8 | O14: A2A3A4A5A6A7 | Q14: E2 | R14: 0 | S14: =IF(P14<>"",OFFSET(Logik!$D$4,0,ROW()-1),0) -> 0
F15: =Logik!R1 -> F2 | G15: F2 | H15: FALSE | J15: A8B8C8D8E8F8G8H8 | L15: FALSE | N15: A8 | O15: A2A3A4A5A6A7 | Q15: F2 | R15: 0 | S15: =IF(P15<>"",OFFSET(Logik!$D$4,0,ROW()-1),0) -> 0
F16: =Logik!S1 -> G2 | G16: G2 | H16: FALSE | J16: A8B8C8D8E8F8G8H8 | L16: FALSE | N16: A8 | O16: A2A3A4A5A6A7 | Q16: G2 | R16: 0 | S16: =IF(P16<>"",OFFSET(Logik!$D$4,0,ROW()-1),0) -> 0
F17: =Logik!T1 -> H2 | G17: H2 | H17: FALSE | J17: A8B8C8D8E8F8G8H8 | L17: FALSE | N17: A8 | O17: A2A3A4A5A6A7 | Q17: H2 | R17: 0 | S17: =IF(P17<>"",OFFSET(Logik!$D$4,0,ROW()-1),0) -> 0 | T17: MöjligaDrag
F18: =Logik!U1 -> A7 | G18: A7 | H18: FALSE | J18: A8B8C8D8E8F8G8H8 | L18: TRUE | M18: 13 | N18: A8 | O18: A7 | P18: 5 | Q18: A7 | R18: =IF(P18<>"",HLOOKUP(HLOOKUP(Q18,PjasStart,2,FALSE),Pjaser,4,FALSE),0) -> 100 | S18: =IF(P18<>"",OFFSET(Logik!$D$4,0,ROW()-1),0) -> 0 | T18: =SUBSTITUTE(E8,G18,"") -> A8B8A8
F19: =Logik!V1 -> B7 | G19: B7 | H19: FALSE | J19: A8B8C8D8E8F8G8H8 | L19: FALSE | N19: A8 | O19: A7 | Q19: B7 | R19: 0 | S19: =IF(P19<>"",OFFSET(Logik!$D$4,0,ROW()-1),0) -> 0 | T19: =SUBSTITUTE(T18,G19,"") -> A8B8A8
F20: =Logik!W1 -> C7 | G20: C7 | H20: FALSE | J20: A8B8C8D8E8F8G8H8 | L20: FALSE | N20: A8 | O20: A7 | Q20: C7 | R20: 0 | S20: =IF(P20<>"",OFFSET(Logik!$D$4,0,ROW()-1),0) -> 0 | T20: =SUBSTITUTE(T19,G20,"") -> A8B8A8
F21: =Logik!X1 -> D7 | G21: D7 | H21: FALSE | J21: A8B8C8D8E8F8G8H8 | L21: FALSE | N21: A8 | O21: A7 | Q21: D7 | R21: 0 | S21: =IF(P21<>"",OFFSET(Logik!$D$4,0,ROW()-1),0) -> 0 | T21: A8B8A8
F22: =Logik!Y1 -> E7 | G22: E7 | H22: FALSE | J22: A8B8C8D8E8F8G8H8 | L22: FALSE | N22: A8 | O22: A7 | Q22: E7 | R22: 0 | S22: =IF(P22<>"",OFFSET(Logik!$D$4,0,ROW()-1),0) -> 0 | T22: A8B8A8
F23: =Logik!Z1 -> F7 | G23: F7 | H23: FALSE | J23: A8B8C8D8E8F8G8H8 | L23: FALSE | N23: A8 | O23: A7 | Q23: F7 | R23: 0 | S23: =IF(P23<>"",OFFSET(Logik!$D$4,0,ROW()-1),0) -> 0 | T23: A8B8A8
F24: =Logik!AA1 -> G7 | G24: G7 | H24: FALSE | J24: A8B8C8D8E8F8G8H8 | L24: FALSE | N24: A8 | O24: A7 | Q24: G7 | R24: 0 | S24: =IF(P24<>"",OFFSET(Logik!$D$4,0,ROW()-1),0) -> 0 | T24: A8B8A8
F25: =Logik!AB1 -> H7 | G25: H7 | H25: FALSE | J25: A8B8C8D8E8F8G8H8 | L25: FALSE | N25: A8 | O25: A7 | Q25: H7 | R25: 0 | S25: =IF(P25<>"",OFFSET(Logik!$D$4,0,ROW()-1),0) -> 0 | T25: A8B8A8
F26: =Logik!AC1 -> A8 | G26: A8 | H26: FALSE | J26: A8B8C8D8E8F8G8H8 | L26: FALSE | N26: A8 | O26: A7 | Q26: A8 | R26: 0 | S26: =IF(P26<>"",OFFSET(Logik!$D$4,0,ROW()-1),0) -> 0 | T26: B8
F27: =Logik!AD1 -> B8 | G27: B8 | H27: TRUE | I27: 3 | J27: A8B8 | L27: FALSE | N27: A8 | O27: A7 | P27: 3 | Q27: B8 | R27: 300 | S27: =IF(P27<>"",OFFSET(Logik!$D$4,0,ROW()-1),0) -> 8
F28: =Logik!AE1 -> C8 | G28: C8 | H28: TRUE | I28: 5 | J28: A8B8 | L28: FALSE | N28: A8 | O28: A7 | Q28: C8 | R28: 0 | S28: =IF(P28<>"",OFFSET(Logik!$D$4,0,ROW()-1),0) -> 0
F29: =Logik!AF1 -> D8 | G29: D8 | H29: TRUE | I29: 7 | J29: A8B8 | L29: FALSE | N29: A8 | O29: A7 | Q29: D8 | R29: 0 | S29: =IF(P29<>"",OFFSET(Logik!$D$4,0,ROW()-1),0) -> 0
F30: =Logik!AG1 -> E8 | G30: E8 | H30: TRUE | I30: 9 | J30: A8B8 | L30: FALSE | N30: A8 | O30: A7 | Q30: E8 | R30: 0 | S30: =IF(P30<>"",OFFSET(Logik!$D$4,0,ROW()-1),0) -> 0
F31: =Logik!AH1 -> F8 | G31: F8 | H31: TRUE | I31: 11 | J31: A8B8 | L31: FALSE | N31: A8 | O31: A7 | Q31: F8 | R31: 0 | S31: =IF(P31<>"",OFFSET(Logik!$D$4,0,ROW()-1),0) -> 0
F32: =Logik!AI1 -> G8 | G32: G8 | H32: TRUE | I32: 13 | J32: A8B8 | L32: FALSE | N32: A8 | O32: A7 | Q32: G8 | R32: 0 | S32: =IF(P32<>"",OFFSET(Logik!$D$4,0,ROW()-1),0) -> 0
F33: =Logik!AJ1 -> H8 | G33: H8 | H33: TRUE | I33: 15 | J33: A8B8 | L33: FALSE | N33: A8 | O33: A7 | Q33: H8 | R33: 0 | S33: =IF(P33<>"",OFFSET(Logik!$D$4,0,ROW()-1),0) -> 0

Sheet P_B8 (hidden)
F1: =Logik!D1 -> Pos: | G1: Pjäs: | H1: RäckviddX | I1: Pos | J1: =SUBSTITUTE(E2,B3,"") -> A6C6D7 | K1: =LEFT($E$2,$E$4-1) ->  | P1: Nåbar | Q1: Vad | R1: Poäng | S1: PosPoäng
A2: Pjäs: | B2: =Logik!AD2 -> B8 | D2: RäckviddX | E2: =IFERROR(INDEX(tblRVS,MATCH("VS"&$B$3,RVS!$A$2:$A$120,0),5),"") -> B8A6C6D7 | F2: =UPPER(Logik!E1) -> A1 | G2: =UPPER(F2) -> A1 | H2: =IF($G2<>"",IF($G2<>$B$3,IF(IFERROR(FIND($G2,$E$2)>0,FALSE),TRUE,FALSE),FALSE),FALSE) -> FALSE | I2: =IF(H2,FIND($G2,$E$2),"") ->  | J2: =J1 -> A6C6D7 | K2: =IF(AND($G2<>"",$G2>0,$I2<$E$4),RIGHT(K1,MIN($E$4-$I2,LEN(K1))),K1) ->  | P2: =IFERROR(IF(AND(G2<>"",$G2<>$B$3),FIND(G2,$E$6),""),"") ->  | Q2: A1 | R2: =IF(P2<>"",HLOOKUP(HLOOKUP(Q2,PjasStart,2,FALSE),Pjaser,3,FALSE),0) -> 0 | S2: =IF(P2<>"",OFFSET(Logik!$D$4,0,ROW()-1),0) -> 0
A3: Pos: | B3: =UPPER(Logik!AD1) -> B8 | F3: =Logik!F1 -> B1 | G3: =UPPER(F3) -> B1 | H3: =IF($G3<>"",IF($G3<>$B$3,IF(IFERROR(FIND($G3,$E$2)>0,FALSE),TRUE,FALSE),FALSE),FALSE) -> FALSE | I3: =IF(H3,FIND($G3,$E$2),"") ->  | J3: =J2 -> A6C6D7 | K3: =IF(AND($G3<>"",$G3>0,$I3<$E$4),RIGHT(K2,MIN($E$4-$I3,LEN(K2))),K2) ->  | P3: =IFERROR(IF(AND(G3<>"",$G3<>$B$3),FIND(G3,$E$6),""),"") ->  | Q3: B1 | R3: 0 | S3: =IF(P3<>"",OFFSET(Logik!$D$4,0,ROW()-1),0) -> 0
A4: PosX: | B4: =LEFT(B3,1) -> B | D4: PosX | E4: =FIND(B3,E2) -> 1 | F4: =Logik!G1 -> C1 | G4: C1 | H4: FALSE | J4: A6C6D7 | Q4: C1 | R4: 0 | S4: =IF(P4<>"",OFFSET(Logik!$D$4,0,ROW()-1),0) -> 0
A5: PosY: | B5: =RIGHT(B3,1) -> 8 | F5: =Logik!H1 -> D1 | G5: D1 | H5: FALSE | J5: A6C6D7 | Q5: D1 | R5: 0 | S5: =IF(P5<>"",OFFSET(Logik!$D$4,0,ROW()-1),0) -> 0
D6: RX | E6: =K33&J33 -> A6C6D7 | F6: =Logik!I1 -> E1 | G6: E1 | H6: FALSE | J6: A6C6D7 | Q6: E1 | R6: 0 | S6: =IF(P6<>"",OFFSET(Logik!$D$4,0,ROW()-1),0) -> 0
A7: Poäng | B7: =Logik!AD3 -> 300 | F7: =Logik!J1 -> F1 | G7: F1 | H7: FALSE | J7: A6C6D7 | Q7: F1 | R7: 0 | S7: =IF(P7<>"",OFFSET(Logik!$D$4,0,ROW()-1),0) -> 0
A8: PosPoäng | B8: =Logik!AD4 -> 8 | F8: =Logik!K1 -> G1 | G8: G1 | H8: FALSE | J8: A6C6D7 | Q8: G1 | R8: 0 | S8: =IF(P8<>"",OFFSET(Logik!$D$4,0,ROW()-1),0) -> 0
